Workbook

Sheet QRY___SchoolPANsandCapacity (hidden)
A1: SchoolName | B1: SubsidiaryName | C1: SchoolURN | D1: SchoolReferenceNo | E1: SchoolControlType | F1: State | G1: AcademyConversionDate | H1: Schooltype | I1: SchoolSector | J1: PhaseType | K1: Tier | L1: Denominationtext | M1: SchoolIntakeYear | N1: YearStart | O1: CENSUSTerm | P1: PAN | Q1: TemporaryPlaces | R1: PlannedPlaces | S1: BoardingPlaces | T1: MothballedPlaces | U1: NetCapacity | V1: CurrentYrStart | W1: Area | X1: Subarea | Y1: GeoLocalityName | Z1: ParishName | AA1: Ward | AB1: SEN | AC1: Closed
A2: Alexander First School | B2: Alexander First School | C2: 529 | D2: 8682155 | E2: Community | F2: State | H2: First | I2: First | J2: Primary | K2: Three Tier | L2: None | M2: R | N2: 2013 | O2: 1 | P2: 24 | Q2: 6 | R2: 0 | S2: 0 | T2: 0 | U2: 135 | V2: 2018 | W2: Windsor | X2: Windsor South | Y2: Alexander | Z2: Bray | AA2: Clewer South | AB2: FALSE | AC2: FALSE
A3: Alexander First School | B3: Alexander First School | C3: 529 | D3: 8682155 | E3: Community | F3: State | H3: First | I3: First | J3: Primary | K3: Three Tier | L3: None | M3: R | N3: 2014 | O3: 1 | P3: 30 | Q3: 0 | R3: 0 | S3: 0 | T3: 0 | U3: 150 | V3: 2018 | W3: Windsor | X3: Windsor South | Y3: Alexander | Z3: Bray | AA3: Clewer South | AB3: FALSE | AC3: FALSE
A4: Alexander First School | B4: Alexander First School | C4: 529 | D4: 8682155 | E4: Community | F4: State | H4: First | I4: First | J4: Primary | K4: Three Tier | L4: None | M4: R | N4: 2015 | O4: 1 | P4: 30 | Q4: 0 | R4: 0 | S4: 0 | T4: 0 | U4: 150 | V4: 2018 | W4: Windsor | X4: Windsor South | Y4: Alexander | Z4: Bray | AA4: Clewer South | AB4: FALSE | AC4: FALSE
A5: Alexander First School | B5: Alexander First School | C5: 529 | D5: 8682155 | E5: Community | F5: State | H5: First | I5: First | J5: Primary | K5: Three Tier | L5: None | M5: R | N5: 2016 | O5: 1 | P5: 30 | Q5: 0 | R5: 0 | S5: 0 | T5: 0 | U5: 150 | V5: 2018 | W5: Windsor | X5: Windsor South | Y5: Alexander | Z5: Bray | AA5: Clewer South | AB5: FALSE | AC5: FALSE
A6: Alexander First School | B6: Alexander First School | C6: 529 | D6: 8682155 | E6: Community | F6: State | H6: First | I6: First | J6: Primary | K6: Three Tier | L6: None | M6: R | N6: 2017 | O6: 1 | P6: 30 | Q6: 0 | R6: 0 | S6: 0 | T6: 0 | U6: 150 | V6: 2018 | W6: Windsor | X6: Windsor South | Y6: Alexander | Z6: Bray | AA6: Clewer South | AB6: FALSE | AC6: FALSE
A7: Alexander First School | B7: Alexander First School | C7: 529 | D7: 8682155 | E7: Community | F7: State | H7: First | I7: First | J7: Primary | K7: Three Tier | L7: None | M7: R | N7: 2018 | O7: 1 | P7: 30 | Q7: 0 | R7: 0 | S7: 0 | T7: 0 | U7: 150 | V7: 2018 | W7: Windsor | X7: Windsor South | Y7: Alexander | Z7: Bray | AA7: Clewer South | AB7: FALSE | AC7: FALSE
A8: Alexander First School | B8: Alexander First School | C8: 529 | D8: 8682155 | E8: Community | F8: State | H8: First | I8: First | J8: Primary | K8: Three Tier | L8: None | M8: R | N8: 2019 | O8: 1 | P8: 30 | Q8: 0 | R8: 0 | S8: 0 | T8: 0 | U8: 150 | V8: 2018 | W8: Windsor | X8: Windsor South | Y8: Alexander | Z8: Bray | AA8: Clewer South | AB8: FALSE | AC8: FALSE
A9: Alexander First School | B9: Alexander First School | C9: 529 | D9: 8682155 | E9: Community | F9: State | H9: First | I9: First | J9: Primary | K9: Three Tier | L9: None | M9: R | N9: 2020 | O9: 1 | P9: 30 | Q9: 0 | R9: 0 | S9: 0 | T9: 0 | U9: 150 | V9: 2018 | W9: Windsor | X9: Windsor South | Y9: Alexander | Z9: Bray | AA9: Clewer South | AB9: FALSE | AC9: FALSE
A10: Alexander First School | B10: Alexander First School | C10: 529 | D10: 8682155 | E10: Community | F10: State | H10: First | I10: First | J10: Primary | K10: Three Tier | L10: None | M10: R | N10: 2021 | O10: 1 | P10: 30 | Q10: 0 | R10: 0 | S10: 0 | T10: 0 | U10: 150 | V10: 2018 | W10: Windsor | X10: Windsor South | Y10: Alexander | Z10: Bray | AA10: Clewer South | AB10: FALSE | AC10: FALSE
A11: Alexander First School | B11: Alexander First School | C11: 529 | D11: 8682155 | E11: Community | F11: State | H11: First | I11: First | J11: Primary | K11: Three Tier | L11: None | M11: R | N11: 2022 | O11: 1 | P11: 30 | Q11: 0 | R11: 0 | S11: 0 | T11: 0 | U11: 150 | V11: 2018 | W11: Windsor | X11: Windsor South | Y11: Alexander | Z11: Bray | AA11: Clewer South | AB11: FALSE | AC11: FALSE
A12: All Saints Church of England Junior School | B12: All Saints Church of England Junior School | C12: 577 | D12: 8683059 | E12: Voluntary Controlled | F12: State | H12: Junior | I12: Primary | J12: Primary | K12: Two Tier | L12: Church of England | M12: 3 | N12: 2013 | O12: 1 | P12: 67 | Q12: 0 | R12: 0 | S12: 0 | T12: 0 | U12: 240 | V12: 2018 | W12: Maidenhead | X12: Central Maidenhead | Y12: Boyn Hill | Z12: None | AA12: Boyn Hill | AB12: FALSE | AC12: FALSE
A13: All Saints Church of England Junior School | B13: All Saints Church of England Junior School | C13: 577 | D13: 8683059 | E13: Voluntary Controlled | F13: State | H13: Junior | I13: Primary | J13: Primary | K13: Two Tier | L13: Church of England | M13: 3 | N13: 2014 | O13: 1 | P13: 67 | Q13: 23 | R13: 0 | S13: 0 | T13: 0 | U13: 240 | V13: 2018 | W13: Maidenhead | X13: Central Maidenhead | Y13: Boyn Hill | Z13: None | AA13: Boyn Hill | AB13: FALSE | AC13: FALSE
A14: All Saints Church of England Junior School | B14: All Saints Church of England Junior School | C14: 577 | D14: 8683059 | E14: Voluntary Controlled | F14: State | H14: Junior | I14: Primary | J14: Primary | K14: Two Tier | L14: Church of England | M14: 3 | N14: 2015 | O14: 1 | P14: 90 | Q14: 0 | R14: 0 | S14: 0 | T14: 0 | U14: 360 | V14: 2018 | W14: Maidenhead | X14: Central Maidenhead | Y14: Boyn Hill | Z14: None | AA14: Boyn Hill | AB14: FALSE | AC14: FALSE
A15: All Saints Church of England Junior School | B15: All Saints Church of England Junior School | C15: 577 | D15: 8683059 | E15: Voluntary Controlled | F15: State | H15: Junior | I15: Primary | J15: Primary | K15: Two Tier | L15: Church of England | M15: 3 | N15: 2016 | O15: 1 | P15: 90 | Q15: 0 | R15: 0 | S15: 0 | T15: 0 | U15: 360 | V15: 2018 | W15: Maidenhead | X15: Central Maidenhead | Y15: Boyn Hill | Z15: None | AA15: Boyn Hill | AB15: FALSE | AC15: FALSE
A16: All Saints Church of England Junior School | B16: All Saints Church of England Junior School | C16: 577 | D16: 8683059 | E16: Voluntary Controlled | F16: State | H16: Junior | I16: Primary | J16: Primary | K16: Two Tier | L16: Church of England | M16: 3 | N16: 2017 | O16: 1 | P16: 90 | Q16: 0 | R16: 0 | S16: 0 | T16: 0 | U16: 360 | V16: 2018 | W16: Maidenhead | X16: Central Maidenhead | Y16: Boyn Hill | Z16: None | AA16: Boyn Hill | AB16: FALSE | AC16: FALSE
A17: All Saints Church of England Junior School | B17: All Saints Church of England Junior School | C17: 577 | D17: 8683059 | E17: Voluntary Controlled | F17: State | H17: Junior | I17: Primary | J17: Primary | K17: Two Tier | L17: Church of England | M17: 3 | N17: 2018 | O17: 1 | P17: 90 | Q17: 0 | R17: 0 | S17: 0 | T17: 0 | U17: 360 | V17: 2018 | W17: Maidenhead | X17: Central Maidenhead | Y17: Boyn Hill | Z17: None | AA17: Boyn Hill | AB17: FALSE | AC17: FALSE
A18: All Saints Church of England Junior School | B18: All Saints Church of England Junior School | C18: 577 | D18: 8683059 | E18: Voluntary Controlled | F18: State | H18: Junior | I18: Primary | J18: Primary | K18: Two Tier | L18: Church of England | M18: 3 | N18: 2019 | O18: 1 | P18: 90 | Q18: 0 | R18: 0 | S18: 0 | T18: 0 | U18: 360 | V18: 2018 | W18: Maidenhead | X18: Central Maidenhead | Y18: Boyn Hill | Z18: None | AA18: Boyn Hill | AB18: FALSE | AC18: FALSE
A19: All Saints Church of England Junior School | B19: All Saints Church of England Junior School | C19: 577 | D19: 8683059 | E19: Voluntary Controlled | F19: State | H19: Junior | I19: Primary | J19: Primary | K19: Two Tier | L19: Church of England | M19: 3 | N19: 2020 | O19: 1 | P19: 90 | Q19: 0 | R19: 0 | S19: 0 | T19: 0 | U19: 360 | V19: 2018 | W19: Maidenhead | X19: Central Maidenhead | Y19: Boyn Hill | Z19: None | AA19: Boyn Hill | AB19: FALSE | AC19: FALSE
A20: All Saints Church of England Junior School | B20: All Saints Church of England Junior School | C20: 577 | D20: 8683059 | E20: Voluntary Controlled | F20: State | H20: Junior | I20: Primary | J20: Primary | K20: Two Tier | L20: Church of England | M20: 3 | N20: 2021 | O20: 1 | P20: 90 | Q20: 0 | R20: 0 | S20: 0 | T20: 0 | U20: 360 | V20: 2018 | W20: Maidenhead | X20: Central Maidenhead | Y20: Boyn Hill | Z20: None | AA20: Boyn Hill | AB20: FALSE | AC20: FALSE
A21: All Saints Church of England Junior School | B21: All Saints Church of England Junior School | C21: 577 | D21: 8683059 | E21: Voluntary Controlled | F21: State | H21: Junior | I21: Primary | J21: Primary | K21: Two Tier | L21: Church of England | M21: 3 | N21: 2022 | O21: 1 | P21: 90 | Q21: 0 | R21: 0 | S21: 0 | T21: 0 | U21: 360 | V21: 2018 | W21: Maidenhead | X21: Central Maidenhead | Y21: Boyn Hill | Z21: None | AA21: Boyn Hill | AB21: FALSE | AC21: FALSE
A22: Altwood Church of England School | B22: Altwood Church of England School | C22: 581 | D22: 8684506 | E22: Academy | F22: State | G22: 2012-09-01 | H22: Secondary | I22: Secondary | J22: Secondary | K22: Two Tier | L22: Church of England | M22: 7 | N22: 2013 | O22: 1 | P22: 150 | Q22: 0 | R22: 0 | S22: 0 | T22: 0 | U22: 897 | V22: 2018 | W22: Maidenhead | X22: Central Maidenhead | Y22: Tittle Row | Z22: None | AA22: Boyn Hill | AB22: FALSE | AC22: FALSE
A23: Altwood Church of England School | B23: Altwood Church of England School | C23: 581 | D23: 8684506 | E23: Academy | F23: State | G23: 2012-09-01 | H23: Secondary | I23: Secondary | J23: Secondary | K23: Two Tier | L23: Church of England | M23: 7 | N23: 2014 | O23: 1 | P23: 150 | Q23: 0 | R23: 0 | S23: 0 | T23: 0 | U23: 897 | V23: 2018 | W23: Maidenhead | X23: Central Maidenhead | Y23: Tittle Row | Z23: None | AA23: Boyn Hill | AB23: FALSE | AC23: FALSE
A24: Altwood Church of England School | B24: Altwood Church of England School | C24: 581 | D24: 8684506 | E24: Academy | F24: State | G24: 2012-09-01 | H24: Secondary | I24: Secondary | J24: Secondary | K24: Two Tier | L24: Church of England | M24: 7 | N24: 2015 | O24: 1 | P24: 150 | Q24: 0 | R24: 0 | S24: 0 | T24: 0 | U24: 897 | V24: 2018 | W24: Maidenhead | X24: Central Maidenhead | Y24: Tittle Row | Z24: None | AA24: Boyn Hill | AB24: FALSE | AC24: FALSE
A25: Altwood Church of England School | B25: Altwood Church of England School | C25: 581 | D25: 8684506 | E25: Academy | F25: State | G25: 2012-09-01 | H25: Secondary | I25: Secondary | J25: Secondary | K25: Two Tier | L25: Church of England | M25: 7 | N25: 2016 | O25: 1 | P25: 150 | Q25: 0 | R25: 0 | S25: 0 | T25: 0 | U25: 897 | V25: 2018 | W25: Maidenhead | X25: Central Maidenhead | Y25: Tittle Row | Z25: None | AA25: Boyn Hill | AB25: FALSE | AC25: FALSE
A26: Altwood Church of England School | B26: Altwood Church of England School | C26: 581 | D26: 8684506 | E26: Academy | F26: State | G26: 2012-09-01 | H26: Secondary | I26: Secondary | J26: Secondary | K26: Two Tier | L26: Church of England | M26: 7 | N26: 2017 | O26: 1 | P26: 150 | Q26: 0 | R26: 0 | S26: 0 | T26: 0 | U26: 909 | V26: 2018 | W26: Maidenhead | X26: Central Maidenhead | Y26: Tittle Row | Z26: None | AA26: Boyn Hill | AB26: FALSE | AC26: FALSE
A27: Altwood Church of England School | B27: Altwood Church of England School | C27: 581 | D27: 8684506 | E27: Academy | F27: State | G27: 2012-09-01 | H27: Secondary | I27: Secondary | J27: Secondary | K27: Two Tier | L27: Church of England | M27: 7 | N27: 2018 | O27: 1 | P27: 150 | Q27: 0 | R27: 0 | S27: 0 | T27: 0 | U27: 909 | V27: 2018 | W27: Maidenhead | X27: Central Maidenhead | Y27: Tittle Row | Z27: None | AA27: Boyn Hill | AB27: FALSE | AC27: FALSE
A28: Altwood Church of England School | B28: Altwood Church of England School | C28: 581 | D28: 8684506 | E28: Academy | F28: State | G28: 2012-09-01 | H28: Secondary | I28: Secondary | J28: Secondary | K28: Two Tier | L28: Church of England | M28: 7 | N28: 2019 | O28: 1 | P28: 150 | Q28: 0 | R28: 0 | S28: 0 | T28: 0 | U28: 909 | V28: 2018 | W28: Maidenhead | X28: Central Maidenhead | Y28: Tittle Row | Z28: None | AA28: Boyn Hill | AB28: FALSE | AC28: FALSE
A29: Altwood Church of England School | B29: Altwood Church of England School | C29: 581 | D29: 8684506 | E29: Academy | F29: State | G29: 2012-09-01 | H29: Secondary | I29: Secondary | J29: Secondary | K29: Two Tier | L29: Church of England | M29: 7 | N29: 2020 | O29: 1 | P29: 150 | Q29: 0 | R29: 0 | S29: 0 | T29: 0 | U29: 909 | V29: 2018 | W29: Maidenhead | X29: Central Maidenhead | Y29: Tittle Row | Z29: None | AA29: Boyn Hill | AB29: FALSE | AC29: FALSE
A30: Altwood Church of England School | B30: Altwood Church of England School | C30: 581 | D30: 8684506 | E30: Academy | F30: State | G30: 2012-09-01 | H30: Secondary | I30: Secondary | J30: Secondary | K30: Two Tier | L30: Church of England | M30: 7 | N30: 2021 | O30: 1 | P30: 150 | Q30: 0 | R30: 0 | S30: 0 | T30: 0 | U30: 909 | V30: 2018 | W30: Maidenhead | X30: Central Maidenhead | Y30: Tittle Row | Z30: None | AA30: Boyn Hill | AB30: FALSE | AC30: FALSE
A31: Altwood Church of England School | B31: Altwood Church of England School | C31: 581 | D31: 8684506 | E31: Academy | F31: State | G31: 2012-09-01 | H31: Secondary | I31: Secondary | J31: Secondary | K31: Two Tier | L31: Church of England | M31: 7 | N31: 2022 | O31: 1 | P31: 150 | Q31: 0 | R31: 0 | S31: 0 | T31: 0 | U31: 909 | V31: 2018 | W31: Maidenhead | X31: Central Maidenhead | Y31: Tittle Row | Z31: None | AA31: Boyn Hill | AB31: FALSE | AC31: FALSE
A32: Alwyn Infant School | B32: Alwyn Infant School | C32: 587 | D32: 8682071 | E32: Community | F32: State | H32: Infants | I32: Primary | J32: Primary | K32: Two Tier | L32: None | M32: R | N32: 2013 | O32: 1 | P32: 101 | Q32: 4 | R32: 0 | S32: 0 | T32: 0 | U32: 295 | V32: 2018 | W32: Maidenhead | X32: North West Maidenhead | Y32: St Mark's | Z32: None | AA32: Pinkneys Green | AB32: FALSE | AC32: FALSE
A33: Alwyn Infant School | B33: Alwyn Infant School | C33: 587 | D33: 8682071 | E33: Community | F33: State | H33: Infants | I33: Primary | J33: Primary | K33: Two Tier | L33: None | M33: R | N33: 2014 | O33: 1 | P33: 101 | Q33: 0 | R33: 0 | S33: 0 | T33: 0 | U33: 295 | V33: 2018 | W33: Maidenhead | X33: North West Maidenhead | Y33: St Mark's | Z33: None | AA33: Pinkneys Green | AB33: FALSE | AC33: FALSE
A34: Alwyn Infant School | B34: Alwyn Infant School | C34: 587 | D34: 8682071 | E34: Community | F34: State | H34: Infants | I34: Primary | J34: Primary | K34: Two Tier | L34: None | M34: R | N34: 2015 | O34: 1 | P34: 101 | Q34: 0 | R34: 0 | S34: 0 | T34: 0 | U34: 295 | V34: 2018 | W34: Maidenhead | X34: North West Maidenhead | Y34: St Mark's | Z34: None | AA34: Pinkneys Green | AB34: FALSE | AC34: FALSE
A35: Alwyn Infant School | B35: Alwyn Infant School | C35: 587 | D35: 8682071 | E35: Community | F35: State | H35: Infants | I35: Primary | J35: Primary | K35: Two Tier | L35: None | M35: R | N35: 2016 | O35: 1 | P35: 101 | Q35: 3 | R35: 0 | S35: 0 | T35: 0 | U35: 295 | V35: 2018 | W35: Maidenhead | X35: North West Maidenhead | Y35: St Mark's | Z35: None | AA35: Pinkneys Green | AB35: FALSE | AC35: FALSE
A36: Alwyn Infant School | B36: Alwyn Infant School | C36: 587 | D36: 8682071 | E36: Community | F36: State | H36: Infants | I36: Primary | J36: Primary | K36: Two Tier | L36: None | M36: R | N36: 2017 | O36: 1 | P36: 101 | Q36: 0 | R36: 0 | S36: 0 | T36: 0 | U36: 303 | V36: 2018 | W36: Maidenhead | X36: North West Maidenhead | Y36: St Mark's | Z36: None | AA36: Pinkneys Green | AB36: FALSE | AC36: FALSE
A37: Alwyn Infant School | B37: Alwyn Infant School | C37: 587 | D37: 8682071 | E37: Community | F37: State | H37: Infants | I37: Primary | J37: Primary | K37: Two Tier | L37: None | M37: R | N37: 2018 | O37: 1 | P37: 90 | Q37: 0 | R37: 0 | S37: 0 | T37: 11 | U37: 303 | V37: 2018 | W37: Maidenhead | X37: North West Maidenhead | Y37: St Mark's | Z37: None | AA37: Pinkneys Green | AB37: FALSE | AC37: FALSE
A38: Alwyn Infant School | B38: Alwyn Infant School | C38: 587 | D38: 8682071 | E38: Community | F38: State | H38: Infants | I38: Primary | J38: Primary | K38: Two Tier | L38: None | M38: R | N38: 2019 | O38: 1 | P38: 90 | Q38: 0 | R38: 0 | S38: 0 | T38: 11 | U38: 303 | V38: 2018 | W38: Maidenhead | X38: North West Maidenhead | Y38: St Mark's | Z38: None | AA38: Pinkneys Green | AB38: FALSE | AC38: FALSE
A39: Alwyn Infant School | B39: Alwyn Infant School | C39: 587 | D39: 8682071 | E39: Community | F39: State | H39: Infants | I39: Primary | J39: Primary | K39: Two Tier | L39: None | M39: R | N39: 2020 | O39: 1 | P39: 90 | Q39: 0 | R39: 0 | S39: 0 | T39: 11 | U39: 303 | V39: 2018 | W39: Maidenhead | X39: North West Maidenhead | Y39: St Mark's | Z39: None | AA39: Pinkneys Green | AB39: FALSE | AC39: FALSE
A40: Alwyn Infant School | B40: Alwyn Infant School | C40: 587 | D40: 8682071 | E40: Community | F40: State | H40: Infants | I40: Primary | J40: Primary | K40: Two Tier | L40: None | M40: R | N40: 2021 | O40: 1 | P40: 90 | Q40: 0 | R40: 0 | S40: 0 | T40: 11 | U40: 303 | V40: 2018 | W40: Maidenhead | X40: North West Maidenhead | Y40: St Mark's | Z40: None | AA40: Pinkneys Green | AB40: FALSE | AC40: FALSE
A41: Alwyn Infant School | B41: Alwyn Infant School | C41: 587 | D41: 8682071 | E41: Community | F41: State | H41: Infants | I41: Primary | J41: Primary | K41: Two Tier | L41: None | M41: R | N41: 2022 | O41: 1 | P41: 90 | Q41: 0 | R41: 0 | S41: 0 | T41: 11 | U41: 303 | V41: 2018 | W41: Maidenhead | X41: North West Maidenhead | Y41: St Mark's | Z41: None | AA41: Pinkneys Green | AB41: FALSE | AC41: FALSE
A42: Bisham C of E Primary School | B42: Bisham C of E Primary School | C42: 607 | D42: 8683010 | E42: Voluntary Controlled | F42: State | H42: JMI | I42: Primary | J42: Primary | K42: Two Tier | L42: Church of England | M42: R | N42: 2013 | O42: 1 | P42: 16 | Q42: 0 | R42: 0 | S42: 0 | T42: 0 | U42: 112 | V42: 2018 | W42: Maidenhead | X42: Bisham and Cookham | Y42: Bisham | Z42: Bisham | AA42: Bisham and Cookham | AB42: FALSE | AC42: FALSE
A43: Bisham C of E Primary School | B43: Bisham C of E Primary School | C43: 607 | D43: 8683010 | E43: Voluntary Controlled | F43: State | H43: JMI | I43: Primary | J43: Primary | K43: Two Tier | L43: Church of England | M43: R | N43: 2014 | O43: 1 | P43: 16 | Q43: 0 | R43: 0 | S43: 0 | T43: 0 | U43: 112 | V43: 2018 | W43: Maidenhead | X43: Bisham and Cookham | Y43: Bisham | Z43: Bisham | AA43: Bisham and Cookham | AB43: FALSE | AC43: FALSE
A44: Bisham C of E Primary School | B44: Bisham C of E Primary School | C44: 607 | D44: 8683010 | E44: Voluntary Controlled | F44: State | H44: JMI | I44: Primary | J44: Primary | K44: Two Tier | L44: Church of England | M44: R | N44: 2015 | O44: 1 | P44: 16 | Q44: 0 | R44: 0 | S44: 0 | T44: 0 | U44: 112 | V44: 2018 | W44: Maidenhead | X44: Bisham and Cookham | Y44: Bisham | Z44: Bisham | AA44: Bisham and Cookham | AB44: FALSE | AC44: FALSE
A45: Bisham C of E Primary School | B45: Bisham C of E Primary School | C45: 607 | D45: 8683010 | E45: Voluntary Controlled | F45: State | H45: JMI | I45: Primary | J45: Primary | K45: Two Tier | L45: Church of England | M45: R | N45: 2016 | O45: 1 | P45: 16 | Q45: 0 | R45: 0 | S45: 0 | T45: 0 | U45: 112 | V45: 2018 | W45: Maidenhead | X45: Bisham and Cookham | Y45: Bisham | Z45: Bisham | AA45: Bisham and Cookham | AB45: FALSE | AC45: FALSE
A46: Bisham C of E Primary School | B46: Bisham C of E Primary School | C46: 607 | D46: 8683010 | E46: Academy | F46: State | H46: JMI | I46: Primary | J46: Primary | K46: Two Tier | L46: Church of England | M46: R | N46: 2017 | O46: 1 | P46: 16 | Q46: 14 | R46: 0 | S46: 0 | T46: 0 | U46: 120 | V46: 2018 | W46: Maidenhead | X46: Bisham and Cookham | Y46: Bisham | Z46: Bisham | AA46: Bisham and Cookham | AB46: FALSE | AC46: FALSE
A47: Bisham C of E Primary School | B47: Bisham C of E Primary School | C47: 607 | D47: 8683010 | E47: Academy | F47: State | H47: JMI | I47: Primary | J47: Primary | K47: Two Tier | L47: Church of England | M47: R | N47: 2018 | O47: 1 | P47: 16 | Q47: 14 | R47: 0 | S47: 0 | T47: 0 | U47: 120 | V47: 2018 | W47: Maidenhead | X47: Bisham and Cookham | Y47: Bisham | Z47: Bisham | AA47: Bisham and Cookham | AB47: FALSE | AC47: FALSE
A48: Bisham C of E Primary School | B48: Bisham C of E Primary School | C48: 607 | D48: 8683010 | E48: Academy | F48: State | H48: JMI | I48: Primary | J48: Primary | K48: Two Tier | L48: Church of England | M48: R | N48: 2019 | O48: 1 | P48: 16 | Q48: 14 | R48: 0 | S48: 0 | T48: 0 | U48: 120 | V48: 2018 | W48: Maidenhead | X48: Bisham and Cookham | Y48: Bisham | Z48: Bisham | AA48: Bisham and Cookham | AB48: FALSE | AC48: FALSE
A49: Bisham C of E Primary School | B49: Bisham C of E Primary School | C49: 607 | D49: 8683010 | E49: Academy | F49: State | H49: JMI | I49: Primary | J49: Primary | K49: Two Tier | L49: Church of England | M49: R | N49: 2020 | O49: 1 | P49: 16 | Q49: 14 | R49: 0 | S49: 0 | T49: 0 | U49: 120 | V49: 2018 | W49: Maidenhead | X49: Bisham and Cookham | Y49: Bisham | Z49: Bisham | AA49: Bisham and Cookham | AB49: FALSE | AC49: FALSE
A50: Bisham C of E Primary School | B50: Bisham C of E Primary School | C50: 607 | D50: 8683010 | E50: Academy | F50: State | H50: JMI | I50: Primary | J50: Primary | K50: Two Tier | L50: Church of England | M50: R | N50: 2021 | O50: 1 | P50: 16 | Q50: 14 | R50: 0 | S50: 0 | T50: 0 | U50: 120 | V50: 2018 | W50: Maidenhead | X50: Bisham and Cookham | Y50: Bisham | Z50: Bisham | AA50: Bisham and Cookham | AB50: FALSE | AC50: FALSE
A51: Bisham C of E Primary School | B51: Bisham C of E Primary School | C51: 607 | D51: 8683010 | E51: Academy | F51: State | H51: JMI | I51: Primary | J51: Primary | K51: Two Tier | L51: Church of England | M51: R | N51: 2022 | O51: 1 | P51: 16 | Q51: 14 | R51: 0 | S51: 0 | T51: 0 | U51: 120 | V51: 2018 | W51: Maidenhead | X51: Bisham and Cookham | Y51: Bisham | Z51: Bisham | AA51: Bisham and Cookham | AB51: FALSE | AC51: FALSE
A52: Boyne Hill C of E Infant and Nursery School | B52: Boyne Hill C of E Infant and Nursery School | C52: 579 | D52: 8683031 | E52: Voluntary Controlled | F52: State | H52: Infants | I52: Primary | J52: Primary | K52: Two Tier | L52: Church of England | M52: R | N52: 2013 | O52: 1 | P52: 60 | Q52: 0 | R52: 0 | S52: 0 | T52: 0 | U52: 179 | V52: 2018 | W52: Maidenhead | X52: Central Maidenhead | Y52: Boyn Hill | Z52: None | AA52: Boyn Hill | AB52: FALSE | AC52: FALSE
A53: Boyne Hill C of E Infant and Nursery School | B53: Boyne Hill C of E Infant and Nursery School | C53: 579 | D53: 8683031 | E53: Voluntary Controlled | F53: State | H53: Infants | I53: Primary | J53: Primary | K53: Two Tier | L53: Church of England | M53: R | N53: 2014 | O53: 1 | P53: 60 | Q53: 0 | R53: 0 | S53: 0 | T53: 0 | U53: 179 | V53: 2018 | W53: Maidenhead | X53: Central Maidenhead | Y53: Boyn Hill | Z53: None | AA53: Boyn Hill | AB53: FALSE | AC53: FALSE
A54: Boyne Hill C of E Infant and Nursery School | B54: Boyne Hill C of E Infant and Nursery School | C54: 579 | D54: 8683031 | E54: Voluntary Controlled | F54: State | H54: Infants | I54: Primary | J54: Primary | K54: Two Tier | L54: Church of England | M54: R | N54: 2015 | O54: 1 | P54: 60 | Q54: 0 | R54: 0 | S54: 0 | T54: 0 | U54: 179 | V54: 2018 | W54: Maidenhead | X54: Central Maidenhead | Y54: Boyn Hill | Z54: None | AA54: Boyn Hill | AB54: FALSE | AC54: FALSE
A55: Boyne Hill C of E Infant and Nursery School | B55: Boyne Hill C of E Infant and Nursery School | C55: 579 | D55: 8683031 | E55: Voluntary Controlled | F55: State | H55: Infants | I55: Primary | J55: Primary | K55: Two Tier | L55: Church of England | M55: R | N55: 2016 | O55: 1 | P55: 60 | Q55: 0 | R55: 0 | S55: 0 | T55: 0 | U55: 179 | V55: 2018 | W55: Maidenhead | X55: Central Maidenhead | Y55: Boyn Hill | Z55: None | AA55: Boyn Hill | AB55: FALSE | AC55: FALSE
A56: Boyne Hill C of E Infant and Nursery School | B56: Boyne Hill C of E Infant and Nursery School | C56: 579 | D56: 8683031 | E56: Voluntary Controlled | F56: State | H56: Infants | I56: Primary | J56: Primary | K56: Two Tier | L56: Church of England | M56: R | N56: 2017 | O56: 1 | P56: 60 | Q56: 0 | R56: 0 | S56: 0 | T56: 0 | U56: 180 | V56: 2018 | W56: Maidenhead | X56: Central Maidenhead | Y56: Boyn Hill | Z56: None | AA56: Boyn Hill | AB56: FALSE | AC56: FALSE
A57: Boyne Hill C of E Infant and Nursery School | B57: Boyne Hill C of E Infant and Nursery School | C57: 579 | D57: 8683031 | E57: Voluntary Controlled | F57: State | H57: Infants | I57: Primary | J57: Primary | K57: Two Tier | L57: Church of England | M57: R | N57: 2018 | O57: 1 | P57: 60 | Q57: 0 | R57: 0 | S57: 0 | T57: 0 | U57: 180 | V57: 2018 | W57: Maidenhead | X57: Central Maidenhead | Y57: Boyn Hill | Z57: None | AA57: Boyn Hill | AB57: FALSE | AC57: FALSE
A58: Boyne Hill C of E Infant and Nursery School | B58: Boyne Hill C of E Infant and Nursery School | C58: 579 | D58: 8683031 | E58: Voluntary Controlled | F58: State | H58: Infants | I58: Primary | J58: Primary | K58: Two Tier | L58: Church of England | M58: R | N58: 2019 | O58: 1 | P58: 60 | Q58: 0 | R58: 0 | S58: 0 | T58: 0 | U58: 180 | V58: 2018 | W58: Maidenhead | X58: Central Maidenhead | Y58: Boyn Hill | Z58: None | AA58: Boyn Hill | AB58: FALSE | AC58: FALSE
A59: Boyne Hill C of E Infant and Nursery School | B59: Boyne Hill C of E Infant and Nursery School | C59: 579 | D59: 8683031 | E59: Voluntary Controlled | F59: State | H59: Infants | I59: Primary | J59: Primary | K59: Two Tier | L59: Church of England | M59: R | N59: 2020 | O59: 1 | P59: 60 | Q59: 0 | R59: 0 | S59: 0 | T59: 0 | U59: 180 | V59: 2018 | W59: Maidenhead | X59: Central Maidenhead | Y59: Boyn Hill | Z59: None | AA59: Boyn Hill | AB59: FALSE | AC59: FALSE
A60: Boyne Hill C of E Infant and Nursery School | B60: Boyne Hill C of E Infant and Nursery School | C60: 579 | D60: 8683031 | E60: Voluntary Controlled | F60: State | H60: Infants | I60: Primary | J60: Primary | K60: Two Tier | L60: Church of England | M60: R | N60: 2021 | O60: 1 | P60: 60 | Q60: 0 | R60: 0 | S60: 0 | T60: 0 | U60: 180 | V60: 2018 | W60: Maidenhead | X60: Central Maidenhead | Y60: Boyn Hill | Z60: None | AA60: Boyn Hill | AB60: FALSE | AC60: FALSE
A61: Boyne Hill C of E Infant and Nursery School | B61: Boyne Hill C of E Infant and Nursery School | C61: 579 | D61: 8683031 | E61: Voluntary Controlled | F61: State | H61: Infants | I61: Primary | J61: Primary | K61: Two Tier | L61: Church of England | M61: R | N61: 2022 | O61: 1 | P61: 60 | Q61: 0 | R61: 0 | S61: 0 | T61: 0 | U61: 180 | V61: 2018 | W61: Maidenhead | X61: Central Maidenhead | Y61: Boyn Hill | Z61: None | AA61: Boyn Hill | AB61: FALSE | AC61: FALSE
A62: Braywick Court School | B62: Braywick Court School | C62: 563 | D62: 8682000 | E62: Free School | F62: State | H62: JMI | I62: Primary | J62: Primary | K62: Two Tier | L62: None | M62: R | N62: 2014 | O62: 1 | P62: 28 | Q62: 0 | R62: 0 | S62: 0 | T62: 0 | U62: 58 | V62: 2018 | W62: Maidenhead | X62: South East Maidenhead | Y62: Bray | Z62: Bray | AA62: Bray | AB62: FALSE | AC62: FALSE
A63: Braywick Court School | B63: Braywick Court School | C63: 563 | D63: 8682000 | E63: Free School | F63: State | H63: JMI | I63: Primary | J63: Primary | K63: Two Tier | L63: None | M63: R | N63: 2015 | O63: 1 | P63: 30 | Q63: 0 | R63: 0 | S63: 0 | T63: 0 | U63: 58 | V63: 2018 | W63: Maidenhead | X63: South East Maidenhead | Y63: Bray | Z63: Bray | AA63: Bray | AB63: FALSE | AC63: FALSE
A64: Braywick Court School | B64: Braywick Court School | C64: 563 | D64: 8682000 | E64: Free School | F64: State | H64: JMI | I64: Primary | J64: Primary | K64: Two Tier | L64: None | M64: R | N64: 2016 | O64: 1 | P64: 30 | Q64: 0 | R64: 0 | S64: 0 | T64: 0 | U64: 90 | V64: 2018 | W64: Maidenhead | X64: South East Maidenhead | Y64: Bray | Z64: Bray | AA64: Bray | AB64: FALSE | AC64: FALSE
A65: Braywick Court School | B65: Braywick Court School | C65: 563 | D65: 8682000 | E65: Free School | F65: State | H65: JMI | I65: Primary | J65: Primary | K65: Two Tier | L65: None | M65: R | N65: 2017 | O65: 1 | P65: 30 | Q65: 0 | R65: 0 | S65: 0 | T65: 0 | U65: 115 | V65: 2018 | W65: Maidenhead | X65: South East Maidenhead | Y65: Bray | Z65: Bray | AA65: Bray | AB65: FALSE | AC65: FALSE
A66: Braywick Court School | B66: Braywick Court School | C66: 563 | D66: 8682000 | E66: Free School | F66: State | H66: JMI | I66: Primary | J66: Primary | K66: Two Tier | L66: None | M66: R | N66: 2018 | O66: 1 | P66: 30 | Q66: 0 | R66: 0 | S66: 0 | T66: 0 | U66: 210 | V66: 2018 | W66: Maidenhead | X66: South East Maidenhead | Y66: Bray | Z66: Bray | AA66: Bray | AB66: FALSE | AC66: FALSE
A67: Braywick Court School | B67: Braywick Court School | C67: 563 | D67: 8682000 | E67: Free School | F67: State | H67: JMI | I67: Primary | J67: Primary | K67: Two Tier | L67: None | M67: R | N67: 2019 | O67: 1 | P67: 30 | Q67: 0 | R67: 0 | S67: 0 | T67: 0 | U67: 210 | V67: 2018 | W67: Maidenhead | X67: South East Maidenhead | Y67: Bray | Z67: Bray | AA67: Bray | AB67: FALSE | AC67: FALSE
A68: Braywick Court School | B68: Braywick Court School | C68: 563 | D68: 8682000 | E68: Free School | F68: State | H68: JMI | I68: Primary | J68: Primary | K68: Two Tier | L68: None | M68: R | N68: 2020 | O68: 1 | P68: 30 | Q68: 0 | R68: 0 | S68: 0 | T68: 0 | U68: 210 | V68: 2018 | W68: Maidenhead | X68: South East Maidenhead | Y68: Bray | Z68: Bray | AA68: Bray | AB68: FALSE | AC68: FALSE
A69: Braywick Court School | B69: Braywick Court School | C69: 563 | D69: 8682000 | E69: Free School | F69: State | H69: JMI | I69: Primary | J69: Primary | K69: Two Tier | L69: None | M69: R | N69: 2021 | O69: 1 | P69: 30 | Q69: 0 | R69: 0 | S69: 0 | T69: 0 | U69: 210 | V69: 2018 | W69: Maidenhead | X69: South East Maidenhead | Y69: Bray | Z69: Bray | AA69: Bray | AB69: FALSE | AC69: FALSE
A70: Braywick Court School | B70: Braywick Court School | C70: 563 | D70: 8682000 | E70: Free School | F70: State | H70: JMI | I70: Primary | J70: Primary | K70: Two Tier | L70: None | M70: R | N70: 2022 | O70: 1 | P70: 30 | Q70: 0 | R70: 0 | S70: 0 | T70: 0 | U70: 210 | V70: 2018 | W70: Maidenhead | X70: South East Maidenhead | Y70: Bray | Z70: Bray | AA70: Bray | AB70: FALSE | AC70: FALSE
A71: Braywood C of E First School | B71: Braywood C of E First School | C71: 528 | D71: 8683011 | E71: Voluntary Controlled | F71: State | H71: First | I71: First | J71: Primary | K71: Three Tier | L71: Church of England | M71: R | N71: 2013 | O71: 1 | P71: 25 | Q71: 5 | R71: 0 | S71: 0 | T71: 0 | U71: 137 | V71: 2018 | W71: Windsor | X71: Windsor Villages | Y71: Fifield | Z71: Bray | AA71: Bray | AB71: FALSE | AC71: FALSE
A72: Braywood C of E First School | B72: Braywood C of E First School | C72: 528 | D72: 8683011 | E72: Voluntary Controlled | F72: State | H72: First | I72: First | J72: Primary | K72: Three Tier | L72: Church of England | M72: R | N72: 2014 | O72: 1 | P72: 30 | Q72: 0 | R72: 0 | S72: 0 | T72: 0 | U72: 137 | V72: 2018 | W72: Windsor | X72: Windsor Villages | Y72: Fifield | Z72: Bray | AA72: Bray | AB72: FALSE | AC72: FALSE
A73: Braywood C of E First School | B73: Braywood C of E First School | C73: 528 | D73: 8683011 | E73: Voluntary Controlled | F73: State | H73: First | I73: First | J73: Primary | K73: Three Tier | L73: Church of England | M73: R | N73: 2015 | O73: 1 | P73: 30 | Q73: 0 | R73: 0 | S73: 0 | T73: 0 | U73: 137 | V73: 2018 | W73: Windsor | X73: Windsor Villages | Y73: Fifield | Z73: Bray | AA73: Bray | AB73: FALSE | AC73: FALSE
A74: Braywood C of E First School | B74: Braywood C of E First School | C74: 528 | D74: 8683011 | E74: Voluntary Controlled | F74: State | H74: First | I74: First | J74: Primary | K74: Three Tier | L74: Church of England | M74: R | N74: 2016 | O74: 1 | P74: 30 | Q74: 0 | R74: 0 | S74: 0 | T74: 0 | U74: 137 | V74: 2018 | W74: Windsor | X74: Windsor Villages | Y74: Fifield | Z74: Bray | AA74: Bray | AB74: FALSE | AC74: FALSE
A75: Braywood C of E First School | B75: Braywood C of E First School | C75: 528 | D75: 8683011 | E75: Voluntary Controlled | F75: State | H75: First | I75: First | J75: Primary | K75: Three Tier | L75: Church of England | M75: R | N75: 2017 | O75: 1 | P75: 30 | Q75: 0 | R75: 0 | S75: 0 | T75: 0 | U75: 137 | V75: 2018 | W75: Windsor | X75: Windsor Villages | Y75: Fifield | Z75: Bray | AA75: Bray | AB75: FALSE | AC75: FALSE
A76: Braywood C of E First School | B76: Braywood C of E First School | C76: 528 | D76: 8683011 | E76: Voluntary Controlled | F76: State | H76: First | I76: First | J76: Primary | K76: Three Tier | L76: Church of England | M76: R | N76: 2018 | O76: 1 | P76: 30 | Q76: 0 | R76: 0 | S76: 0 | T76: 0 | U76: 137 | V76: 2018 | W76: Windsor | X76: Windsor Villages | Y76: Fifield | Z76: Bray | AA76: Bray | AB76: FALSE | AC76: FALSE
A77: Braywood C of E First School | B77: Braywood C of E First School | C77: 528 | D77: 8683011 | E77: Voluntary Controlled | F77: State | H77: First | I77: First | J77: Primary | K77: Three Tier | L77: Church of England | M77: R | N77: 2019 | O77: 1 | P77: 30 | Q77: 0 | R77: 0 | S77: 0 | T77: 0 | U77: 137 | V77: 2018 | W77: Windsor | X77: Windsor Villages | Y77: Fifield | Z77: Bray | AA77: Bray | AB77: FALSE | AC77: FALSE
A78: Braywood C of E First School | B78: Braywood C of E First School | C78: 528 | D78: 8683011 | E78: Voluntary Controlled | F78: State | H78: First | I78: First | J78: Primary | K78: Three Tier | L78: Church of England | M78: R | N78: 2020 | O78: 1 | P78: 30 | Q78: 0 | R78: 0 | S78: 0 | T78: 0 | U78: 137 | V78: 2018 | W78: Windsor | X78: Windsor Villages | Y78: Fifield | Z78: Bray | AA78: Bray | AB78: FALSE | AC78: FALSE
A79: Braywood C of E First School | B79: Braywood C of E First School | C79: 528 | D79: 8683011 | E79: Voluntary Controlled | F79: State | H79: First | I79: First | J79: Primary | K79: Three Tier | L79: Church of England | M79: R | N79: 2021 | O79: 1 | P79: 30 | Q79: 0 | R79: 0 | S79: 0 | T79: 0 | U79: 137 | V79: 2018 | W79: Windsor | X79: Windsor Villages | Y79: Fifield | Z79: Bray | AA79: Bray | AB79: FALSE | AC79: FALSE
A80: Braywood C of E First School | B80: Braywood C of E First School | C80: 528 | D80: 8683011 | E80: Voluntary Controlled | F80: State | H80: First | I80: First | J80: Primary | K80: Three Tier | L80: Church of England | M80: R | N80: 2022 | O80: 1 | P80: 30 | Q80: 0 | R80: 0 | S80: 0 | T80: 0 | U80: 137 | V80: 2018 | W80: Windsor | X80: Windsor Villages | Y80: Fifield | Z80: Bray | AA80: Bray | AB80: FALSE | AC80: FALSE
A81: Burchetts Green CE Infant School | B81: Burchetts Green CE Infant School | C81: 590 | D81: 8683027 | E81: Voluntary Controlled | F81: State | G81: 2014-12-01 | H81: Infants | I81: Primary | J81: Primary | K81: Two Tier | L81: Church of England | M81: R | N81: 2013 | O81: 1 | P81: 20 | Q81: 0 | R81: 0 | S81: 0 | T81: 0 | U81: 60 | V81: 2018 | W81: Maidenhead | X81: Maidenhead Villages | Y81: Burchett's Green | Z81: Hurley | AA81: Hurley and Walthams | AB81: FALSE | AC81: FALSE
A82: Burchetts Green CE Infant School | B82: Burchetts Green CE Infant School | C82: 590 | D82: 8683027 | E82: Voluntary Controlled | F82: State | G82: 2014-12-01 | H82: Infants | I82: Primary | J82: Primary | K82: Two Tier | L82: Church of England | M82: R | N82: 2014 | O82: 1 | P82: 20 | Q82: 0 | R82: 0 | S82: 0 | T82: 0 | U82: 60 | V82: 2018 | W82: Maidenhead | X82: Maidenhead Villages | Y82: Burchett's Green | Z82: Hurley | AA82: Hurley and Walthams | AB82: FALSE | AC82: FALSE
A83: Burchetts Green CE Infant School | B83: Burchetts Green CE Infant School | C83: 590 | D83: 8683027 | E83: Academy | F83: State | G83: 2014-12-01 | H83: Infants | I83: Primary | J83: Primary | K83: Two Tier | L83: Church of England | M83: R | N83: 2015 | O83: 1 | P83: 20 | Q83: 0 | R83: 0 | S83: 0 | T83: 0 | U83: 60 | V83: 2018 | W83: Maidenhead | X83: Maidenhead Villages | Y83: Burchett's Green | Z83: Hurley | AA83: Hurley and Walthams | AB83: FALSE | AC83: FALSE
A84: Burchetts Green CE Infant School | B84: Burchetts Green CE Infant School | C84: 590 | D84: 8683027 | E84: Academy | F84: State | G84: 2014-12-01 | H84: Infants | I84: Primary | J84: Primary | K84: Two Tier | L84: Church of England | M84: R | N84: 2016 | O84: 1 | P84: 20 | Q84: 5 | R84: 0 | S84: 0 | T84: 0 | U84: 60 | V84: 2018 | W84: Maidenhead | X84: Maidenhead Villages | Y84: Burchett's Green | Z84: Hurley | AA84: Hurley and Walthams | AB84: FALSE | AC84: FALSE
A85: Burchetts Green CE Infant School | B85: Burchetts Green CE Infant School | C85: 590 | D85: 8683027 | E85: Academy | F85: State | G85: 2014-12-01 | H85: Infants | I85: Primary | J85: Primary | K85: Two Tier | L85: Church of England | M85: R | N85: 2017 | O85: 1 | P85: 22 | Q85: 3 | R85: 0 | S85: 0 | T85: 0 | U85: 60 | V85: 2018 | W85: Maidenhead | X85: Maidenhead Villages | Y85: Burchett's Green | Z85: Hurley | AA85: Hurley and Walthams | AB85: FALSE | AC85: FALSE
A86: Burchetts Green CE Infant School | B86: Burchetts Green CE Infant School | C86: 590 | D86: 8683027 | E86: Academy | F86: State | G86: 2014-12-01 | H86: Infants | I86: Primary | J86: Primary | K86: Two Tier | L86: Church of England | M86: R | N86: 2018 | O86: 1 | P86: 22 | Q86: 3 | R86: 0 | S86: 0 | T86: 0 | U86: 60 | V86: 2018 | W86: Maidenhead | X86: Maidenhead Villages | Y86: Burchett's Green | Z86: Hurley | AA86: Hurley and Walthams | AB86: FALSE | AC86: FALSE
A87: Burchetts Green CE Infant School | B87: Burchetts Green CE Infant School | C87: 590 | D87: 8683027 | E87: Academy | F87: State | G87: 2014-12-01 | H87: Infants | I87: Primary | J87: Primary | K87: Two Tier | L87: Church of England | M87: R | N87: 2019 | O87: 1 | P87: 22 | Q87: 0 | R87: 0 | S87: 0 | T87: 0 | U87: 60 | V87: 2018 | W87: Maidenhead | X87: Maidenhead Villages | Y87: Burchett's Green | Z87: Hurley | AA87: Hurley and Walthams | AB87: FALSE | AC87: FALSE
A88: Burchetts Green CE Infant School | B88: Burchetts Green CE Infant School | C88: 590 | D88: 8683027 | E88: Academy | F88: State | G88: 2014-12-01 | H88: Infants | I88: Primary | J88: Primary | K88: Two Tier | L88: Church of England | M88: R | N88: 2020 | O88: 1 | P88: 22 | Q88: 0 | R88: 0 | S88: 0 | T88: 0 | U88: 60 | V88: 2018 | W88: Maidenhead | X88: Maidenhead Villages | Y88: Burchett's Green | Z88: Hurley | AA88: Hurley and Walthams | AB88: FALSE | AC88: FALSE
A89: Burchetts Green CE Infant School | B89: Burchetts Green CE Infant School | C89: 590 | D89: 8683027 | E89: Academy | F89: State | G89: 2014-12-01 | H89: Infants | I89: Primary | J89: Primary | K89: Two Tier | L89: Church of England | M89: R | N89: 2021 | O89: 1 | P89: 22 | Q89: 0 | R89: 0 | S89: 0 | T89: 0 | U89: 60 | V89: 2018 | W89: Maidenhead | X89: Maidenhead Villages | Y89: Burchett's Green | Z89: Hurley | AA89: Hurley and Walthams | AB89: FALSE | AC89: FALSE
A90: Burchetts Green CE Infant School | B90: Burchetts Green CE Infant School | C90: 590 | D90: 8683027 | E90: Academy | F90: State | G90: 2014-12-01 | H90: Infants | I90: Primary | J90: Primary | K90: Two Tier | L90: Church of England | M90: R | N90: 2022 | O90: 1 | P90: 22 | Q90: 0 | R90: 0 | S90: 0 | T90: 0 | U90: 60 | V90: 2018 | W90: Maidenhead | X90: Maidenhead Villages | Y90: Burchett's Green | Z90: Hurley | AA90: Hurley and Walthams | AB90: FALSE | AC90: FALSE
A91: Charters School | B91: Charters School | C91: 555 | D91: 8684029 | E91: Academy | F91: State | G91: 2012-10-01 | H91: Secondary | I91: Secondary | J91: Secondary | K91: Two Tier | L91: None | M91: 7 | N91: 2013 | O91: 1 | P91: 240 | Q91: 0 | R91: 0 | S91: 0 | T91: 0 | U91: 1666 | V91: 2018 | W91: Ascot | X91: Ascot | Y91: South Sunningdale | Z91: Sunningdale | AA91: Sunningdale | AB91: FALSE | AC91: FALSE
A92: Charters School | B92: Charters School | C92: 555 | D92: 8684029 | E92: Academy | F92: State | G92: 2012-10-01 | H92: Secondary | I92: Secondary | J92: Secondary | K92: Two Tier | L92: None | M92: 7 | N92: 2014 | O92: 1 | P92: 240 | Q92: 0 | R92: 0 | S92: 0 | T92: 0 | U92: 1666 | V92: 2018 | W92: Ascot | X92: Ascot | Y92: South Sunningdale | Z92: Sunningdale | AA92: Sunningdale | AB92: FALSE | AC92: FALSE
A93: Charters School | B93: Charters School | C93: 555 | D93: 8684029 | E93: Academy | F93: State | G93: 2012-10-01 | H93: Secondary | I93: Secondary | J93: Secondary | K93: Two Tier | L93: None | M93: 7 | N93: 2015 | O93: 1 | P93: 240 | Q93: 0 | R93: 0 | S93: 0 | T93: 0 | U93: 1685 | V93: 2018 | W93: Ascot | X93: Ascot | Y93: South Sunningdale | Z93: Sunningdale | AA93: Sunningdale | AB93: FALSE | AC93: FALSE
A94: Charters School | B94: Charters School | C94: 555 | D94: 8684029 | E94: Academy | F94: State | G94: 2012-10-01 | H94: Secondary | I94: Secondary | J94: Secondary | K94: Two Tier | L94: None | M94: 7 | N94: 2016 | O94: 1 | P94: 240 | Q94: 0 | R94: 0 | S94: 0 | T94: 0 | U94: 1685 | V94: 2018 | W94: Ascot | X94: Ascot | Y94: South Sunningdale | Z94: Sunningdale | AA94: Sunningdale | AB94: FALSE | AC94: FALSE
A95: Charters School | B95: Charters School | C95: 555 | D95: 8684029 | E95: Academy | F95: State | G95: 2012-10-01 | H95: Secondary | I95: Secondary | J95: Secondary | K95: Two Tier | L95: None | M95: 7 | N95: 2017 | O95: 1 | P95: 240 | Q95: 30 | R95: 0 | S95: 0 | T95: 0 | U95: 1642 | V95: 2018 | W95: Ascot | X95: Ascot | Y95: South Sunningdale | Z95: Sunningdale | AA95: Sunningdale | AB95: FALSE | AC95: FALSE
A96: Charters School | B96: Charters School | C96: 555 | D96: 8684029 | E96: Academy | F96: State | G96: 2012-10-01 | H96: Secondary | I96: Secondary | J96: Secondary | K96: Two Tier | L96: None | M96: 7 | N96: 2018 | O96: 1 | P96: 240 | Q96: 0 | R96: 30 | S96: 0 | T96: 0 | U96: 1816 | V96: 2018 | W96: Ascot | X96: Ascot | Y96: South Sunningdale | Z96: Sunningdale | AA96: Sunningdale | AB96: FALSE | AC96: FALSE
A97: Charters School | B97: Charters School | C97: 555 | D97: 8684029 | E97: Academy | F97: State | G97: 2012-10-01 | H97: Secondary | I97: Secondary | J97: Secondary | K97: Two Tier | L97: None | M97: 7 | N97: 2019 | O97: 1 | P97: 240 | Q97: 0 | R97: 30 | S97: 0 | T97: 0 | U97: 1816 | V97: 2018 | W97: Ascot | X97: Ascot | Y97: South Sunningdale | Z97: Sunningdale | AA97: Sunningdale | AB97: FALSE | AC97: FALSE
A98: Charters School | B98: Charters School | C98: 555 | D98: 8684029 | E98: Academy | F98: State | G98: 2012-10-01 | H98: Secondary | I98: Secondary | J98: Secondary | K98: Two Tier | L98: None | M98: 7 | N98: 2020 | O98: 1 | P98: 240 | Q98: 0 | R98: 30 | S98: 0 | T98: 0 | U98: 1816 | V98: 2018 | W98: Ascot | X98: Ascot | Y98: South Sunningdale | Z98: Sunningdale | AA98: Sunningdale | AB98: FALSE | AC98: FALSE
A99: Charters School | B99: Charters School | C99: 555 | D99: 8684029 | E99: Academy | F99: State | G99: 2012-10-01 | H99: Secondary | I99: Secondary | J99: Secondary | K99: Two Tier | L99: None | M99: 7 | N99: 2021 | O99: 1 | P99: 240 | Q99: 0 | R99: 30 | S99: 0 | T99: 0 | U99: 1816 | V99: 2018 | W99: Ascot | X99: Ascot | Y99: South Sunningdale | Z99: Sunningdale | AA99: Sunningdale | AB99: FALSE | AC99: FALSE
A100: Charters School | B100: Charters School | C100: 555 | D100: 8684029 | E100: Academy | F100: State | G100: 2012-10-01 | H100: Secondary | I100: Secondary | J100: Secondary | K100: Two Tier | L100: None | M100: 7 | N100: 2022 | O100: 1 | P100: 240 | Q100: 0 | R100: 30 | S100: 0 | T100: 0 | U100: 1816 | V100: 2018 | W100: Ascot | X100: Ascot | Y100: South Sunningdale | Z100: Sunningdale | AA100: Sunningdale | AB100: FALSE | AC100: FALSE
A101: Cheapside CE Primary School | B101: Cheapside CE Primary School | C101: 546 | D101: 8683324 | E101: Voluntary Aided | F101: State | H101: JMI | I101: Primary | J101: Primary | K101: Two Tier | L101: Church of England | M101: R | N101: 2013 | O101: 1 | P101: 16 | Q101: 0 | R101: 0 | S101: 0 | T101: 0 | U101: 112 | V101: 2018 | W101: Ascot | X101: Ascot | Y101: Cheapside | Z101: Sunninghill & Ascot | AA101: Ascot & Cheapside | AB101: FALSE | AC101: FALSE
A102: Cheapside CE Primary School | B102: Cheapside CE Primary School | C102: 546 | D102: 8683324 | E102: Voluntary Aided | F102: State | H102: JMI | I102: Primary | J102: Primary | K102: Two Tier | L102: Church of England | M102: R | N102: 2014 | O102: 1 | P102: 16 | Q102: 0 | R102: 0 | S102: 0 | T102: 0 | U102: 112 | V102: 2018 | W102: Ascot | X102: Ascot | Y102: Cheapside | Z102: Sunninghill & Ascot | AA102: Ascot & Cheapside | AB102: FALSE | AC102: FALSE
A103: Cheapside CE Primary School | B103: Cheapside CE Primary School | C103: 546 | D103: 8683324 | E103: Voluntary Aided | F103: State | H103: JMI | I103: Primary | J103: Primary | K103: Two Tier | L103: Church of England | M103: R | N103: 2015 | O103: 1 | P103: 16 | Q103: 0 | R103: 0 | S103: 0 | T103: 0 | U103: 112 | V103: 2018 | W103: Ascot | X103: Ascot | Y103: Cheapside | Z103: Sunninghill & Ascot | AA103: Ascot & Cheapside | AB103: FALSE | AC103: FALSE
A104: Cheapside CE Primary School | B104: Cheapside CE Primary School | C104: 546 | D104: 8683324 | E104: Voluntary Aided | F104: State | H104: JMI | I104: Primary | J104: Primary | K104: Two Tier | L104: Church of England | M104: R | N104: 2016 | O104: 1 | P104: 16 | Q104: 0 | R104: 0 | S104: 0 | T104: 0 | U104: 112 | V104: 2018 | W104: Ascot | X104: Ascot | Y104: Cheapside | Z104: Sunninghill & Ascot | AA104: Ascot & Cheapside | AB104: FALSE | AC104: FALSE
A105: Cheapside CE Primary School | B105: Cheapside CE Primary School | C105: 546 | D105: 8683324 | E105: Voluntary Aided | F105: State | H105: JMI | I105: Primary | J105: Primary | K105: Two Tier | L105: Church of England | M105: R | N105: 2017 | O105: 1 | P105: 30 | Q105: 0 | R105: 0 | S105: 0 | T105: 0 | U105: 112 | V105: 2018 | W105: Ascot | X105: Ascot | Y105: Cheapside | Z105: Sunninghill & Ascot | AA105: Ascot & Cheapside | AB105: FALSE | AC105: FALSE
A106: Cheapside CE Primary School | B106: Cheapside CE Primary School | C106: 546 | D106: 8683324 | E106: Voluntary Aided | F106: State | H106: JMI | I106: Primary | J106: Primary | K106: Two Tier | L106: Church of England | M106: R | N106: 2018 | O106: 1 | P106: 30 | Q106: 0 | R106: 0 | S106: 0 | T106: 0 | U106: 210 | V106: 2018 | W106: Ascot | X106: Ascot | Y106: Cheapside | Z106: Sunninghill & Ascot | AA106: Ascot & Cheapside | AB106: FALSE | AC106: FALSE
A107: Cheapside CE Primary School | B107: Cheapside CE Primary School | C107: 546 | D107: 8683324 | E107: Voluntary Aided | F107: State | H107: JMI | I107: Primary | J107: Primary | K107: Two Tier | L107: Church of England | M107: R | N107: 2019 | O107: 1 | P107: 30 | Q107: 0 | R107: 0 | S107: 0 | T107: 0 | U107: 210 | V107: 2018 | W107: Ascot | X107: Ascot | Y107: Cheapside | Z107: Sunninghill & Ascot | AA107: Ascot & Cheapside | AB107: FALSE | AC107: FALSE
A108: Cheapside CE Primary School | B108: Cheapside CE Primary School | C108: 546 | D108: 8683324 | E108: Voluntary Aided | F108: State | H108: JMI | I108: Primary | J108: Primary | K108: Two Tier | L108: Church of England | M108: R | N108: 2020 | O108: 1 | P108: 30 | Q108: 0 | R108: 0 | S108: 0 | T108: 0 | U108: 210 | V108: 2018 | W108: Ascot | X108: Ascot | Y108: Cheapside | Z108: Sunninghill & Ascot | AA108: Ascot & Cheapside | AB108: FALSE | AC108: FALSE
A109: Cheapside CE Primary School | B109: Cheapside CE Primary School | C109: 546 | D109: 8683324 | E109: Voluntary Aided | F109: State | H109: JMI | I109: Primary | J109: Primary | K109: Two Tier | L109: Church of England | M109: R | N109: 2021 | O109: 1 | P109: 30 | Q109: 0 | R109: 0 | S109: 0 | T109: 0 | U109: 210 | V109: 2018 | W109: Ascot | X109: Ascot | Y109: Cheapside | Z109: Sunninghill & Ascot | AA109: Ascot & Cheapside | AB109: FALSE | AC109: FALSE
A110: Cheapside CE Primary School | B110: Cheapside CE Primary School | C110: 546 | D110: 8683324 | E110: Voluntary Aided | F110: State | H110: JMI | I110: Primary | J110: Primary | K110: Two Tier | L110: Church of England | M110: R | N110: 2022 | O110: 1 | P110: 30 | Q110: 0 | R110: 0 | S110: 0 | T110: 0 | U110: 210 | V110: 2018 | W110: Ascot | X110: Ascot | Y110: Cheapside | Z110: Sunninghill & Ascot | AA110: Ascot & Cheapside | AB110: FALSE | AC110: FALSE
A111: Churchmead Church of England School | B111: Churchmead Church of England School | C111: 511 | D111: 8684084 | E111: Voluntary Aided | F111: State | H111: Secondary | I111: Secondary | J111: Secondary | K111: Two Tier | L111: Church of England | M111: 7 | N111: 2013 | O111: 1 | P111: 140 | Q111: 0 | R111: 0 | S111: 0 | T111: 0 | U111: 744 | V111: 2018 | W111: Datchet & Wraysbury | X111: Datchet and Wraysbury | Y111: Datchet East | Z111: Datchet | AA111: Datchet | AB111: FALSE | AC111: FALSE
A112: Churchmead Church of England School | B112: Churchmead Church of England School | C112: 511 | D112: 8684084 | E112: Voluntary Aided | F112: State | H112: Secondary | I112: Secondary | J112: Secondary | K112: Two Tier | L112: Church of England | M112: 7 | N112: 2014 | O112: 1 | P112: 140 | Q112: 0 | R112: 0 | S112: 0 | T112: 0 | U112: 744 | V112: 2018 | W112: Datchet & Wraysbury | X112: Datchet and Wraysbury | Y112: Datchet East | Z112: Datchet | AA112: Datchet | AB112: FALSE | AC112: FALSE
A113: Churchmead Church of England School | B113: Churchmead Church of England School | C113: 511 | D113: 8684084 | E113: Voluntary Aided | F113: State | H113: Secondary | I113: Secondary | J113: Secondary | K113: Two Tier | L113: Church of England | M113: 7 | N113: 2015 | O113: 1 | P113: 140 | Q113: 0 | R113: 0 | S113: 0 | T113: 0 | U113: 744 | V113: 2018 | W113: Datchet & Wraysbury | X113: Datchet and Wraysbury | Y113: Datchet East | Z113: Datchet | AA113: Datchet | AB113: FALSE | AC113: FALSE
A114: Churchmead Church of England School | B114: Churchmead Church of England School | C114: 511 | D114: 8684084 | E114: Voluntary Aided | F114: State | H114: Secondary | I114: Secondary | J114: Secondary | K114: Two Tier | L114: Church of England | M114: 7 | N114: 2016 | O114: 1 | P114: 140 | Q114: 0 | R114: 0 | S114: 0 | T114: 0 | U114: 744 | V114: 2018 | W114: Datchet & Wraysbury | X114: Datchet and Wraysbury | Y114: Datchet East | Z114: Datchet | AA114: Datchet | AB114: FALSE | AC114: FALSE
A115: Churchmead Church of England School | B115: Churchmead Church of England School | C115: 511 | D115: 8684084 | E115: Voluntary Aided | F115: State | H115: Secondary | I115: Secondary | J115: Secondary | K115: Two Tier | L115: Church of England | M115: 7 | N115: 2017 | O115: 1 | P115: 140 | Q115: 0 | R115: 0 | S115: 0 | T115: 0 | U115: 713 | V115: 2018 | W115: Datchet & Wraysbury | X115: Datchet and Wraysbury | Y115: Datchet East | Z115: Datchet | AA115: Datchet | AB115: FALSE | AC115: FALSE
A116: Churchmead Church of England School | B116: Churchmead Church of England School | C116: 511 | D116: 8684084 | E116: Voluntary Aided | F116: State | H116: Secondary | I116: Secondary | J116: Secondary | K116: Two Tier | L116: Church of England | M116: 7 | N116: 2018 | O116: 1 | P116: 110 | Q116: 0 | R116: 0 | S116: 0 | T116: 30 | U116: 713 | V116: 2018 | W116: Datchet & Wraysbury | X116: Datchet and Wraysbury | Y116: Datchet East | Z116: Datchet | AA116: Datchet | AB116: FALSE | AC116: FALSE
A117: Churchmead Church of England School | B117: Churchmead Church of England School | C117: 511 | D117: 8684084 | E117: Voluntary Aided | F117: State | H117: Secondary | I117: Secondary | J117: Secondary | K117: Two Tier | L117: Church of England | M117: 7 | N117: 2019 | O117: 1 | P117: 110 | Q117: 0 | R117: 0 | S117: 0 | T117: 30 | U117: 713 | V117: 2018 | W117: Datchet & Wraysbury | X117: Datchet and Wraysbury | Y117: Datchet East | Z117: Datchet | AA117: Datchet | AB117: FALSE | AC117: FALSE
A118: Churchmead Church of England School | B118: Churchmead Church of England School | C118: 511 | D118: 8684084 | E118: Voluntary Aided | F118: State | H118: Secondary | I118: Secondary | J118: Secondary | K118: Two Tier | L118: Church of England | M118: 7 | N118: 2020 | O118: 1 | P118: 110 | Q118: 0 | R118: 0 | S118: 0 | T118: 30 | U118: 713 | V118: 2018 | W118: Datchet & Wraysbury | X118: Datchet and Wraysbury | Y118: Datchet East | Z118: Datchet | AA118: Datchet | AB118: FALSE | AC118: FALSE
A119: Churchmead Church of England School | B119: Churchmead Church of England School | C119: 511 | D119: 8684084 | E119: Voluntary Aided | F119: State | H119: Secondary | I119: Secondary | J119: Secondary | K119: Two Tier | L119: Church of England | M119: 7 | N119: 2021 | O119: 1 | P119: 110 | Q119: 0 | R119: 0 | S119: 0 | T119: 30 | U119: 713 | V119: 2018 | W119: Datchet & Wraysbury | X119: Datchet and Wraysbury | Y119: Datchet East | Z119: Datchet | AA119: Datchet | AB119: FALSE | AC119: FALSE
A120: Churchmead Church of England School | B120: Churchmead Church of England School | C120: 511 | D120: 8684084 | E120: Voluntary Aided | F120: State | H120: Secondary | I120: Secondary | J120: Secondary | K120: Two Tier | L120: Church of England | M120: 7 | N120: 2022 | O120: 1 | P120: 110 | Q120: 0 | R120: 0 | S120: 0 | T120: 30 | U120: 713 | V120: 2018 | W120: Datchet & Wraysbury | X120: Datchet and Wraysbury | Y120: Datchet East | Z120: Datchet | AA120: Datchet | AB120: FALSE | AC120: FALSE
A121: Clewer Green CE School | B121: Clewer Green CE School | C121: 523 | D121: 8683326 | E121: Voluntary Aided | F121: State | H121: First | I121: First | J121: Primary | K121: Three Tier | L121: Church of England | M121: R | N121: 2013 | O121: 1 | P121: 60 | Q121: 0 | R121: 0 | S121: 0 | T121: 0 | U121: 300 | V121: 2018 | W121: Windsor | X121: Windsor South | Y121: New Town | Z121: None | AA121: Clewer East | AB121: FALSE | AC121: FALSE
A122: Clewer Green CE School | B122: Clewer Green CE School | C122: 523 | D122: 8683326 | E122: Voluntary Aided | F122: State | H122: First | I122: First | J122: Primary | K122: Three Tier | L122: Church of England | M122: R | N122: 2014 | O122: 1 | P122: 60 | Q122: 0 | R122: 0 | S122: 0 | T122: 0 | U122: 300 | V122: 2018 | W122: Windsor | X122: Windsor South | Y122: New Town | Z122: None | AA122: Clewer East | AB122: FALSE | AC122: FALSE
A123: Clewer Green CE School | B123: Clewer Green CE School | C123: 523 | D123: 8683326 | E123: Voluntary Aided | F123: State | H123: First | I123: First | J123: Primary | K123: Three Tier | L123: Church of England | M123: R | N123: 2015 | O123: 1 | P123: 60 | Q123: 0 | R123: 0 | S123: 0 | T123: 0 | U123: 300 | V123: 2018 | W123: Windsor | X123: Windsor South | Y123: New Town | Z123: None | AA123: Clewer East | AB123: FALSE | AC123: FALSE
A124: Clewer Green CE School | B124: Clewer Green CE School | C124: 523 | D124: 8683326 | E124: Voluntary Aided | F124: State | H124: First | I124: First | J124: Primary | K124: Three Tier | L124: Church of England | M124: R | N124: 2016 | O124: 1 | P124: 60 | Q124: 0 | R124: 0 | S124: 0 | T124: 0 | U124: 300 | V124: 2018 | W124: Windsor | X124: Windsor South | Y124: New Town | Z124: None | AA124: Clewer East | AB124: FALSE | AC124: FALSE
A125: Clewer Green CE School | B125: Clewer Green CE School | C125: 523 | D125: 8683326 | E125: Voluntary Aided | F125: State | H125: First | I125: First | J125: Primary | K125: Three Tier | L125: Church of England | M125: R | N125: 2017 | O125: 1 | P125: 60 | Q125: 0 | R125: 0 | S125: 0 | T125: 0 | U125: 300 | V125: 2018 | W125: Windsor | X125: Windsor South | Y125: New Town | Z125: None | AA125: Clewer East | AB125: FALSE | AC125: FALSE
A126: Clewer Green CE School | B126: Clewer Green CE School | C126: 523 | D126: 8683326 | E126: Voluntary Aided | F126: State | H126: First | I126: First | J126: Primary | K126: Three Tier | L126: Church of England | M126: R | N126: 2018 | O126: 1 | P126: 60 | Q126: 0 | R126: 0 | S126: 0 | T126: 0 | U126: 300 | V126: 2018 | W126: Windsor | X126: Windsor South | Y126: New Town | Z126: None | AA126: Clewer East | AB126: FALSE | AC126: FALSE
A127: Clewer Green CE School | B127: Clewer Green CE School | C127: 523 | D127: 8683326 | E127: Voluntary Aided | F127: State | H127: First | I127: First | J127: Primary | K127: Three Tier | L127: Church of England | M127: R | N127: 2019 | O127: 1 | P127: 60 | Q127: 0 | R127: 0 | S127: 0 | T127: 0 | U127: 300 | V127: 2018 | W127: Windsor | X127: Windsor South | Y127: New Town | Z127: None | AA127: Clewer East | AB127: FALSE | AC127: FALSE
A128: Clewer Green CE School | B128: Clewer Green CE School | C128: 523 | D128: 8683326 | E128: Voluntary Aided | F128: State | H128: First | I128: First | J128: Primary | K128: Three Tier | L128: Church of England | M128: R | N128: 2020 | O128: 1 | P128: 60 | Q128: 0 | R128: 0 | S128: 0 | T128: 0 | U128: 300 | V128: 2018 | W128: Windsor | X128: Windsor South | Y128: New Town | Z128: None | AA128: Clewer East | AB128: FALSE | AC128: FALSE
A129: Clewer Green CE School | B129: Clewer Green CE School | C129: 523 | D129: 8683326 | E129: Voluntary Aided | F129: State | H129: First | I129: First | J129: Primary | K129: Three Tier | L129: Church of England | M129: R | N129: 2021 | O129: 1 | P129: 60 | Q129: 0 | R129: 0 | S129: 0 | T129: 0 | U129: 300 | V129: 2018 | W129: Windsor | X129: Windsor South | Y129: New Town | Z129: None | AA129: Clewer East | AB129: FALSE | AC129: FALSE
A130: Clewer Green CE School | B130: Clewer Green CE School | C130: 523 | D130: 8683326 | E130: Voluntary Aided | F130: State | H130: First | I130: First | J130: Primary | K130: Three Tier | L130: Church of England | M130: R | N130: 2022 | O130: 1 | P130: 60 | Q130: 0 | R130: 0 | S130: 0 | T130: 0 | U130: 300 | V130: 2018 | W130: Windsor | X130: Windsor South | Y130: New Town | Z130: None | AA130: Clewer East | AB130: FALSE | AC130: FALSE
A131: Cookham Dean CE Primary School | B131: Cookham Dean CE Primary School | C131: 602 | D131: 8683021 | E131: Voluntary Aided | F131: State | H131: JMI | I131: Primary | J131: Primary | K131: Two Tier | L131: Church of England | M131: R | N131: 2013 | O131: 1 | P131: 26 | Q131: 0 | R131: 0 | S131: 0 | T131: 0 | U131: 189 | V131: 2018 | W131: Maidenhead | X131: Bisham and Cookham | Y131: Cookham Dean South | Z131: Cookham | AA131: Bisham and Cookham | AB131: FALSE | AC131: FALSE
A132: Cookham Dean CE Primary School | B132: Cookham Dean CE Primary School | C132: 602 | D132: 8683021 | E132: Voluntary Aided | F132: State | H132: JMI | I132: Primary | J132: Primary | K132: Two Tier | L132: Church of England | M132: R | N132: 2014 | O132: 1 | P132: 26 | Q132: 0 | R132: 0 | S132: 0 | T132: 0 | U132: 189 | V132: 2018 | W132: Maidenhead | X132: Bisham and Cookham | Y132: Cookham Dean South | Z132: Cookham | AA132: Bisham and Cookham | AB132: FALSE | AC132: FALSE
A133: Cookham Dean CE Primary School | B133: Cookham Dean CE Primary School | C133: 602 | D133: 8683021 | E133: Voluntary Aided | F133: State | H133: JMI | I133: Primary | J133: Primary | K133: Two Tier | L133: Church of England | M133: R | N133: 2015 | O133: 1 | P133: 27 | Q133: 0 | R133: 0 | S133: 0 | T133: 0 | U133: 189 | V133: 2018 | W133: Maidenhead | X133: Bisham and Cookham | Y133: Cookham Dean South | Z133: Cookham | AA133: Bisham and Cookham | AB133: FALSE | AC133: FALSE
A134: Cookham Dean CE Primary School | B134: Cookham Dean CE Primary School | C134: 602 | D134: 8683021 | E134: Voluntary Aided | F134: State | H134: JMI | I134: Primary | J134: Primary | K134: Two Tier | L134: Church of England | M134: R | N134: 2016 | O134: 1 | P134: 27 | Q134: 0 | R134: 0 | S134: 0 | T134: 0 | U134: 189 | V134: 2018 | W134: Maidenhead | X134: Bisham and Cookham | Y134: Cookham Dean South | Z134: Cookham | AA134: Bisham and Cookham | AB134: FALSE | AC134: FALSE
A135: Cookham Dean CE Primary School | B135: Cookham Dean CE Primary School | C135: 602 | D135: 8683021 | E135: Voluntary Aided | F135: State | H135: JMI | I135: Primary | J135: Primary | K135: Two Tier | L135: Church of England | M135: R | N135: 2017 | O135: 1 | P135: 27 | Q135: 0 | R135: 0 | S135: 0 | T135: 0 | U135: 189 | V135: 2018 | W135: Maidenhead | X135: Bisham and Cookham | Y135: Cookham Dean South | Z135: Cookham | AA135: Bisham and Cookham | AB135: FALSE | AC135: FALSE
A136: Cookham Dean CE Primary School | B136: Cookham Dean CE Primary School | C136: 602 | D136: 8683021 | E136: Voluntary Aided | F136: State | H136: JMI | I136: Primary | J136: Primary | K136: Two Tier | L136: Church of England | M136: R | N136: 2018 | O136: 1 | P136: 27 | Q136: 0 | R136: 0 | S136: 0 | T136: 0 | U136: 189 | V136: 2018 | W136: Maidenhead | X136: Bisham and Cookham | Y136: Cookham Dean South | Z136: Cookham | AA136: Bisham and Cookham | AB136: FALSE | AC136: FALSE
A137: Cookham Dean CE Primary School | B137: Cookham Dean CE Primary School | C137: 602 | D137: 8683021 | E137: Voluntary Aided | F137: State | H137: JMI | I137: Primary | J137: Primary | K137: Two Tier | L137: Church of England | M137: R | N137: 2019 | O137: 1 | P137: 27 | Q137: 0 | R137: 0 | S137: 0 | T137: 0 | U137: 189 | V137: 2018 | W137: Maidenhead | X137: Bisham and Cookham | Y137: Cookham Dean South | Z137: Cookham | AA137: Bisham and Cookham | AB137: FALSE | AC137: FALSE
A138: Cookham Dean CE Primary School | B138: Cookham Dean CE Primary School | C138: 602 | D138: 8683021 | E138: Voluntary Aided | F138: State | H138: JMI | I138: Primary | J138: Primary | K138: Two Tier | L138: Church of England | M138: R | N138: 2020 | O138: 1 | P138: 27 | Q138: 0 | R138: 0 | S138: 0 | T138: 0 | U138: 189 | V138: 2018 | W138: Maidenhead | X138: Bisham and Cookham | Y138: Cookham Dean South | Z138: Cookham | AA138: Bisham and Cookham | AB138: FALSE | AC138: FALSE
A139: Cookham Dean CE Primary School | B139: Cookham Dean CE Primary School | C139: 602 | D139: 8683021 | E139: Voluntary Aided | F139: State | H139: JMI | I139: Primary | J139: Primary | K139: Two Tier | L139: Church of England | M139: R | N139: 2021 | O139: 1 | P139: 27 | Q139: 0 | R139: 0 | S139: 0 | T139: 0 | U139: 189 | V139: 2018 | W139: Maidenhead | X139: Bisham and Cookham | Y139: Cookham Dean South | Z139: Cookham | AA139: Bisham and Cookham | AB139: FALSE | AC139: FALSE
A140: Cookham Dean CE Primary School | B140: Cookham Dean CE Primary School | C140: 602 | D140: 8683021 | E140: Voluntary Aided | F140: State | H140: JMI | I140: Primary | J140: Primary | K140: Two Tier | L140: Church of England | M140: R | N140: 2022 | O140: 1 | P140: 27 | Q140: 0 | R140: 0 | S140: 0 | T140: 0 | U140: 189 | V140: 2018 | W140: Maidenhead | X140: Bisham and Cookham | Y140: Cookham Dean South | Z140: Cookham | AA140: Bisham and Cookham | AB140: FALSE | AC140: FALSE
A141: Cookham Nursery School | B141: Cookham Nursery School | C141: 600 | D141: 8681011 | E141: Community | F141: State | H141: Nursery School | I141: Early Years | J141: Early Years | K141: NA | L141: None | M141: E1 | N141: 2013 | O141: 1 | P141: 0 | Q141: 0 | R141: 0 | S141: 0 | T141: 0 | U141: 0 | V141: 2018 | W141: Maidenhead | X141: Bisham and Cookham | Y141: Cookham | Z141: Cookham | AA141: Bisham and Cookham | AB141: FALSE | AC141: FALSE
A142: Cookham Nursery School | B142: Cookham Nursery School | C142: 600 | D142: 8681011 | E142: Community | F142: State | H142: Nursery School | I142: Early Years | J142: Early Years | K142: NA | L142: None | M142: E1 | N142: 2014 | O142: 1 | P142: 0 | Q142: 0 | R142: 0 | S142: 0 | T142: 0 | U142: 0 | V142: 2018 | W142: Maidenhead | X142: Bisham and Cookham | Y142: Cookham | Z142: Cookham | AA142: Bisham and Cookham | AB142: FALSE | AC142: FALSE
A143: Cookham Nursery School | B143: Cookham Nursery School | C143: 600 | D143: 8681011 | E143: Community | F143: State | H143: Nursery School | I143: Early Years | J143: Early Years | K143: NA | L143: None | M143: E1 | N143: 2015 | O143: 1 | P143: 0 | Q143: 0 | R143: 0 | S143: 0 | T143: 0 | U143: 0 | V143: 2018 | W143: Maidenhead | X143: Bisham and Cookham | Y143: Cookham | Z143: Cookham | AA143: Bisham and Cookham | AB143: FALSE | AC143: FALSE
A144: Cookham Nursery School | B144: Cookham Nursery School | C144: 600 | D144: 8681011 | E144: Community | F144: State | H144: Nursery School | I144: Early Years | J144: Early Years | K144: NA | L144: None | M144: E1 | N144: 2016 | O144: 1 | P144: 0 | Q144: 0 | R144: 0 | S144: 0 | T144: 0 | U144: 0 | V144: 2018 | W144: Maidenhead | X144: Bisham and Cookham | Y144: Cookham | Z144: Cookham | AA144: Bisham and Cookham | AB144: FALSE | AC144: FALSE
A145: Cookham Nursery School | B145: Cookham Nursery School | C145: 600 | D145: 8681011 | E145: Community | F145: State | H145: Nursery School | I145: Early Years | J145: Early Years | K145: NA | L145: None | M145: E1 | N145: 2017 | O145: 1 | P145: 0 | Q145: 0 | R145: 0 | S145: 0 | T145: 0 | U145: 0 | V145: 2018 | W145: Maidenhead | X145: Bisham and Cookham | Y145: Cookham | Z145: Cookham | AA145: Bisham and Cookham | AB145: FALSE | AC145: FALSE
A146: Cookham Nursery School | B146: Cookham Nursery School | C146: 600 | D146: 8681011 | E146: Community | F146: State | H146: Nursery School | I146: Early Years | J146: Early Years | K146: NA | L146: None | M146: E1 | N146: 2018 | O146: 1 | P146: 0 | Q146: 0 | R146: 0 | S146: 0 | T146: 0 | U146: 0 | V146: 2018 | W146: Maidenhead | X146: Bisham and Cookham | Y146: Cookham | Z146: Cookham | AA146: Bisham and Cookham | AB146: FALSE | AC146: FALSE
A147: Cookham Nursery School | B147: Cookham Nursery School | C147: 600 | D147: 8681011 | E147: Community | F147: State | H147: Nursery School | I147: Early Years | J147: Early Years | K147: NA | L147: None | M147: E1 | N147: 2019 | O147: 1 | P147: 0 | Q147: 0 | R147: 0 | S147: 0 | T147: 0 | U147: 0 | V147: 2018 | W147: Maidenhead | X147: Bisham and Cookham | Y147: Cookham | Z147: Cookham | AA147: Bisham and Cookham | AB147: FALSE | AC147: FALSE
A148: Cookham Nursery School | B148: Cookham Nursery School | C148: 600 | D148: 8681011 | E148: Community | F148: State | H148: Nursery School | I148: Early Years | J148: Early Years | K148: NA | L148: None | M148: E1 | N148: 2020 | O148: 1 | P148: 0 | Q148: 0 | R148: 0 | S148: 0 | T148: 0 | U148: 0 | V148: 2018 | W148: Maidenhead | X148: Bisham and Cookham | Y148: Cookham | Z148: Cookham | AA148: Bisham and Cookham | AB148: FALSE | AC148: FALSE
A149: Cookham Nursery School | B149: Cookham Nursery School | C149: 600 | D149: 8681011 | E149: Community | F149: State | H149: Nursery School | I149: Early Years | J149: Early Years | K149: NA | L149: None | M149: E1 | N149: 2021 | O149: 1 | P149: 0 | Q149: 0 | R149: 0 | S149: 0 | T149: 0 | U149: 0 | V149: 2018 | W149: Maidenhead | X149: Bisham and Cookham | Y149: Cookham | Z149: Cookham | AA149: Bisham and Cookham | AB149: FALSE | AC149: FALSE
A150: Cookham Nursery School | B150: Cookham Nursery School | C150: 600 | D150: 8681011 | E150: Community | F150: State | H150: Nursery School | I150: Early Years | J150: Early Years | K150: NA | L150: None | M150: E1 | N150: 2022 | O150: 1 | P150: 0 | Q150: 0 | R150: 0 | S150: 0 | T150: 0 | U150: 0 | V150: 2018 | W150: Maidenhead | X150: Bisham and Cookham | Y150: Cookham | Z150: Cookham | AA150: Bisham and Cookham | AB150: FALSE | AC150: FALSE
A151: Cookham Rise Primary School | B151: Cookham Rise Primary School | C151: 601 | D151: 8682123 | E151: Community | F151: State | H151: JMI | I151: Primary | J151: Primary | K151: Two Tier | L151: None | M151: R | N151: 2013 | O151: 1 | P151: 30 | Q151: 0 | R151: 0 | S151: 0 | T151: 0 | U151: 210 | V151: 2018 | W151: Maidenhead | X151: Bisham and Cookham | Y151: Cookham Rise | Z151: Cookham | AA151: Bisham and Cookham | AB151: FALSE | AC151: FALSE
A152: Cookham Rise Primary School | B152: Cookham Rise Primary School | C152: 601 | D152: 8682123 | E152: Community | F152: State | H152: JMI | I152: Primary | J152: Primary | K152: Two Tier | L152: None | M152: R | N152: 2014 | O152: 1 | P152: 30 | Q152: 0 | R152: 0 | S152: 0 | T152: 0 | U152: 210 | V152: 2018 | W152: Maidenhead | X152: Bisham and Cookham | Y152: Cookham Rise | Z152: Cookham | AA152: Bisham and Cookham | AB152: FALSE | AC152: FALSE
A153: Cookham Rise Primary School | B153: Cookham Rise Primary School | C153: 601 | D153: 8682123 | E153: Community | F153: State | H153: JMI | I153: Primary | J153: Primary | K153: Two Tier | L153: None | M153: R | N153: 2015 | O153: 1 | P153: 30 | Q153: 0 | R153: 0 | S153: 0 | T153: 0 | U153: 210 | V153: 2018 | W153: Maidenhead | X153: Bisham and Cookham | Y153: Cookham Rise | Z153: Cookham | AA153: Bisham and Cookham | AB153: FALSE | AC153: FALSE
A154: Cookham Rise Primary School | B154: Cookham Rise Primary School | C154: 601 | D154: 8682123 | E154: Community | F154: State | H154: JMI | I154: Primary | J154: Primary | K154: Two Tier | L154: None | M154: R | N154: 2016 | O154: 1 | P154: 30 | Q154: 0 | R154: 0 | S154: 0 | T154: 0 | U154: 210 | V154: 2018 | W154: Maidenhead | X154: Bisham and Cookham | Y154: Cookham Rise | Z154: Cookham | AA154: Bisham and Cookham | AB154: FALSE | AC154: FALSE
A155: Cookham Rise Primary School | B155: Cookham Rise Primary School | C155: 601 | D155: 8682123 | E155: Community | F155: State | H155: JMI | I155: Primary | J155: Primary | K155: Two Tier | L155: None | M155: R | N155: 2017 | O155: 1 | P155: 30 | Q155: 0 | R155: 0 | S155: 0 | T155: 0 | U155: 210 | V155: 2018 | W155: Maidenhead | X155: Bisham and Cookham | Y155: Cookham Rise | Z155: Cookham | AA155: Bisham and Cookham | AB155: FALSE | AC155: FALSE
A156: Cookham Rise Primary School | B156: Cookham Rise Primary School | C156: 601 | D156: 8682123 | E156: Community | F156: State | H156: JMI | I156: Primary | J156: Primary | K156: Two Tier | L156: None | M156: R | N156: 2018 | O156: 1 | P156: 30 | Q156: 0 | R156: 0 | S156: 0 | T156: 0 | U156: 210 | V156: 2018 | W156: Maidenhead | X156: Bisham and Cookham | Y156: Cookham Rise | Z156: Cookham | AA156: Bisham and Cookham | AB156: FALSE | AC156: FALSE
A157: Cookham Rise Primary School | B157: Cookham Rise Primary School | C157: 601 | D157: 8682123 | E157: Community | F157: State | H157: JMI | I157: Primary | J157: Primary | K157: Two Tier | L157: None | M157: R | N157: 2019 | O157: 1 | P157: 30 | Q157: 0 | R157: 0 | S157: 0 | T157: 0 | U157: 210 | V157: 2018 | W157: Maidenhead | X157: Bisham and Cookham | Y157: Cookham Rise | Z157: Cookham | AA157: Bisham and Cookham | AB157: FALSE | AC157: FALSE
A158: Cookham Rise Primary School | B158: Cookham Rise Primary School | C158: 601 | D158: 8682123 | E158: Community | F158: State | H158: JMI | I158: Primary | J158: Primary | K158: Two Tier | L158: None | M158: R | N158: 2020 | O158: 1 | P158: 30 | Q158: 0 | R158: 0 | S158: 0 | T158: 0 | U158: 210 | V158: 2018 | W158: Maidenhead | X158: Bisham and Cookham | Y158: Cookham Rise | Z158: Cookham | AA158: Bisham and Cookham | AB158: FALSE | AC158: FALSE
A159: Cookham Rise Primary School | B159: Cookham Rise Primary School | C159: 601 | D159: 8682123 | E159: Community | F159: State | H159: JMI | I159: Primary | J159: Primary | K159: Two Tier | L159: None | M159: R | N159: 2021 | O159: 1 | P159: 30 | Q159: 0 | R159: 0 | S159: 0 | T159: 0 | U159: 210 | V159: 2018 | W159: Maidenhead | X159: Bisham and Cookham | Y159: Cookham Rise | Z159: Cookham | AA159: Bisham and Cookham | AB159: FALSE | AC159: FALSE
A160: Cookham Rise Primary School | B160: Cookham Rise Primary School | C160: 601 | D160: 8682123 | E160: Community | F160: State | H160: JMI | I160: Primary | J160: Primary | K160: Two Tier | L160: None | M160: R | N160: 2022 | O160: 1 | P160: 30 | Q160: 0 | R160: 0 | S160: 0 | T160: 0 | U160: 210 | V160: 2018 | W160: Maidenhead | X160: Bisham and Cookham | Y160: Cookham Rise | Z160: Cookham | AA160: Bisham and Cookham | AB160: FALSE | AC160: FALSE
A161: Courthouse Junior School | B161: Courthouse Junior School | C161: 583 | D161: 8682072 | E161: Community | F161: State | H161: Junior | I161: Primary | J161: Primary | K161: Two Tier | L161: None | M161: 3 | N161: 2013 | O161: 1 | P161: 105 | Q161: 0 | R161: 0 | S161: 0 | T161: 0 | U161: 420 | V161: 2018 | W161: Maidenhead | X161: North West Maidenhead | Y161: St Mark's | Z161: None | AA161: Pinkneys Green | AB161: FALSE | AC161: FALSE
A162: Courthouse Junior School | B162: Courthouse Junior School | C162: 583 | D162: 8682072 | E162: Community | F162: State | H162: Junior | I162: Primary | J162: Primary | K162: Two Tier | L162: None | M162: 3 | N162: 2014 | O162: 1 | P162: 105 | Q162: 0 | R162: 0 | S162: 0 | T162: 0 | U162: 420 | V162: 2018 | W162: Maidenhead | X162: North West Maidenhead | Y162: St Mark's | Z162: None | AA162: Pinkneys Green | AB162: FALSE | AC162: FALSE
A163: Courthouse Junior School | B163: Courthouse Junior School | C163: 583 | D163: 8682072 | E163: Community | F163: State | H163: Junior | I163: Primary | J163: Primary | K163: Two Tier | L163: None | M163: 3 | N163: 2015 | O163: 1 | P163: 105 | Q163: 0 | R163: 0 | S163: 0 | T163: 0 | U163: 420 | V163: 2018 | W163: Maidenhead | X163: North West Maidenhead | Y163: St Mark's | Z163: None | AA163: Pinkneys Green | AB163: FALSE | AC163: FALSE
A164: Courthouse Junior School | B164: Courthouse Junior School | C164: 583 | D164: 8682072 | E164: Community | F164: State | H164: Junior | I164: Primary | J164: Primary | K164: Two Tier | L164: None | M164: 3 | N164: 2016 | O164: 1 | P164: 105 | Q164: 0 | R164: 0 | S164: 0 | T164: 0 | U164: 420 | V164: 2018 | W164: Maidenhead | X164: North West Maidenhead | Y164: St Mark's | Z164: None | AA164: Pinkneys Green | AB164: FALSE | AC164: FALSE
A165: Courthouse Junior School | B165: Courthouse Junior School | C165: 583 | D165: 8682072 | E165: Community | F165: State | H165: Junior | I165: Primary | J165: Primary | K165: Two Tier | L165: None | M165: 3 | N165: 2017 | O165: 1 | P165: 105 | Q165: 0 | R165: 0 | S165: 0 | T165: 0 | U165: 420 | V165: 2018 | W165: Maidenhead | X165: North West Maidenhead | Y165: St Mark's | Z165: None | AA165: Pinkneys Green | AB165: FALSE | AC165: FALSE
A166: Courthouse Junior School | B166: Courthouse Junior School | C166: 583 | D166: 8682072 | E166: Community | F166: State | H166: Junior | I166: Primary | J166: Primary | K166: Two Tier | L166: None | M166: 3 | N166: 2018 | O166: 1 | P166: 105 | Q166: 0 | R166: 0 | S166: 0 | T166: 0 | U166: 420 | V166: 2018 | W166: Maidenhead | X166: North West Maidenhead | Y166: St Mark's | Z166: None | AA166: Pinkneys Green | AB166: FALSE | AC166: FALSE
A167: Courthouse Junior School | B167: Courthouse Junior School | C167: 583 | D167: 8682072 | E167: Community | F167: State | H167: Junior | I167: Primary | J167: Primary | K167: Two Tier | L167: None | M167: 3 | N167: 2019 | O167: 1 | P167: 105 | Q167: 0 | R167: 0 | S167: 0 | T167: 0 | U167: 420 | V167: 2018 | W167: Maidenhead | X167: North West Maidenhead | Y167: St Mark's | Z167: None | AA167: Pinkneys Green | AB167: FALSE | AC167: FALSE
A168: Courthouse Junior School | B168: Courthouse Junior School | C168: 583 | D168: 8682072 | E168: Community | F168: State | H168: Junior | I168: Primary | J168: Primary | K168: Two Tier | L168: None | M168: 3 | N168: 2020 | O168: 1 | P168: 105 | Q168: 0 | R168: 0 | S168: 0 | T168: 0 | U168: 420 | V168: 2018 | W168: Maidenhead | X168: North West Maidenhead | Y168: St Mark's | Z168: None | AA168: Pinkneys Green | AB168: FALSE | AC168: FALSE
A169: Courthouse Junior School | B169: Courthouse Junior School | C169: 583 | D169: 8682072 | E169: Community | F169: State | H169: Junior | I169: Primary | J169: Primary | K169: Two Tier | L169: None | M169: 3 | N169: 2021 | O169: 1 | P169: 105 | Q169: 0 | R169: 0 | S169: 0 | T169: 0 | U169: 420 | V169: 2018 | W169: Maidenhead | X169: North West Maidenhead | Y169: St Mark's | Z169: None | AA169: Pinkneys Green | AB169: FALSE | AC169: FALSE
A170: Courthouse Junior School | B170: Courthouse Junior School | C170: 583 | D170: 8682072 | E170: Community | F170: State | H170: Junior | I170: Primary | J170: Primary | K170: Two Tier | L170: None | M170: 3 | N170: 2022 | O170: 1 | P170: 105 | Q170: 0 | R170: 0 | S170: 0 | T170: 0 | U170: 420 | V170: 2018 | W170: Maidenhead | X170: North West Maidenhead | Y170: St Mark's | Z170: None | AA170: Pinkneys Green | AB170: FALSE | AC170: FALSE
A171: Cox Green School | B171: Cox Green School | C171: 573 | D171: 8684056 | E171: Academy | F171: State | G171: 2011-12-01 | H171: Secondary | I171: Secondary | J171: Secondary | K171: Two Tier | L171: None | M171: 7 | N171: 2013 | O171: 1 | P171: 176 | Q171: 0 | R171: 0 | S171: 0 | T171: 0 | U171: 1077 | V171: 2018 | W171: Maidenhead | X171: South West Maidenhead | Y171: Lowbrook | Z171: Cox Green | AA171: Cox Green | AB171: FALSE | AC171: FALSE
A172: Cox Green School | B172: Cox Green School | C172: 573 | D172: 8684056 | E172: Academy | F172: State | G172: 2011-12-01 | H172: Secondary | I172: Secondary | J172: Secondary | K172: Two Tier | L172: None | M172: 7 | N172: 2014 | O172: 1 | P172: 176 | Q172: 0 | R172: 0 | S172: 0 | T172: 0 | U172: 1077 | V172: 2018 | W172: Maidenhead | X172: South West Maidenhead | Y172: Lowbrook | Z172: Cox Green | AA172: Cox Green | AB172: FALSE | AC172: FALSE
A173: Cox Green School | B173: Cox Green School | C173: 573 | D173: 8684056 | E173: Academy | F173: State | G173: 2011-12-01 | H173: Secondary | I173: Secondary | J173: Secondary | K173: Two Tier | L173: None | M173: 7 | N173: 2015 | O173: 1 | P173: 176 | Q173: 0 | R173: 0 | S173: 0 | T173: 0 | U173: 1085 | V173: 2018 | W173: Maidenhead | X173: South West Maidenhead | Y173: Lowbrook | Z173: Cox Green | AA173: Cox Green | AB173: FALSE | AC173: FALSE
A174: Cox Green School | B174: Cox Green School | C174: 573 | D174: 8684056 | E174: Academy | F174: State | G174: 2011-12-01 | H174: Secondary | I174: Secondary | J174: Secondary | K174: Two Tier | L174: None | M174: 7 | N174: 2016 | O174: 1 | P174: 176 | Q174: 30 | R174: 0 | S174: 0 | T174: 0 | U174: 1103 | V174: 2018 | W174: Maidenhead | X174: South West Maidenhead | Y174: Lowbrook | Z174: Cox Green | AA174: Cox Green | AB174: FALSE | AC174: FALSE
A175: Cox Green School | B175: Cox Green School | C175: 573 | D175: 8684056 | E175: Academy | F175: State | G175: 2011-12-01 | H175: Secondary | I175: Secondary | J175: Secondary | K175: Two Tier | L175: None | M175: 7 | N175: 2017 | O175: 1 | P175: 176 | Q175: 30 | R175: 0 | S175: 0 | T175: 0 | U175: 1103 | V175: 2018 | W175: Maidenhead | X175: South West Maidenhead | Y175: Lowbrook | Z175: Cox Green | AA175: Cox Green | AB175: FALSE | AC175: FALSE
A176: Cox Green School | B176: Cox Green School | C176: 573 | D176: 8684056 | E176: Academy | F176: State | G176: 2011-12-01 | H176: Secondary | I176: Secondary | J176: Secondary | K176: Two Tier | L176: None | M176: 7 | N176: 2018 | O176: 1 | P176: 206 | Q176: 4 | R176: 0 | S176: 0 | T176: 0 | U176: 1227 | V176: 2018 | W176: Maidenhead | X176: South West Maidenhead | Y176: Lowbrook | Z176: Cox Green | AA176: Cox Green | AB176: FALSE | AC176: FALSE
A177: Cox Green School | B177: Cox Green School | C177: 573 | D177: 8684056 | E177: Academy | F177: State | G177: 2011-12-01 | H177: Secondary | I177: Secondary | J177: Secondary | K177: Two Tier | L177: None | M177: 7 | N177: 2019 | O177: 1 | P177: 210 | Q177: 0 | R177: 0 | S177: 0 | T177: 0 | U177: 1227 | V177: 2018 | W177: Maidenhead | X177: South West Maidenhead | Y177: Lowbrook | Z177: Cox Green | AA177: Cox Green | AB177: FALSE | AC177: FALSE
A178: Cox Green School | B178: Cox Green School | C178: 573 | D178: 8684056 | E178: Academy | F178: State | G178: 2011-12-01 | H178: Secondary | I178: Secondary | J178: Secondary | K178: Two Tier | L178: None | M178: 7 | N178: 2020 | O178: 1 | P178: 210 | Q178: 0 | R178: 0 | S178: 0 | T178: 0 | U178: 1227 | V178: 2018 | W178: Maidenhead | X178: South West Maidenhead | Y178: Lowbrook | Z178: Cox Green | AA178: Cox Green | AB178: FALSE | AC178: FALSE
A179: Cox Green School | B179: Cox Green School | C179: 573 | D179: 8684056 | E179: Academy | F179: State | G179: 2011-12-01 | H179: Secondary | I179: Secondary | J179: Secondary | K179: Two Tier | L179: None | M179: 7 | N179: 2021 | O179: 1 | P179: 210 | Q179: 0 | R179: 0 | S179: 0 | T179: 0 | U179: 1227 | V179: 2018 | W179: Maidenhead | X179: South West Maidenhead | Y179: Lowbrook | Z179: Cox Green | AA179: Cox Green | AB179: FALSE | AC179: FALSE
A180: Cox Green School | B180: Cox Green School | C180: 573 | D180: 8684056 | E180: Academy | F180: State | G180: 2011-12-01 | H180: Secondary | I180: Secondary | J180: Secondary | K180: Two Tier | L180: None | M180: 7 | N180: 2022 | O180: 1 | P180: 210 | Q180: 0 | R180: 0 | S180: 0 | T180: 0 | U180: 1227 | V180: 2018 | W180: Maidenhead | X180: South West Maidenhead | Y180: Lowbrook | Z180: Cox Green | AA180: Cox Green | AB180: FALSE | AC180: FALSE
A181: Datchet St Mary's C of E Primary Academy | B181: Datchet St Mary's C of E Primary Academy | C181: 510 | D181: 8683350 | E181: Academy | F181: State | G181: 2012-01-01 | H181: JMI | I181: Primary | J181: Primary | K181: Two Tier | L181: Church of England | M181: R | N181: 2013 | O181: 1 | P181: 30 | Q181: 0 | R181: 0 | S181: 0 | T181: 0 | U181: 204 | V181: 2018 | W181: Datchet & Wraysbury | X181: Datchet and Wraysbury | Y181: Datchet East | Z181: Datchet | AA181: Datchet | AB181: FALSE | AC181: FALSE
A182: Datchet St Mary's C of E Primary Academy | B182: Datchet St Mary's C of E Primary Academy | C182: 510 | D182: 8683350 | E182: Academy | F182: State | G182: 2012-01-01 | H182: JMI | I182: Primary | J182: Primary | K182: Two Tier | L182: Church of England | M182: R | N182: 2014 | O182: 1 | P182: 30 | Q182: 30 | R182: 0 | S182: 0 | T182: 0 | U182: 234 | V182: 2018 | W182: Datchet & Wraysbury | X182: Datchet and Wraysbury | Y182: Datchet East | Z182: Datchet | AA182: Datchet | AB182: FALSE | AC182: FALSE
A183: Datchet St Mary's C of E Primary Academy | B183: Datchet St Mary's C of E Primary Academy | C183: 510 | D183: 8683350 | E183: Academy | F183: State | G183: 2012-01-01 | H183: JMI | I183: Primary | J183: Primary | K183: Two Tier | L183: Church of England | M183: R | N183: 2015 | O183: 1 | P183: 30 | Q183: 0 | R183: 0 | S183: 0 | T183: 0 | U183: 234 | V183: 2018 | W183: Datchet & Wraysbury | X183: Datchet and Wraysbury | Y183: Datchet East | Z183: Datchet | AA183: Datchet | AB183: FALSE | AC183: FALSE
A184: Datchet St Mary's C of E Primary Academy | B184: Datchet St Mary's C of E Primary Academy | C184: 510 | D184: 8683350 | E184: Academy | F184: State | G184: 2012-01-01 | H184: JMI | I184: Primary | J184: Primary | K184: Two Tier | L184: Church of England | M184: R | N184: 2016 | O184: 1 | P184: 30 | Q184: 0 | R184: 0 | S184: 0 | T184: 0 | U184: 234 | V184: 2018 | W184: Datchet & Wraysbury | X184: Datchet and Wraysbury | Y184: Datchet East | Z184: Datchet | AA184: Datchet | AB184: FALSE | AC184: FALSE
A185: Datchet St Mary's C of E Primary Academy | B185: Datchet St Mary's C of E Primary Academy | C185: 510 | D185: 8683350 | E185: Academy | F185: State | G185: 2012-01-01 | H185: JMI | I185: Primary | J185: Primary | K185: Two Tier | L185: Church of England | M185: R | N185: 2017 | O185: 1 | P185: 30 | Q185: 0 | R185: 0 | S185: 0 | T185: 0 | U185: 234 | V185: 2018 | W185: Datchet & Wraysbury | X185: Datchet and Wraysbury | Y185: Datchet East | Z185: Datchet | AA185: Datchet | AB185: FALSE | AC185: FALSE
A186: Datchet St Mary's C of E Primary Academy | B186: Datchet St Mary's C of E Primary Academy | C186: 510 | D186: 8683350 | E186: Academy | F186: State | G186: 2012-01-01 | H186: JMI | I186: Primary | J186: Primary | K186: Two Tier | L186: Church of England | M186: R | N186: 2018 | O186: 1 | P186: 30 | Q186: 0 | R186: 0 | S186: 0 | T186: 0 | U186: 234 | V186: 2018 | W186: Datchet & Wraysbury | X186: Datchet and Wraysbury | Y186: Datchet East | Z186: Datchet | AA186: Datchet | AB186: FALSE | AC186: FALSE
A187: Datchet St Mary's C of E Primary Academy | B187: Datchet St Mary's C of E Primary Academy | C187: 510 | D187: 8683350 | E187: Academy | F187: State | G187: 2012-01-01 | H187: JMI | I187: Primary | J187: Primary | K187: Two Tier | L187: Church of England | M187: R | N187: 2019 | O187: 1 | P187: 30 | Q187: 0 | R187: 0 | S187: 0 | T187: 0 | U187: 234 | V187: 2018 | W187: Datchet & Wraysbury | X187: Datchet and Wraysbury | Y187: Datchet East | Z187: Datchet | AA187: Datchet | AB187: FALSE | AC187: FALSE
A188: Datchet St Mary's C of E Primary Academy | B188: Datchet St Mary's C of E Primary Academy | C188: 510 | D188: 8683350 | E188: Academy | F188: State | G188: 2012-01-01 | H188: JMI | I188: Primary | J188: Primary | K188: Two Tier | L188: Church of England | M188: R | N188: 2020 | O188: 1 | P188: 30 | Q188: 0 | R188: 0 | S188: 0 | T188: 0 | U188: 234 | V188: 2018 | W188: Datchet & Wraysbury | X188: Datchet and Wraysbury | Y188: Datchet East | Z188: Datchet | AA188: Datchet | AB188: FALSE | AC188: FALSE
A189: Datchet St Mary's C of E Primary Academy | B189: Datchet St Mary's C of E Primary Academy | C189: 510 | D189: 8683350 | E189: Academy | F189: State | G189: 2012-01-01 | H189: JMI | I189: Primary | J189: Primary | K189: Two Tier | L189: Church of England | M189: R | N189: 2021 | O189: 1 | P189: 30 | Q189: 0 | R189: 0 | S189: 0 | T189: 0 | U189: 204 | V189: 2018 | W189: Datchet & Wraysbury | X189: Datchet and Wraysbury | Y189: Datchet East | Z189: Datchet | AA189: Datchet | AB189: FALSE | AC189: FALSE
A190: Datchet St Mary's C of E Primary Academy | B190: Datchet St Mary's C of E Primary Academy | C190: 510 | D190: 8683350 | E190: Academy | F190: State | G190: 2012-01-01 | H190: JMI | I190: Primary | J190: Primary | K190: Two Tier | L190: Church of England | M190: R | N190: 2022 | O190: 1 | P190: 30 | Q190: 0 | R190: 0 | S190: 0 | T190: 0 | U190: 204 | V190: 2018 | W190: Datchet & Wraysbury | X190: Datchet and Wraysbury | Y190: Datchet East | Z190: Datchet | AA190: Datchet | AB190: FALSE | AC190: FALSE
A191: Dedworth Green First School | B191: Dedworth Green First School | C191: 534 | D191: 8682098 | E191: Community | F191: State | G191: 2016-05-01 | H191: First | I191: First | J191: Primary | K191: Three Tier | L191: None | M191: R | N191: 2013 | O191: 1 | P191: 30 | Q191: 0 | R191: 0 | S191: 0 | T191: 0 | U191: 150 | V191: 2018 | W191: Windsor | X191: Windsor North | Y191: Dedworth | Z191: None | AA191: Clewer North | AB191: FALSE | AC191: FALSE
A192: Dedworth Green First School | B192: Dedworth Green First School | C192: 534 | D192: 8682098 | E192: Community | F192: State | G192: 2016-05-01 | H192: First | I192: First | J192: Primary | K192: Three Tier | L192: None | M192: R | N192: 2014 | O192: 1 | P192: 30 | Q192: 30 | R192: 0 | S192: 0 | T192: 0 | U192: 180 | V192: 2018 | W192: Windsor | X192: Windsor North | Y192: Dedworth | Z192: None | AA192: Clewer North | AB192: FALSE | AC192: FALSE
A193: Dedworth Green First School | B193: Dedworth Green First School | C193: 534 | D193: 8682098 | E193: Community | F193: State | G193: 2016-05-01 | H193: First | I193: First | J193: Primary | K193: Three Tier | L193: None | M193: R | N193: 2015 | O193: 1 | P193: 30 | Q193: 0 | R193: 0 | S193: 0 | T193: 0 | U193: 180 | V193: 2018 | W193: Windsor | X193: Windsor North | Y193: Dedworth | Z193: None | AA193: Clewer North | AB193: FALSE | AC193: FALSE
A194: Dedworth Green First School | B194: Dedworth Green First School | C194: 534 | D194: 8682098 | E194: Academy | F194: State | G194: 2016-05-01 | H194: First | I194: First | J194: Primary | K194: Three Tier | L194: None | M194: R | N194: 2016 | O194: 1 | P194: 30 | Q194: 0 | R194: 0 | S194: 0 | T194: 0 | U194: 180 | V194: 2018 | W194: Windsor | X194: Windsor North | Y194: Dedworth | Z194: None | AA194: Clewer North | AB194: FALSE | AC194: FALSE
A195: Dedworth Green First School | B195: Dedworth Green First School | C195: 534 | D195: 8682098 | E195: Academy | F195: State | G195: 2016-05-01 | H195: First | I195: First | J195: Primary | K195: Three Tier | L195: None | M195: R | N195: 2017 | O195: 1 | P195: 30 | Q195: 0 | R195: 0 | S195: 0 | T195: 0 | U195: 180 | V195: 2018 | W195: Windsor | X195: Windsor North | Y195: Dedworth | Z195: None | AA195: Clewer North | AB195: FALSE | AC195: FALSE
A196: Dedworth Green First School | B196: Dedworth Green First School | C196: 534 | D196: 8682098 | E196: Academy | F196: State | G196: 2016-05-01 | H196: First | I196: First | J196: Primary | K196: Three Tier | L196: None | M196: R | N196: 2018 | O196: 1 | P196: 30 | Q196: 0 | R196: 0 | S196: 0 | T196: 0 | U196: 180 | V196: 2018 | W196: Windsor | X196: Windsor North | Y196: Dedworth | Z196: None | AA196: Clewer North | AB196: FALSE | AC196: FALSE
A197: Dedworth Green First School | B197: Dedworth Green First School | C197: 534 | D197: 8682098 | E197: Academy | F197: State | G197: 2016-05-01 | H197: First | I197: First | J197: Primary | K197: Three Tier | L197: None | M197: R | N197: 2019 | O197: 1 | P197: 30 | Q197: 0 | R197: 0 | S197: 0 | T197: 0 | U197: 150 | V197: 2018 | W197: Windsor | X197: Windsor North | Y197: Dedworth | Z197: None | AA197: Clewer North | AB197: FALSE | AC197: FALSE
A198: Dedworth Green First School | B198: Dedworth Green First School | C198: 534 | D198: 8682098 | E198: Academy | F198: State | G198: 2016-05-01 | H198: First | I198: First | J198: Primary | K198: Three Tier | L198: None | M198: R | N198: 2020 | O198: 1 | P198: 30 | Q198: 0 | R198: 0 | S198: 0 | T198: 0 | U198: 150 | V198: 2018 | W198: Windsor | X198: Windsor North | Y198: Dedworth | Z198: None | AA198: Clewer North | AB198: FALSE | AC198: FALSE
A199: Dedworth Green First School | B199: Dedworth Green First School | C199: 534 | D199: 8682098 | E199: Academy | F199: State | G199: 2016-05-01 | H199: First | I199: First | J199: Primary | K199: Three Tier | L199: None | M199: R | N199: 2021 | O199: 1 | P199: 30 | Q199: 0 | R199: 0 | S199: 0 | T199: 0 | U199: 150 | V199: 2018 | W199: Windsor | X199: Windsor North | Y199: Dedworth | Z199: None | AA199: Clewer North | AB199: FALSE | AC199: FALSE
A200: Dedworth Green First School | B200: Dedworth Green First School | C200: 534 | D200: 8682098 | E200: Academy | F200: State | G200: 2016-05-01 | H200: First | I200: First | J200: Primary | K200: Three Tier | L200: None | M200: R | N200: 2022 | O200: 1 | P200: 30 | Q200: 0 | R200: 0 | S200: 0 | T200: 0 | U200: 150 | V200: 2018 | W200: Windsor | X200: Windsor North | Y200: Dedworth | Z200: None | AA200: Clewer North | AB200: FALSE | AC200: FALSE
... 466 more rows

Sheet PivotTableA (hidden)
C3: =Q9 -> 2018
A5: YearStart | B5: 2018
A8: SchoolName | B8: SubsidiaryName | C8: SchoolIntakeYear | D8: Area | E8: Subarea | F8: GeoLocalityName | G8: Ward | H8: ParishName | I8: PhaseType | J8: Tier | K8: Schooltype | L8: SchoolControlType | M8: AcademyConversionDate | N8: Denominationtext | O8: SEN | P8: Closed | Q8: CurrentYrStart
A9: Alexander First School | B9: Alexander First School | C9: R | D9: Windsor | E9: Windsor South | F9: Alexander | G9: Clewer South | H9: Bray | I9: Primary | J9: Three Tier | K9: First | L9: Community | N9: None | O9: FALSE | P9: FALSE | Q9: 2018
A10: All Saints Church of England Junior School | B10: All Saints Church of England Junior School | C10: 3 | D10: Maidenhead | E10: Central Maidenhead | F10: Boyn Hill | G10: Boyn Hill | H10: None | I10: Primary | J10: Two Tier | K10: Junior | L10: Voluntary Controlled | N10: Church of England | O10: FALSE | P10: FALSE | Q10: 2018
A11: Altwood Church of England School | B11: Altwood Church of England School | C11: 7 | D11: Maidenhead | E11: Central Maidenhead | F11: Tittle Row | G11: Boyn Hill | H11: None | I11: Secondary | J11: Two Tier | K11: Secondary | L11: Academy | M11: 2012-09-01 | N11: Church of England | O11: FALSE | P11: FALSE | Q11: 2018
A12: Alwyn Infant School | B12: Alwyn Infant School | C12: R | D12: Maidenhead | E12: North West Maidenhead | F12: St Mark's | G12: Pinkneys Green | H12: None | I12: Primary | J12: Two Tier | K12: Infants | L12: Community | N12: None | O12: FALSE | P12: FALSE | Q12: 2018
A13: Bisham C of E Primary School | B13: Bisham C of E Primary School | C13: R | D13: Maidenhead | E13: Bisham and Cookham | F13: Bisham | G13: Bisham and Cookham | H13: Bisham | I13: Primary | J13: Two Tier | K13: JMI | L13: Academy | N13: Church of England | O13: FALSE | P13: FALSE | Q13: 2018
A14: Boyne Hill C of E Infant and Nursery School | B14: Boyne Hill C of E Infant and Nursery School | C14: R | D14: Maidenhead | E14: Central Maidenhead | F14: Boyn Hill | G14: Boyn Hill | H14: None | I14: Primary | J14: Two Tier | K14: Infants | L14: Voluntary Controlled | N14: Church of England | O14: FALSE | P14: FALSE | Q14: 2018
A15: Braywick Court School | B15: Braywick Court School | C15: R | D15: Maidenhead | E15: South East Maidenhead | F15: Bray | G15: Bray | H15: Bray | I15: Primary | J15: Two Tier | K15: JMI | L15: Free School | N15: None | O15: FALSE | P15: FALSE | Q15: 2018
A16: Braywood C of E First School | B16: Braywood C of E First School | C16: R | D16: Windsor | E16: Windsor Villages | F16: Fifield | G16: Bray | H16: Bray | I16: Primary | J16: Three Tier | K16: First | L16: Voluntary Controlled | N16: Church of England | O16: FALSE | P16: FALSE | Q16: 2018
A17: Burchetts Green CE Infant School | B17: Burchetts Green CE Infant School | C17: R | D17: Maidenhead | E17: Maidenhead Villages | F17: Burchett's Green | G17: Hurley and Walthams | H17: Hurley | I17: Primary | J17: Two Tier | K17: Infants | L17: Academy | M17: 2014-12-01 | N17: Church of England | O17: FALSE | P17: FALSE | Q17: 2018
A18: Charters School | B18: Charters School | C18: 7 | D18: Ascot | E18: Ascot | F18: South Sunningdale | G18: Sunningdale | H18: Sunningdale | I18: Secondary | J18: Two Tier | K18: Secondary | L18: Academy | M18: 2012-10-01 | N18: None | O18: FALSE | P18: FALSE | Q18: 2018
A19: Cheapside CE Primary School | B19: Cheapside CE Primary School | C19: R | D19: Ascot | E19: Ascot | F19: Cheapside | G19: Ascot & Cheapside | H19: Sunninghill & Ascot | I19: Primary | J19: Two Tier | K19: JMI | L19: Voluntary Aided | N19: Church of England | O19: FALSE | P19: FALSE | Q19: 2018
A20: Churchmead Church of England School | B20: Churchmead Church of England School | C20: 7 | D20: Datchet & Wraysbury | E20: Datchet and Wraysbury | F20: Datchet East | G20: Datchet | H20: Datchet | I20: Secondary | J20: Two Tier | K20: Secondary | L20: Voluntary Aided | N20: Church of England | O20: FALSE | P20: FALSE | Q20: 2018
A21: Clewer Green CE School | B21: Clewer Green CE School | C21: R | D21: Windsor | E21: Windsor South | F21: New Town | G21: Clewer East | H21: None | I21: Primary | J21: Three Tier | K21: First | L21: Voluntary Aided | N21: Church of England | O21: FALSE | P21: FALSE | Q21: 2018
A22: Cookham Dean CE Primary School | B22: Cookham Dean CE Primary School | C22: R | D22: Maidenhead | E22: Bisham and Cookham | F22: Cookham Dean South | G22: Bisham and Cookham | H22: Cookham | I22: Primary | J22: Two Tier | K22: JMI | L22: Voluntary Aided | N22: Church of England | O22: FALSE | P22: FALSE | Q22: 2018
A23: Cookham Nursery School | B23: Cookham Nursery School | C23: E1 | D23: Maidenhead | E23: Bisham and Cookham | F23: Cookham | G23: Bisham and Cookham | H23: Cookham | I23: Early Years | J23: NA | K23: Nursery School | L23: Community | N23: None | O23: FALSE | P23: FALSE | Q23: 2018
A24: Cookham Rise Primary School | B24: Cookham Rise Primary School | C24: R | D24: Maidenhead | E24: Bisham and Cookham | F24: Cookham Rise | G24: Bisham and Cookham | H24: Cookham | I24: Primary | J24: Two Tier | K24: JMI | L24: Community | N24: None | O24: FALSE | P24: FALSE | Q24: 2018
A25: Courthouse Junior School | B25: Courthouse Junior School | C25: 3 | D25: Maidenhead | E25: North West Maidenhead | F25: St Mark's | G25: Pinkneys Green | H25: None | I25: Primary | J25: Two Tier | K25: Junior | L25: Community | N25: None | O25: FALSE | P25: FALSE | Q25: 2018
A26: Cox Green School | B26: Cox Green School | C26: 7 | D26: Maidenhead | E26: South West Maidenhead | F26: Lowbrook | G26: Cox Green | H26: Cox Green | I26: Secondary | J26: Two Tier | K26: Secondary | L26: Academy | M26: 2011-12-01 | N26: None | O26: FALSE | P26: FALSE | Q26: 2018
A27: Datchet St Mary's C of E Primary Academy | B27: Datchet St Mary's C of E Primary Academy | C27: R | D27: Datchet & Wraysbury | E27: Datchet and Wraysbury | F27: Datchet East | G27: Datchet | H27: Datchet | I27: Primary | J27: Two Tier | K27: JMI | L27: Academy | M27: 2012-01-01 | N27: Church of England | O27: FALSE | P27: FALSE | Q27: 2018
A28: Dedworth Green First School | B28: Dedworth Green First School | C28: R | D28: Windsor | E28: Windsor North | F28: Dedworth | G28: Clewer North | H28: None | I28: Primary | J28: Three Tier | K28: First | L28: Academy | M28: 2016-05-01 | N28: None | O28: FALSE | P28: FALSE | Q28: 2018
A29: Dedworth Middle School | B29: Dedworth Middle School | C29: 5 | D29: Windsor | E29: Windsor North | F29: Dedworth | G29: Clewer North | H29: None | I29: Secondary | J29: Three Tier | K29: Middle | L29: Academy | M29: 2016-05-01 | N29: None | O29: FALSE | P29: FALSE | Q29: 2018
A30: Desborough College | B30: Desborough College | C30: 7 | D30: Maidenhead | E30: Central Maidenhead | F30: Larchfield East | G30: Oldfield | H30: None | I30: Secondary | J30: Two Tier | K30: Secondary | L30: Academy | M30: 2012-10-01 | N30: None | O30: FALSE | P30: FALSE | Q30: 2018
A31: Eton Porny C of E First School | B31: Eton Porny C of E First School | C31: R | D31: Windsor | E31: Eton | F31: Eton | G31: Eton and Castle | H31: Eton Town Council | I31: Primary | J31: Three Tier | K31: First | L31: Academy | M31: 2016-02-01 | N31: Church of England | O31: FALSE | P31: FALSE | Q31: 2018
A32: Eton Wick C of E First School | B32: Eton Wick C of E First School | C32: R | D32: Windsor | E32: Eton | F32: Eton Wick | G32: Eton Wick | H32: Eton Town Council | I32: Primary | J32: Three Tier | K32: First | L32: Voluntary Controlled | N32: Church of England | O32: FALSE | P32: FALSE | Q32: 2018
A33: Forest Bridge School | B33: Forest Bridge School | C33: R | D33: Maidenhead | E33: South East Maidenhead | F33: Fishery | G33: Oldfield | H33: None | I33: All-through | J33: NA | K33: All Years | L33: Free School | N33: None | O33: TRUE | P33: FALSE | Q33: 2018
A34: Furze Platt Infant School | B34: Furze Platt Infant School | C34: R | D34: Maidenhead | E34: North West Maidenhead | F34: Furze Platt | G34: Furze Platt | H34: None | I34: Primary | J34: Two Tier | K34: Infants | L34: Community | N34: None | O34: FALSE | P34: FALSE | Q34: 2018
A35: Furze Platt Junior School | B35: Furze Platt Junior School | C35: 3 | D35: Maidenhead | E35: North West Maidenhead | F35: Furze Platt | G35: Furze Platt | H35: None | I35: Primary | J35: Two Tier | K35: Junior | L35: Community | N35: None | O35: FALSE | P35: FALSE | Q35: 2018
A36: Furze Platt Senior School | B36: Furze Platt Senior School | C36: 7 | D36: Maidenhead | E36: North West Maidenhead | F36: Furze Platt | G36: Furze Platt | H36: None | I36: Secondary | J36: Two Tier | K36: Secondary | L36: Academy | M36: 2011-12-01 | N36: None | O36: FALSE | P36: FALSE | Q36: 2018
A37: Hilltop First School | B37: Hilltop First School | C37: R | D37: Windsor | E37: Windsor South | F37: Hilltop | G37: Clewer South | H37: None | I37: Primary | J37: Three Tier | K37: First | L37: Community | N37: None | O37: FALSE | P37: FALSE | Q37: 2018
A38: Holy Trinity C of E Primary School, Cookham | B38: Holy Trinity C of E Primary School, Cookham | C38: R | D38: Maidenhead | E38: Bisham and Cookham | F38: Cookham | G38: Bisham and Cookham | H38: Cookham | I38: Primary | J38: Two Tier | K38: JMI | L38: Voluntary Controlled | N38: Church of England | O38: FALSE | P38: FALSE | Q38: 2018
A39: Holy Trinity CE Primary School, Sunningdale | B39: Holy Trinity CE Primary School, Sunningdale | C39: R | D39: Ascot | E39: Ascot | F39: North Sunningdale | G39: Sunningdale | H39: Sunningdale | I39: Primary | J39: Two Tier | K39: JMI | L39: Voluntary Aided | N39: Church of England | O39: FALSE | P39: FALSE | Q39: 2018
A40: Holyport C of E Primary School & Foundation Unit | B40: Holyport C of E Primary School & Foundation Unit | C40: R | D40: Maidenhead | E40: South East Maidenhead | F40: Holyport Rural | G40: Bray | H40: Bray | I40: Primary | J40: Two Tier | K40: JMI | L40: Academy | M40: 2016-06-01 | N40: Church of England | O40: FALSE | P40: FALSE | Q40: 2018
A41: Holyport College | B41: Holyport College (Year 7) | C41: 7 | D41: Maidenhead | E41: South East Maidenhead | F41: Holyport Rural | G41: Bray | H41: Bray | I41: Secondary | J41: Two Tier | K41: Secondary | L41: Free School | N41: None | O41: FALSE | P41: FALSE | Q41: 2018
A42: Holyport College | B42: Holyport College (Year 9) | C42: 9 | D42: Windsor | E42: Windsor Villages | F42: Fifield | G42: None | H42: Bray | I42: Secondary | J42: Three Tier | K42: Upper | L42: Free School | N42: None | O42: FALSE | P42: FALSE | Q42: 2018
A43: Homer First School and Nursery | B43: Homer First School and Nursery | C43: R | D43: Windsor | E43: Windsor North | F43: Homer | G43: Clewer North | H43: None | I43: Primary | J43: Three Tier | K43: First | L43: Community | N43: None | O43: FALSE | P43: FALSE | Q43: 2018
A44: Kings Court First School | B44: Kings Court First School | C44: R | D44: Windsor | E44: Windsor Villages | F44: Old Windsor | G44: Old Windsor | H44: Old Windsor | I44: Primary | J44: Three Tier | K44: First | L44: Community | N44: None | O44: FALSE | P44: FALSE | Q44: 2018
A45: Knowl Hill C of E Academy | B45: Knowl Hill C of E Academy | C45: R | D45: Maidenhead | E45: Maidenhead Villages | F45: Knowl Hill | G45: Hurley and Walthams | H45: Hurley | I45: Primary | J45: Two Tier | K45: JMI | L45: Academy | M45: 2014-09-01 | N45: Church of England | O45: FALSE | P45: FALSE | Q45: 2018
A46: Larchfield Primary and Nursery School | B46: Larchfield Primary and Nursery School | C46: R | D46: Maidenhead | E46: Central Maidenhead | F46: Larchfield West | G46: Oldfield | H46: None | I46: Primary | J46: Two Tier | K46: JMI | L46: Community | N46: None | O46: FALSE | P46: FALSE | Q46: 2018
A47: Lowbrook Academy | B47: Lowbrook Academy | C47: R | D47: Maidenhead | E47: South West Maidenhead | F47: Lowbrook | G47: Cox Green | H47: Cox Green | I47: Primary | J47: Two Tier | K47: JMI | L47: Academy | M47: 2011-04-01 | N47: None | O47: FALSE | P47: FALSE | Q47: 2018
A48: Maidenhead Nursery School | B48: Maidenhead Nursery School | C48: E1 | D48: Maidenhead | E48: North East Maidenhead | F48: North Town | G48: Furze Platt | H48: None | I48: Early Years | J48: NA | K48: Nursery School | L48: Community | N48: None | O48: FALSE | P48: FALSE | Q48: 2018
A49: Manor Green School | B49: Manor Green School | C49: R | D49: Maidenhead | E49: South West Maidenhead | F49: Lowbrook | G49: Cox Green | H49: Cox Green | I49: All-through | J49: NA | K49: All Years | L49: Community | N49: None | O49: TRUE | P49: FALSE | Q49: 2018
A50: Newlands Girls' School | B50: Newlands Girls' School | C50: 7 | D50: Maidenhead | E50: North West Maidenhead | F50: Highway | G50: Pinkneys Green | H50: None | I50: Secondary | J50: Two Tier | K50: Secondary | L50: Academy | M50: 2015-10-01 | N50: None | O50: FALSE | P50: FALSE | Q50: 2018
A51: Oakfield First School | B51: Oakfield First School | C51: R | D51: Windsor | E51: East Windsor | F51: Oakfield | G51: Clewer East | H51: None | I51: Primary | J51: Three Tier | K51: First | L51: Community | N51: None | O51: FALSE | P51: FALSE | Q51: 2018
A52: Oldfield Primary School | B52: Oldfield Primary School | C52: R | D52: Maidenhead | E52: South East Maidenhead | F52: Fishery | G52: Oldfield | H52: None | I52: Primary | J52: Two Tier | K52: JMI | L52: Community | N52: None | O52: FALSE | P52: FALSE | Q52: 2018
A53: RISE Alternative Learning Provision | B53: RISE Alternative Learning Provision | C53: R | D53: Maidenhead | E53: South East Maidenhead | F53: Central | G53: Oldfield | H53: None | I53: All-through | J53: NA | K53: All-through PRU | L53: Community | N53: None | O53: FALSE | P53: FALSE | Q53: 2018
A54: Riverside Primary School and Nursery | B54: Riverside Primary School and Nursery | C54: R | D54: Maidenhead | E54: North East Maidenhead | F54: North Town | G54: Maidenhead Riverside | H54: None | I54: Primary | J54: Two Tier | K54: JMI | L54: Community | N54: None | O54: FALSE | P54: FALSE | Q54: 2018
A55: South Ascot Village Primary School | B55: South Ascot Village Primary School | C55: R | D55: Ascot | E55: Ascot | F55: South Ascot | G55: Sunninghill & South Ascot | H55: Sunninghill & Ascot | I55: Primary | J55: Two Tier | K55: JMI | L55: Community | N55: None | O55: FALSE | P55: FALSE | Q55: 2018
A56: St Edmund Campion Catholic Primary School | B56: St Edmund Campion Catholic Primary School | C56: R | D56: Maidenhead | E56: Central Maidenhead | F56: Tittle Row | G56: Boyn Hill | H56: None | I56: Primary | J56: Two Tier | K56: JMI | L56: Academy | M56: 2017-07-01 | N56: Roman Catholic | O56: FALSE | P56: FALSE | Q56: 2018
A57: St Edward's Catholic First School | B57: St Edward's Catholic First School | C57: R | D57: Windsor | E57: Windsor North | F57: Clewer Village | G57: Clewer North | H57: None | I57: Primary | J57: Three Tier | K57: First | L57: Voluntary Aided | N57: Roman Catholic | O57: FALSE | P57: FALSE | Q57: 2018
A58: St Edward's Royal Free Ecumenical Middle School | B58: St Edward's Royal Free Ecumenical Middle School | C58: 5 | D58: Windsor | E58: Windsor North | F58: Clewer Village | G58: Clewer North | H58: None | I58: Secondary | J58: Three Tier | K58: Middle | L58: Voluntary Aided | N58: Ecumenical | O58: FALSE | P58: FALSE | Q58: 2018
A59: St Francis Catholic Primary School | B59: St Francis Catholic Primary School | C59: R | D59: Ascot | E59: Ascot | F59: South Ascot | G59: Sunninghill & South Ascot | H59: Sunninghill & Ascot | I59: Primary | J59: Two Tier | K59: JMI | L59: Academy | M59: 2015-09-01 | N59: Roman Catholic | O59: FALSE | P59: FALSE | Q59: 2018
A60: St Luke's Church of England Primary School | B60: St Luke's Church of England Primary School | C60: R | D60: Maidenhead | E60: North East Maidenhead | F60: St Luke's | G60: Maidenhead Riverside | H60: None | I60: Primary | J60: Two Tier | K60: JMI | L60: Academy | M60: 2014-12-01 | N60: Church of England | O60: FALSE | P60: FALSE | Q60: 2018
A61: St Mary's Catholic Primary School | B61: St Mary's Catholic Primary School | C61: R | D61: Maidenhead | E61: North East Maidenhead | F61: St Luke's | G61: Maidenhead Riverside | H61: None | I61: Primary | J61: Two Tier | K61: JMI | L61: Academy | M61: 2013-07-01 | N61: Roman Catholic | O61: FALSE | P61: FALSE | Q61: 2018
A62: St Michael's C of E Primary School, Sunninghill | B62: St Michael's C of E Primary School, Sunninghill | C62: R | D62: Ascot | E62: Ascot | F62: Sunninghill | G62: Sunninghill & South Ascot | H62: Sunninghill & Ascot | I62: Primary | J62: Two Tier | K62: JMI | L62: Voluntary Controlled | N62: Church of England | O62: FALSE | P62: FALSE | Q62: 2018
A63: St Peter's Church of England Middle School | B63: St Peter's Church of England Middle School | C63: 5 | D63: Windsor | E63: Windsor Villages | F63: Old Windsor | G63: Old Windsor | H63: Old Windsor | I63: Secondary | J63: Three Tier | K63: Middle | L63: Academy | M63: 2014-11-01 | N63: Church of England | O63: FALSE | P63: FALSE | Q63: 2018
A64: The Lawns Nursery | B64: The Lawns Nursery | C64: E1 | D64: Windsor | E64: East Windsor | F64: Oakfield | G64: Clewer East | H64: None | I64: Early Years | J64: NA | K64: Nursery School | L64: Community | N64: None | O64: FALSE | P64: FALSE | Q64: 2018
A65: The Queen Anne Royal Free CE First School | B65: The Queen Anne Royal Free CE First School | C65: R | D65: Windsor | E65: East Windsor | F65: Home Park | G65: Castle Without | H65: None | I65: Primary | J65: Three Tier | K65: First | L65: Voluntary Controlled | N65: Church of England | O65: FALSE | P65: FALSE | Q65: 2018
A66: The Royal School (Crown Aided) | B66: The Royal School (Crown Aided) | C66: R | D66: Windsor | E66: Windsor Villages | F66: Great Park | G66: Old Windsor | H66: Old Windsor | I66: Primary | J66: Three Tier | K66: First | L66: Voluntary Aided | N66: Church of England | O66: FALSE | P66: FALSE | Q66: 2018
A67: The Windsor Boys' School | B67: The Windsor Boys' School | C67: 9 | D67: Windsor | E67: East Windsor | F67: Trinity | G67: Castle Without | H67: None | I67: Secondary | J67: Three Tier | K67: Upper | L67: Academy | M67: 2015-03-01 | N67: None | O67: FALSE | P67: FALSE | Q67: 2018
A68: Trevelyan Middle School | B68: Trevelyan Middle School | C68: 5 | D68: Windsor | E68: East Windsor | F68: Home Park | G68: Park | H68: None | I68: Secondary | J68: Three Tier | K68: Middle | L68: Academy | M68: 2016-11-01 | N68: None | O68: FALSE | P68: FALSE | Q68: 2018
A69: Trinity St Stephen Church of England First School | B69: Trinity St Stephen Church of England First School | C69: R | D69: Windsor | E69: East Windsor | F69: Trinity | G69: Castle Without | H69: None | I69: Primary | J69: Three Tier | K69: First | L69: Voluntary Aided | N69: Church of England | O69: FALSE | P69: FALSE | Q69: 2018
A70: Waltham St Lawrence Primary School | B70: Waltham St Lawrence Primary School | C70: R | D70: Maidenhead | E70: Maidenhead Villages | F70: Waltham St Lawrence | G70: Hurley and Walthams | H70: Waltham St Lawrence | I70: Primary | J70: Two Tier | K70: JMI | L70: Community | N70: None | O70: FALSE | P70: FALSE | Q70: 2018
A71: Wessex Primary School | B71: Wessex Primary School | C71: R | D71: Maidenhead | E71: South West Maidenhead | F71: Wessex West | G71: Cox Green | H71: Cox Green | I71: Primary | J71: Two Tier | K71: JMI | L71: Community | N71: None | O71: FALSE | P71: FALSE | Q71: 2018
A72: White Waltham C of E Academy | B72: White Waltham C of E Academy | C72: R | D72: Maidenhead | E72: Maidenhead Villages | F72: White Waltham | G72: Hurley and Walthams | H72: White Waltham | I72: Primary | J72: Two Tier | K72: JMI | L72: Academy | M72: 2012-09-01 | N72: Church of England | O72: FALSE | P72: FALSE | Q72: 2018
A73: Windsor Girls' School | B73: Windsor Girls' School | C73: 9 | D73: Windsor | E73: Windsor South | F73: New Town | G73: Clewer East | H73: None | I73: Secondary | J73: Three Tier | K73: Upper | L73: Academy | M73: 2015-03-01 | N73: None | O73: FALSE | P73: FALSE | Q73: 2018
A74: Woodlands Park Primary & Nursery School | B74: Woodlands Park Primary & Nursery School | C74: R | D74: Maidenhead | E74: South West Maidenhead | F74: Woodlands Park | G74: Hurley and Walthams | H74: White Waltham | I74: Primary | J74: Two Tier | K74: JMI | L74: Community | N74: None | O74: FALSE | P74: FALSE | Q74: 2018
A75: Wraysbury Primary School | B75: Wraysbury Primary School | C75: R | D75: Datchet & Wraysbury | E75: Datchet and Wraysbury | F75: Wraysbury | G75: Horton and Wraysbury | H75: Wraysbury | I75: Primary | J75: Two Tier | K75: JMI | L75: Community | N75: None | O75: FALSE | P75: FALSE | Q75: 2018

Sheet PivotTableB (hidden)
C3: YearStart | D3: Values
C4: 2013 | I4: 2014 | O4: 2015 | U4: 2016 | AA4: 2017 | AG4: 2018 | AM4: 2019 | AS4: 2020 | AY4: 2021 | BE4: 2022 | BK4: Total Sum of PAN | BL4: Total Sum of TemporaryPlaces | BM4: Total Sum of PlannedPlaces | BN4: Total Sum of BoardingPlaces | BO4: Total Sum of MothballedPlaces | BP4: Total Sum of NetCapacity
A5: SchoolName | B5: SubsidiaryName | C5: Sum of PAN | D5: Sum of TemporaryPlaces | E5: Sum of PlannedPlaces | F5: Sum of BoardingPlaces | G5: Sum of MothballedPlaces | H5: Sum of NetCapacity | I5: Sum of PAN | J5: Sum of TemporaryPlaces | K5: Sum of PlannedPlaces | L5: Sum of BoardingPlaces | M5: Sum of MothballedPlaces | N5: Sum of NetCapacity | O5: Sum of PAN | P5: Sum of TemporaryPlaces | Q5: Sum of PlannedPlaces | R5: Sum of BoardingPlaces | S5: Sum of MothballedPlaces | T5: Sum of NetCapacity | U5: Sum of PAN | V5: Sum of TemporaryPlaces | W5: Sum of PlannedPlaces | X5: Sum of BoardingPlaces | Y5: Sum of MothballedPlaces | Z5: Sum of NetCapacity | AA5: Sum of PAN | AB5: Sum of TemporaryPlaces | AC5: Sum of PlannedPlaces | AD5: Sum of BoardingPlaces | AE5: Sum of MothballedPlaces | AF5: Sum of NetCapacity | AG5: Sum of PAN | AH5: Sum of TemporaryPlaces | AI5: Sum of PlannedPlaces | AJ5: Sum of BoardingPlaces | AK5: Sum of MothballedPlaces | AL5: Sum of NetCapacity | AM5: Sum of PAN | AN5: Sum of TemporaryPlaces | AO5: Sum of PlannedPlaces | AP5: Sum of BoardingPlaces | AQ5: Sum of MothballedPlaces | AR5: Sum of NetCapacity | AS5: Sum of PAN | AT5: Sum of TemporaryPlaces | AU5: Sum of PlannedPlaces | AV5: Sum of BoardingPlaces | AW5: Sum of MothballedPlaces | AX5: Sum of NetCapacity | AY5: Sum of PAN | AZ5: Sum of TemporaryPlaces | BA5: Sum of PlannedPlaces | BB5: Sum of BoardingPlaces | BC5: Sum of MothballedPlaces | BD5: Sum of NetCapacity | BE5: Sum of PAN | BF5: Sum of TemporaryPlaces | BG5: Sum of PlannedPlaces | BH5: Sum of BoardingPlaces | BI5: Sum of MothballedPlaces | BJ5: Sum of NetCapacity
A6: Alexander First School | B6: Alexander First School | C6: 24 | D6: 6 | E6: 0 | F6: 0 | G6: 0 | H6: 135 | I6: 30 | J6: 0 | K6: 0 | L6: 0 | M6: 0 | N6: 150 | O6: 30 | P6: 0 | Q6: 0 | R6: 0 | S6: 0 | T6: 150 | U6: 30 | V6: 0 | W6: 0 | X6: 0 | Y6: 0 | Z6: 150 | AA6: 30 | AB6: 0 | AC6: 0 | AD6: 0 | AE6: 0 | AF6: 150 | AG6: 30 | AH6: 0 | AI6: 0 | AJ6: 0 | AK6: 0 | AL6: 150 | AM6: 30 | AN6: 0 | AO6: 0 | AP6: 0 | AQ6: 0 | AR6: 150 | AS6: 30 | AT6: 0 | AU6: 0 | AV6: 0 | AW6: 0 | AX6: 150 | AY6: 30 | AZ6: 0 | BA6: 0 | BB6: 0 | BC6: 0 | BD6: 150 | BE6: 30 | BF6: 0 | BG6: 0 | BH6: 0 | BI6: 0 | BJ6: 150 | BK6: 294 | BL6: 6 | BM6: 0 | BN6: 0 | BO6: 0 | BP6: 1485
A7: All Saints Church of England Junior School | B7: All Saints Church of England Junior School | C7: 67 | D7: 0 | E7: 0 | F7: 0 | G7: 0 | H7: 240 | I7: 67 | J7: 23 | K7: 0 | L7: 0 | M7: 0 | N7: 240 | O7: 90 | P7: 0 | Q7: 0 | R7: 0 | S7: 0 | T7: 360 | U7: 90 | V7: 0 | W7: 0 | X7: 0 | Y7: 0 | Z7: 360 | AA7: 90 | AB7: 0 | AC7: 0 | AD7: 0 | AE7: 0 | AF7: 360 | AG7: 90 | AH7: 0 | AI7: 0 | AJ7: 0 | AK7: 0 | AL7: 360 | AM7: 90 | AN7: 0 | AO7: 0 | AP7: 0 | AQ7: 0 | AR7: 360 | AS7: 90 | AT7: 0 | AU7: 0 | AV7: 0 | AW7: 0 | AX7: 360 | AY7: 90 | AZ7: 0 | BA7: 0 | BB7: 0 | BC7: 0 | BD7: 360 | BE7: 90 | BF7: 0 | BG7: 0 | BH7: 0 | BI7: 0 | BJ7: 360 | BK7: 854 | BL7: 23 | BM7: 0 | BN7: 0 | BO7: 0 | BP7: 3360
A8: Altwood Church of England School | B8: Altwood Church of England School | C8: 150 | D8: 0 | E8: 0 | F8: 0 | G8: 0 | H8: 897 | I8: 150 | J8: 0 | K8: 0 | L8: 0 | M8: 0 | N8: 897 | O8: 150 | P8: 0 | Q8: 0 | R8: 0 | S8: 0 | T8: 897 | U8: 150 | V8: 0 | W8: 0 | X8: 0 | Y8: 0 | Z8: 897 | AA8: 150 | AB8: 0 | AC8: 0 | AD8: 0 | AE8: 0 | AF8: 909 | AG8: 150 | AH8: 0 | AI8: 0 | AJ8: 0 | AK8: 0 | AL8: 909 | AM8: 150 | AN8: 0 | AO8: 0 | AP8: 0 | AQ8: 0 | AR8: 909 | AS8: 150 | AT8: 0 | AU8: 0 | AV8: 0 | AW8: 0 | AX8: 909 | AY8: 150 | AZ8: 0 | BA8: 0 | BB8: 0 | BC8: 0 | BD8: 909 | BE8: 150 | BF8: 0 | BG8: 0 | BH8: 0 | BI8: 0 | BJ8: 909 | BK8: 1500 | BL8: 0 | BM8: 0 | BN8: 0 | BO8: 0 | BP8: 9042
A9: Alwyn Infant School | B9: Alwyn Infant School | C9: 101 | D9: 4 | E9: 0 | F9: 0 | G9: 0 | H9: 295 | I9: 101 | J9: 0 | K9: 0 | L9: 0 | M9: 0 | N9: 295 | O9: 101 | P9: 0 | Q9: 0 | R9: 0 | S9: 0 | T9: 295 | U9: 101 | V9: 3 | W9: 0 | X9: 0 | Y9: 0 | Z9: 295 | AA9: 101 | AB9: 0 | AC9: 0 | AD9: 0 | AE9: 0 | AF9: 303 | AG9: 90 | AH9: 0 | AI9: 0 | AJ9: 0 | AK9: 11 | AL9: 303 | AM9: 90 | AN9: 0 | AO9: 0 | AP9: 0 | AQ9: 11 | AR9: 303 | AS9: 90 | AT9: 0 | AU9: 0 | AV9: 0 | AW9: 11 | AX9: 303 | AY9: 90 | AZ9: 0 | BA9: 0 | BB9: 0 | BC9: 11 | BD9: 303 | BE9: 90 | BF9: 0 | BG9: 0 | BH9: 0 | BI9: 11 | BJ9: 303 | BK9: 955 | BL9: 7 | BM9: 0 | BN9: 0 | BO9: 55 | BP9: 2998
A10: Bisham C of E Primary School | B10: Bisham C of E Primary School | C10: 16 | D10: 0 | E10: 0 | F10: 0 | G10: 0 | H10: 112 | I10: 16 | J10: 0 | K10: 0 | L10: 0 | M10: 0 | N10: 112 | O10: 16 | P10: 0 | Q10: 0 | R10: 0 | S10: 0 | T10: 112 | U10: 16 | V10: 0 | W10: 0 | X10: 0 | Y10: 0 | Z10: 112 | AA10: 16 | AB10: 14 | AC10: 0 | AD10: 0 | AE10: 0 | AF10: 120 | AG10: 16 | AH10: 14 | AI10: 0 | AJ10: 0 | AK10: 0 | AL10: 120 | AM10: 16 | AN10: 14 | AO10: 0 | AP10: 0 | AQ10: 0 | AR10: 120 | AS10: 16 | AT10: 14 | AU10: 0 | AV10: 0 | AW10: 0 | AX10: 120 | AY10: 16 | AZ10: 14 | BA10: 0 | BB10: 0 | BC10: 0 | BD10: 120 | BE10: 16 | BF10: 14 | BG10: 0 | BH10: 0 | BI10: 0 | BJ10: 120 | BK10: 160 | BL10: 84 | BM10: 0 | BN10: 0 | BO10: 0 | BP10: 1168
A11: Boyne Hill C of E Infant and Nursery School | B11: Boyne Hill C of E Infant and Nursery School | C11: 60 | D11: 0 | E11: 0 | F11: 0 | G11: 0 | H11: 179 | I11: 60 | J11: 0 | K11: 0 | L11: 0 | M11: 0 | N11: 179 | O11: 60 | P11: 0 | Q11: 0 | R11: 0 | S11: 0 | T11: 179 | U11: 60 | V11: 0 | W11: 0 | X11: 0 | Y11: 0 | Z11: 179 | AA11: 60 | AB11: 0 | AC11: 0 | AD11: 0 | AE11: 0 | AF11: 180 | AG11: 60 | AH11: 0 | AI11: 0 | AJ11: 0 | AK11: 0 | AL11: 180 | AM11: 60 | AN11: 0 | AO11: 0 | AP11: 0 | AQ11: 0 | AR11: 180 | AS11: 60 | AT11: 0 | AU11: 0 | AV11: 0 | AW11: 0 | AX11: 180 | AY11: 60 | AZ11: 0 | BA11: 0 | BB11: 0 | BC11: 0 | BD11: 180 | BE11: 60 | BF11: 0 | BG11: 0 | BH11: 0 | BI11: 0 | BJ11: 180 | BK11: 600 | BL11: 0 | BM11: 0 | BN11: 0 | BO11: 0 | BP11: 1796
A12: Braywick Court School | B12: Braywick Court School | I12: 28 | J12: 0 | K12: 0 | L12: 0 | M12: 0 | N12: 58 | O12: 30 | P12: 0 | Q12: 0 | R12: 0 | S12: 0 | T12: 58 | U12: 30 | V12: 0 | W12: 0 | X12: 0 | Y12: 0 | Z12: 90 | AA12: 30 | AB12: 0 | AC12: 0 | AD12: 0 | AE12: 0 | AF12: 115 | AG12: 30 | AH12: 0 | AI12: 0 | AJ12: 0 | AK12: 0 | AL12: 210 | AM12: 30 | AN12: 0 | AO12: 0 | AP12: 0 | AQ12: 0 | AR12: 210 | AS12: 30 | AT12: 0 | AU12: 0 | AV12: 0 | AW12: 0 | AX12: 210 | AY12: 30 | AZ12: 0 | BA12: 0 | BB12: 0 | BC12: 0 | BD12: 210 | BE12: 30 | BF12: 0 | BG12: 0 | BH12: 0 | BI12: 0 | BJ12: 210 | BK12: 268 | BL12: 0 | BM12: 0 | BN12: 0 | BO12: 0 | BP12: 1371
A13: Braywood C of E First School | B13: Braywood C of E First School | C13: 25 | D13: 5 | E13: 0 | F13: 0 | G13: 0 | H13: 137 | I13: 30 | J13: 0 | K13: 0 | L13: 0 | M13: 0 | N13: 137 | O13: 30 | P13: 0 | Q13: 0 | R13: 0 | S13: 0 | T13: 137 | U13: 30 | V13: 0 | W13: 0 | X13: 0 | Y13: 0 | Z13: 137 | AA13: 30 | AB13: 0 | AC13: 0 | AD13: 0 | AE13: 0 | AF13: 137 | AG13: 30 | AH13: 0 | AI13: 0 | AJ13: 0 | AK13: 0 | AL13: 137 | AM13: 30 | AN13: 0 | AO13: 0 | AP13: 0 | AQ13: 0 | AR13: 137 | AS13: 30 | AT13: 0 | AU13: 0 | AV13: 0 | AW13: 0 | AX13: 137 | AY13: 30 | AZ13: 0 | BA13: 0 | BB13: 0 | BC13: 0 | BD13: 137 | BE13: 30 | BF13: 0 | BG13: 0 | BH13: 0 | BI13: 0 | BJ13: 137 | BK13: 295 | BL13: 5 | BM13: 0 | BN13: 0 | BO13: 0 | BP13: 1370
A14: Burchetts Green CE Infant School | B14: Burchetts Green CE Infant School | C14: 20 | D14: 0 | E14: 0 | F14: 0 | G14: 0 | H14: 60 | I14: 20 | J14: 0 | K14: 0 | L14: 0 | M14: 0 | N14: 60 | O14: 20 | P14: 0 | Q14: 0 | R14: 0 | S14: 0 | T14: 60 | U14: 20 | V14: 5 | W14: 0 | X14: 0 | Y14: 0 | Z14: 60 | AA14: 22 | AB14: 3 | AC14: 0 | AD14: 0 | AE14: 0 | AF14: 60 | AG14: 22 | AH14: 3 | AI14: 0 | AJ14: 0 | AK14: 0 | AL14: 60 | AM14: 22 | AN14: 0 | AO14: 0 | AP14: 0 | AQ14: 0 | AR14: 60 | AS14: 22 | AT14: 0 | AU14: 0 | AV14: 0 | AW14: 0 | AX14: 60 | AY14: 22 | AZ14: 0 | BA14: 0 | BB14: 0 | BC14: 0 | BD14: 60 | BE14: 22 | BF14: 0 | BG14: 0 | BH14: 0 | BI14: 0 | BJ14: 60 | BK14: 212 | BL14: 11 | BM14: 0 | BN14: 0 | BO14: 0 | BP14: 600
A15: Charters School | B15: Charters School | C15: 240 | D15: 0 | E15: 0 | F15: 0 | G15: 0 | H15: 1666 | I15: 240 | J15: 0 | K15: 0 | L15: 0 | M15: 0 | N15: 1666 | O15: 240 | P15: 0 | Q15: 0 | R15: 0 | S15: 0 | T15: 1685 | U15: 240 | V15: 0 | W15: 0 | X15: 0 | Y15: 0 | Z15: 1685 | AA15: 240 | AB15: 30 | AC15: 0 | AD15: 0 | AE15: 0 | AF15: 1642 | AG15: 240 | AH15: 0 | AI15: 30 | AJ15: 0 | AK15: 0 | AL15: 1816 | AM15: 240 | AN15: 0 | AO15: 30 | AP15: 0 | AQ15: 0 | AR15: 1816 | AS15: 240 | AT15: 0 | AU15: 30 | AV15: 0 | AW15: 0 | AX15: 1816 | AY15: 240 | AZ15: 0 | BA15: 30 | BB15: 0 | BC15: 0 | BD15: 1816 | BE15: 240 | BF15: 0 | BG15: 30 | BH15: 0 | BI15: 0 | BJ15: 1816 | BK15: 2400 | BL15: 30 | BM15: 150 | BN15: 0 | BO15: 0 | BP15: 17424
A16: Cheapside CE Primary School | B16: Cheapside CE Primary School | C16: 16 | D16: 0 | E16: 0 | F16: 0 | G16: 0 | H16: 112 | I16: 16 | J16: 0 | K16: 0 | L16: 0 | M16: 0 | N16: 112 | O16: 16 | P16: 0 | Q16: 0 | R16: 0 | S16: 0 | T16: 112 | U16: 16 | V16: 0 | W16: 0 | X16: 0 | Y16: 0 | Z16: 112 | AA16: 30 | AB16: 0 | AC16: 0 | AD16: 0 | AE16: 0 | AF16: 112 | AG16: 30 | AH16: 0 | AI16: 0 | AJ16: 0 | AK16: 0 | AL16: 210 | AM16: 30 | AN16: 0 | AO16: 0 | AP16: 0 | AQ16: 0 | AR16: 210 | AS16: 30 | AT16: 0 | AU16: 0 | AV16: 0 | AW16: 0 | AX16: 210 | AY16: 30 | AZ16: 0 | BA16: 0 | BB16: 0 | BC16: 0 | BD16: 210 | BE16: 30 | BF16: 0 | BG16: 0 | BH16: 0 | BI16: 0 | BJ16: 210 | BK16: 244 | BL16: 0 | BM16: 0 | BN16: 0 | BO16: 0 | BP16: 1610
A17: Churchmead Church of England School | B17: Churchmead Church of England School | C17: 140 | D17: 0 | E17: 0 | F17: 0 | G17: 0 | H17: 744 | I17: 140 | J17: 0 | K17: 0 | L17: 0 | M17: 0 | N17: 744 | O17: 140 | P17: 0 | Q17: 0 | R17: 0 | S17: 0 | T17: 744 | U17: 140 | V17: 0 | W17: 0 | X17: 0 | Y17: 0 | Z17: 744 | AA17: 140 | AB17: 0 | AC17: 0 | AD17: 0 | AE17: 0 | AF17: 713 | AG17: 110 | AH17: 0 | AI17: 0 | AJ17: 0 | AK17: 30 | AL17: 713 | AM17: 110 | AN17: 0 | AO17: 0 | AP17: 0 | AQ17: 30 | AR17: 713 | AS17: 110 | AT17: 0 | AU17: 0 | AV17: 0 | AW17: 30 | AX17: 713 | AY17: 110 | AZ17: 0 | BA17: 0 | BB17: 0 | BC17: 30 | BD17: 713 | BE17: 110 | BF17: 0 | BG17: 0 | BH17: 0 | BI17: 30 | BJ17: 713 | BK17: 1250 | BL17: 0 | BM17: 0 | BN17: 0 | BO17: 150 | BP17: 7254
A18: Clewer Green CE School | B18: Clewer Green CE School | C18: 60 | D18: 0 | E18: 0 | F18: 0 | G18: 0 | H18: 300 | I18: 60 | J18: 0 | K18: 0 | L18: 0 | M18: 0 | N18: 300 | O18: 60 | P18: 0 | Q18: 0 | R18: 0 | S18: 0 | T18: 300 | U18: 60 | V18: 0 | W18: 0 | X18: 0 | Y18: 0 | Z18: 300 | AA18: 60 | AB18: 0 | AC18: 0 | AD18: 0 | AE18: 0 | AF18: 300 | AG18: 60 | AH18: 0 | AI18: 0 | AJ18: 0 | AK18: 0 | AL18: 300 | AM18: 60 | AN18: 0 | AO18: 0 | AP18: 0 | AQ18: 0 | AR18: 300 | AS18: 60 | AT18: 0 | AU18: 0 | AV18: 0 | AW18: 0 | AX18: 300 | AY18: 60 | AZ18: 0 | BA18: 0 | BB18: 0 | BC18: 0 | BD18: 300 | BE18: 60 | BF18: 0 | BG18: 0 | BH18: 0 | BI18: 0 | BJ18: 300 | BK18: 600 | BL18: 0 | BM18: 0 | BN18: 0 | BO18: 0 | BP18: 3000
A19: Cookham Dean CE Primary School | B19: Cookham Dean CE Primary School | C19: 26 | D19: 0 | E19: 0 | F19: 0 | G19: 0 | H19: 189 | I19: 26 | J19: 0 | K19: 0 | L19: 0 | M19: 0 | N19: 189 | O19: 27 | P19: 0 | Q19: 0 | R19: 0 | S19: 0 | T19: 189 | U19: 27 | V19: 0 | W19: 0 | X19: 0 | Y19: 0 | Z19: 189 | AA19: 27 | AB19: 0 | AC19: 0 | AD19: 0 | AE19: 0 | AF19: 189 | AG19: 27 | AH19: 0 | AI19: 0 | AJ19: 0 | AK19: 0 | AL19: 189 | AM19: 27 | AN19: 0 | AO19: 0 | AP19: 0 | AQ19: 0 | AR19: 189 | AS19: 27 | AT19: 0 | AU19: 0 | AV19: 0 | AW19: 0 | AX19: 189 | AY19: 27 | AZ19: 0 | BA19: 0 | BB19: 0 | BC19: 0 | BD19: 189 | BE19: 27 | BF19: 0 | BG19: 0 | BH19: 0 | BI19: 0 | BJ19: 189 | BK19: 268 | BL19: 0 | BM19: 0 | BN19: 0 | BO19: 0 | BP19: 1890
A20: Cookham Nursery School | B20: Cookham Nursery School | C20: 0 | D20: 0 | E20: 0 | F20: 0 | G20: 0 | H20: 0 | I20: 0 | J20: 0 | K20: 0 | L20: 0 | M20: 0 | N20: 0 | O20: 0 | P20: 0 | Q20: 0 | R20: 0 | S20: 0 | T20: 0 | U20: 0 | V20: 0 | W20: 0 | X20: 0 | Y20: 0 | Z20: 0 | AA20: 0 | AB20: 0 | AC20: 0 | AD20: 0 | AE20: 0 | AF20: 0 | AG20: 0 | AH20: 0 | AI20: 0 | AJ20: 0 | AK20: 0 | AL20: 0 | AM20: 0 | AN20: 0 | AO20: 0 | AP20: 0 | AQ20: 0 | AR20: 0 | AS20: 0 | AT20: 0 | AU20: 0 | AV20: 0 | AW20: 0 | AX20: 0 | AY20: 0 | AZ20: 0 | BA20: 0 | BB20: 0 | BC20: 0 | BD20: 0 | BE20: 0 | BF20: 0 | BG20: 0 | BH20: 0 | BI20: 0 | BJ20: 0 | BK20: 0 | BL20: 0 | BM20: 0 | BN20: 0 | BO20: 0 | BP20: 0
A21: Cookham Rise Primary School | B21: Cookham Rise Primary School | C21: 30 | D21: 0 | E21: 0 | F21: 0 | G21: 0 | H21: 210 | I21: 30 | J21: 0 | K21: 0 | L21: 0 | M21: 0 | N21: 210 | O21: 30 | P21: 0 | Q21: 0 | R21: 0 | S21: 0 | T21: 210 | U21: 30 | V21: 0 | W21: 0 | X21: 0 | Y21: 0 | Z21: 210 | AA21: 30 | AB21: 0 | AC21: 0 | AD21: 0 | AE21: 0 | AF21: 210 | AG21: 30 | AH21: 0 | AI21: 0 | AJ21: 0 | AK21: 0 | AL21: 210 | AM21: 30 | AN21: 0 | AO21: 0 | AP21: 0 | AQ21: 0 | AR21: 210 | AS21: 30 | AT21: 0 | AU21: 0 | AV21: 0 | AW21: 0 | AX21: 210 | AY21: 30 | AZ21: 0 | BA21: 0 | BB21: 0 | BC21: 0 | BD21: 210 | BE21: 30 | BF21: 0 | BG21: 0 | BH21: 0 | BI21: 0 | BJ21: 210 | BK21: 300 | BL21: 0 | BM21: 0 | BN21: 0 | BO21: 0 | BP21: 2100
A22: Courthouse Junior School | B22: Courthouse Junior School | C22: 105 | D22: 0 | E22: 0 | F22: 0 | G22: 0 | H22: 420 | I22: 105 | J22: 0 | K22: 0 | L22: 0 | M22: 0 | N22: 420 | O22: 105 | P22: 0 | Q22: 0 | R22: 0 | S22: 0 | T22: 420 | U22: 105 | V22: 0 | W22: 0 | X22: 0 | Y22: 0 | Z22: 420 | AA22: 105 | AB22: 0 | AC22: 0 | AD22: 0 | AE22: 0 | AF22: 420 | AG22: 105 | AH22: 0 | AI22: 0 | AJ22: 0 | AK22: 0 | AL22: 420 | AM22: 105 | AN22: 0 | AO22: 0 | AP22: 0 | AQ22: 0 | AR22: 420 | AS22: 105 | AT22: 0 | AU22: 0 | AV22: 0 | AW22: 0 | AX22: 420 | AY22: 105 | AZ22: 0 | BA22: 0 | BB22: 0 | BC22: 0 | BD22: 420 | BE22: 105 | BF22: 0 | BG22: 0 | BH22: 0 | BI22: 0 | BJ22: 420 | BK22: 1050 | BL22: 0 | BM22: 0 | BN22: 0 | BO22: 0 | BP22: 4200
A23: Cox Green School | B23: Cox Green School | C23: 176 | D23: 0 | E23: 0 | F23: 0 | G23: 0 | H23: 1077 | I23: 176 | J23: 0 | K23: 0 | L23: 0 | M23: 0 | N23: 1077 | O23: 176 | P23: 0 | Q23: 0 | R23: 0 | S23: 0 | T23: 1085 | U23: 176 | V23: 30 | W23: 0 | X23: 0 | Y23: 0 | Z23: 1103 | AA23: 176 | AB23: 30 | AC23: 0 | AD23: 0 | AE23: 0 | AF23: 1103 | AG23: 206 | AH23: 4 | AI23: 0 | AJ23: 0 | AK23: 0 | AL23: 1227 | AM23: 210 | AN23: 0 | AO23: 0 | AP23: 0 | AQ23: 0 | AR23: 1227 | AS23: 210 | AT23: 0 | AU23: 0 | AV23: 0 | AW23: 0 | AX23: 1227 | AY23: 210 | AZ23: 0 | BA23: 0 | BB23: 0 | BC23: 0 | BD23: 1227 | BE23: 210 | BF23: 0 | BG23: 0 | BH23: 0 | BI23: 0 | BJ23: 1227 | BK23: 1926 | BL23: 64 | BM23: 0 | BN23: 0 | BO23: 0 | BP23: 11580
A24: Datchet St Mary's C of E Primary Academy | B24: Datchet St Mary's C of E Primary Academy | C24: 30 | D24: 0 | E24: 0 | F24: 0 | G24: 0 | H24: 204 | I24: 30 | J24: 30 | K24: 0 | L24: 0 | M24: 0 | N24: 234 | O24: 30 | P24: 0 | Q24: 0 | R24: 0 | S24: 0 | T24: 234 | U24: 30 | V24: 0 | W24: 0 | X24: 0 | Y24: 0 | Z24: 234 | AA24: 30 | AB24: 0 | AC24: 0 | AD24: 0 | AE24: 0 | AF24: 234 | AG24: 30 | AH24: 0 | AI24: 0 | AJ24: 0 | AK24: 0 | AL24: 234 | AM24: 30 | AN24: 0 | AO24: 0 | AP24: 0 | AQ24: 0 | AR24: 234 | AS24: 30 | AT24: 0 | AU24: 0 | AV24: 0 | AW24: 0 | AX24: 234 | AY24: 30 | AZ24: 0 | BA24: 0 | BB24: 0 | BC24: 0 | BD24: 204 | BE24: 30 | BF24: 0 | BG24: 0 | BH24: 0 | BI24: 0 | BJ24: 204 | BK24: 300 | BL24: 30 | BM24: 0 | BN24: 0 | BO24: 0 | BP24: 2250
A25: Dedworth Green First School | B25: Dedworth Green First School | C25: 30 | D25: 0 | E25: 0 | F25: 0 | G25: 0 | H25: 150 | I25: 30 | J25: 30 | K25: 0 | L25: 0 | M25: 0 | N25: 180 | O25: 30 | P25: 0 | Q25: 0 | R25: 0 | S25: 0 | T25: 180 | U25: 30 | V25: 0 | W25: 0 | X25: 0 | Y25: 0 | Z25: 180 | AA25: 30 | AB25: 0 | AC25: 0 | AD25: 0 | AE25: 0 | AF25: 180 | AG25: 30 | AH25: 0 | AI25: 0 | AJ25: 0 | AK25: 0 | AL25: 180 | AM25: 30 | AN25: 0 | AO25: 0 | AP25: 0 | AQ25: 0 | AR25: 150 | AS25: 30 | AT25: 0 | AU25: 0 | AV25: 0 | AW25: 0 | AX25: 150 | AY25: 30 | AZ25: 0 | BA25: 0 | BB25: 0 | BC25: 0 | BD25: 150 | BE25: 30 | BF25: 0 | BG25: 0 | BH25: 0 | BI25: 0 | BJ25: 150 | BK25: 300 | BL25: 30 | BM25: 0 | BN25: 0 | BO25: 0 | BP25: 1650
A26: Dedworth Middle School | B26: Dedworth Middle School | C26: 120 | D26: 0 | E26: 0 | F26: 0 | G26: 0 | H26: 524 | I26: 120 | J26: 0 | K26: 0 | L26: 0 | M26: 0 | N26: 524 | O26: 120 | P26: 0 | Q26: 0 | R26: 0 | S26: 0 | T26: 541 | U26: 120 | V26: 0 | W26: 0 | X26: 0 | Y26: 0 | Z26: 541 | AA26: 150 | AB26: 0 | AC26: 0 | AD26: 0 | AE26: 0 | AF26: 541 | AG26: 180 | AH26: 0 | AI26: 0 | AJ26: 0 | AK26: 0 | AL26: 720 | AM26: 180 | AN26: 0 | AO26: 0 | AP26: 0 | AQ26: 0 | AR26: 720 | AS26: 180 | AT26: 0 | AU26: 0 | AV26: 0 | AW26: 0 | AX26: 720 | AY26: 180 | AZ26: 0 | BA26: 0 | BB26: 0 | BC26: 0 | BD26: 720 | BE26: 180 | BF26: 0 | BG26: 0 | BH26: 0 | BI26: 0 | BJ26: 720 | BK26: 1530 | BL26: 0 | BM26: 0 | BN26: 0 | BO26: 0 | BP26: 6271
A27: Desborough College | B27: Desborough College | C27: 189 | D27: 0 | E27: 0 | F27: 0 | G27: 0 | H27: 1134 | I27: 189 | J27: 0 | K27: 0 | L27: 0 | M27: 0 | N27: 1134 | O27: 189 | P27: 0 | Q27: 0 | R27: 0 | S27: 0 | T27: 1186 | U27: 189 | V27: 0 | W27: 0 | X27: 0 | Y27: 0 | Z27: 1186 | AA27: 189 | AB27: 0 | AC27: 0 | AD27: 0 | AE27: 0 | AF27: 1186 | AG27: 189 | AH27: 0 | AI27: 0 | AJ27: 0 | AK27: 0 | AL27: 1186 | AM27: 189 | AN27: 0 | AO27: 0 | AP27: 0 | AQ27: 0 | AR27: 1186 | AS27: 189 | AT27: 0 | AU27: 0 | AV27: 0 | AW27: 0 | AX27: 1186 | AY27: 189 | AZ27: 0 | BA27: 0 | BB27: 0 | BC27: 0 | BD27: 1186 | BE27: 189 | BF27: 0 | BG27: 0 | BH27: 0 | BI27: 0 | BJ27: 1186 | BK27: 1890 | BL27: 0 | BM27: 0 | BN27: 0 | BO27: 0 | BP27: 11756
A28: Eton Porny C of E First School | B28: Eton Porny C of E First School | C28: 30 | D28: 0 | E28: 0 | F28: 0 | G28: 0 | H28: 136 | I28: 30 | J28: 0 | K28: 0 | L28: 0 | M28: 0 | N28: 136 | O28: 30 | P28: 0 | Q28: 0 | R28: 0 | S28: 0 | T28: 136 | U28: 30 | V28: 0 | W28: 0 | X28: 0 | Y28: 0 | Z28: 136 | AA28: 30 | AB28: 0 | AC28: 0 | AD28: 0 | AE28: 0 | AF28: 136 | AG28: 30 | AH28: 0 | AI28: 0 | AJ28: 0 | AK28: 0 | AL28: 136 | AM28: 30 | AN28: 0 | AO28: 0 | AP28: 0 | AQ28: 0 | AR28: 136 | AS28: 30 | AT28: 0 | AU28: 0 | AV28: 0 | AW28: 0 | AX28: 136 | AY28: 30 | AZ28: 0 | BA28: 0 | BB28: 0 | BC28: 0 | BD28: 136 | BE28: 30 | BF28: 0 | BG28: 0 | BH28: 0 | BI28: 0 | BJ28: 136 | BK28: 300 | BL28: 0 | BM28: 0 | BN28: 0 | BO28: 0 | BP28: 1360
A29: Eton Wick C of E First School | B29: Eton Wick C of E First School | C29: 30 | D29: 0 | E29: 0 | F29: 0 | G29: 0 | H29: 165 | I29: 30 | J29: 0 | K29: 0 | L29: 0 | M29: 0 | N29: 165 | O29: 30 | P29: 0 | Q29: 0 | R29: 0 | S29: 0 | T29: 150 | U29: 30 | V29: 0 | W29: 0 | X29: 0 | Y29: 0 | Z29: 150 | AA29: 30 | AB29: 0 | AC29: 0 | AD29: 0 | AE29: 0 | AF29: 150 | AG29: 30 | AH29: 0 | AI29: 0 | AJ29: 0 | AK29: 0 | AL29: 150 | AM29: 30 | AN29: 0 | AO29: 0 | AP29: 0 | AQ29: 0 | AR29: 150 | AS29: 30 | AT29: 0 | AU29: 0 | AV29: 0 | AW29: 0 | AX29: 150 | AY29: 30 | AZ29: 0 | BA29: 0 | BB29: 0 | BC29: 0 | BD29: 150 | BE29: 30 | BF29: 0 | BG29: 0 | BH29: 0 | BI29: 0 | BJ29: 150 | BK29: 300 | BL29: 0 | BM29: 0 | BN29: 0 | BO29: 0 | BP29: 1530
A30: Forest Bridge School | B30: Forest Bridge School | O30: 10 | P30: 0 | Q30: 0 | R30: 0 | S30: 0 | T30: 100 | U30: 10 | V30: 0 | W30: 0 | X30: 0 | Y30: 0 | Z30: 100 | AA30: 10 | AB30: 0 | AC30: 0 | AD30: 0 | AE30: 0 | AF30: 100 | AG30: 10 | AH30: 0 | AI30: 0 | AJ30: 0 | AK30: 0 | AL30: 100 | AM30: 10 | AN30: 0 | AO30: 0 | AP30: 0 | AQ30: 0 | AR30: 100 | AS30: 10 | AT30: 0 | AU30: 0 | AV30: 0 | AW30: 0 | AX30: 100 | AY30: 10 | AZ30: 0 | BA30: 0 | BB30: 0 | BC30: 0 | BD30: 100 | BE30: 10 | BF30: 0 | BG30: 0 | BH30: 0 | BI30: 0 | BJ30: 100 | BK30: 80 | BL30: 0 | BM30: 0 | BN30: 0 | BO30: 0 | BP30: 800
A31: Furze Platt Infant School | B31: Furze Platt Infant School | C31: 90 | D31: 0 | E31: 0 | F31: 0 | G31: 0 | H31: 270 | I31: 90 | J31: 0 | K31: 0 | L31: 0 | M31: 0 | N31: 270 | O31: 90 | P31: 0 | Q31: 0 | R31: 0 | S31: 0 | T31: 270 | U31: 90 | V31: 0 | W31: 0 | X31: 0 | Y31: 0 | Z31: 270 | AA31: 90 | AB31: 0 | AC31: 0 | AD31: 0 | AE31: 0 | AF31: 270 | AG31: 90 | AH31: 0 | AI31: 0 | AJ31: 0 | AK31: 0 | AL31: 270 | AM31: 90 | AN31: 0 | AO31: 0 | AP31: 0 | AQ31: 0 | AR31: 270 | AS31: 90 | AT31: 0 | AU31: 0 | AV31: 0 | AW31: 0 | AX31: 270 | AY31: 90 | AZ31: 0 | BA31: 0 | BB31: 0 | BC31: 0 | BD31: 270 | BE31: 90 | BF31: 0 | BG31: 0 | BH31: 0 | BI31: 0 | BJ31: 270 | BK31: 900 | BL31: 0 | BM31: 0 | BN31: 0 | BO31: 0 | BP31: 2700
A32: Furze Platt Junior School | B32: Furze Platt Junior School | C32: 90 | D32: 0 | E32: 0 | F32: 0 | G32: 0 | H32: 330 | I32: 90 | J32: 0 | K32: 0 | L32: 0 | M32: 0 | N32: 360 | O32: 90 | P32: 0 | Q32: 0 | R32: 0 | S32: 0 | T32: 360 | U32: 90 | V32: 0 | W32: 0 | X32: 0 | Y32: 0 | Z32: 360 | AA32: 90 | AB32: 0 | AC32: 0 | AD32: 0 | AE32: 0 | AF32: 360 | AG32: 90 | AH32: 0 | AI32: 0 | AJ32: 0 | AK32: 0 | AL32: 360 | AM32: 90 | AN32: 0 | AO32: 0 | AP32: 0 | AQ32: 0 | AR32: 360 | AS32: 90 | AT32: 0 | AU32: 0 | AV32: 0 | AW32: 0 | AX32: 360 | AY32: 90 | AZ32: 0 | BA32: 0 | BB32: 0 | BC32: 0 | BD32: 360 | BE32: 90 | BF32: 0 | BG32: 0 | BH32: 0 | BI32: 0 | BJ32: 360 | BK32: 900 | BL32: 0 | BM32: 0 | BN32: 0 | BO32: 0 | BP32: 3570
A33: Furze Platt Senior School | B33: Furze Platt Senior School | C33: 193 | D33: 0 | E33: 0 | F33: 0 | G33: 0 | H33: 1304 | I33: 193 | J33: 0 | K33: 0 | L33: 0 | M33: 0 | N33: 1304 | O33: 193 | P33: 0 | Q33: 0 | R33: 0 | S33: 0 | T33: 1243 | U33: 193 | V33: 30 | W33: 0 | X33: 0 | Y33: 0 | Z33: 1339 | AA33: 193 | AB33: 30 | AC33: 0 | AD33: 0 | AE33: 0 | AF33: 1301 | AG33: 223 | AH33: 0 | AI33: 0 | AJ33: 0 | AK33: 0 | AL33: 1454 | AM33: 253 | AN33: 0 | AO33: 0 | AP33: 0 | AQ33: 0 | AR33: 1454 | AS33: 253 | AT33: 0 | AU33: 0 | AV33: 0 | AW33: 0 | AX33: 1454 | AY33: 253 | AZ33: 0 | BA33: 0 | BB33: 0 | BC33: 0 | BD33: 1454 | BE33: 253 | BF33: 0 | BG33: 0 | BH33: 0 | BI33: 0 | BJ33: 1454 | BK33: 2200 | BL33: 60 | BM33: 0 | BN33: 0 | BO33: 0 | BP33: 13761
A34: Hilltop First School | B34: Hilltop First School | C34: 45 | D34: 0 | E34: 0 | F34: 0 | G34: 0 | H34: 225 | I34: 45 | J34: 0 | K34: 0 | L34: 0 | M34: 0 | N34: 225 | O34: 45 | P34: 0 | Q34: 0 | R34: 0 | S34: 0 | T34: 225 | U34: 45 | V34: 0 | W34: 0 | X34: 0 | Y34: 0 | Z34: 225 | AA34: 45 | AB34: 0 | AC34: 0 | AD34: 0 | AE34: 0 | AF34: 225 | AG34: 45 | AH34: 0 | AI34: 0 | AJ34: 0 | AK34: 0 | AL34: 225 | AM34: 45 | AN34: 0 | AO34: 0 | AP34: 0 | AQ34: 0 | AR34: 225 | AS34: 45 | AT34: 0 | AU34: 0 | AV34: 0 | AW34: 0 | AX34: 225 | AY34: 45 | AZ34: 0 | BA34: 0 | BB34: 0 | BC34: 0 | BD34: 225 | BE34: 45 | BF34: 0 | BG34: 0 | BH34: 0 | BI34: 0 | BJ34: 225 | BK34: 450 | BL34: 0 | BM34: 0 | BN34: 0 | BO34: 0 | BP34: 2250
A35: Holy Trinity C of E Primary School, Cookham | B35: Holy Trinity C of E Primary School, Cookham | C35: 32 | D35: 0 | E35: 0 | F35: 0 | G35: 0 | H35: 224 | I35: 32 | J35: 0 | K35: 0 | L35: 0 | M35: 0 | N35: 224 | O35: 30 | P35: 0 | Q35: 0 | R35: 0 | S35: 0 | T35: 222 | U35: 30 | V35: 0 | W35: 0 | X35: 0 | Y35: 0 | Z35: 220 | AA35: 30 | AB35: 0 | AC35: 0 | AD35: 0 | AE35: 0 | AF35: 210 | AG35: 30 | AH35: 0 | AI35: 0 | AJ35: 0 | AK35: 0 | AL35: 210 | AM35: 30 | AN35: 0 | AO35: 0 | AP35: 0 | AQ35: 0 | AR35: 210 | AS35: 30 | AT35: 0 | AU35: 0 | AV35: 0 | AW35: 0 | AX35: 210 | AY35: 30 | AZ35: 0 | BA35: 0 | BB35: 0 | BC35: 0 | BD35: 210 | BE35: 30 | BF35: 0 | BG35: 0 | BH35: 0 | BI35: 0 | BJ35: 210 | BK35: 304 | BL35: 0 | BM35: 0 | BN35: 0 | BO35: 0 | BP35: 2150
A36: Holy Trinity CE Primary School, Sunningdale | B36: Holy Trinity CE Primary School, Sunningdale | C36: 30 | D36: 0 | E36: 0 | F36: 0 | G36: 0 | H36: 210 | I36: 30 | J36: 0 | K36: 0 | L36: 0 | M36: 0 | N36: 210 | O36: 30 | P36: 15 | Q36: 0 | R36: 0 | S36: 0 | T36: 225 | U36: 30 | V36: 0 | W36: 0 | X36: 0 | Y36: 0 | Z36: 225 | AA36: 30 | AB36: 0 | AC36: 0 | AD36: 0 | AE36: 0 | AF36: 225 | AG36: 30 | AH36: 0 | AI36: 0 | AJ36: 0 | AK36: 0 | AL36: 225 | AM36: 30 | AN36: 0 | AO36: 0 | AP36: 0 | AQ36: 0 | AR36: 225 | AS36: 30 | AT36: 0 | AU36: 0 | AV36: 0 | AW36: 0 | AX36: 225 | AY36: 30 | AZ36: 0 | BA36: 0 | BB36: 0 | BC36: 0 | BD36: 225 | BE36: 30 | BF36: 0 | BG36: 0 | BH36: 0 | BI36: 0 | BJ36: 225 | BK36: 300 | BL36: 15 | BM36: 0 | BN36: 0 | BO36: 0 | BP36: 2220
A37: Holyport C of E Primary School & Foundation Unit | B37: Holyport C of E Primary School & Foundation Unit | C37: 60 | D37: 0 | E37: 0 | F37: 0 | G37: 0 | H37: 420 | I37: 60 | J37: 0 | K37: 0 | L37: 0 | M37: 0 | N37: 420 | O37: 60 | P37: 0 | Q37: 0 | R37: 0 | S37: 0 | T37: 420 | U37: 60 | V37: 0 | W37: 0 | X37: 0 | Y37: 0 | Z37: 420 | AA37: 60 | AB37: 0 | AC37: 0 | AD37: 0 | AE37: 0 | AF37: 420 | AG37: 60 | AH37: 0 | AI37: 0 | AJ37: 0 | AK37: 0 | AL37: 420 | AM37: 60 | AN37: 0 | AO37: 0 | AP37: 0 | AQ37: 0 | AR37: 420 | AS37: 60 | AT37: 0 | AU37: 0 | AV37: 0 | AW37: 0 | AX37: 420 | AY37: 60 | AZ37: 0 | BA37: 0 | BB37: 0 | BC37: 0 | BD37: 420 | BE37: 60 | BF37: 0 | BG37: 0 | BH37: 0 | BI37: 0 | BJ37: 420 | BK37: 600 | BL37: 0 | BM37: 0 | BN37: 0 | BO37: 0 | BP37: 4200
A38: Holyport College | B38: Holyport College (Year 7) | I38: 40 | J38: 40 | K38: 0 | L38: 18 | M38: 0 | N38: 280 | O38: 40 | P38: 4 | Q38: 0 | R38: 18 | S38: 0 | T38: 318 | U38: 44 | V38: 0 | W38: 0 | X38: 18 | Y38: 0 | Z38: 318 | AA38: 44 | AB38: 0 | AC38: 0 | AD38: 18 | AE38: 0 | AF38: 318 | AG38: 44 | AH38: 0 | AI38: 0 | AJ38: 18 | AK38: 0 | AL38: 318 | AM38: 44 | AN38: 0 | AO38: 0 | AP38: 18 | AQ38: 0 | AR38: 318 | AS38: 44 | AT38: 0 | AU38: 0 | AV38: 18 | AW38: 0 | AX38: 318 | AY38: 44 | AZ38: 0 | BA38: 0 | BB38: 18 | BC38: 0 | BD38: 318 | BE38: 44 | BF38: 0 | BG38: 0 | BH38: 18 | BI38: 0 | BJ38: 318 | BK38: 388 | BL38: 44 | BM38: 0 | BN38: 162 | BO38: 0 | BP38: 2824
A39: Holyport College | B39: Holyport College (Year 9) | I39: 40 | J39: 0 | K39: 0 | L39: 18 | M39: 0 | N39: 200 | O39: 40 | P39: 4 | Q39: 0 | R39: 18 | S39: 0 | T39: 230 | U39: 44 | V39: 0 | W39: 0 | X39: 18 | Y39: 0 | Z39: 230 | AA39: 44 | AB39: 0 | AC39: 0 | AD39: 18 | AE39: 0 | AF39: 230 | AG39: 44 | AH39: 0 | AI39: 0 | AJ39: 18 | AK39: 0 | AL39: 230 | AM39: 44 | AN39: 0 | AO39: 0 | AP39: 18 | AQ39: 0 | AR39: 230 | AS39: 44 | AT39: 0 | AU39: 0 | AV39: 18 | AW39: 0 | AX39: 230 | AY39: 44 | AZ39: 0 | BA39: 0 | BB39: 18 | BC39: 0 | BD39: 230 | BE39: 44 | BF39: 0 | BG39: 0 | BH39: 18 | BI39: 0 | BJ39: 230 | BK39: 388 | BL39: 4 | BM39: 0 | BN39: 162 | BO39: 0 | BP39: 2040
A40: Homer First School and Nursery | B40: Homer First School and Nursery | C40: 45 | D40: 0 | E40: 0 | F40: 0 | G40: 0 | H40: 225 | I40: 45 | J40: 30 | K40: 0 | L40: 0 | M40: 0 | N40: 255 | O40: 45 | P40: 0 | Q40: 0 | R40: 0 | S40: 0 | T40: 255 | U40: 45 | V40: 30 | W40: 0 | X40: 0 | Y40: 0 | Z40: 255 | AA40: 45 | AB40: 0 | AC40: 0 | AD40: 0 | AE40: 0 | AF40: 255 | AG40: 45 | AH40: 0 | AI40: 0 | AJ40: 0 | AK40: 0 | AL40: 255 | AM40: 45 | AN40: 0 | AO40: 0 | AP40: 0 | AQ40: 0 | AR40: 225 | AS40: 45 | AT40: 0 | AU40: 0 | AV40: 0 | AW40: 0 | AX40: 225 | AY40: 45 | AZ40: 0 | BA40: 0 | BB40: 0 | BC40: 0 | BD40: 225 | BE40: 45 | BF40: 0 | BG40: 0 | BH40: 0 | BI40: 0 | BJ40: 225 | BK40: 450 | BL40: 60 | BM40: 0 | BN40: 0 | BO40: 0 | BP40: 2400
A41: Kings Court First School | B41: Kings Court First School | C41: 45 | D41: 0 | E41: 0 | F41: 0 | G41: 0 | H41: 225 | I41: 45 | J41: 0 | K41: 0 | L41: 0 | M41: 0 | N41: 225 | O41: 45 | P41: 0 | Q41: 0 | R41: 0 | S41: 0 | T41: 225 | U41: 45 | V41: 0 | W41: 0 | X41: 0 | Y41: 0 | Z41: 225 | AA41: 45 | AB41: 0 | AC41: 0 | AD41: 0 | AE41: 0 | AF41: 225 | AG41: 45 | AH41: 0 | AI41: 0 | AJ41: 0 | AK41: 0 | AL41: 225 | AM41: 45 | AN41: 0 | AO41: 0 | AP41: 0 | AQ41: 0 | AR41: 225 | AS41: 45 | AT41: 0 | AU41: 0 | AV41: 0 | AW41: 0 | AX41: 225 | AY41: 45 | AZ41: 0 | BA41: 0 | BB41: 0 | BC41: 0 | BD41: 225 | BE41: 45 | BF41: 0 | BG41: 0 | BH41: 0 | BI41: 0 | BJ41: 225 | BK41: 450 | BL41: 0 | BM41: 0 | BN41: 0 | BO41: 0 | BP41: 2250
A42: Knowl Hill C of E Academy | B42: Knowl Hill C of E Academy | C42: 13 | D42: 2 | E42: 0 | F42: 0 | G42: 0 | H42: 90 | I42: 13 | J42: 0 | K42: 0 | L42: 0 | M42: 0 | N42: 90 | O42: 13 | P42: 17 | Q42: 0 | R42: 0 | S42: 0 | T42: 90 | U42: 30 | V42: 0 | W42: 0 | X42: 0 | Y42: 0 | Z42: 135 | AA42: 30 | AB42: 0 | AC42: 0 | AD42: 0 | AE42: 0 | AF42: 153 | AG42: 30 | AH42: 0 | AI42: 0 | AJ42: 0 | AK42: 0 | AL42: 153 | AM42: 30 | AN42: 0 | AO42: 0 | AP42: 0 | AQ42: 0 | AR42: 153 | AS42: 13 | AT42: 0 | AU42: 0 | AV42: 0 | AW42: 0 | AX42: 153 | AY42: 13 | AZ42: 0 | BA42: 0 | BB42: 0 | BC42: 0 | BD42: 153 | BE42: 13 | BF42: 0 | BG42: 0 | BH42: 0 | BI42: 0 | BJ42: 153 | BK42: 198 | BL42: 19 | BM42: 0 | BN42: 0 | BO42: 0 | BP42: 1323
A43: Larchfield Primary and Nursery School | B43: Larchfield Primary and Nursery School | C43: 30 | D43: 0 | E43: 0 | F43: 0 | G43: 0 | H43: 208 | I43: 30 | J43: 0 | K43: 0 | L43: 0 | M43: 0 | N43: 208 | O43: 30 | P43: 0 | Q43: 0 | R43: 0 | S43: 0 | T43: 208 | U43: 30 | V43: 0 | W43: 0 | X43: 0 | Y43: 0 | Z43: 208 | AA43: 30 | AB43: 0 | AC43: 0 | AD43: 0 | AE43: 0 | AF43: 209 | AG43: 30 | AH43: 0 | AI43: 0 | AJ43: 0 | AK43: 0 | AL43: 209 | AM43: 30 | AN43: 0 | AO43: 0 | AP43: 0 | AQ43: 0 | AR43: 209 | AS43: 30 | AT43: 0 | AU43: 0 | AV43: 0 | AW43: 0 | AX43: 209 | AY43: 30 | AZ43: 0 | BA43: 0 | BB43: 0 | BC43: 0 | BD43: 209 | BE43: 30 | BF43: 0 | BG43: 0 | BH43: 0 | BI43: 0 | BJ43: 209 | BK43: 300 | BL43: 0 | BM43: 0 | BN43: 0 | BO43: 0 | BP43: 2086
A44: Lowbrook Academy | B44: Lowbrook Academy | C44: 30 | D44: 30 | E44: 0 | F44: 0 | G44: 0 | H44: 270 | I44: 30 | J44: 30 | K44: 0 | L44: 0 | M44: 0 | N44: 270 | O44: 30 | P44: 30 | Q44: 0 | R44: 0 | S44: 0 | T44: 300 | U44: 30 | V44: 30 | W44: 0 | X44: 0 | Y44: 0 | Z44: 330 | AA44: 30 | AB44: 0 | AC44: 0 | AD44: 0 | AE44: 0 | AF44: 330 | AG44: 30 | AH44: 0 | AI44: 0 | AJ44: 0 | AK44: 0 | AL44: 330 | AM44: 30 | AN44: 0 | AO44: 0 | AP44: 0 | AQ44: 0 | AR44: 330 | AS44: 30 | AT44: 0 | AU44: 0 | AV44: 0 | AW44: 0 | AX44: 330 | AY44: 30 | AZ44: 0 | BA44: 0 | BB44: 0 | BC44: 0 | BD44: 300 | BE44: 30 | BF44: 0 | BG44: 0 | BH44: 0 | BI44: 0 | BJ44: 300 | BK44: 300 | BL44: 120 | BM44: 0 | BN44: 0 | BO44: 0 | BP44: 3090
A45: Maidenhead Nursery School | B45: Maidenhead Nursery School | C45: 0 | D45: 0 | E45: 0 | F45: 0 | G45: 0 | H45: 0 | I45: 0 | J45: 0 | K45: 0 | L45: 0 | M45: 0 | N45: 0 | O45: 0 | P45: 0 | Q45: 0 | R45: 0 | S45: 0 | T45: 0 | U45: 0 | V45: 0 | W45: 0 | X45: 0 | Y45: 0 | Z45: 0 | AA45: 0 | AB45: 0 | AC45: 0 | AD45: 0 | AE45: 0 | AF45: 0 | AG45: 0 | AH45: 0 | AI45: 0 | AJ45: 0 | AK45: 0 | AL45: 0 | AM45: 0 | AN45: 0 | AO45: 0 | AP45: 0 | AQ45: 0 | AR45: 0 | AS45: 0 | AT45: 0 | AU45: 0 | AV45: 0 | AW45: 0 | AX45: 0 | AY45: 0 | AZ45: 0 | BA45: 0 | BB45: 0 | BC45: 0 | BD45: 0 | BE45: 0 | BF45: 0 | BG45: 0 | BH45: 0 | BI45: 0 | BJ45: 0 | BK45: 0 | BL45: 0 | BM45: 0 | BN45: 0 | BO45: 0 | BP45: 0
A46: Manor Green School | B46: Manor Green School | C46: 25 | D46: 0 | E46: 0 | F46: 0 | G46: 0 | H46: 100 | I46: 25 | J46: 0 | K46: 0 | L46: 0 | M46: 0 | N46: 100 | O46: 25 | P46: 0 | Q46: 0 | R46: 0 | S46: 0 | T46: 100 | U46: 25 | V46: 0 | W46: 0 | X46: 0 | Y46: 0 | Z46: 100 | AA46: 25 | AB46: 0 | AC46: 0 | AD46: 0 | AE46: 0 | AF46: 100 | AG46: 25 | AH46: 0 | AI46: 0 | AJ46: 0 | AK46: 0 | AL46: 100 | AM46: 25 | AN46: 0 | AO46: 0 | AP46: 0 | AQ46: 0 | AR46: 100 | AS46: 25 | AT46: 0 | AU46: 0 | AV46: 0 | AW46: 0 | AX46: 100 | AY46: 25 | AZ46: 0 | BA46: 0 | BB46: 0 | BC46: 0 | BD46: 100 | BE46: 25 | BF46: 0 | BG46: 0 | BH46: 0 | BI46: 0 | BJ46: 100 | BK46: 250 | BL46: 0 | BM46: 0 | BN46: 0 | BO46: 0 | BP46: 1000
A47: Newlands Girls' School | B47: Newlands Girls' School | C47: 186 | D47: 0 | E47: 0 | F47: 0 | G47: 0 | H47: 1159 | I47: 186 | J47: 0 | K47: 0 | L47: 0 | M47: 0 | N47: 1159 | O47: 186 | P47: 0 | Q47: 0 | R47: 0 | S47: 0 | T47: 1148 | U47: 186 | V47: 6 | W47: 0 | X47: 0 | Y47: 0 | Z47: 1185 | AA47: 192 | AB47: 0 | AC47: 0 | AD47: 0 | AE47: 0 | AF47: 1188 | AG47: 192 | AH47: 0 | AI47: 0 | AJ47: 0 | AK47: 0 | AL47: 1188 | AM47: 192 | AN47: 0 | AO47: 0 | AP47: 0 | AQ47: 0 | AR47: 1188 | AS47: 192 | AT47: 0 | AU47: 0 | AV47: 0 | AW47: 0 | AX47: 1188 | AY47: 192 | AZ47: 0 | BA47: 0 | BB47: 0 | BC47: 0 | BD47: 1188 | BE47: 192 | BF47: 0 | BG47: 0 | BH47: 0 | BI47: 0 | BJ47: 1188 | BK47: 1896 | BL47: 6 | BM47: 0 | BN47: 0 | BO47: 0 | BP47: 11779
A48: Oakfield First School | B48: Oakfield First School | C48: 60 | D48: 0 | E48: 0 | F48: 0 | G48: 0 | H48: 300 | I48: 60 | J48: 0 | K48: 0 | L48: 0 | M48: 0 | N48: 300 | O48: 60 | P48: 0 | Q48: 0 | R48: 0 | S48: 0 | T48: 300 | U48: 60 | V48: 0 | W48: 0 | X48: 0 | Y48: 0 | Z48: 300 | AA48: 60 | AB48: 0 | AC48: 0 | AD48: 0 | AE48: 0 | AF48: 300 | AG48: 60 | AH48: 0 | AI48: 0 | AJ48: 0 | AK48: 0 | AL48: 300 | AM48: 60 | AN48: 0 | AO48: 0 | AP48: 0 | AQ48: 0 | AR48: 300 | AS48: 60 | AT48: 0 | AU48: 0 | AV48: 0 | AW48: 0 | AX48: 300 | AY48: 60 | AZ48: 0 | BA48: 0 | BB48: 0 | BC48: 0 | BD48: 300 | BE48: 60 | BF48: 0 | BG48: 0 | BH48: 0 | BI48: 0 | BJ48: 300 | BK48: 600 | BL48: 0 | BM48: 0 | BN48: 0 | BO48: 0 | BP48: 3000
A49: Oldfield Primary School | B49: Oldfield Primary School | C49: 30 | D49: 30 | E49: 0 | F49: 0 | G49: 0 | H49: 268 | I49: 60 | J49: 0 | K49: 0 | L49: 0 | M49: 0 | N49: 298 | O49: 60 | P49: 0 | Q49: 0 | R49: 0 | S49: 0 | T49: 420 | U49: 60 | V49: 0 | W49: 0 | X49: 0 | Y49: 0 | Z49: 420 | AA49: 60 | AB49: 0 | AC49: 0 | AD49: 0 | AE49: 0 | AF49: 420 | AG49: 60 | AH49: 0 | AI49: 0 | AJ49: 0 | AK49: 0 | AL49: 420 | AM49: 60 | AN49: 0 | AO49: 0 | AP49: 0 | AQ49: 0 | AR49: 420 | AS49: 60 | AT49: 0 | AU49: 0 | AV49: 0 | AW49: 0 | AX49: 420 | AY49: 60 | AZ49: 0 | BA49: 0 | BB49: 0 | BC49: 0 | BD49: 420 | BE49: 60 | BF49: 0 | BG49: 0 | BH49: 0 | BI49: 0 | BJ49: 420 | BK49: 570 | BL49: 30 | BM49: 0 | BN49: 0 | BO49: 0 | BP49: 3926
A50: RISE Alternative Learning Provision | B50: RISE Alternative Learning Provision | C50: 0 | D50: 0 | E50: 0 | F50: 0 | G50: 0 | H50: 0 | I50: 0 | J50: 0 | K50: 0 | L50: 0 | M50: 0 | N50: 0 | O50: 0 | P50: 0 | Q50: 0 | R50: 0 | S50: 0 | T50: 0 | U50: 0 | V50: 0 | W50: 0 | X50: 0 | Y50: 0 | Z50: 0 | AA50: 0 | AB50: 0 | AC50: 0 | AD50: 0 | AE50: 0 | AF50: 0 | AG50: 0 | AH50: 0 | AI50: 0 | AJ50: 0 | AK50: 0 | AL50: 0 | AM50: 0 | AN50: 0 | AO50: 0 | AP50: 0 | AQ50: 0 | AR50: 0 | AS50: 0 | AT50: 0 | AU50: 0 | AV50: 0 | AW50: 0 | AX50: 0 | AY50: 0 | AZ50: 0 | BA50: 0 | BB50: 0 | BC50: 0 | BD50: 0 | BE50: 0 | BF50: 0 | BG50: 0 | BH50: 0 | BI50: 0 | BJ50: 0 | BK50: 0 | BL50: 0 | BM50: 0 | BN50: 0 | BO50: 0 | BP50: 0
A51: Riverside Primary School and Nursery | B51: Riverside Primary School and Nursery | C51: 30 | D51: 0 | E51: 0 | F51: 0 | G51: 0 | H51: 239 | I51: 60 | J51: 0 | K51: 0 | L51: 0 | M51: 0 | N51: 239 | O51: 60 | P51: 0 | Q51: 0 | R51: 0 | S51: 0 | T51: 420 | U51: 60 | V51: 0 | W51: 0 | X51: 0 | Y51: 0 | Z51: 300 | AA51: 60 | AB51: 0 | AC51: 0 | AD51: 0 | AE51: 0 | AF51: 300 | AG51: 60 | AH51: 0 | AI51: 0 | AJ51: 0 | AK51: 0 | AL51: 420 | AM51: 60 | AN51: 0 | AO51: 0 | AP51: 0 | AQ51: 0 | AR51: 420 | AS51: 60 | AT51: 0 | AU51: 0 | AV51: 0 | AW51: 0 | AX51: 420 | AY51: 60 | AZ51: 0 | BA51: 0 | BB51: 0 | BC51: 0 | BD51: 420 | BE51: 60 | BF51: 0 | BG51: 0 | BH51: 0 | BI51: 0 | BJ51: 420 | BK51: 570 | BL51: 0 | BM51: 0 | BN51: 0 | BO51: 0 | BP51: 3598
A52: South Ascot Village Primary School | B52: South Ascot Village Primary School | C52: 30 | D52: 0 | E52: 0 | F52: 0 | G52: 0 | H52: 240 | I52: 30 | J52: 0 | K52: 0 | L52: 0 | M52: 0 | N52: 240 | O52: 30 | P52: 0 | Q52: 0 | R52: 0 | S52: 0 | T52: 240 | U52: 30 | V52: 0 | W52: 0 | X52: 0 | Y52: 0 | Z52: 240 | AA52: 30 | AB52: 0 | AC52: 0 | AD52: 0 | AE52: 0 | AF52: 240 | AG52: 30 | AH52: 0 | AI52: 0 | AJ52: 0 | AK52: 0 | AL52: 240 | AM52: 30 | AN52: 0 | AO52: 0 | AP52: 0 | AQ52: 0 | AR52: 210 | AS52: 30 | AT52: 0 | AU52: 0 | AV52: 0 | AW52: 0 | AX52: 210 | AY52: 30 | AZ52: 0 | BA52: 0 | BB52: 0 | BC52: 0 | BD52: 210 | BE52: 30 | BF52: 0 | BG52: 0 | BH52: 0 | BI52: 0 | BJ52: 210 | BK52: 300 | BL52: 0 | BM52: 0 | BN52: 0 | BO52: 0 | BP52: 2280
A53: St Edmund Campion Catholic Primary School | B53: St Edmund Campion Catholic Primary School | C53: 60 | D53: 0 | E53: 0 | F53: 0 | G53: 0 | H53: 420 | I53: 60 | J53: 0 | K53: 0 | L53: 0 | M53: 0 | N53: 420 | O53: 60 | P53: 0 | Q53: 0 | R53: 0 | S53: 0 | T53: 420 | U53: 60 | V53: 0 | W53: 0 | X53: 0 | Y53: 0 | Z53: 420 | AA53: 60 | AB53: 0 | AC53: 0 | AD53: 0 | AE53: 0 | AF53: 420 | AG53: 60 | AH53: 0 | AI53: 0 | AJ53: 0 | AK53: 0 | AL53: 420 | AM53: 60 | AN53: 0 | AO53: 0 | AP53: 0 | AQ53: 0 | AR53: 420 | AS53: 60 | AT53: 0 | AU53: 0 | AV53: 0 | AW53: 0 | AX53: 420 | AY53: 60 | AZ53: 0 | BA53: 0 | BB53: 0 | BC53: 0 | BD53: 420 | BE53: 60 | BF53: 0 | BG53: 0 | BH53: 0 | BI53: 0 | BJ53: 420 | BK53: 600 | BL53: 0 | BM53: 0 | BN53: 0 | BO53: 0 | BP53: 4200
A54: St Edward's Catholic First School | B54: St Edward's Catholic First School | C54: 60 | D54: 0 | E54: 0 | F54: 0 | G54: 0 | H54: 255 | I54: 60 | J54: 0 | K54: 0 | L54: 0 | M54: 0 | N54: 311 | O54: 60 | P54: 0 | Q54: 0 | R54: 0 | S54: 0 | T54: 311 | U54: 60 | V54: 0 | W54: 0 | X54: 0 | Y54: 0 | Z54: 311 | AA54: 60 | AB54: 0 | AC54: 0 | AD54: 0 | AE54: 0 | AF54: 311 | AG54: 60 | AH54: 0 | AI54: 0 | AJ54: 0 | AK54: 0 | AL54: 311 | AM54: 60 | AN54: 0 | AO54: 0 | AP54: 0 | AQ54: 0 | AR54: 311 | AS54: 60 | AT54: 0 | AU54: 0 | AV54: 0 | AW54: 0 | AX54: 311 | AY54: 60 | AZ54: 0 | BA54: 0 | BB54: 0 | BC54: 0 | BD54: 311 | BE54: 60 | BF54: 0 | BG54: 0 | BH54: 0 | BI54: 0 | BJ54: 311 | BK54: 600 | BL54: 0 | BM54: 0 | BN54: 0 | BO54: 0 | BP54: 3054
A55: St Edward's Royal Free Ecumenical Middle School | B55: St Edward's Royal Free Ecumenical Middle School | C55: 120 | D55: 0 | E55: 0 | F55: 0 | G55: 0 | H55: 378 | I55: 120 | J55: 0 | K55: 0 | L55: 0 | M55: 0 | N55: 480 | O55: 120 | P55: 0 | Q55: 0 | R55: 0 | S55: 0 | T55: 480 | U55: 120 | V55: 0 | W55: 0 | X55: 0 | Y55: 0 | Z55: 480 | AA55: 120 | AB55: 0 | AC55: 0 | AD55: 0 | AE55: 0 | AF55: 480 | AG55: 120 | AH55: 0 | AI55: 0 | AJ55: 0 | AK55: 0 | AL55: 480 | AM55: 120 | AN55: 0 | AO55: 0 | AP55: 0 | AQ55: 0 | AR55: 480 | AS55: 120 | AT55: 0 | AU55: 0 | AV55: 0 | AW55: 0 | AX55: 480 | AY55: 120 | AZ55: 0 | BA55: 0 | BB55: 0 | BC55: 0 | BD55: 480 | BE55: 120 | BF55: 0 | BG55: 0 | BH55: 0 | BI55: 0 | BJ55: 480 | BK55: 1200 | BL55: 0 | BM55: 0 | BN55: 0 | BO55: 0 | BP55: 4698
A56: St Francis Catholic Primary School | B56: St Francis Catholic Primary School | C56: 30 | D56: 0 | E56: 0 | F56: 0 | G56: 0 | H56: 210 | I56: 30 | J56: 0 | K56: 0 | L56: 0 | M56: 0 | N56: 210 | O56: 30 | P56: 0 | Q56: 0 | R56: 0 | S56: 0 | T56: 210 | U56: 30 | V56: 0 | W56: 0 | X56: 0 | Y56: 0 | Z56: 210 | AA56: 30 | AB56: 0 | AC56: 0 | AD56: 0 | AE56: 0 | AF56: 210 | AG56: 30 | AH56: 0 | AI56: 0 | AJ56: 0 | AK56: 0 | AL56: 210 | AM56: 30 | AN56: 0 | AO56: 0 | AP56: 0 | AQ56: 0 | AR56: 210 | AS56: 30 | AT56: 0 | AU56: 0 | AV56: 0 | AW56: 0 | AX56: 210 | AY56: 30 | AZ56: 0 | BA56: 0 | BB56: 0 | BC56: 0 | BD56: 210 | BE56: 30 | BF56: 0 | BG56: 0 | BH56: 0 | BI56: 0 | BJ56: 210 | BK56: 300 | BL56: 0 | BM56: 0 | BN56: 0 | BO56: 0 | BP56: 2100
A57: St Luke's Church of England Primary School | B57: St Luke's Church of England Primary School | C57: 45 | D57: 0 | E57: 0 | F57: 0 | G57: 0 | H57: 315 | I57: 45 | J57: 0 | K57: 0 | L57: 0 | M57: 0 | N57: 315 | O57: 45 | P57: 0 | Q57: 0 | R57: 0 | S57: 0 | T57: 315 | U57: 45 | V57: 0 | W57: 0 | X57: 0 | Y57: 0 | Z57: 315 | AA57: 45 | AB57: 0 | AC57: 0 | AD57: 0 | AE57: 0 | AF57: 315 | AG57: 45 | AH57: 0 | AI57: 0 | AJ57: 0 | AK57: 0 | AL57: 315 | AM57: 45 | AN57: 0 | AO57: 0 | AP57: 0 | AQ57: 0 | AR57: 315 | AS57: 45 | AT57: 0 | AU57: 0 | AV57: 0 | AW57: 0 | AX57: 315 | AY57: 45 | AZ57: 0 | BA57: 0 | BB57: 0 | BC57: 0 | BD57: 315 | BE57: 45 | BF57: 0 | BG57: 0 | BH57: 0 | BI57: 0 | BJ57: 315 | BK57: 450 | BL57: 0 | BM57: 0 | BN57: 0 | BO57: 0 | BP57: 3150
A58: St Mary's Catholic Primary School | B58: St Mary's Catholic Primary School | C58: 45 | D58: 0 | E58: 0 | F58: 0 | G58: 0 | H58: 315 | I58: 45 | J58: 0 | K58: 0 | L58: 0 | M58: 0 | N58: 315 | O58: 45 | P58: 0 | Q58: 0 | R58: 0 | S58: 0 | T58: 315 | U58: 45 | V58: 0 | W58: 0 | X58: 0 | Y58: 0 | Z58: 315 | AA58: 45 | AB58: 0 | AC58: 0 | AD58: 0 | AE58: 0 | AF58: 315 | AG58: 45 | AH58: 0 | AI58: 0 | AJ58: 0 | AK58: 0 | AL58: 315 | AM58: 45 | AN58: 0 | AO58: 0 | AP58: 0 | AQ58: 0 | AR58: 315 | AS58: 45 | AT58: 0 | AU58: 0 | AV58: 0 | AW58: 0 | AX58: 315 | AY58: 45 | AZ58: 0 | BA58: 0 | BB58: 0 | BC58: 0 | BD58: 315 | BE58: 45 | BF58: 0 | BG58: 0 | BH58: 0 | BI58: 0 | BJ58: 315 | BK58: 450 | BL58: 0 | BM58: 0 | BN58: 0 | BO58: 0 | BP58: 3150
A59: St Michael's C of E Primary School, Sunninghill | B59: St Michael's C of E Primary School, Sunninghill | C59: 30 | D59: 0 | E59: 0 | F59: 0 | G59: 0 | H59: 210 | I59: 30 | J59: 0 | K59: 0 | L59: 0 | M59: 0 | N59: 210 | O59: 30 | P59: 0 | Q59: 0 | R59: 0 | S59: 0 | T59: 210 | U59: 30 | V59: 0 | W59: 0 | X59: 0 | Y59: 0 | Z59: 210 | AA59: 30 | AB59: 0 | AC59: 0 | AD59: 0 | AE59: 0 | AF59: 205 | AG59: 30 | AH59: 0 | AI59: 0 | AJ59: 0 | AK59: 0 | AL59: 205 | AM59: 30 | AN59: 0 | AO59: 0 | AP59: 0 | AQ59: 0 | AR59: 205 | AS59: 30 | AT59: 0 | AU59: 0 | AV59: 0 | AW59: 0 | AX59: 205 | AY59: 30 | AZ59: 0 | BA59: 0 | BB59: 0 | BC59: 0 | BD59: 205 | BE59: 30 | BF59: 0 | BG59: 0 | BH59: 0 | BI59: 0 | BJ59: 205 | BK59: 300 | BL59: 0 | BM59: 0 | BN59: 0 | BO59: 0 | BP59: 2070
A60: St Peter's Church of England Middle School | B60: St Peter's Church of England Middle School | C60: 60 | D60: 0 | E60: 0 | F60: 0 | G60: 0 | H60: 271 | I60: 60 | J60: 0 | K60: 0 | L60: 0 | M60: 0 | N60: 271 | O60: 60 | P60: 0 | Q60: 0 | R60: 0 | S60: 0 | T60: 271 | U60: 60 | V60: 0 | W60: 0 | X60: 0 | Y60: 0 | Z60: 271 | AA60: 60 | AB60: 0 | AC60: 0 | AD60: 0 | AE60: 0 | AF60: 271 | AG60: 60 | AH60: 0 | AI60: 0 | AJ60: 0 | AK60: 0 | AL60: 271 | AM60: 60 | AN60: 0 | AO60: 30 | AP60: 0 | AQ60: 0 | AR60: 271 | AS60: 60 | AT60: 0 | AU60: 30 | AV60: 0 | AW60: 0 | AX60: 271 | AY60: 60 | AZ60: 0 | BA60: 30 | BB60: 0 | BC60: 0 | BD60: 271 | BE60: 60 | BF60: 0 | BG60: 30 | BH60: 0 | BI60: 0 | BJ60: 271 | BK60: 600 | BL60: 0 | BM60: 120 | BN60: 0 | BO60: 0 | BP60: 2710
A61: The Lawns Nursery | B61: The Lawns Nursery | C61: 0 | D61: 0 | E61: 0 | F61: 0 | G61: 0 | H61: 0 | I61: 0 | J61: 0 | K61: 0 | L61: 0 | M61: 0 | N61: 0 | O61: 0 | P61: 0 | Q61: 0 | R61: 0 | S61: 0 | T61: 0 | U61: 0 | V61: 0 | W61: 0 | X61: 0 | Y61: 0 | Z61: 0 | AA61: 0 | AB61: 0 | AC61: 0 | AD61: 0 | AE61: 0 | AF61: 0 | AG61: 0 | AH61: 0 | AI61: 0 | AJ61: 0 | AK61: 0 | AL61: 0 | AM61: 0 | AN61: 0 | AO61: 0 | AP61: 0 | AQ61: 0 | AR61: 0 | AS61: 0 | AT61: 0 | AU61: 0 | AV61: 0 | AW61: 0 | AX61: 0 | AY61: 0 | AZ61: 0 | BA61: 0 | BB61: 0 | BC61: 0 | BD61: 0 | BE61: 0 | BF61: 0 | BG61: 0 | BH61: 0 | BI61: 0 | BJ61: 0 | BK61: 0 | BL61: 0 | BM61: 0 | BN61: 0 | BO61: 0 | BP61: 0
A62: The Queen Anne Royal Free CE First School | B62: The Queen Anne Royal Free CE First School | C62: 30 | D62: 0 | E62: 0 | F62: 0 | G62: 0 | H62: 149 | I62: 30 | J62: 0 | K62: 0 | L62: 0 | M62: 0 | N62: 149 | O62: 30 | P62: 0 | Q62: 0 | R62: 0 | S62: 0 | T62: 150 | U62: 30 | V62: 0 | W62: 0 | X62: 0 | Y62: 0 | Z62: 150 | AA62: 30 | AB62: 0 | AC62: 0 | AD62: 0 | AE62: 0 | AF62: 150 | AG62: 30 | AH62: 0 | AI62: 0 | AJ62: 0 | AK62: 0 | AL62: 150 | AM62: 30 | AN62: 0 | AO62: 0 | AP62: 0 | AQ62: 0 | AR62: 150 | AS62: 30 | AT62: 0 | AU62: 0 | AV62: 0 | AW62: 0 | AX62: 150 | AY62: 30 | AZ62: 0 | BA62: 0 | BB62: 0 | BC62: 0 | BD62: 150 | BE62: 30 | BF62: 0 | BG62: 0 | BH62: 0 | BI62: 0 | BJ62: 150 | BK62: 300 | BL62: 0 | BM62: 0 | BN62: 0 | BO62: 0 | BP62: 1498
A63: The Royal School (Crown Aided) | B63: The Royal School (Crown Aided) | C63: 20 | D63: 0 | E63: 0 | F63: 0 | G63: 0 | H63: 108 | I63: 20 | J63: 0 | K63: 0 | L63: 0 | M63: 0 | N63: 108 | O63: 20 | P63: 0 | Q63: 0 | R63: 0 | S63: 0 | T63: 108 | U63: 20 | V63: 0 | W63: 0 | X63: 0 | Y63: 0 | Z63: 108 | AA63: 20 | AB63: 0 | AC63: 0 | AD63: 0 | AE63: 0 | AF63: 108 | AG63: 20 | AH63: 0 | AI63: 0 | AJ63: 0 | AK63: 0 | AL63: 108 | AM63: 20 | AN63: 0 | AO63: 0 | AP63: 0 | AQ63: 0 | AR63: 108 | AS63: 20 | AT63: 0 | AU63: 0 | AV63: 0 | AW63: 0 | AX63: 108 | AY63: 20 | AZ63: 0 | BA63: 0 | BB63: 0 | BC63: 0 | BD63: 108 | BE63: 20 | BF63: 0 | BG63: 0 | BH63: 0 | BI63: 0 | BJ63: 108 | BK63: 200 | BL63: 0 | BM63: 0 | BN63: 0 | BO63: 0 | BP63: 1080
A64: The Windsor Boys' School | B64: The Windsor Boys' School | C64: 230 | D64: 0 | E64: 0 | F64: 0 | G64: 0 | H64: 1027 | I64: 230 | J64: 0 | K64: 0 | L64: 0 | M64: 0 | N64: 1027 | O64: 230 | P64: 0 | Q64: 0 | R64: 0 | S64: 0 | T64: 1072 | U64: 230 | V64: 0 | W64: 0 | X64: 0 | Y64: 0 | Z64: 1072 | AA64: 260 | AB64: 0 | AC64: 0 | AD64: 0 | AE64: 0 | AF64: 1128 | AG64: 260 | AH64: 0 | AI64: 0 | AJ64: 0 | AK64: 0 | AL64: 1128 | AM64: 260 | AN64: 0 | AO64: 0 | AP64: 0 | AQ64: 0 | AR64: 1128 | AS64: 260 | AT64: 0 | AU64: 0 | AV64: 0 | AW64: 0 | AX64: 1128 | AY64: 260 | AZ64: 0 | BA64: 0 | BB64: 0 | BC64: 0 | BD64: 1128 | BE64: 260 | BF64: 0 | BG64: 0 | BH64: 0 | BI64: 0 | BJ64: 1128 | BK64: 2480 | BL64: 0 | BM64: 0 | BN64: 0 | BO64: 0 | BP64: 10966
A65: Trevelyan Middle School | B65: Trevelyan Middle School | C65: 150 | D65: 0 | E65: 0 | F65: 0 | G65: 0 | H65: 600 | I65: 150 | J65: 0 | K65: 0 | L65: 0 | M65: 0 | N65: 600 | O65: 150 | P65: 0 | Q65: 0 | R65: 0 | S65: 0 | T65: 600 | U65: 150 | V65: 0 | W65: 0 | X65: 0 | Y65: 0 | Z65: 600 | AA65: 150 | AB65: 0 | AC65: 0 | AD65: 0 | AE65: 0 | AF65: 630 | AG65: 150 | AH65: 0 | AI65: 0 | AJ65: 0 | AK65: 0 | AL65: 630 | AM65: 150 | AN65: 0 | AO65: 0 | AP65: 0 | AQ65: 0 | AR65: 630 | AS65: 150 | AT65: 0 | AU65: 0 | AV65: 0 | AW65: 0 | AX65: 630 | AY65: 150 | AZ65: 0 | BA65: 0 | BB65: 0 | BC65: 0 | BD65: 630 | BE65: 150 | BF65: 0 | BG65: 0 | BH65: 0 | BI65: 0 | BJ65: 630 | BK65: 1500 | BL65: 0 | BM65: 0 | BN65: 0 | BO65: 0 | BP65: 6180
A66: Trinity St Stephen Church of England First School | B66: Trinity St Stephen Church of England First School | C66: 30 | D66: 0 | E66: 0 | F66: 0 | G66: 0 | H66: 150 | I66: 30 | J66: 0 | K66: 0 | L66: 0 | M66: 0 | N66: 150 | O66: 30 | P66: 0 | Q66: 0 | R66: 0 | S66: 0 | T66: 150 | U66: 30 | V66: 0 | W66: 0 | X66: 0 | Y66: 0 | Z66: 150 | AA66: 30 | AB66: 0 | AC66: 0 | AD66: 0 | AE66: 0 | AF66: 150 | AG66: 30 | AH66: 0 | AI66: 0 | AJ66: 0 | AK66: 0 | AL66: 150 | AM66: 30 | AN66: 0 | AO66: 0 | AP66: 0 | AQ66: 0 | AR66: 150 | AS66: 30 | AT66: 0 | AU66: 0 | AV66: 0 | AW66: 0 | AX66: 150 | AY66: 30 | AZ66: 0 | BA66: 0 | BB66: 0 | BC66: 0 | BD66: 150 | BE66: 30 | BF66: 0 | BG66: 0 | BH66: 0 | BI66: 0 | BJ66: 150 | BK66: 300 | BL66: 0 | BM66: 0 | BN66: 0 | BO66: 0 | BP66: 1500
A67: Waltham St Lawrence Primary School | B67: Waltham St Lawrence Primary School | C67: 19 | D67: 0 | E67: 0 | F67: 0 | G67: 0 | H67: 133 | I67: 19 | J67: 0 | K67: 0 | L67: 0 | M67: 0 | N67: 133 | O67: 19 | P67: 0 | Q67: 0 | R67: 0 | S67: 0 | T67: 133 | U67: 19 | V67: 0 | W67: 0 | X67: 0 | Y67: 0 | Z67: 133 | AA67: 19 | AB67: 0 | AC67: 0 | AD67: 0 | AE67: 0 | AF67: 133 | AG67: 19 | AH67: 3 | AI67: 0 | AJ67: 0 | AK67: 0 | AL67: 133 | AM67: 19 | AN67: 0 | AO67: 0 | AP67: 0 | AQ67: 0 | AR67: 133 | AS67: 19 | AT67: 0 | AU67: 0 | AV67: 0 | AW67: 0 | AX67: 133 | AY67: 19 | AZ67: 0 | BA67: 0 | BB67: 0 | BC67: 0 | BD67: 133 | BE67: 19 | BF67: 0 | BG67: 0 | BH67: 0 | BI67: 0 | BJ67: 133 | BK67: 190 | BL67: 3 | BM67: 0 | BN67: 0 | BO67: 0 | BP67: 1330
A68: Wessex Primary School | B68: Wessex Primary School | C68: 60 | D68: 0 | E68: 0 | F68: 0 | G68: 0 | H68: 420 | I68: 60 | J68: 0 | K68: 0 | L68: 0 | M68: 0 | N68: 420 | O68: 60 | P68: 0 | Q68: 0 | R68: 0 | S68: 0 | T68: 420 | U68: 60 | V68: 0 | W68: 0 | X68: 0 | Y68: 0 | Z68: 420 | AA68: 60 | AB68: 0 | AC68: 0 | AD68: 0 | AE68: 0 | AF68: 420 | AG68: 60 | AH68: 0 | AI68: 0 | AJ68: 0 | AK68: 0 | AL68: 420 | AM68: 60 | AN68: 0 | AO68: 0 | AP68: 0 | AQ68: 0 | AR68: 420 | AS68: 60 | AT68: 0 | AU68: 0 | AV68: 0 | AW68: 0 | AX68: 420 | AY68: 60 | AZ68: 0 | BA68: 0 | BB68: 0 | BC68: 0 | BD68: 420 | BE68: 60 | BF68: 0 | BG68: 0 | BH68: 0 | BI68: 0 | BJ68: 420 | BK68: 600 | BL68: 0 | BM68: 0 | BN68: 0 | BO68: 0 | BP68: 4200
A69: White Waltham C of E Academy | B69: White Waltham C of E Academy | C69: 30 | D69: 0 | E69: 0 | F69: 0 | G69: 0 | H69: 210 | I69: 30 | J69: 0 | K69: 0 | L69: 0 | M69: 0 | N69: 210 | O69: 30 | P69: 0 | Q69: 0 | R69: 0 | S69: 0 | T69: 210 | U69: 30 | V69: 0 | W69: 0 | X69: 0 | Y69: 0 | Z69: 210 | AA69: 30 | AB69: 0 | AC69: 0 | AD69: 0 | AE69: 0 | AF69: 210 | AG69: 30 | AH69: 0 | AI69: 0 | AJ69: 0 | AK69: 0 | AL69: 210 | AM69: 30 | AN69: 0 | AO69: 0 | AP69: 0 | AQ69: 0 | AR69: 210 | AS69: 30 | AT69: 0 | AU69: 0 | AV69: 0 | AW69: 0 | AX69: 210 | AY69: 30 | AZ69: 0 | BA69: 0 | BB69: 0 | BC69: 0 | BD69: 210 | BE69: 30 | BF69: 0 | BG69: 0 | BH69: 0 | BI69: 0 | BJ69: 210 | BK69: 300 | BL69: 0 | BM69: 0 | BN69: 0 | BO69: 0 | BP69: 2100
A70: Windsor Girls' School | B70: Windsor Girls' School | C70: 178 | D70: 0 | E70: 0 | F70: 0 | G70: 0 | H70: 712 | I70: 178 | J70: 0 | K70: 0 | L70: 0 | M70: 0 | N70: 712 | O70: 178 | P70: 0 | Q70: 0 | R70: 0 | S70: 0 | T70: 712 | U70: 178 | V70: 0 | W70: 0 | X70: 0 | Y70: 0 | Z70: 732 | AA70: 208 | AB70: 0 | AC70: 0 | AD70: 0 | AE70: 0 | AF70: 842 | AG70: 208 | AH70: 0 | AI70: 0 | AJ70: 0 | AK70: 0 | AL70: 842 | AM70: 208 | AN70: 0 | AO70: 0 | AP70: 0 | AQ70: 0 | AR70: 842 | AS70: 208 | AT70: 0 | AU70: 0 | AV70: 0 | AW70: 0 | AX70: 842 | AY70: 208 | AZ70: 0 | BA70: 0 | BB70: 0 | BC70: 0 | BD70: 842 | BE70: 208 | BF70: 0 | BG70: 0 | BH70: 0 | BI70: 0 | BJ70: 842 | BK70: 1960 | BL70: 0 | BM70: 0 | BN70: 0 | BO70: 0 | BP70: 7920
A71: Woodlands Park Primary & Nursery School | B71: Woodlands Park Primary & Nursery School | C71: 30 | D71: 0 | E71: 0 | F71: 0 | G71: 0 | H71: 205 | I71: 30 | J71: 0 | K71: 0 | L71: 0 | M71: 0 | N71: 205 | O71: 30 | P71: 0 | Q71: 0 | R71: 0 | S71: 0 | T71: 203 | U71: 30 | V71: 0 | W71: 0 | X71: 0 | Y71: 0 | Z71: 203 | AA71: 30 | AB71: 0 | AC71: 0 | AD71: 0 | AE71: 0 | AF71: 203 | AG71: 30 | AH71: 0 | AI71: 0 | AJ71: 0 | AK71: 0 | AL71: 203 | AM71: 30 | AN71: 0 | AO71: 0 | AP71: 0 | AQ71: 0 | AR71: 203 | AS71: 30 | AT71: 0 | AU71: 0 | AV71: 0 | AW71: 0 | AX71: 203 | AY71: 30 | AZ71: 0 | BA71: 0 | BB71: 0 | BC71: 0 | BD71: 203 | BE71: 30 | BF71: 0 | BG71: 0 | BH71: 0 | BI71: 0 | BJ71: 203 | BK71: 300 | BL71: 0 | BM71: 0 | BN71: 0 | BO71: 0 | BP71: 2034
A72: Wraysbury Primary School | B72: Wraysbury Primary School | C72: 60 | D72: 0 | E72: 0 | F72: 0 | G72: 0 | H72: 420 | I72: 60 | J72: 0 | K72: 0 | L72: 0 | M72: 0 | N72: 420 | O72: 60 | P72: 0 | Q72: 0 | R72: 0 | S72: 0 | T72: 420 | U72: 60 | V72: 0 | W72: 0 | X72: 0 | Y72: 0 | Z72: 420 | AA72: 60 | AB72: 0 | AC72: 0 | AD72: 0 | AE72: 0 | AF72: 420 | AG72: 60 | AH72: 0 | AI72: 0 | AJ72: 0 | AK72: 0 | AL72: 420 | AM72: 60 | AN72: 0 | AO72: 0 | AP72: 0 | AQ72: 0 | AR72: 420 | AS72: 60 | AT72: 0 | AU72: 0 | AV72: 0 | AW72: 0 | AX72: 420 | AY72: 60 | AZ72: 0 | BA72: 0 | BB72: 0 | BC72: 0 | BD72: 420 | BE72: 60 | BF72: 0 | BG72: 0 | BH72: 0 | BI72: 0 | BJ72: 420 | BK72: 600 | BL72: 0 | BM72: 0 | BN72: 0 | BO72: 0 | BP72: 4200
A73: Grand Total | C73: 4036 | D73: 77 | E73: 0 | F73: 0 | G73: 0 | H73: 21901 | I73: 4215 | J73: 183 | K73: 0 | L73: 36 | M73: 0 | N73: 22762 | O73: 4249 | P73: 70 | Q73: 0 | R73: 36 | S73: 0 | T73: 23449 | U73: 4274 | V73: 134 | W73: 0 | X73: 36 | Y73: 0 | Z73: 23605 | AA73: 4386 | AB73: 107 | AC73: 0 | AD73: 36 | AE73: 0 | AF73: 23750 | AG73: 4435 | AH73: 24 | AI73: 30 | AJ73: 36 | AK73: 41 | AL73: 24693 | AM73: 4469 | AN73: 14 | AO73: 60 | AP73: 36 | AQ73: 41 | AR73: 24603 | AS73: 4452 | AT73: 14 | AU73: 60 | AV73: 36 | AW73: 41 | AX73: 24603 | AY73: 4452 | AZ73: 14 | BA73: 60 | BB73: 36 | BC73: 41 | BD73: 24543 | BE73: 4452 | BF73: 14 | BG73: 60 | BH73: 36 | BI73: 41 | BJ73: 24543 | BK73: 43420 | BL73: 651 | BM73: 270 | BN73: 324 | BO73: 205 | BP73: 238452

Sheet Report
B1: Report - Admission Numbers and Net Capacities in the Royal Borough of Windsor and Maidenhead (Autumn) | BS1: If you have any queries about this data, please contact 01628 796572 or email schoolplaces@achievingforchildren.org.uk
B2: This report gives the Published Admission Numbers (PANs) and Net Capacities of schools in the Royal Borough of Windsor and Maidenhead
E4: Use this button to hide or show the green columns ('School Location') and brown columns ('School Details') information as preferred.
E6: Use this button to hide or show the help 'bubbles', which give brief explanations of the data in each column. Hiding this will let you see more rows of data.
B8: Filter the results: | E8: Use the filters in the red row below to choose groups of schools. The totals in the final row will reflect the total of the PANs/Net Capacities in the selected schools. To use the filters, click on the arrow in the relevant column (e.g. 'Area'). All the options in that column (e.g. Ascot, Datchet & Wraysbury), Maidenhead and Windsor) will be shown with check boxes. Simply check or uncheck the options you want displayed and click 'ok'.
B12: A | D12: B | E12: C | F12: D | G12: E | H12: F | I12: G | J12: H | K12: I | L12: J | M12: K | N12: L | O12: M | P12: N | Q12: O | R12: P | S12: Q | T12: R | U12: S | V12: T | W12: U | X12: V | Y12: W | Z12: X | AA12: Y | AB12: Z | AC12: AA | AD12: AB | AE12: AC | AF12: AD | AG12: AE | AH12: AF | AI12: AG | AJ12: AH | AK12: AI | AL12: AJ | AM12: AK | AN12: AL | AO12: AM | AP12: AN | AQ12: AO | AR12: AP | AS12: AQ | AT12: AR | AU12: AS | AV12: AT | AW12: AU | AX12: AV | AY12: AW | AZ12: AX | BA12: AY | BB12: AZ | BC12: BA | BD12: BB | BE12: BC | BF12: BD | BG12: BE | BH12: BF | BI12: BG | BJ12: BH | BK12: BI | BL12: BJ | BM12: BK | BN12: BL | BO12: BM | BP12: BN | BQ12: BO | BR12: BP | BS12: BQ | BT12: BR | BU12: BS | BV12: BT | BW12: BU | BX12: BV | BY12: BW | BZ12: BX | CA12: BY | CB12: BZ
B13: School | D13: Intake Year Group | E13: Area | F13: Subarea | G13: Locality | H13: Ward | I13: Parish | J13: Phase | K13: Tier | L13: Type | M13: SEN | N13: Control | O13: Academy Conversion Date | P13: Denomination | Q13: =CurrentYearStartA-5 -> 2013 | W13: =CurrentYearStartA-4 -> 2014 | AC13: =CurrentYearStartA-3 -> 2015 | AI13: =CurrentYearStartA-2 -> 2016 | AO13: =CurrentYearStartA-1 -> 2017 | AU13: =CurrentYearStartA -> 2018 | BA13: =CurrentYearStartA+1 -> 2019 | BH13: =CurrentYearStartA+2 -> 2020 | BO13: =CurrentYearStartA+3 -> 2021 | BV13: =CurrentYearStartA+4 -> 2022
Q14: PAN | R14: Additional Places | S14: Boarding Places | T14: Total Places | U14: Places 'mothballed' | V14: Net Capacity | W14: PAN | X14: Additional Places | Y14: Boarding Places | Z14: Total Places | AA14: Places 'mothballed' | AB14: Net Capacity | AC14: PAN | AD14: Additional Places | AE14: Boarding Places | AF14: Total Places | AG14: Places 'mothballed' | AH14: Net Capacity | AI14: PAN | AJ14: Additional Places | AK14: Boarding Places | AL14: Total Places | AM14: Places 'mothballed' | AN14: Net Capacity | AO14: PAN | AP14: Additional Places | AQ14: Boarding Places | AR14: Total Places | AS14: Places 'mothballed' | AT14: Net Capacity | AU14: PAN | AV14: Additional Places | AW14: Boarding Places | AX14: Total Places | AY14: Places 'mothballed' | AZ14: Net Capacity | BA14: PAN | BB14: Additional Places | BC14: Planned Change to PAN | BD14: Boarding Places | BE14: Total Places | BF14: Places 'mothballed' | BG14: Net Capacity | BH14: PAN | BI14: Additional Places | BJ14: Planned Change to PAN | BK14: Boarding Places | BL14: Total Places | BM14: Places 'mothballed' | BN14: Net Capacity | BO14: PAN | BP14: Additional Places | BQ14: Planned Change to PAN | BR14: Boarding Places | BS14: Total Places | BT14: Places 'mothballed' | BU14: Net Capacity | BV14: PAN | BW14: Additional Places | BX14: Planned Change to PAN | BY14: Boarding Places | BZ14: Total Places | CA14: Places 'mothballed' | CB14: Net Capacity
Q21: Sum of PAN | R21: Sum Of TemporaryPlaces | S21: Sum Of BoardingPlaces | U21: Sum Of MothballedPlaces | V21: Sum Of NetCapacity | W21: Sum of PAN | X21: Sum Of TemporaryPlaces | Y21: Sum Of BoardingPlaces | AA21: Sum Of MothballedPlaces | AB21: Sum Of NetCapacity | AC21: Sum of PAN | AD21: Sum Of TemporaryPlaces | AE21: Sum Of BoardingPlaces | AG21: Sum Of MothballedPlaces | AH21: Sum Of NetCapacity | AI21: Sum of PAN | AJ21: Sum Of TemporaryPlaces | AK21: Sum Of BoardingPlaces | AM21: Sum Of MothballedPlaces | AN21: Sum Of NetCapacity | AO21: Sum of PAN | AP21: Sum Of TemporaryPlaces | AQ21: Sum Of BoardingPlaces | AS21: Sum Of MothballedPlaces | AT21: Sum Of NetCapacity | AU21: Sum of PAN | AV21: Sum Of TemporaryPlaces | AW21: Sum Of BoardingPlaces | AY21: Sum Of MothballedPlaces | AZ21: Sum Of NetCapacity | BA21: Sum of PAN | BB21: Sum Of TemporaryPlaces | BC21: Sum of PlannedPlaces | BD21: Sum Of BoardingPlaces | BF21: Sum Of MothballedPlaces | BG21: Sum Of NetCapacity | BH21: Sum of PAN | BI21: Sum Of TemporaryPlaces | BJ21: Sum of PlannedPlaces | BK21: Sum Of BoardingPlaces | BM21: Sum Of MothballedPlaces | BN21: Sum Of NetCapacity | BO21: Sum of PAN | BP21: Sum Of TemporaryPlaces | BQ21: Sum of PlannedPlaces | BR21: Sum Of BoardingPlaces | BT21: Sum Of MothballedPlaces | BU21: Sum Of NetCapacity | BV21: Sum of PAN | BW21: Sum Of TemporaryPlaces | BX21: Sum of PlannedPlaces | BY21: Sum Of BoardingPlaces | CA21: Sum Of MothballedPlaces | CB21: Sum Of NetCapacity
B22: =IF(PivotTableA!A9="","n/a",PivotTableA!A9) -> Alexander First School | C22: =IF(B22="n/a","",PivotTableA!B9) -> Alexander First School | D22: =IF($B22="n/a","",PivotTableA!C9) -> R | E22: =IF($B22="n/a","",PivotTableA!D9) -> Windsor | F22: =IF($B22="n/a","",PivotTableA!E9) -> Windsor South | G22: =IF($B22="n/a","",PivotTableA!F9) -> Alexander | H22: =IF($B22="n/a","",PivotTableA!G9) -> Clewer South | I22: =IF($B22="n/a","",PivotTableA!H9) -> Bray | J22: =IF($B22="n/a","",PivotTableA!I9) -> Primary | K22: =IF($B22="n/a","",PivotTableA!J9) -> Three Tier | L22: =IF($B22="n/a","",PivotTableA!K9) -> First | M22: =IF($B22="n/a","",PivotTableA!O9) -> FALSE | N22: =IF($B22="n/a","",PivotTableA!L9) -> Community | O22: =IF($B22="n/a","",PivotTableA!M9) ->  | P22: =IF($B22="n/a","",PivotTableA!N9) -> None | Q22: =IFERROR(IF($B22="","", IF(OR($L22="Nursery School",$L22="All-through PRU",$M22="True"),"n/a", IF(GETPIVOTDATA(Q$21 & "",PivotTableB!$A$3,"SchoolName",$B22,"SubsidiaryName",$C22,"YearStart",Q$13)="",".", GETPIVOTDATA(Q$21 & "",PivotTableB!$A$3,"SchoolName",$B22,"SubsidiaryName",$C22,"YearStart",Q$13)))),"") -> 24 | R22: =IFERROR(IF(Q22=".",".",IF(Q22="n/a","n/a", GETPIVOTDATA(R$21 & "",PivotTableB!$A$3,"SchoolName",$B22,"SubsidiaryName",$C22,"YearStart",Q$13))),"") -> 6 | S22: =IFERROR(IF(R22=".",".",IF(R22="n/a","n/a", GETPIVOTDATA(S$21 & "",PivotTableB!$A$3,"SchoolName",$B22,"SubsidiaryName",$C22,"YearStart",Q$13))),"") -> 0 | T22: =IFERROR(IF(R22=".",".",IF(R22="n/a","n/a",SUM(Q22:R22))),"") -> 30 | U22: =IFERROR(IF(T22=".",".",IF(T22="n/a","n/a", GETPIVOTDATA(U$21 & "",PivotTableB!$A$3,"SchoolName",$B22,"SubsidiaryName",$C22,"YearStart",Q$13))),"") -> 0 | V22: =IFERROR(IF(U22=".",".",IF(U22="n/a","n/a", GETPIVOTDATA(V$21 & "",PivotTableB!$A$3,"SchoolName",$B22,"SubsidiaryName",$C22,"YearStart",Q$13))),"") -> 135 | W22: =IFERROR(IF($B22="","", IF(OR($L22="Nursery School",$L22="All-through PRU",$M22="True"),"n/a", IF(GETPIVOTDATA(W$21 & "",PivotTableB!$A$3,"SchoolName",$B22,"SubsidiaryName",$C22,"YearStart",W$13)="",".", GETPIVOTDATA(W$21 & "",PivotTableB!$A$3,"SchoolName",$B22,"SubsidiaryName",$C22,"YearStart",W$13)))),"") -> 30 | X22: =IFERROR(IF(W22=".",".",IF(W22="n/a","n/a", GETPIVOTDATA(X$21 & "",PivotTableB!$A$3,"SchoolName",$B22,"SubsidiaryName",$C22,"YearStart",W$13))),"") -> 0 | Y22: =IFERROR(IF(X22=".",".",IF(X22="n/a","n/a", GETPIVOTDATA(Y$21 & "",PivotTableB!$A$3,"SchoolName",$B22,"SubsidiaryName",$C22,"YearStart",W$13))),"") -> 0 | Z22: =IFERROR(IF(X22=".",".",IF(X22="n/a","n/a",SUM(W22:X22))),"") -> 30 | AA22: =IFERROR(IF(Z22=".",".",IF(Z22="n/a","n/a", GETPIVOTDATA(AA$21 & "",PivotTableB!$A$3,"SchoolName",$B22,"SubsidiaryName",$C22,"YearStart",W$13))),"") -> 0 | AB22: =IFERROR(IF(AA22=".",".",IF(AA22="n/a","n/a", GETPIVOTDATA(AB$21 & "",PivotTableB!$A$3,"SchoolName",$B22,"SubsidiaryName",$C22,"YearStart",W$13))),"") -> 150 | AC22: =IFERROR(IF($B22="","", IF(OR($L22="Nursery School",$L22="All-through PRU",$M22="True"),"n/a", IF(GETPIVOTDATA(AC$21 & "",PivotTableB!$A$3,"SchoolName",$B22,"SubsidiaryName",$C22,"YearStart",AC$13)="",".", GETPIVOTDATA(AC$21 & "",PivotTableB!$A$3,"SchoolName",$B22,"SubsidiaryName",$C22,"YearStart",AC$13)))),"") -> 30 | AD22: =IFERROR(IF(AC22=".",".",IF(AC22="n/a","n/a", GETPIVOTDATA(AD$21 & "",PivotTableB!$A$3,"SchoolName",$B22,"SubsidiaryName",$C22,"YearStart",AC$13))),"") -> 0 | AE22: =IFERROR(IF(AD22=".",".",IF(AD22="n/a","n/a", GETPIVOTDATA(AE$21 & "",PivotTableB!$A$3,"SchoolName",$B22,"SubsidiaryName",$C22,"YearStart",AC$13))),"") -> 0 | AF22: =IFERROR(IF(AD22=".",".",IF(AD22="n/a","n/a",SUM(AC22:AD22))),"") -> 30 | AG22: =IFERROR(IF(AF22=".",".",IF(AF22="n/a","n/a", GETPIVOTDATA(AG$21 & "",PivotTableB!$A$3,"SchoolName",$B22,"SubsidiaryName",$C22,"YearStart",AC$13))),"") -> 0 | AH22: =IFERROR(IF(AG22=".",".",IF(AG22="n/a","n/a", GETPIVOTDATA(AH$21 & "",PivotTableB!$A$3,"SchoolName",$B22,"SubsidiaryName",$C22,"YearStart",AC$13))),"") -> 150 | AI22: =IFERROR(IF($B22="","", IF(OR($L22="Nursery School",$L22="All-through PRU",$M22="True"),"n/a", IF(GETPIVOTDATA(AI$21 & "",PivotTableB!$A$3,"SchoolName",$B22,"SubsidiaryName",$C22,"YearStart",AI$13)="",".", GETPIVOTDATA(AI$21 & "",PivotTableB!$A$3,"SchoolName",$B22,"SubsidiaryName",$C22,"YearStart",AI$13)))),"") -> 30 | AJ22: =IFERROR(IF(AI22=".",".",IF(AI22="n/a","n/a", GETPIVOTDATA(AJ$21 & "",PivotTableB!$A$3,"SchoolName",$B22,"SubsidiaryName",$C22,"YearStart",AI$13))),"") -> 0 | AK22: =IFERROR(IF(AJ22=".",".",IF(AJ22="n/a","n/a", GETPIVOTDATA(AK$21 & "",PivotTableB!$A$3,"SchoolName",$B22,"SubsidiaryName",$C22,"YearStart",AI$13))),"") -> 0 | AL22: =IFERROR(IF(AJ22=".",".",IF(AJ22="n/a","n/a",SUM(AI22:AJ22))),"") -> 30 | AM22: =IFERROR(IF(AL22=".",".",IF(AL22="n/a","n/a", GETPIVOTDATA(AM$21 & "",PivotTableB!$A$3,"SchoolName",$B22,"SubsidiaryName",$C22,"YearStart",AI$13))),"") -> 0 | AN22: =IFERROR(IF(AM22=".",".",IF(AM22="n/a","n/a", GETPIVOTDATA(AN$21 & "",PivotTableB!$A$3,"SchoolName",$B22,"SubsidiaryName",$C22,"YearStart",AI$13))),"") -> 150 | AO22: =IFERROR(IF($B22="","", IF(OR($L22="Nursery School",$L22="All-through PRU",$M22="True"),"n/a", IF(GETPIVOTDATA(AO$21 & "",PivotTableB!$A$3,"SchoolName",$B22,"SubsidiaryName",$C22,"YearStart",AO$13)="",".", GETPIVOTDATA(AO$21 & "",PivotTableB!$A$3,"SchoolName",$B22,"SubsidiaryName",$C22,"YearStart",AO$13)))),"") -> 30 | AP22: =IFERROR(IF(AO22=".",".",IF(AO22="n/a","n/a", GETPIVOTDATA(AP$21 & "",PivotTableB!$A$3,"SchoolName",$B22,"SubsidiaryName",$C22,"YearStart",AO$13))),"") -> 0 | AQ22: =IFERROR(IF(AP22=".",".",IF(AP22="n/a","n/a", GETPIVOTDATA(AQ$21 & "",PivotTableB!$A$3,"SchoolName",$B22,"SubsidiaryName",$C22,"YearStart",AO$13))),"") -> 0 | AR22: =IFERROR(IF(AP22=".",".",IF(AP22="n/a","n/a",SUM(AO22:AP22))),"") -> 30 | AS22: =IFERROR(IF(AR22=".",".",IF(AR22="n/a","n/a", GETPIVOTDATA(AS$21 & "",PivotTableB!$A$3,"SchoolName",$B22,"SubsidiaryName",$C22,"YearStart",AO$13))),"") -> 0 | AT22: =IFERROR(IF(AS22=".",".",IF(AS22="n/a","n/a", GETPIVOTDATA(AT$21 & "",PivotTableB!$A$3,"SchoolName",$B22,"SubsidiaryName",$C22,"YearStart",AO$13))),"") -> 150 | AU22: =IFERROR(IF($B22="","", IF(OR($L22="Nursery School",$L22="All-through PRU",$M22="True"),"n/a", IF(GETPIVOTDATA(AU$21 & "",PivotTableB!$A$3,"SchoolName",$B22,"SubsidiaryName",$C22,"YearStart",AU$13)="",".", GETPIVOTDATA(AU$21 & "",PivotTableB!$A$3,"SchoolName",$B22,"SubsidiaryName",$C22,"YearStart",AU$13)))),"") -> 30 | AV22: =IFERROR(IF(AU22=".",".",IF(AU22="n/a","n/a", GETPIVOTDATA(AV$21 & "",PivotTableB!$A$3,"SchoolName",$B22,"SubsidiaryName",$C22,"YearStart",AU$13))),"") -> 0 | AW22: =IFERROR(IF(AV22=".",".",IF(AV22="n/a","n/a", GETPIVOTDATA(AW$21 & "",PivotTableB!$A$3,"SchoolName",$B22,"SubsidiaryName",$C22,"YearStart",AU$13))),"") -> 0 | AX22: =IFERROR(IF(AV22=".",".",IF(AV22="n/a","n/a",SUM(AU22:AV22))),"") -> 30 | AY22: =IFERROR(IF(AX22=".",".",IF(AX22="n/a","n/a", GETPIVOTDATA(AY$21 & "",PivotTableB!$A$3,"SchoolName",$B22,"SubsidiaryName",$C22,"YearStart",AU$13))),"") -> 0 | AZ22: =IFERROR(IF(AY22=".",".",IF(AY22="n/a","n/a", GETPIVOTDATA(AZ$21 & "",PivotTableB!$A$3,"SchoolName",$B22,"SubsidiaryName",$C22,"YearStart",AU$13))),"") -> 150 | BA22: =IFERROR(IF($B22="","", IF(OR($L22="Nursery School",$L22="All-through PRU",$M22="True"),"n/a", IF(GETPIVOTDATA(BA$21 & "",PivotTableB!$A$3,"SchoolName",$B22,"SubsidiaryName",$C22,"YearStart",BA$13)="",".", GETPIVOTDATA(BA$21 & "",PivotTableB!$A$3,"SchoolName",$B22,"SubsidiaryName",$C22,"YearStart",BA$13)))),"") -> 30 | BB22: =IFERROR(IF(BA22=".",".",IF(BA22="n/a","n/a", GETPIVOTDATA(BB$21 & "",PivotTableB!$A$3,"SchoolName",$B22,"SubsidiaryName",$C22,"YearStart",BA$13))),"") -> 0 | BC22: =IFERROR(IF(BB22=".",".",IF(BB22="n/a","n/a", GETPIVOTDATA(BC$21 & "",PivotTableB!$A$3,"SchoolName",$B22,"SubsidiaryName",$C22,"YearStart",BA$13))),"") -> 0 | BD22: =IFERROR(IF(BC22=".",".",IF(BC22="n/a","n/a", GETPIVOTDATA(BD$21 & "",PivotTableB!$A$3,"SchoolName",$B22,"SubsidiaryName",$C22,"YearStart",BB$13))),"") ->  | BE22: =IFERROR(IF(BD22=".",".",IF(BD22="n/a","n/a",SUM(BA22:BC22))),"") -> 30 | BF22: =IFERROR(IF(BE22=".",".",IF(BE22="n/a","n/a", GETPIVOTDATA(BF$21 & "",PivotTableB!$A$3,"SchoolName",$B22,"SubsidiaryName",$C22,"YearStart",BA$13))),"") -> 0 | BG22: =IFERROR(IF(BF22=".",".",IF(BF22="n/a","n/a", GETPIVOTDATA(BG$21 & "",PivotTableB!$A$3,"SchoolName",$B22,"SubsidiaryName",$C22,"YearStart",BA$13))),"") -> 150 | BH22: =IFERROR(IF($B22="","", IF(OR($L22="Nursery School",$L22="All-through PRU",$M22="True"),"n/a", IF(GETPIVOTDATA(BH$21 & "",PivotTableB!$A$3,"SchoolName",$B22,"SubsidiaryName",$C22,"YearStart",BH$13)="",".", GETPIVOTDATA(BH$21 & "",PivotTableB!$A$3,"SchoolName",$B22,"SubsidiaryName",$C22,"YearStart",BH$13)))),"") -> 30 | BI22: =IFERROR(IF(BH22=".",".",IF(BH22="n/a","n/a", GETPIVOTDATA(BI$21 & "",PivotTableB!$A$3,"SchoolName",$B22,"SubsidiaryName",$C22,"YearStart",BH$13))),"") -> 0 | BJ22: =IFERROR(IF(BI22=".",".",IF(BI22="n/a","n/a", GETPIVOTDATA(BJ$21 & "",PivotTableB!$A$3,"SchoolName",$B22,"SubsidiaryName",$C22,"YearStart",BH$13))),"") -> 0 | BK22: =IFERROR(IF(BJ22=".",".",IF(BJ22="n/a","n/a", GETPIVOTDATA(BK$21 & "",PivotTableB!$A$3,"SchoolName",$B22,"SubsidiaryName",$C22,"YearStart",BH$13))),"") -> 0 | BL22: =IFERROR(IF(BK22=".",".",IF(BK22="n/a","n/a",SUM(BH22:BJ22))),"") -> 30 | BM22: =IFERROR(IF(BL22=".",".",IF(BL22="n/a","n/a", GETPIVOTDATA(BM$21 & "",PivotTableB!$A$3,"SchoolName",$B22,"SubsidiaryName",$C22,"YearStart",BH$13))),"") -> 0 | BN22: =IFERROR(IF(BM22=".",".",IF(BM22="n/a","n/a", GETPIVOTDATA(BN$21 & "",PivotTableB!$A$3,"SchoolName",$B22,"SubsidiaryName",$C22,"YearStart",BH$13))),"") -> 150 | BO22: =IFERROR(IF($B22="","", IF(OR($L22="Nursery School",$L22="All-through PRU",$M22="True"),"n/a", IF(GETPIVOTDATA(BO$21 & "",PivotTableB!$A$3,"SchoolName",$B22,"SubsidiaryName",$C22,"YearStart",BO$13)="",".", GETPIVOTDATA(BO$21 & "",PivotTableB!$A$3,"SchoolName",$B22,"SubsidiaryName",$C22,"YearStart",BO$13)))),"") -> 30 | BP22: =IFERROR(IF(BO22=".",".",IF(BO22="n/a","n/a", GETPIVOTDATA(BP$21 & "",PivotTableB!$A$3,"SchoolName",$B22,"SubsidiaryName",$C22,"YearStart",BO$13))),"") -> 0 | BQ22: =IFERROR(IF(BP22=".",".",IF(BP22="n/a","n/a", GETPIVOTDATA(BQ$21 & "",PivotTableB!$A$3,"SchoolName",$B22,"SubsidiaryName",$C22,"YearStart",BO$13))),"") -> 0 | BR22: =IFERROR(IF(BQ22=".",".",IF(BQ22="n/a","n/a", GETPIVOTDATA(BR$21 & "",PivotTableB!$A$3,"SchoolName",$B22,"SubsidiaryName",$C22,"YearStart",BP$13))),"") ->  | BS22: =IFERROR(IF(BR22=".",".",IF(BR22="n/a","n/a",SUM(BO22:BQ22))),"") -> 30 | BT22: =IFERROR(IF(BS22=".",".",IF(BS22="n/a","n/a", GETPIVOTDATA(BT$21 & "",PivotTableB!$A$3,"SchoolName",$B22,"SubsidiaryName",$C22,"YearStart",BO$13))),"") -> 0 | BU22: =IFERROR(IF(BT22=".",".",IF(BT22="n/a","n/a", GETPIVOTDATA(BU$21 & "",PivotTableB!$A$3,"SchoolName",$B22,"SubsidiaryName",$C22,"YearStart",BO$13))),"") -> 150 | BV22: =IFERROR(IF($B22="","", IF(OR($L22="Nursery School",$L22="All-through PRU",$M22="True"),"n/a", IF(GETPIVOTDATA(BV$21 & "",PivotTableB!$A$3,"SchoolName",$B22,"SubsidiaryName",$C22,"YearStart",BV$13)="",".", GETPIVOTDATA(BV$21 & "",PivotTableB!$A$3,"SchoolName",$B22,"SubsidiaryName",$C22,"YearStart",BV$13)))),"") -> 30 | BW22: =IFERROR(IF(BV22=".",".",IF(BV22="n/a","n/a", GETPIVOTDATA(BW$21 & "",PivotTableB!$A$3,"SchoolName",$B22,"SubsidiaryName",$C22,"YearStart",BV$13))),"") -> 0 | BX22: =IFERROR(IF(BW22=".",".",IF(BW22="n/a","n/a", GETPIVOTDATA(BX$21 & "",PivotTableB!$A$3,"SchoolName",$B22,"SubsidiaryName",$C22,"YearStart",BV$13))),"") -> 0 | BY22: =IFERROR(IF(BX22=".",".",IF(BX22="n/a","n/a", GETPIVOTDATA(BY$21 & "",PivotTableB!$A$3,"SchoolName",$B22,"SubsidiaryName",$C22,"YearStart",BV$13))),"") -> 0 | BZ22: =IFERROR(IF(BY22=".",".",IF(BY22="n/a","n/a",SUM(BV22:BX22))),"") -> 30 | CA22: =IFERROR(IF(BZ22=".",".",IF(BZ22="n/a","n/a", GETPIVOTDATA(CA$21 & "",PivotTableB!$A$3,"SchoolName",$B22,"SubsidiaryName",$C22,"YearStart",BV$13))),"") -> 0 | CB22: =IFERROR(IF(CA22=".",".",IF(CA22="n/a","n/a", GETPIVOTDATA(CB$21 & "",PivotTableB!$A$3,"SchoolName",$B22,"SubsidiaryName",$C22,"YearStart",BV$13))),"") -> 150
B23: =IF(PivotTableA!A10="","n/a",PivotTableA!A10) -> All Saints Church of England Junior School | C23: =IF(B23="n/a","",PivotTableA!B10) -> All Saints Church of England Junior School | D23: =IF($B23="n/a","",PivotTableA!C10) -> 3 | E23: =IF($B23="n/a","",PivotTableA!D10) -> Maidenhead | F23: =IF($B23="n/a","",PivotTableA!E10) -> Central Maidenhead | G23: =IF($B23="n/a","",PivotTableA!F10) -> Boyn Hill | H23: =IF($B23="n/a","",PivotTableA!G10) -> Boyn Hill | I23: =IF($B23="n/a","",PivotTableA!H10) -> None | J23: =IF($B23="n/a","",PivotTableA!I10) -> Primary | K23: =IF($B23="n/a","",PivotTableA!J10) -> Two Tier | L23: =IF($B23="n/a","",PivotTableA!K10) -> Junior | M23: =IF($B23="n/a","",PivotTableA!O10) -> FALSE | N23: =IF($B23="n/a","",PivotTableA!L10) -> Voluntary Controlled | O23: =IF($B23="n/a","",PivotTableA!M10) ->  | P23: =IF($B23="n/a","",PivotTableA!N10) -> Church of England | Q23: =IFERROR(IF($B23="","", IF(OR($L23="Nursery School",$L23="All-through PRU",$M23="True"),"n/a", IF(GETPIVOTDATA(Q$21 & "",PivotTableB!$A$3,"SchoolName",$B23,"SubsidiaryName",$C23,"YearStart",Q$13)="",".", GETPIVOTDATA(Q$21 & "",PivotTableB!$A$3,"SchoolName",$B23,"SubsidiaryName",$C23,"YearStart",Q$13)))),"") -> 67 | R23: =IFERROR(IF(Q23=".",".",IF(Q23="n/a","n/a", GETPIVOTDATA(R$21 & "",PivotTableB!$A$3,"SchoolName",$B23,"SubsidiaryName",$C23,"YearStart",Q$13))),"") -> 0 | S23: =IFERROR(IF(R23=".",".",IF(R23="n/a","n/a", GETPIVOTDATA(S$21 & "",PivotTableB!$A$3,"SchoolName",$B23,"SubsidiaryName",$C23,"YearStart",Q$13))),"") -> 0 | T23: =IFERROR(IF(R23=".",".",IF(R23="n/a","n/a",SUM(Q23:R23))),"") -> 67 | U23: =IFERROR(IF(T23=".",".",IF(T23="n/a","n/a", GETPIVOTDATA(U$21 & "",PivotTableB!$A$3,"SchoolName",$B23,"SubsidiaryName",$C23,"YearStart",Q$13))),"") -> 0 | V23: =IFERROR(IF(U23=".",".",IF(U23="n/a","n/a", GETPIVOTDATA(V$21 & "",PivotTableB!$A$3,"SchoolName",$B23,"SubsidiaryName",$C23,"YearStart",Q$13))),"") -> 240 | W23: =IFERROR(IF($B23="","", IF(OR($L23="Nursery School",$L23="All-through PRU",$M23="True"),"n/a", IF(GETPIVOTDATA(W$21 & "",PivotTableB!$A$3,"SchoolName",$B23,"SubsidiaryName",$C23,"YearStart",W$13)="",".", GETPIVOTDATA(W$21 & "",PivotTableB!$A$3,"SchoolName",$B23,"SubsidiaryName",$C23,"YearStart",W$13)))),"") -> 67 | X23: =IFERROR(IF(W23=".",".",IF(W23="n/a","n/a", GETPIVOTDATA(X$21 & "",PivotTableB!$A$3,"SchoolName",$B23,"SubsidiaryName",$C23,"YearStart",W$13))),"") -> 23 | Y23: =IFERROR(IF(X23=".",".",IF(X23="n/a","n/a", GETPIVOTDATA(Y$21 & "",PivotTableB!$A$3,"SchoolName",$B23,"SubsidiaryName",$C23,"YearStart",W$13))),"") -> 0 | Z23: =IFERROR(IF(X23=".",".",IF(X23="n/a","n/a",SUM(W23:X23))),"") -> 90 | AA23: =IFERROR(IF(Z23=".",".",IF(Z23="n/a","n/a", GETPIVOTDATA(AA$21 & "",PivotTableB!$A$3,"SchoolName",$B23,"SubsidiaryName",$C23,"YearStart",W$13))),"") -> 0 | AB23: =IFERROR(IF(AA23=".",".",IF(AA23="n/a","n/a", GETPIVOTDATA(AB$21 & "",PivotTableB!$A$3,"SchoolName",$B23,"SubsidiaryName",$C23,"YearStart",W$13))),"") -> 240 | AC23: =IFERROR(IF($B23="","", IF(OR($L23="Nursery School",$L23="All-through PRU",$M23="True"),"n/a", IF(GETPIVOTDATA(AC$21 & "",PivotTableB!$A$3,"SchoolName",$B23,"SubsidiaryName",$C23,"YearStart",AC$13)="",".", GETPIVOTDATA(AC$21 & "",PivotTableB!$A$3,"SchoolName",$B23,"SubsidiaryName",$C23,"YearStart",AC$13)))),"") -> 90 | AD23: =IFERROR(IF(AC23=".",".",IF(AC23="n/a","n/a", GETPIVOTDATA(AD$21 & "",PivotTableB!$A$3,"SchoolName",$B23,"SubsidiaryName",$C23,"YearStart",AC$13))),"") -> 0 | AE23: =IFERROR(IF(AD23=".",".",IF(AD23="n/a","n/a", GETPIVOTDATA(AE$21 & "",PivotTableB!$A$3,"SchoolName",$B23,"SubsidiaryName",$C23,"YearStart",AC$13))),"") -> 0 | AF23: =IFERROR(IF(AD23=".",".",IF(AD23="n/a","n/a",SUM(AC23:AD23))),"") -> 90 | AG23: =IFERROR(IF(AF23=".",".",IF(AF23="n/a","n/a", GETPIVOTDATA(AG$21 & "",PivotTableB!$A$3,"SchoolName",$B23,"SubsidiaryName",$C23,"YearStart",AC$13))),"") -> 0 | AH23: =IFERROR(IF(AG23=".",".",IF(AG23="n/a","n/a", GETPIVOTDATA(AH$21 & "",PivotTableB!$A$3,"SchoolName",$B23,"SubsidiaryName",$C23,"YearStart",AC$13))),"") -> 360 | AI23: =IFERROR(IF($B23="","", IF(OR($L23="Nursery School",$L23="All-through PRU",$M23="True"),"n/a", IF(GETPIVOTDATA(AI$21 & "",PivotTableB!$A$3,"SchoolName",$B23,"SubsidiaryName",$C23,"YearStart",AI$13)="",".", GETPIVOTDATA(AI$21 & "",PivotTableB!$A$3,"SchoolName",$B23,"SubsidiaryName",$C23,"YearStart",AI$13)))),"") -> 90 | AJ23: =IFERROR(IF(AI23=".",".",IF(AI23="n/a","n/a", GETPIVOTDATA(AJ$21 & "",PivotTableB!$A$3,"SchoolName",$B23,"SubsidiaryName",$C23,"YearStart",AI$13))),"") -> 0 | AK23: =IFERROR(IF(AJ23=".",".",IF(AJ23="n/a","n/a", GETPIVOTDATA(AK$21 & "",PivotTableB!$A$3,"SchoolName",$B23,"SubsidiaryName",$C23,"YearStart",AI$13))),"") -> 0 | AL23: =IFERROR(IF(AJ23=".",".",IF(AJ23="n/a","n/a",SUM(AI23:AJ23))),"") -> 90 | AM23: =IFERROR(IF(AL23=".",".",IF(AL23="n/a","n/a", GETPIVOTDATA(AM$21 & "",PivotTableB!$A$3,"SchoolName",$B23,"SubsidiaryName",$C23,"YearStart",AI$13))),"") -> 0 | AN23: =IFERROR(IF(AM23=".",".",IF(AM23="n/a","n/a", GETPIVOTDATA(AN$21 & "",PivotTableB!$A$3,"SchoolName",$B23,"SubsidiaryName",$C23,"YearStart",AI$13))),"") -> 360 | AO23: =IFERROR(IF($B23="","", IF(OR($L23="Nursery School",$L23="All-through PRU",$M23="True"),"n/a", IF(GETPIVOTDATA(AO$21 & "",PivotTableB!$A$3,"SchoolName",$B23,"SubsidiaryName",$C23,"YearStart",AO$13)="",".", GETPIVOTDATA(AO$21 & "",PivotTableB!$A$3,"SchoolName",$B23,"SubsidiaryName",$C23,"YearStart",AO$13)))),"") -> 90 | AP23: =IFERROR(IF(AO23=".",".",IF(AO23="n/a","n/a", GETPIVOTDATA(AP$21 & "",PivotTableB!$A$3,"SchoolName",$B23,"SubsidiaryName",$C23,"YearStart",AO$13))),"") -> 0 | AQ23: =IFERROR(IF(AP23=".",".",IF(AP23="n/a","n/a", GETPIVOTDATA(AQ$21 & "",PivotTableB!$A$3,"SchoolName",$B23,"SubsidiaryName",$C23,"YearStart",AO$13))),"") -> 0 | AR23: =IFERROR(IF(AP23=".",".",IF(AP23="n/a","n/a",SUM(AO23:AP23))),"") -> 90 | AS23: =IFERROR(IF(AR23=".",".",IF(AR23="n/a","n/a", GETPIVOTDATA(AS$21 & "",PivotTableB!$A$3,"SchoolName",$B23,"SubsidiaryName",$C23,"YearStart",AO$13))),"") -> 0 | AT23: =IFERROR(IF(AS23=".",".",IF(AS23="n/a","n/a", GETPIVOTDATA(AT$21 & "",PivotTableB!$A$3,"SchoolName",$B23,"SubsidiaryName",$C23,"YearStart",AO$13))),"") -> 360 | AU23: =IFERROR(IF($B23="","", IF(OR($L23="Nursery School",$L23="All-through PRU",$M23="True"),"n/a", IF(GETPIVOTDATA(AU$21 & "",PivotTableB!$A$3,"SchoolName",$B23,"SubsidiaryName",$C23,"YearStart",AU$13)="",".", GETPIVOTDATA(AU$21 & "",PivotTableB!$A$3,"SchoolName",$B23,"SubsidiaryName",$C23,"YearStart",AU$13)))),"") -> 90 | AV23: =IFERROR(IF(AU23=".",".",IF(AU23="n/a","n/a", GETPIVOTDATA(AV$21 & "",PivotTableB!$A$3,"SchoolName",$B23,"SubsidiaryName",$C23,"YearStart",AU$13))),"") -> 0 | AW23: =IFERROR(IF(AV23=".",".",IF(AV23="n/a","n/a", GETPIVOTDATA(AW$21 & "",PivotTableB!$A$3,"SchoolName",$B23,"SubsidiaryName",$C23,"YearStart",AU$13))),"") -> 0 | AX23: =IFERROR(IF(AV23=".",".",IF(AV23="n/a","n/a",SUM(AU23:AV23))),"") -> 90 | AY23: =IFERROR(IF(AX23=".",".",IF(AX23="n/a","n/a", GETPIVOTDATA(AY$21 & "",PivotTableB!$A$3,"SchoolName",$B23,"SubsidiaryName",$C23,"YearStart",AU$13))),"") -> 0 | AZ23: =IFERROR(IF(AY23=".",".",IF(AY23="n/a","n/a", GETPIVOTDATA(AZ$21 & "",PivotTableB!$A$3,"SchoolName",$B23,"SubsidiaryName",$C23,"YearStart",AU$13))),"") -> 360 | BA23: =IFERROR(IF($B23="","", IF(OR($L23="Nursery School",$L23="All-through PRU",$M23="True"),"n/a", IF(GETPIVOTDATA(BA$21 & "",PivotTableB!$A$3,"SchoolName",$B23,"SubsidiaryName",$C23,"YearStart",BA$13)="",".", GETPIVOTDATA(BA$21 & "",PivotTableB!$A$3,"SchoolName",$B23,"SubsidiaryName",$C23,"YearStart",BA$13)))),"") -> 90 | BB23: =IFERROR(IF(BA23=".",".",IF(BA23="n/a","n/a", GETPIVOTDATA(BB$21 & "",PivotTableB!$A$3,"SchoolName",$B23,"SubsidiaryName",$C23,"YearStart",BA$13))),"") -> 0 | BC23: =IFERROR(IF(BB23=".",".",IF(BB23="n/a","n/a", GETPIVOTDATA(BC$21 & "",PivotTableB!$A$3,"SchoolName",$B23,"SubsidiaryName",$C23,"YearStart",BA$13))),"") -> 0 | BD23: =IFERROR(IF(BC23=".",".",IF(BC23="n/a","n/a", GETPIVOTDATA(BD$21 & "",PivotTableB!$A$3,"SchoolName",$B23,"SubsidiaryName",$C23,"YearStart",BB$13))),"") ->  | BE23: =IFERROR(IF(BD23=".",".",IF(BD23="n/a","n/a",SUM(BA23:BC23))),"") -> 90 | BF23: =IFERROR(IF(BE23=".",".",IF(BE23="n/a","n/a", GETPIVOTDATA(BF$21 & "",PivotTableB!$A$3,"SchoolName",$B23,"SubsidiaryName",$C23,"YearStart",BA$13))),"") -> 0 | BG23: =IFERROR(IF(BF23=".",".",IF(BF23="n/a","n/a", GETPIVOTDATA(BG$21 & "",PivotTableB!$A$3,"SchoolName",$B23,"SubsidiaryName",$C23,"YearStart",BA$13))),"") -> 360 | BH23: =IFERROR(IF($B23="","", IF(OR($L23="Nursery School",$L23="All-through PRU",$M23="True"),"n/a", IF(GETPIVOTDATA(BH$21 & "",PivotTableB!$A$3,"SchoolName",$B23,"SubsidiaryName",$C23,"YearStart",BH$13)="",".", GETPIVOTDATA(BH$21 & "",PivotTableB!$A$3,"SchoolName",$B23,"SubsidiaryName",$C23,"YearStart",BH$13)))),"") -> 90 | BI23: =IFERROR(IF(BH23=".",".",IF(BH23="n/a","n/a", GETPIVOTDATA(BI$21 & "",PivotTableB!$A$3,"SchoolName",$B23,"SubsidiaryName",$C23,"YearStart",BH$13))),"") -> 0 | BJ23: =IFERROR(IF(BI23=".",".",IF(BI23="n/a","n/a", GETPIVOTDATA(BJ$21 & "",PivotTableB!$A$3,"SchoolName",$B23,"SubsidiaryName",$C23,"YearStart",BH$13))),"") -> 0 | BK23: =IFERROR(IF(BJ23=".",".",IF(BJ23="n/a","n/a", GETPIVOTDATA(BK$21 & "",PivotTableB!$A$3,"SchoolName",$B23,"SubsidiaryName",$C23,"YearStart",BH$13))),"") -> 0 | BL23: =IFERROR(IF(BK23=".",".",IF(BK23="n/a","n/a",SUM(BH23:BJ23))),"") -> 90 | BM23: =IFERROR(IF(BL23=".",".",IF(BL23="n/a","n/a", GETPIVOTDATA(BM$21 & "",PivotTableB!$A$3,"SchoolName",$B23,"SubsidiaryName",$C23,"YearStart",BH$13))),"") -> 0 | BN23: =IFERROR(IF(BM23=".",".",IF(BM23="n/a","n/a", GETPIVOTDATA(BN$21 & "",PivotTableB!$A$3,"SchoolName",$B23,"SubsidiaryName",$C23,"YearStart",BH$13))),"") -> 360 | BO23: =IFERROR(IF($B23="","", IF(OR($L23="Nursery School",$L23="All-through PRU",$M23="True"),"n/a", IF(GETPIVOTDATA(BO$21 & "",PivotTableB!$A$3,"SchoolName",$B23,"SubsidiaryName",$C23,"YearStart",BO$13)="",".", GETPIVOTDATA(BO$21 & "",PivotTableB!$A$3,"SchoolName",$B23,"SubsidiaryName",$C23,"YearStart",BO$13)))),"") -> 90 | BP23: =IFERROR(IF(BO23=".",".",IF(BO23="n/a","n/a", GETPIVOTDATA(BP$21 & "",PivotTableB!$A$3,"SchoolName",$B23,"SubsidiaryName",$C23,"YearStart",BO$13))),"") -> 0 | BQ23: =IFERROR(IF(BP23=".",".",IF(BP23="n/a","n/a", GETPIVOTDATA(BQ$21 & "",PivotTableB!$A$3,"SchoolName",$B23,"SubsidiaryName",$C23,"YearStart",BO$13))),"") -> 0 | BR23: =IFERROR(IF(BQ23=".",".",IF(BQ23="n/a","n/a", GETPIVOTDATA(BR$21 & "",PivotTableB!$A$3,"SchoolName",$B23,"SubsidiaryName",$C23,"YearStart",BP$13))),"") ->  | BS23: =IFERROR(IF(BR23=".",".",IF(BR23="n/a","n/a",SUM(BO23:BQ23))),"") -> 90 | BT23: =IFERROR(IF(BS23=".",".",IF(BS23="n/a","n/a", GETPIVOTDATA(BT$21 & "",PivotTableB!$A$3,"SchoolName",$B23,"SubsidiaryName",$C23,"YearStart",BO$13))),"") -> 0 | BU23: =IFERROR(IF(BT23=".",".",IF(BT23="n/a","n/a", GETPIVOTDATA(BU$21 & "",PivotTableB!$A$3,"SchoolName",$B23,"SubsidiaryName",$C23,"YearStart",BO$13))),"") -> 360 | BV23: =IFERROR(IF($B23="","", IF(OR($L23="Nursery School",$L23="All-through PRU",$M23="True"),"n/a", IF(GETPIVOTDATA(BV$21 & "",PivotTableB!$A$3,"SchoolName",$B23,"SubsidiaryName",$C23,"YearStart",BV$13)="",".", GETPIVOTDATA(BV$21 & "",PivotTableB!$A$3,"SchoolName",$B23,"SubsidiaryName",$C23,"YearStart",BV$13)))),"") -> 90 | BW23: =IFERROR(IF(BV23=".",".",IF(BV23="n/a","n/a", GETPIVOTDATA(BW$21 & "",PivotTableB!$A$3,"SchoolName",$B23,"SubsidiaryName",$C23,"YearStart",BV$13))),"") -> 0 | BX23: =IFERROR(IF(BW23=".",".",IF(BW23="n/a","n/a", GETPIVOTDATA(BX$21 & "",PivotTableB!$A$3,"SchoolName",$B23,"SubsidiaryName",$C23,"YearStart",BV$13))),"") -> 0 | BY23: =IFERROR(IF(BX23=".",".",IF(BX23="n/a","n/a", GETPIVOTDATA(BY$21 & "",PivotTableB!$A$3,"SchoolName",$B23,"SubsidiaryName",$C23,"YearStart",BV$13))),"") -> 0 | BZ23: =IFERROR(IF(BY23=".",".",IF(BY23="n/a","n/a",SUM(BV23:BX23))),"") -> 90 | CA23: =IFERROR(IF(BZ23=".",".",IF(BZ23="n/a","n/a", GETPIVOTDATA(CA$21 & "",PivotTableB!$A$3,"SchoolName",$B23,"SubsidiaryName",$C23,"YearStart",BV$13))),"") -> 0 | CB23: =IFERROR(IF(CA23=".",".",IF(CA23="n/a","n/a", GETPIVOTDATA(CB$21 & "",PivotTableB!$A$3,"SchoolName",$B23,"SubsidiaryName",$C23,"YearStart",BV$13))),"") -> 360
B24: =IF(PivotTableA!A11="","n/a",PivotTableA!A11) -> Altwood Church of England School | C24: =IF(B24="n/a","",PivotTableA!B11) -> Altwood Church of England School | D24: =IF($B24="n/a","",PivotTableA!C11) -> 7 | E24: =IF($B24="n/a","",PivotTableA!D11) -> Maidenhead | F24: =IF($B24="n/a","",PivotTableA!E11) -> Central Maidenhead | G24: =IF($B24="n/a","",PivotTableA!F11) -> Tittle Row | H24: =IF($B24="n/a","",PivotTableA!G11) -> Boyn Hill | I24: =IF($B24="n/a","",PivotTableA!H11) -> None | J24: =IF($B24="n/a","",PivotTableA!I11) -> Secondary | K24: =IF($B24="n/a","",PivotTableA!J11) -> Two Tier | L24: =IF($B24="n/a","",PivotTableA!K11) -> Secondary | M24: =IF($B24="n/a","",PivotTableA!O11) -> FALSE | N24: =IF($B24="n/a","",PivotTableA!L11) -> Academy | O24: =IF($B24="n/a","",PivotTableA!M11) -> 2012-09-01 | P24: =IF($B24="n/a","",PivotTableA!N11) -> Church of England | Q24: =IFERROR(IF($B24="","", IF(OR($L24="Nursery School",$L24="All-through PRU",$M24="True"),"n/a", IF(GETPIVOTDATA(Q$21 & "",PivotTableB!$A$3,"SchoolName",$B24,"SubsidiaryName",$C24,"YearStart",Q$13)="",".", GETPIVOTDATA(Q$21 & "",PivotTableB!$A$3,"SchoolName",$B24,"SubsidiaryName",$C24,"YearStart",Q$13)))),"") -> 150 | R24: =IFERROR(IF(Q24=".",".",IF(Q24="n/a","n/a", GETPIVOTDATA(R$21 & "",PivotTableB!$A$3,"SchoolName",$B24,"SubsidiaryName",$C24,"YearStart",Q$13))),"") -> 0 | S24: =IFERROR(IF(R24=".",".",IF(R24="n/a","n/a", GETPIVOTDATA(S$21 & "",PivotTableB!$A$3,"SchoolName",$B24,"SubsidiaryName",$C24,"YearStart",Q$13))),"") -> 0 | T24: 150 | U24: =IFERROR(IF(T24=".",".",IF(T24="n/a","n/a", GETPIVOTDATA(U$21 & "",PivotTableB!$A$3,"SchoolName",$B24,"SubsidiaryName",$C24,"YearStart",Q$13))),"") -> 0 | V24: =IFERROR(IF(U24=".",".",IF(U24="n/a","n/a", GETPIVOTDATA(V$21 & "",PivotTableB!$A$3,"SchoolName",$B24,"SubsidiaryName",$C24,"YearStart",Q$13))),"") -> 897 | W24: =IFERROR(IF($B24="","", IF(OR($L24="Nursery School",$L24="All-through PRU",$M24="True"),"n/a", IF(GETPIVOTDATA(W$21 & "",PivotTableB!$A$3,"SchoolName",$B24,"SubsidiaryName",$C24,"YearStart",W$13)="",".", GETPIVOTDATA(W$21 & "",PivotTableB!$A$3,"SchoolName",$B24,"SubsidiaryName",$C24,"YearStart",W$13)))),"") -> 150 | X24: =IFERROR(IF(W24=".",".",IF(W24="n/a","n/a", GETPIVOTDATA(X$21 & "",PivotTableB!$A$3,"SchoolName",$B24,"SubsidiaryName",$C24,"YearStart",W$13))),"") -> 0 | Y24: =IFERROR(IF(X24=".",".",IF(X24="n/a","n/a", GETPIVOTDATA(Y$21 & "",PivotTableB!$A$3,"SchoolName",$B24,"SubsidiaryName",$C24,"YearStart",W$13))),"") -> 0 | Z24: 150 | AA24: =IFERROR(IF(Z24=".",".",IF(Z24="n/a","n/a", GETPIVOTDATA(AA$21 & "",PivotTableB!$A$3,"SchoolName",$B24,"SubsidiaryName",$C24,"YearStart",W$13))),"") -> 0 | AB24: =IFERROR(IF(AA24=".",".",IF(AA24="n/a","n/a", GETPIVOTDATA(AB$21 & "",PivotTableB!$A$3,"SchoolName",$B24,"SubsidiaryName",$C24,"YearStart",W$13))),"") -> 897 | AC24: =IFERROR(IF($B24="","", IF(OR($L24="Nursery School",$L24="All-through PRU",$M24="True"),"n/a", IF(GETPIVOTDATA(AC$21 & "",PivotTableB!$A$3,"SchoolName",$B24,"SubsidiaryName",$C24,"YearStart",AC$13)="",".", GETPIVOTDATA(AC$21 & "",PivotTableB!$A$3,"SchoolName",$B24,"SubsidiaryName",$C24,"YearStart",AC$13)))),"") -> 150 | AD24: =IFERROR(IF(AC24=".",".",IF(AC24="n/a","n/a", GETPIVOTDATA(AD$21 & "",PivotTableB!$A$3,"SchoolName",$B24,"SubsidiaryName",$C24,"YearStart",AC$13))),"") -> 0 | AE24: =IFERROR(IF(AD24=".",".",IF(AD24="n/a","n/a", GETPIVOTDATA(AE$21 & "",PivotTableB!$A$3,"SchoolName",$B24,"SubsidiaryName",$C24,"YearStart",AC$13))),"") -> 0 | AF24: 150 | AG24: =IFERROR(IF(AF24=".",".",IF(AF24="n/a","n/a", GETPIVOTDATA(AG$21 & "",PivotTableB!$A$3,"SchoolName",$B24,"SubsidiaryName",$C24,"YearStart",AC$13))),"") -> 0 | AH24: =IFERROR(IF(AG24=".",".",IF(AG24="n/a","n/a", GETPIVOTDATA(AH$21 & "",PivotTableB!$A$3,"SchoolName",$B24,"SubsidiaryName",$C24,"YearStart",AC$13))),"") -> 897 | AI24: =IFERROR(IF($B24="","", IF(OR($L24="Nursery School",$L24="All-through PRU",$M24="True"),"n/a", IF(GETPIVOTDATA(AI$21 & "",PivotTableB!$A$3,"SchoolName",$B24,"SubsidiaryName",$C24,"YearStart",AI$13)="",".", GETPIVOTDATA(AI$21 & "",PivotTableB!$A$3,"SchoolName",$B24,"SubsidiaryName",$C24,"YearStart",AI$13)))),"") -> 150 | AJ24: =IFERROR(IF(AI24=".",".",IF(AI24="n/a","n/a", GETPIVOTDATA(AJ$21 & "",PivotTableB!$A$3,"SchoolName",$B24,"SubsidiaryName",$C24,"YearStart",AI$13))),"") -> 0 | AK24: =IFERROR(IF(AJ24=".",".",IF(AJ24="n/a","n/a", GETPIVOTDATA(AK$21 & "",PivotTableB!$A$3,"SchoolName",$B24,"SubsidiaryName",$C24,"YearStart",AI$13))),"") -> 0 | AL24: 150 | AM24: =IFERROR(IF(AL24=".",".",IF(AL24="n/a","n/a", GETPIVOTDATA(AM$21 & "",PivotTableB!$A$3,"SchoolName",$B24,"SubsidiaryName",$C24,"YearStart",AI$13))),"") -> 0 | AN24: =IFERROR(IF(AM24=".",".",IF(AM24="n/a","n/a", GETPIVOTDATA(AN$21 & "",PivotTableB!$A$3,"SchoolName",$B24,"SubsidiaryName",$C24,"YearStart",AI$13))),"") -> 897 | AO24: =IFERROR(IF($B24="","", IF(OR($L24="Nursery School",$L24="All-through PRU",$M24="True"),"n/a", IF(GETPIVOTDATA(AO$21 & "",PivotTableB!$A$3,"SchoolName",$B24,"SubsidiaryName",$C24,"YearStart",AO$13)="",".", GETPIVOTDATA(AO$21 & "",PivotTableB!$A$3,"SchoolName",$B24,"SubsidiaryName",$C24,"YearStart",AO$13)))),"") -> 150 | AP24: =IFERROR(IF(AO24=".",".",IF(AO24="n/a","n/a", GETPIVOTDATA(AP$21 & "",PivotTableB!$A$3,"SchoolName",$B24,"SubsidiaryName",$C24,"YearStart",AO$13))),"") -> 0 | AQ24: =IFERROR(IF(AP24=".",".",IF(AP24="n/a","n/a", GETPIVOTDATA(AQ$21 & "",PivotTableB!$A$3,"SchoolName",$B24,"SubsidiaryName",$C24,"YearStart",AO$13))),"") -> 0 | AR24: 150 | AS24: =IFERROR(IF(AR24=".",".",IF(AR24="n/a","n/a", GETPIVOTDATA(AS$21 & "",PivotTableB!$A$3,"SchoolName",$B24,"SubsidiaryName",$C24,"YearStart",AO$13))),"") -> 0 | AT24: =IFERROR(IF(AS24=".",".",IF(AS24="n/a","n/a", GETPIVOTDATA(AT$21 & "",PivotTableB!$A$3,"SchoolName",$B24,"SubsidiaryName",$C24,"YearStart",AO$13))),"") -> 909 | AU24: =IFERROR(IF($B24="","", IF(OR($L24="Nursery School",$L24="All-through PRU",$M24="True"),"n/a", IF(GETPIVOTDATA(AU$21 & "",PivotTableB!$A$3,"SchoolName",$B24,"SubsidiaryName",$C24,"YearStart",AU$13)="",".", GETPIVOTDATA(AU$21 & "",PivotTableB!$A$3,"SchoolName",$B24,"SubsidiaryName",$C24,"YearStart",AU$13)))),"") -> 150 | AV24: =IFERROR(IF(AU24=".",".",IF(AU24="n/a","n/a", GETPIVOTDATA(AV$21 & "",PivotTableB!$A$3,"SchoolName",$B24,"SubsidiaryName",$C24,"YearStart",AU$13))),"") -> 0 | AW24: =IFERROR(IF(AV24=".",".",IF(AV24="n/a","n/a", GETPIVOTDATA(AW$21 & "",PivotTableB!$A$3,"SchoolName",$B24,"SubsidiaryName",$C24,"YearStart",AU$13))),"") -> 0 | AX24: 150 | AY24: =IFERROR(IF(AX24=".",".",IF(AX24="n/a","n/a", GETPIVOTDATA(AY$21 & "",PivotTableB!$A$3,"SchoolName",$B24,"SubsidiaryName",$C24,"YearStart",AU$13))),"") -> 0 | AZ24: =IFERROR(IF(AY24=".",".",IF(AY24="n/a","n/a", GETPIVOTDATA(AZ$21 & "",PivotTableB!$A$3,"SchoolName",$B24,"SubsidiaryName",$C24,"YearStart",AU$13))),"") -> 909 | BA24: =IFERROR(IF($B24="","", IF(OR($L24="Nursery School",$L24="All-through PRU",$M24="True"),"n/a", IF(GETPIVOTDATA(BA$21 & "",PivotTableB!$A$3,"SchoolName",$B24,"SubsidiaryName",$C24,"YearStart",BA$13)="",".", GETPIVOTDATA(BA$21 & "",PivotTableB!$A$3,"SchoolName",$B24,"SubsidiaryName",$C24,"YearStart",BA$13)))),"") -> 150 | BB24: =IFERROR(IF(BA24=".",".",IF(BA24="n/a","n/a", GETPIVOTDATA(BB$21 & "",PivotTableB!$A$3,"SchoolName",$B24,"SubsidiaryName",$C24,"YearStart",BA$13))),"") -> 0 | BC24: =IFERROR(IF(BB24=".",".",IF(BB24="n/a","n/a", GETPIVOTDATA(BC$21 & "",PivotTableB!$A$3,"SchoolName",$B24,"SubsidiaryName",$C24,"YearStart",BA$13))),"") -> 0 | BD24: =IFERROR(IF(BC24=".",".",IF(BC24="n/a","n/a", GETPIVOTDATA(BD$21 & "",PivotTableB!$A$3,"SchoolName",$B24,"SubsidiaryName",$C24,"YearStart",BB$13))),"") ->  | BE24: 150 | BF24: =IFERROR(IF(BE24=".",".",IF(BE24="n/a","n/a", GETPIVOTDATA(BF$21 & "",PivotTableB!$A$3,"SchoolName",$B24,"SubsidiaryName",$C24,"YearStart",BA$13))),"") -> 0 | BG24: =IFERROR(IF(BF24=".",".",IF(BF24="n/a","n/a", GETPIVOTDATA(BG$21 & "",PivotTableB!$A$3,"SchoolName",$B24,"SubsidiaryName",$C24,"YearStart",BA$13))),"") -> 909 | BH24: =IFERROR(IF($B24="","", IF(OR($L24="Nursery School",$L24="All-through PRU",$M24="True"),"n/a", IF(GETPIVOTDATA(BH$21 & "",PivotTableB!$A$3,"SchoolName",$B24,"SubsidiaryName",$C24,"YearStart",BH$13)="",".", GETPIVOTDATA(BH$21 & "",PivotTableB!$A$3,"SchoolName",$B24,"SubsidiaryName",$C24,"YearStart",BH$13)))),"") -> 150 | BI24: =IFERROR(IF(BH24=".",".",IF(BH24="n/a","n/a", GETPIVOTDATA(BI$21 & "",PivotTableB!$A$3,"SchoolName",$B24,"SubsidiaryName",$C24,"YearStart",BH$13))),"") -> 0 | BJ24: =IFERROR(IF(BI24=".",".",IF(BI24="n/a","n/a", GETPIVOTDATA(BJ$21 & "",PivotTableB!$A$3,"SchoolName",$B24,"SubsidiaryName",$C24,"YearStart",BH$13))),"") -> 0 | BK24: =IFERROR(IF(BJ24=".",".",IF(BJ24="n/a","n/a", GETPIVOTDATA(BK$21 & "",PivotTableB!$A$3,"SchoolName",$B24,"SubsidiaryName",$C24,"YearStart",BH$13))),"") -> 0 | BL24: 150 | BM24: =IFERROR(IF(BL24=".",".",IF(BL24="n/a","n/a", GETPIVOTDATA(BM$21 & "",PivotTableB!$A$3,"SchoolName",$B24,"SubsidiaryName",$C24,"YearStart",BH$13))),"") -> 0 | BN24: =IFERROR(IF(BM24=".",".",IF(BM24="n/a","n/a", GETPIVOTDATA(BN$21 & "",PivotTableB!$A$3,"SchoolName",$B24,"SubsidiaryName",$C24,"YearStart",BH$13))),"") -> 909 | BO24: =IFERROR(IF($B24="","", IF(OR($L24="Nursery School",$L24="All-through PRU",$M24="True"),"n/a", IF(GETPIVOTDATA(BO$21 & "",PivotTableB!$A$3,"SchoolName",$B24,"SubsidiaryName",$C24,"YearStart",BO$13)="",".", GETPIVOTDATA(BO$21 & "",PivotTableB!$A$3,"SchoolName",$B24,"SubsidiaryName",$C24,"YearStart",BO$13)))),"") -> 150 | BP24: =IFERROR(IF(BO24=".",".",IF(BO24="n/a","n/a", GETPIVOTDATA(BP$21 & "",PivotTableB!$A$3,"SchoolName",$B24,"SubsidiaryName",$C24,"YearStart",BO$13))),"") -> 0 | BQ24: =IFERROR(IF(BP24=".",".",IF(BP24="n/a","n/a", GETPIVOTDATA(BQ$21 & "",PivotTableB!$A$3,"SchoolName",$B24,"SubsidiaryName",$C24,"YearStart",BO$13))),"") -> 0 | BR24: =IFERROR(IF(BQ24=".",".",IF(BQ24="n/a","n/a", GETPIVOTDATA(BR$21 & "",PivotTableB!$A$3,"SchoolName",$B24,"SubsidiaryName",$C24,"YearStart",BP$13))),"") ->  | BS24: 150 | BT24: =IFERROR(IF(BS24=".",".",IF(BS24="n/a","n/a", GETPIVOTDATA(BT$21 & "",PivotTableB!$A$3,"SchoolName",$B24,"SubsidiaryName",$C24,"YearStart",BO$13))),"") -> 0 | BU24: =IFERROR(IF(BT24=".",".",IF(BT24="n/a","n/a", GETPIVOTDATA(BU$21 & "",PivotTableB!$A$3,"SchoolName",$B24,"SubsidiaryName",$C24,"YearStart",BO$13))),"") -> 909 | BV24: =IFERROR(IF($B24="","", IF(OR($L24="Nursery School",$L24="All-through PRU",$M24="True"),"n/a", IF(GETPIVOTDATA(BV$21 & "",PivotTableB!$A$3,"SchoolName",$B24,"SubsidiaryName",$C24,"YearStart",BV$13)="",".", GETPIVOTDATA(BV$21 & "",PivotTableB!$A$3,"SchoolName",$B24,"SubsidiaryName",$C24,"YearStart",BV$13)))),"") -> 150 | BW24: =IFERROR(IF(BV24=".",".",IF(BV24="n/a","n/a", GETPIVOTDATA(BW$21 & "",PivotTableB!$A$3,"SchoolName",$B24,"SubsidiaryName",$C24,"YearStart",BV$13))),"") -> 0 | BX24: =IFERROR(IF(BW24=".",".",IF(BW24="n/a","n/a", GETPIVOTDATA(BX$21 & "",PivotTableB!$A$3,"SchoolName",$B24,"SubsidiaryName",$C24,"YearStart",BV$13))),"") -> 0 | BY24: =IFERROR(IF(BX24=".",".",IF(BX24="n/a","n/a", GETPIVOTDATA(BY$21 & "",PivotTableB!$A$3,"SchoolName",$B24,"SubsidiaryName",$C24,"YearStart",BV$13))),"") -> 0 | BZ24: 150 | CA24: =IFERROR(IF(BZ24=".",".",IF(BZ24="n/a","n/a", GETPIVOTDATA(CA$21 & "",PivotTableB!$A$3,"SchoolName",$B24,"SubsidiaryName",$C24,"YearStart",BV$13))),"") -> 0 | CB24: =IFERROR(IF(CA24=".",".",IF(CA24="n/a","n/a", GETPIVOTDATA(CB$21 & "",PivotTableB!$A$3,"SchoolName",$B24,"SubsidiaryName",$C24,"YearStart",BV$13))),"") -> 909
B25: =IF(PivotTableA!A12="","n/a",PivotTableA!A12) -> Alwyn Infant School | C25: =IF(B25="n/a","",PivotTableA!B12) -> Alwyn Infant School | D25: =IF($B25="n/a","",PivotTableA!C12) -> R | E25: =IF($B25="n/a","",PivotTableA!D12) -> Maidenhead | F25: =IF($B25="n/a","",PivotTableA!E12) -> North West Maidenhead | G25: =IF($B25="n/a","",PivotTableA!F12) -> St Mark's | H25: =IF($B25="n/a","",PivotTableA!G12) -> Pinkneys Green | I25: =IF($B25="n/a","",PivotTableA!H12) -> None | J25: =IF($B25="n/a","",PivotTableA!I12) -> Primary | K25: =IF($B25="n/a","",PivotTableA!J12) -> Two Tier | L25: =IF($B25="n/a","",PivotTableA!K12) -> Infants | M25: =IF($B25="n/a","",PivotTableA!O12) -> FALSE | N25: =IF($B25="n/a","",PivotTableA!L12) -> Community | O25: =IF($B25="n/a","",PivotTableA!M12) ->  | P25: =IF($B25="n/a","",PivotTableA!N12) -> None | Q25: =IFERROR(IF($B25="","", IF(OR($L25="Nursery School",$L25="All-through PRU",$M25="True"),"n/a", IF(GETPIVOTDATA(Q$21 & "",PivotTableB!$A$3,"SchoolName",$B25,"SubsidiaryName",$C25,"YearStart",Q$13)="",".", GETPIVOTDATA(Q$21 & "",PivotTableB!$A$3,"SchoolName",$B25,"SubsidiaryName",$C25,"YearStart",Q$13)))),"") -> 101 | R25: =IFERROR(IF(Q25=".",".",IF(Q25="n/a","n/a", GETPIVOTDATA(R$21 & "",PivotTableB!$A$3,"SchoolName",$B25,"SubsidiaryName",$C25,"YearStart",Q$13))),"") -> 4 | S25: =IFERROR(IF(R25=".",".",IF(R25="n/a","n/a", GETPIVOTDATA(S$21 & "",PivotTableB!$A$3,"SchoolName",$B25,"SubsidiaryName",$C25,"YearStart",Q$13))),"") -> 0 | T25: 105 | U25: =IFERROR(IF(T25=".",".",IF(T25="n/a","n/a", GETPIVOTDATA(U$21 & "",PivotTableB!$A$3,"SchoolName",$B25,"SubsidiaryName",$C25,"YearStart",Q$13))),"") -> 0 | V25: =IFERROR(IF(U25=".",".",IF(U25="n/a","n/a", GETPIVOTDATA(V$21 & "",PivotTableB!$A$3,"SchoolName",$B25,"SubsidiaryName",$C25,"YearStart",Q$13))),"") -> 295 | W25: =IFERROR(IF($B25="","", IF(OR($L25="Nursery School",$L25="All-through PRU",$M25="True"),"n/a", IF(GETPIVOTDATA(W$21 & "",PivotTableB!$A$3,"SchoolName",$B25,"SubsidiaryName",$C25,"YearStart",W$13)="",".", GETPIVOTDATA(W$21 & "",PivotTableB!$A$3,"SchoolName",$B25,"SubsidiaryName",$C25,"YearStart",W$13)))),"") -> 101 | X25: =IFERROR(IF(W25=".",".",IF(W25="n/a","n/a", GETPIVOTDATA(X$21 & "",PivotTableB!$A$3,"SchoolName",$B25,"SubsidiaryName",$C25,"YearStart",W$13))),"") -> 0 | Y25: =IFERROR(IF(X25=".",".",IF(X25="n/a","n/a", GETPIVOTDATA(Y$21 & "",PivotTableB!$A$3,"SchoolName",$B25,"SubsidiaryName",$C25,"YearStart",W$13))),"") -> 0 | Z25: 101 | AA25: =IFERROR(IF(Z25=".",".",IF(Z25="n/a","n/a", GETPIVOTDATA(AA$21 & "",PivotTableB!$A$3,"SchoolName",$B25,"SubsidiaryName",$C25,"YearStart",W$13))),"") -> 0 | AB25: =IFERROR(IF(AA25=".",".",IF(AA25="n/a","n/a", GETPIVOTDATA(AB$21 & "",PivotTableB!$A$3,"SchoolName",$B25,"SubsidiaryName",$C25,"YearStart",W$13))),"") -> 295 | AC25: =IFERROR(IF($B25="","", IF(OR($L25="Nursery School",$L25="All-through PRU",$M25="True"),"n/a", IF(GETPIVOTDATA(AC$21 & "",PivotTableB!$A$3,"SchoolName",$B25,"SubsidiaryName",$C25,"YearStart",AC$13)="",".", GETPIVOTDATA(AC$21 & "",PivotTableB!$A$3,"SchoolName",$B25,"SubsidiaryName",$C25,"YearStart",AC$13)))),"") -> 101 | AD25: =IFERROR(IF(AC25=".",".",IF(AC25="n/a","n/a", GETPIVOTDATA(AD$21 & "",PivotTableB!$A$3,"SchoolName",$B25,"SubsidiaryName",$C25,"YearStart",AC$13))),"") -> 0 | AE25: =IFERROR(IF(AD25=".",".",IF(AD25="n/a","n/a", GETPIVOTDATA(AE$21 & "",PivotTableB!$A$3,"SchoolName",$B25,"SubsidiaryName",$C25,"YearStart",AC$13))),"") -> 0 | AF25: 101 | AG25: =IFERROR(IF(AF25=".",".",IF(AF25="n/a","n/a", GETPIVOTDATA(AG$21 & "",PivotTableB!$A$3,"SchoolName",$B25,"SubsidiaryName",$C25,"YearStart",AC$13))),"") -> 0 | AH25: =IFERROR(IF(AG25=".",".",IF(AG25="n/a","n/a", GETPIVOTDATA(AH$21 & "",PivotTableB!$A$3,"SchoolName",$B25,"SubsidiaryName",$C25,"YearStart",AC$13))),"") -> 295 | AI25: =IFERROR(IF($B25="","", IF(OR($L25="Nursery School",$L25="All-through PRU",$M25="True"),"n/a", IF(GETPIVOTDATA(AI$21 & "",PivotTableB!$A$3,"SchoolName",$B25,"SubsidiaryName",$C25,"YearStart",AI$13)="",".", GETPIVOTDATA(AI$21 & "",PivotTableB!$A$3,"SchoolName",$B25,"SubsidiaryName",$C25,"YearStart",AI$13)))),"") -> 101 | AJ25: =IFERROR(IF(AI25=".",".",IF(AI25="n/a","n/a", GETPIVOTDATA(AJ$21 & "",PivotTableB!$A$3,"SchoolName",$B25,"SubsidiaryName",$C25,"YearStart",AI$13))),"") -> 3 | AK25: =IFERROR(IF(AJ25=".",".",IF(AJ25="n/a","n/a", GETPIVOTDATA(AK$21 & "",PivotTableB!$A$3,"SchoolName",$B25,"SubsidiaryName",$C25,"YearStart",AI$13))),"") -> 0 | AL25: 104 | AM25: =IFERROR(IF(AL25=".",".",IF(AL25="n/a","n/a", GETPIVOTDATA(AM$21 & "",PivotTableB!$A$3,"SchoolName",$B25,"SubsidiaryName",$C25,"YearStart",AI$13))),"") -> 0 | AN25: =IFERROR(IF(AM25=".",".",IF(AM25="n/a","n/a", GETPIVOTDATA(AN$21 & "",PivotTableB!$A$3,"SchoolName",$B25,"SubsidiaryName",$C25,"YearStart",AI$13))),"") -> 295 | AO25: =IFERROR(IF($B25="","", IF(OR($L25="Nursery School",$L25="All-through PRU",$M25="True"),"n/a", IF(GETPIVOTDATA(AO$21 & "",PivotTableB!$A$3,"SchoolName",$B25,"SubsidiaryName",$C25,"YearStart",AO$13)="",".", GETPIVOTDATA(AO$21 & "",PivotTableB!$A$3,"SchoolName",$B25,"SubsidiaryName",$C25,"YearStart",AO$13)))),"") -> 101 | AP25: =IFERROR(IF(AO25=".",".",IF(AO25="n/a","n/a", GETPIVOTDATA(AP$21 & "",PivotTableB!$A$3,"SchoolName",$B25,"SubsidiaryName",$C25,"YearStart",AO$13))),"") -> 0 | AQ25: =IFERROR(IF(AP25=".",".",IF(AP25="n/a","n/a", GETPIVOTDATA(AQ$21 & "",PivotTableB!$A$3,"SchoolName",$B25,"SubsidiaryName",$C25,"YearStart",AO$13))),"") -> 0 | AR25: 101 | AS25: =IFERROR(IF(AR25=".",".",IF(AR25="n/a","n/a", GETPIVOTDATA(AS$21 & "",PivotTableB!$A$3,"SchoolName",$B25,"SubsidiaryName",$C25,"YearStart",AO$13))),"") -> 0 | AT25: =IFERROR(IF(AS25=".",".",IF(AS25="n/a","n/a", GETPIVOTDATA(AT$21 & "",PivotTableB!$A$3,"SchoolName",$B25,"SubsidiaryName",$C25,"YearStart",AO$13))),"") -> 303 | AU25: =IFERROR(IF($B25="","", IF(OR($L25="Nursery School",$L25="All-through PRU",$M25="True"),"n/a", IF(GETPIVOTDATA(AU$21 & "",PivotTableB!$A$3,"SchoolName",$B25,"SubsidiaryName",$C25,"YearStart",AU$13)="",".", GETPIVOTDATA(AU$21 & "",PivotTableB!$A$3,"SchoolName",$B25,"SubsidiaryName",$C25,"YearStart",AU$13)))),"") -> 90 | AV25: =IFERROR(IF(AU25=".",".",IF(AU25="n/a","n/a", GETPIVOTDATA(AV$21 & "",PivotTableB!$A$3,"SchoolName",$B25,"SubsidiaryName",$C25,"YearStart",AU$13))),"") -> 0 | AW25: =IFERROR(IF(AV25=".",".",IF(AV25="n/a","n/a", GETPIVOTDATA(AW$21 & "",PivotTableB!$A$3,"SchoolName",$B25,"SubsidiaryName",$C25,"YearStart",AU$13))),"") -> 0 | AX25: 90 | AY25: =IFERROR(IF(AX25=".",".",IF(AX25="n/a","n/a", GETPIVOTDATA(AY$21 & "",PivotTableB!$A$3,"SchoolName",$B25,"SubsidiaryName",$C25,"YearStart",AU$13))),"") -> 11 | AZ25: =IFERROR(IF(AY25=".",".",IF(AY25="n/a","n/a", GETPIVOTDATA(AZ$21 & "",PivotTableB!$A$3,"SchoolName",$B25,"SubsidiaryName",$C25,"YearStart",AU$13))),"") -> 303 | BA25: =IFERROR(IF($B25="","", IF(OR($L25="Nursery School",$L25="All-through PRU",$M25="True"),"n/a", IF(GETPIVOTDATA(BA$21 & "",PivotTableB!$A$3,"SchoolName",$B25,"SubsidiaryName",$C25,"YearStart",BA$13)="",".", GETPIVOTDATA(BA$21 & "",PivotTableB!$A$3,"SchoolName",$B25,"SubsidiaryName",$C25,"YearStart",BA$13)))),"") -> 90 | BB25: =IFERROR(IF(BA25=".",".",IF(BA25="n/a","n/a", GETPIVOTDATA(BB$21 & "",PivotTableB!$A$3,"SchoolName",$B25,"SubsidiaryName",$C25,"YearStart",BA$13))),"") -> 0 | BC25: =IFERROR(IF(BB25=".",".",IF(BB25="n/a","n/a", GETPIVOTDATA(BC$21 & "",PivotTableB!$A$3,"SchoolName",$B25,"SubsidiaryName",$C25,"YearStart",BA$13))),"") -> 0 | BD25: =IFERROR(IF(BC25=".",".",IF(BC25="n/a","n/a", GETPIVOTDATA(BD$21 & "",PivotTableB!$A$3,"SchoolName",$B25,"SubsidiaryName",$C25,"YearStart",BB$13))),"") ->  | BE25: 90 | BF25: =IFERROR(IF(BE25=".",".",IF(BE25="n/a","n/a", GETPIVOTDATA(BF$21 & "",PivotTableB!$A$3,"SchoolName",$B25,"SubsidiaryName",$C25,"YearStart",BA$13))),"") -> 11 | BG25: =IFERROR(IF(BF25=".",".",IF(BF25="n/a","n/a", GETPIVOTDATA(BG$21 & "",PivotTableB!$A$3,"SchoolName",$B25,"SubsidiaryName",$C25,"YearStart",BA$13))),"") -> 303 | BH25: =IFERROR(IF($B25="","", IF(OR($L25="Nursery School",$L25="All-through PRU",$M25="True"),"n/a", IF(GETPIVOTDATA(BH$21 & "",PivotTableB!$A$3,"SchoolName",$B25,"SubsidiaryName",$C25,"YearStart",BH$13)="",".", GETPIVOTDATA(BH$21 & "",PivotTableB!$A$3,"SchoolName",$B25,"SubsidiaryName",$C25,"YearStart",BH$13)))),"") -> 90 | BI25: =IFERROR(IF(BH25=".",".",IF(BH25="n/a","n/a", GETPIVOTDATA(BI$21 & "",PivotTableB!$A$3,"SchoolName",$B25,"SubsidiaryName",$C25,"YearStart",BH$13))),"") -> 0 | BJ25: =IFERROR(IF(BI25=".",".",IF(BI25="n/a","n/a", GETPIVOTDATA(BJ$21 & "",PivotTableB!$A$3,"SchoolName",$B25,"SubsidiaryName",$C25,"YearStart",BH$13))),"") -> 0 | BK25: =IFERROR(IF(BJ25=".",".",IF(BJ25="n/a","n/a", GETPIVOTDATA(BK$21 & "",PivotTableB!$A$3,"SchoolName",$B25,"SubsidiaryName",$C25,"YearStart",BH$13))),"") -> 0 | BL25: 90 | BM25: =IFERROR(IF(BL25=".",".",IF(BL25="n/a","n/a", GETPIVOTDATA(BM$21 & "",PivotTableB!$A$3,"SchoolName",$B25,"SubsidiaryName",$C25,"YearStart",BH$13))),"") -> 11 | BN25: =IFERROR(IF(BM25=".",".",IF(BM25="n/a","n/a", GETPIVOTDATA(BN$21 & "",PivotTableB!$A$3,"SchoolName",$B25,"SubsidiaryName",$C25,"YearStart",BH$13))),"") -> 303 | BO25: =IFERROR(IF($B25="","", IF(OR($L25="Nursery School",$L25="All-through PRU",$M25="True"),"n/a", IF(GETPIVOTDATA(BO$21 & "",PivotTableB!$A$3,"SchoolName",$B25,"SubsidiaryName",$C25,"YearStart",BO$13)="",".", GETPIVOTDATA(BO$21 & "",PivotTableB!$A$3,"SchoolName",$B25,"SubsidiaryName",$C25,"YearStart",BO$13)))),"") -> 90 | BP25: =IFERROR(IF(BO25=".",".",IF(BO25="n/a","n/a", GETPIVOTDATA(BP$21 & "",PivotTableB!$A$3,"SchoolName",$B25,"SubsidiaryName",$C25,"YearStart",BO$13))),"") -> 0 | BQ25: =IFERROR(IF(BP25=".",".",IF(BP25="n/a","n/a", GETPIVOTDATA(BQ$21 & "",PivotTableB!$A$3,"SchoolName",$B25,"SubsidiaryName",$C25,"YearStart",BO$13))),"") -> 0 | BR25: =IFERROR(IF(BQ25=".",".",IF(BQ25="n/a","n/a", GETPIVOTDATA(BR$21 & "",PivotTableB!$A$3,"SchoolName",$B25,"SubsidiaryName",$C25,"YearStart",BP$13))),"") ->  | BS25: 90 | BT25: =IFERROR(IF(BS25=".",".",IF(BS25="n/a","n/a", GETPIVOTDATA(BT$21 & "",PivotTableB!$A$3,"SchoolName",$B25,"SubsidiaryName",$C25,"YearStart",BO$13))),"") -> 11 | BU25: =IFERROR(IF(BT25=".",".",IF(BT25="n/a","n/a", GETPIVOTDATA(BU$21 & "",PivotTableB!$A$3,"SchoolName",$B25,"SubsidiaryName",$C25,"YearStart",BO$13))),"") -> 303 | BV25: =IFERROR(IF($B25="","", IF(OR($L25="Nursery School",$L25="All-through PRU",$M25="True"),"n/a", IF(GETPIVOTDATA(BV$21 & "",PivotTableB!$A$3,"SchoolName",$B25,"SubsidiaryName",$C25,"YearStart",BV$13)="",".", GETPIVOTDATA(BV$21 & "",PivotTableB!$A$3,"SchoolName",$B25,"SubsidiaryName",$C25,"YearStart",BV$13)))),"") -> 90 | BW25: =IFERROR(IF(BV25=".",".",IF(BV25="n/a","n/a", GETPIVOTDATA(BW$21 & "",PivotTableB!$A$3,"SchoolName",$B25,"SubsidiaryName",$C25,"YearStart",BV$13))),"") -> 0 | BX25: =IFERROR(IF(BW25=".",".",IF(BW25="n/a","n/a", GETPIVOTDATA(BX$21 & "",PivotTableB!$A$3,"SchoolName",$B25,"SubsidiaryName",$C25,"YearStart",BV$13))),"") -> 0 | BY25: =IFERROR(IF(BX25=".",".",IF(BX25="n/a","n/a", GETPIVOTDATA(BY$21 & "",PivotTableB!$A$3,"SchoolName",$B25,"SubsidiaryName",$C25,"YearStart",BV$13))),"") -> 0 | BZ25: 90 | CA25: =IFERROR(IF(BZ25=".",".",IF(BZ25="n/a","n/a", GETPIVOTDATA(CA$21 & "",PivotTableB!$A$3,"SchoolName",$B25,"SubsidiaryName",$C25,"YearStart",BV$13))),"") -> 11 | CB25: =IFERROR(IF(CA25=".",".",IF(CA25="n/a","n/a", GETPIVOTDATA(CB$21 & "",PivotTableB!$A$3,"SchoolName",$B25,"SubsidiaryName",$C25,"YearStart",BV$13))),"") -> 303
B26: =IF(PivotTableA!A13="","n/a",PivotTableA!A13) -> Bisham C of E Primary School | C26: =IF(B26="n/a","",PivotTableA!B13) -> Bisham C of E Primary School | D26: =IF($B26="n/a","",PivotTableA!C13) -> R | E26: =IF($B26="n/a","",PivotTableA!D13) -> Maidenhead | F26: =IF($B26="n/a","",PivotTableA!E13) -> Bisham and Cookham | G26: =IF($B26="n/a","",PivotTableA!F13) -> Bisham | H26: =IF($B26="n/a","",PivotTableA!G13) -> Bisham and Cookham | I26: =IF($B26="n/a","",PivotTableA!H13) -> Bisham | J26: =IF($B26="n/a","",PivotTableA!I13) -> Primary | K26: =IF($B26="n/a","",PivotTableA!J13) -> Two Tier | L26: =IF($B26="n/a","",PivotTableA!K13) -> JMI | M26: =IF($B26="n/a","",PivotTableA!O13) -> FALSE | N26: =IF($B26="n/a","",PivotTableA!L13) -> Academy | O26: =IF($B26="n/a","",PivotTableA!M13) ->  | P26: =IF($B26="n/a","",PivotTableA!N13) -> Church of England | Q26: =IFERROR(IF($B26="","", IF(OR($L26="Nursery School",$L26="All-through PRU",$M26="True"),"n/a", IF(GETPIVOTDATA(Q$21 & "",PivotTableB!$A$3,"SchoolName",$B26,"SubsidiaryName",$C26,"YearStart",Q$13)="",".", GETPIVOTDATA(Q$21 & "",PivotTableB!$A$3,"SchoolName",$B26,"SubsidiaryName",$C26,"YearStart",Q$13)))),"") -> 16 | R26: =IFERROR(IF(Q26=".",".",IF(Q26="n/a","n/a", GETPIVOTDATA(R$21 & "",PivotTableB!$A$3,"SchoolName",$B26,"SubsidiaryName",$C26,"YearStart",Q$13))),"") -> 0 | S26: =IFERROR(IF(R26=".",".",IF(R26="n/a","n/a", GETPIVOTDATA(S$21 & "",PivotTableB!$A$3,"SchoolName",$B26,"SubsidiaryName",$C26,"YearStart",Q$13))),"") -> 0 | T26: 16 | U26: =IFERROR(IF(T26=".",".",IF(T26="n/a","n/a", GETPIVOTDATA(U$21 & "",PivotTableB!$A$3,"SchoolName",$B26,"SubsidiaryName",$C26,"YearStart",Q$13))),"") -> 0 | V26: =IFERROR(IF(U26=".",".",IF(U26="n/a","n/a", GETPIVOTDATA(V$21 & "",PivotTableB!$A$3,"SchoolName",$B26,"SubsidiaryName",$C26,"YearStart",Q$13))),"") -> 112 | W26: =IFERROR(IF($B26="","", IF(OR($L26="Nursery School",$L26="All-through PRU",$M26="True"),"n/a", IF(GETPIVOTDATA(W$21 & "",PivotTableB!$A$3,"SchoolName",$B26,"SubsidiaryName",$C26,"YearStart",W$13)="",".", GETPIVOTDATA(W$21 & "",PivotTableB!$A$3,"SchoolName",$B26,"SubsidiaryName",$C26,"YearStart",W$13)))),"") -> 16 | X26: =IFERROR(IF(W26=".",".",IF(W26="n/a","n/a", GETPIVOTDATA(X$21 & "",PivotTableB!$A$3,"SchoolName",$B26,"SubsidiaryName",$C26,"YearStart",W$13))),"") -> 0 | Y26: =IFERROR(IF(X26=".",".",IF(X26="n/a","n/a", GETPIVOTDATA(Y$21 & "",PivotTableB!$A$3,"SchoolName",$B26,"SubsidiaryName",$C26,"YearStart",W$13))),"") -> 0 | Z26: 16 | AA26: =IFERROR(IF(Z26=".",".",IF(Z26="n/a","n/a", GETPIVOTDATA(AA$21 & "",PivotTableB!$A$3,"SchoolName",$B26,"SubsidiaryName",$C26,"YearStart",W$13))),"") -> 0 | AB26: =IFERROR(IF(AA26=".",".",IF(AA26="n/a","n/a", GETPIVOTDATA(AB$21 & "",PivotTableB!$A$3,"SchoolName",$B26,"SubsidiaryName",$C26,"YearStart",W$13))),"") -> 112 | AC26: =IFERROR(IF($B26="","", IF(OR($L26="Nursery School",$L26="All-through PRU",$M26="True"),"n/a", IF(GETPIVOTDATA(AC$21 & "",PivotTableB!$A$3,"SchoolName",$B26,"SubsidiaryName",$C26,"YearStart",AC$13)="",".", GETPIVOTDATA(AC$21 & "",PivotTableB!$A$3,"SchoolName",$B26,"SubsidiaryName",$C26,"YearStart",AC$13)))),"") -> 16 | AD26: =IFERROR(IF(AC26=".",".",IF(AC26="n/a","n/a", GETPIVOTDATA(AD$21 & "",PivotTableB!$A$3,"SchoolName",$B26,"SubsidiaryName",$C26,"YearStart",AC$13))),"") -> 0 | AE26: =IFERROR(IF(AD26=".",".",IF(AD26="n/a","n/a", GETPIVOTDATA(AE$21 & "",PivotTableB!$A$3,"SchoolName",$B26,"SubsidiaryName",$C26,"YearStart",AC$13))),"") -> 0 | AF26: 16 | AG26: =IFERROR(IF(AF26=".",".",IF(AF26="n/a","n/a", GETPIVOTDATA(AG$21 & "",PivotTableB!$A$3,"SchoolName",$B26,"SubsidiaryName",$C26,"YearStart",AC$13))),"") -> 0 | AH26: =IFERROR(IF(AG26=".",".",IF(AG26="n/a","n/a", GETPIVOTDATA(AH$21 & "",PivotTableB!$A$3,"SchoolName",$B26,"SubsidiaryName",$C26,"YearStart",AC$13))),"") -> 112 | AI26: =IFERROR(IF($B26="","", IF(OR($L26="Nursery School",$L26="All-through PRU",$M26="True"),"n/a", IF(GETPIVOTDATA(AI$21 & "",PivotTableB!$A$3,"SchoolName",$B26,"SubsidiaryName",$C26,"YearStart",AI$13)="",".", GETPIVOTDATA(AI$21 & "",PivotTableB!$A$3,"SchoolName",$B26,"SubsidiaryName",$C26,"YearStart",AI$13)))),"") -> 16 | AJ26: =IFERROR(IF(AI26=".",".",IF(AI26="n/a","n/a", GETPIVOTDATA(AJ$21 & "",PivotTableB!$A$3,"SchoolName",$B26,"SubsidiaryName",$C26,"YearStart",AI$13))),"") -> 0 | AK26: =IFERROR(IF(AJ26=".",".",IF(AJ26="n/a","n/a", GETPIVOTDATA(AK$21 & "",PivotTableB!$A$3,"SchoolName",$B26,"SubsidiaryName",$C26,"YearStart",AI$13))),"") -> 0 | AL26: 16 | AM26: =IFERROR(IF(AL26=".",".",IF(AL26="n/a","n/a", GETPIVOTDATA(AM$21 & "",PivotTableB!$A$3,"SchoolName",$B26,"SubsidiaryName",$C26,"YearStart",AI$13))),"") -> 0 | AN26: =IFERROR(IF(AM26=".",".",IF(AM26="n/a","n/a", GETPIVOTDATA(AN$21 & "",PivotTableB!$A$3,"SchoolName",$B26,"SubsidiaryName",$C26,"YearStart",AI$13))),"") -> 112 | AO26: =IFERROR(IF($B26="","", IF(OR($L26="Nursery School",$L26="All-through PRU",$M26="True"),"n/a", IF(GETPIVOTDATA(AO$21 & "",PivotTableB!$A$3,"SchoolName",$B26,"SubsidiaryName",$C26,"YearStart",AO$13)="",".", GETPIVOTDATA(AO$21 & "",PivotTableB!$A$3,"SchoolName",$B26,"SubsidiaryName",$C26,"YearStart",AO$13)))),"") -> 16 | AP26: =IFERROR(IF(AO26=".",".",IF(AO26="n/a","n/a", GETPIVOTDATA(AP$21 & "",PivotTableB!$A$3,"SchoolName",$B26,"SubsidiaryName",$C26,"YearStart",AO$13))),"") -> 14 | AQ26: =IFERROR(IF(AP26=".",".",IF(AP26="n/a","n/a", GETPIVOTDATA(AQ$21 & "",PivotTableB!$A$3,"SchoolName",$B26,"SubsidiaryName",$C26,"YearStart",AO$13))),"") -> 0 | AR26: 30 | AS26: =IFERROR(IF(AR26=".",".",IF(AR26="n/a","n/a", GETPIVOTDATA(AS$21 & "",PivotTableB!$A$3,"SchoolName",$B26,"SubsidiaryName",$C26,"YearStart",AO$13))),"") -> 0 | AT26: =IFERROR(IF(AS26=".",".",IF(AS26="n/a","n/a", GETPIVOTDATA(AT$21 & "",PivotTableB!$A$3,"SchoolName",$B26,"SubsidiaryName",$C26,"YearStart",AO$13))),"") -> 120 | AU26: =IFERROR(IF($B26="","", IF(OR($L26="Nursery School",$L26="All-through PRU",$M26="True"),"n/a", IF(GETPIVOTDATA(AU$21 & "",PivotTableB!$A$3,"SchoolName",$B26,"SubsidiaryName",$C26,"YearStart",AU$13)="",".", GETPIVOTDATA(AU$21 & "",PivotTableB!$A$3,"SchoolName",$B26,"SubsidiaryName",$C26,"YearStart",AU$13)))),"") -> 16 | AV26: =IFERROR(IF(AU26=".",".",IF(AU26="n/a","n/a", GETPIVOTDATA(AV$21 & "",PivotTableB!$A$3,"SchoolName",$B26,"SubsidiaryName",$C26,"YearStart",AU$13))),"") -> 14 | AW26: =IFERROR(IF(AV26=".",".",IF(AV26="n/a","n/a", GETPIVOTDATA(AW$21 & "",PivotTableB!$A$3,"SchoolName",$B26,"SubsidiaryName",$C26,"YearStart",AU$13))),"") -> 0 | AX26: 30 | AY26: =IFERROR(IF(AX26=".",".",IF(AX26="n/a","n/a", GETPIVOTDATA(AY$21 & "",PivotTableB!$A$3,"SchoolName",$B26,"SubsidiaryName",$C26,"YearStart",AU$13))),"") -> 0 | AZ26: =IFERROR(IF(AY26=".",".",IF(AY26="n/a","n/a", GETPIVOTDATA(AZ$21 & "",PivotTableB!$A$3,"SchoolName",$B26,"SubsidiaryName",$C26,"YearStart",AU$13))),"") -> 120 | BA26: =IFERROR(IF($B26="","", IF(OR($L26="Nursery School",$L26="All-through PRU",$M26="True"),"n/a", IF(GETPIVOTDATA(BA$21 & "",PivotTableB!$A$3,"SchoolName",$B26,"SubsidiaryName",$C26,"YearStart",BA$13)="",".", GETPIVOTDATA(BA$21 & "",PivotTableB!$A$3,"SchoolName",$B26,"SubsidiaryName",$C26,"YearStart",BA$13)))),"") -> 16 | BB26: =IFERROR(IF(BA26=".",".",IF(BA26="n/a","n/a", GETPIVOTDATA(BB$21 & "",PivotTableB!$A$3,"SchoolName",$B26,"SubsidiaryName",$C26,"YearStart",BA$13))),"") -> 14 | BC26: =IFERROR(IF(BB26=".",".",IF(BB26="n/a","n/a", GETPIVOTDATA(BC$21 & "",PivotTableB!$A$3,"SchoolName",$B26,"SubsidiaryName",$C26,"YearStart",BA$13))),"") -> 0 | BD26: =IFERROR(IF(BC26=".",".",IF(BC26="n/a","n/a", GETPIVOTDATA(BD$21 & "",PivotTableB!$A$3,"SchoolName",$B26,"SubsidiaryName",$C26,"YearStart",BB$13))),"") ->  | BE26: 30 | BF26: =IFERROR(IF(BE26=".",".",IF(BE26="n/a","n/a", GETPIVOTDATA(BF$21 & "",PivotTableB!$A$3,"SchoolName",$B26,"SubsidiaryName",$C26,"YearStart",BA$13))),"") -> 0 | BG26: =IFERROR(IF(BF26=".",".",IF(BF26="n/a","n/a", GETPIVOTDATA(BG$21 & "",PivotTableB!$A$3,"SchoolName",$B26,"SubsidiaryName",$C26,"YearStart",BA$13))),"") -> 120 | BH26: =IFERROR(IF($B26="","", IF(OR($L26="Nursery School",$L26="All-through PRU",$M26="True"),"n/a", IF(GETPIVOTDATA(BH$21 & "",PivotTableB!$A$3,"SchoolName",$B26,"SubsidiaryName",$C26,"YearStart",BH$13)="",".", GETPIVOTDATA(BH$21 & "",PivotTableB!$A$3,"SchoolName",$B26,"SubsidiaryName",$C26,"YearStart",BH$13)))),"") -> 16 | BI26: =IFERROR(IF(BH26=".",".",IF(BH26="n/a","n/a", GETPIVOTDATA(BI$21 & "",PivotTableB!$A$3,"SchoolName",$B26,"SubsidiaryName",$C26,"YearStart",BH$13))),"") -> 14 | BJ26: =IFERROR(IF(BI26=".",".",IF(BI26="n/a","n/a", GETPIVOTDATA(BJ$21 & "",PivotTableB!$A$3,"SchoolName",$B26,"SubsidiaryName",$C26,"YearStart",BH$13))),"") -> 0 | BK26: =IFERROR(IF(BJ26=".",".",IF(BJ26="n/a","n/a", GETPIVOTDATA(BK$21 & "",PivotTableB!$A$3,"SchoolName",$B26,"SubsidiaryName",$C26,"YearStart",BH$13))),"") -> 0 | BL26: 30 | BM26: =IFERROR(IF(BL26=".",".",IF(BL26="n/a","n/a", GETPIVOTDATA(BM$21 & "",PivotTableB!$A$3,"SchoolName",$B26,"SubsidiaryName",$C26,"YearStart",BH$13))),"") -> 0 | BN26: =IFERROR(IF(BM26=".",".",IF(BM26="n/a","n/a", GETPIVOTDATA(BN$21 & "",PivotTableB!$A$3,"SchoolName",$B26,"SubsidiaryName",$C26,"YearStart",BH$13))),"") -> 120 | BO26: =IFERROR(IF($B26="","", IF(OR($L26="Nursery School",$L26="All-through PRU",$M26="True"),"n/a", IF(GETPIVOTDATA(BO$21 & "",PivotTableB!$A$3,"SchoolName",$B26,"SubsidiaryName",$C26,"YearStart",BO$13)="",".", GETPIVOTDATA(BO$21 & "",PivotTableB!$A$3,"SchoolName",$B26,"SubsidiaryName",$C26,"YearStart",BO$13)))),"") -> 16 | BP26: =IFERROR(IF(BO26=".",".",IF(BO26="n/a","n/a", GETPIVOTDATA(BP$21 & "",PivotTableB!$A$3,"SchoolName",$B26,"SubsidiaryName",$C26,"YearStart",BO$13))),"") -> 14 | BQ26: =IFERROR(IF(BP26=".",".",IF(BP26="n/a","n/a", GETPIVOTDATA(BQ$21 & "",PivotTableB!$A$3,"SchoolName",$B26,"SubsidiaryName",$C26,"YearStart",BO$13))),"") -> 0 | BR26: =IFERROR(IF(BQ26=".",".",IF(BQ26="n/a","n/a", GETPIVOTDATA(BR$21 & "",PivotTableB!$A$3,"SchoolName",$B26,"SubsidiaryName",$C26,"YearStart",BP$13))),"") ->  | BS26: 30 | BT26: =IFERROR(IF(BS26=".",".",IF(BS26="n/a","n/a", GETPIVOTDATA(BT$21 & "",PivotTableB!$A$3,"SchoolName",$B26,"SubsidiaryName",$C26,"YearStart",BO$13))),"") -> 0 | BU26: =IFERROR(IF(BT26=".",".",IF(BT26="n/a","n/a", GETPIVOTDATA(BU$21 & "",PivotTableB!$A$3,"SchoolName",$B26,"SubsidiaryName",$C26,"YearStart",BO$13))),"") -> 120 | BV26: =IFERROR(IF($B26="","", IF(OR($L26="Nursery School",$L26="All-through PRU",$M26="True"),"n/a", IF(GETPIVOTDATA(BV$21 & "",PivotTableB!$A$3,"SchoolName",$B26,"SubsidiaryName",$C26,"YearStart",BV$13)="",".", GETPIVOTDATA(BV$21 & "",PivotTableB!$A$3,"SchoolName",$B26,"SubsidiaryName",$C26,"YearStart",BV$13)))),"") -> 16 | BW26: =IFERROR(IF(BV26=".",".",IF(BV26="n/a","n/a", GETPIVOTDATA(BW$21 & "",PivotTableB!$A$3,"SchoolName",$B26,"SubsidiaryName",$C26,"YearStart",BV$13))),"") -> 14 | BX26: =IFERROR(IF(BW26=".",".",IF(BW26="n/a","n/a", GETPIVOTDATA(BX$21 & "",PivotTableB!$A$3,"SchoolName",$B26,"SubsidiaryName",$C26,"YearStart",BV$13))),"") -> 0 | BY26: =IFERROR(IF(BX26=".",".",IF(BX26="n/a","n/a", GETPIVOTDATA(BY$21 & "",PivotTableB!$A$3,"SchoolName",$B26,"SubsidiaryName",$C26,"YearStart",BV$13))),"") -> 0 | BZ26: 30 | CA26: =IFERROR(IF(BZ26=".",".",IF(BZ26="n/a","n/a", GETPIVOTDATA(CA$21 & "",PivotTableB!$A$3,"SchoolName",$B26,"SubsidiaryName",$C26,"YearStart",BV$13))),"") -> 0 | CB26: =IFERROR(IF(CA26=".",".",IF(CA26="n/a","n/a", GETPIVOTDATA(CB$21 & "",PivotTableB!$A$3,"SchoolName",$B26,"SubsidiaryName",$C26,"YearStart",BV$13))),"") -> 120
B27: =IF(PivotTableA!A14="","n/a",PivotTableA!A14) -> Boyne Hill C of E Infant and Nursery School | C27: =IF(B27="n/a","",PivotTableA!B14) -> Boyne Hill C of E Infant and Nursery School | D27: =IF($B27="n/a","",PivotTableA!C14) -> R | E27: =IF($B27="n/a","",PivotTableA!D14) -> Maidenhead | F27: =IF($B27="n/a","",PivotTableA!E14) -> Central Maidenhead | G27: =IF($B27="n/a","",PivotTableA!F14) -> Boyn Hill | H27: =IF($B27="n/a","",PivotTableA!G14) -> Boyn Hill | I27: =IF($B27="n/a","",PivotTableA!H14) -> None | J27: =IF($B27="n/a","",PivotTableA!I14) -> Primary | K27: =IF($B27="n/a","",PivotTableA!J14) -> Two Tier | L27: =IF($B27="n/a","",PivotTableA!K14) -> Infants | M27: =IF($B27="n/a","",PivotTableA!O14) -> FALSE | N27: =IF($B27="n/a","",PivotTableA!L14) -> Voluntary Controlled | O27: =IF($B27="n/a","",PivotTableA!M14) ->  | P27: =IF($B27="n/a","",PivotTableA!N14) -> Church of England | Q27: =IFERROR(IF($B27="","", IF(OR($L27="Nursery School",$L27="All-through PRU",$M27="True"),"n/a", IF(GETPIVOTDATA(Q$21 & "",PivotTableB!$A$3,"SchoolName",$B27,"SubsidiaryName",$C27,"YearStart",Q$13)="",".", GETPIVOTDATA(Q$21 & "",PivotTableB!$A$3,"SchoolName",$B27,"SubsidiaryName",$C27,"YearStart",Q$13)))),"") -> 60 | R27: =IFERROR(IF(Q27=".",".",IF(Q27="n/a","n/a", GETPIVOTDATA(R$21 & "",PivotTableB!$A$3,"SchoolName",$B27,"SubsidiaryName",$C27,"YearStart",Q$13))),"") -> 0 | S27: =IFERROR(IF(R27=".",".",IF(R27="n/a","n/a", GETPIVOTDATA(S$21 & "",PivotTableB!$A$3,"SchoolName",$B27,"SubsidiaryName",$C27,"YearStart",Q$13))),"") -> 0 | T27: 60 | U27: =IFERROR(IF(T27=".",".",IF(T27="n/a","n/a", GETPIVOTDATA(U$21 & "",PivotTableB!$A$3,"SchoolName",$B27,"SubsidiaryName",$C27,"YearStart",Q$13))),"") -> 0 | V27: =IFERROR(IF(U27=".",".",IF(U27="n/a","n/a", GETPIVOTDATA(V$21 & "",PivotTableB!$A$3,"SchoolName",$B27,"SubsidiaryName",$C27,"YearStart",Q$13))),"") -> 179 | W27: =IFERROR(IF($B27="","", IF(OR($L27="Nursery School",$L27="All-through PRU",$M27="True"),"n/a", IF(GETPIVOTDATA(W$21 & "",PivotTableB!$A$3,"SchoolName",$B27,"SubsidiaryName",$C27,"YearStart",W$13)="",".", GETPIVOTDATA(W$21 & "",PivotTableB!$A$3,"SchoolName",$B27,"SubsidiaryName",$C27,"YearStart",W$13)))),"") -> 60 | X27: =IFERROR(IF(W27=".",".",IF(W27="n/a","n/a", GETPIVOTDATA(X$21 & "",PivotTableB!$A$3,"SchoolName",$B27,"SubsidiaryName",$C27,"YearStart",W$13))),"") -> 0 | Y27: =IFERROR(IF(X27=".",".",IF(X27="n/a","n/a", GETPIVOTDATA(Y$21 & "",PivotTableB!$A$3,"SchoolName",$B27,"SubsidiaryName",$C27,"YearStart",W$13))),"") -> 0 | Z27: 60 | AA27: =IFERROR(IF(Z27=".",".",IF(Z27="n/a","n/a", GETPIVOTDATA(AA$21 & "",PivotTableB!$A$3,"SchoolName",$B27,"SubsidiaryName",$C27,"YearStart",W$13))),"") -> 0 | AB27: =IFERROR(IF(AA27=".",".",IF(AA27="n/a","n/a", GETPIVOTDATA(AB$21 & "",PivotTableB!$A$3,"SchoolName",$B27,"SubsidiaryName",$C27,"YearStart",W$13))),"") -> 179 | AC27: =IFERROR(IF($B27="","", IF(OR($L27="Nursery School",$L27="All-through PRU",$M27="True"),"n/a", IF(GETPIVOTDATA(AC$21 & "",PivotTableB!$A$3,"SchoolName",$B27,"SubsidiaryName",$C27,"YearStart",AC$13)="",".", GETPIVOTDATA(AC$21 & "",PivotTableB!$A$3,"SchoolName",$B27,"SubsidiaryName",$C27,"YearStart",AC$13)))),"") -> 60 | AD27: =IFERROR(IF(AC27=".",".",IF(AC27="n/a","n/a", GETPIVOTDATA(AD$21 & "",PivotTableB!$A$3,"SchoolName",$B27,"SubsidiaryName",$C27,"YearStart",AC$13))),"") -> 0 | AE27: =IFERROR(IF(AD27=".",".",IF(AD27="n/a","n/a", GETPIVOTDATA(AE$21 & "",PivotTableB!$A$3,"SchoolName",$B27,"SubsidiaryName",$C27,"YearStart",AC$13))),"") -> 0 | AF27: 60 | AG27: =IFERROR(IF(AF27=".",".",IF(AF27="n/a","n/a", GETPIVOTDATA(AG$21 & "",PivotTableB!$A$3,"SchoolName",$B27,"SubsidiaryName",$C27,"YearStart",AC$13))),"") -> 0 | AH27: =IFERROR(IF(AG27=".",".",IF(AG27="n/a","n/a", GETPIVOTDATA(AH$21 & "",PivotTableB!$A$3,"SchoolName",$B27,"SubsidiaryName",$C27,"YearStart",AC$13))),"") -> 179 | AI27: =IFERROR(IF($B27="","", IF(OR($L27="Nursery School",$L27="All-through PRU",$M27="True"),"n/a", IF(GETPIVOTDATA(AI$21 & "",PivotTableB!$A$3,"SchoolName",$B27,"SubsidiaryName",$C27,"YearStart",AI$13)="",".", GETPIVOTDATA(AI$21 & "",PivotTableB!$A$3,"SchoolName",$B27,"SubsidiaryName",$C27,"YearStart",AI$13)))),"") -> 60 | AJ27: =IFERROR(IF(AI27=".",".",IF(AI27="n/a","n/a", GETPIVOTDATA(AJ$21 & "",PivotTableB!$A$3,"SchoolName",$B27,"SubsidiaryName",$C27,"YearStart",AI$13))),"") -> 0 | AK27: =IFERROR(IF(AJ27=".",".",IF(AJ27="n/a","n/a", GETPIVOTDATA(AK$21 & "",PivotTableB!$A$3,"SchoolName",$B27,"SubsidiaryName",$C27,"YearStart",AI$13))),"") -> 0 | AL27: 60 | AM27: =IFERROR(IF(AL27=".",".",IF(AL27="n/a","n/a", GETPIVOTDATA(AM$21 & "",PivotTableB!$A$3,"SchoolName",$B27,"SubsidiaryName",$C27,"YearStart",AI$13))),"") -> 0 | AN27: =IFERROR(IF(AM27=".",".",IF(AM27="n/a","n/a", GETPIVOTDATA(AN$21 & "",PivotTableB!$A$3,"SchoolName",$B27,"SubsidiaryName",$C27,"YearStart",AI$13))),"") -> 179 | AO27: =IFERROR(IF($B27="","", IF(OR($L27="Nursery School",$L27="All-through PRU",$M27="True"),"n/a", IF(GETPIVOTDATA(AO$21 & "",PivotTableB!$A$3,"SchoolName",$B27,"SubsidiaryName",$C27,"YearStart",AO$13)="",".", GETPIVOTDATA(AO$21 & "",PivotTableB!$A$3,"SchoolName",$B27,"SubsidiaryName",$C27,"YearStart",AO$13)))),"") -> 60 | AP27: =IFERROR(IF(AO27=".",".",IF(AO27="n/a","n/a", GETPIVOTDATA(AP$21 & "",PivotTableB!$A$3,"SchoolName",$B27,"SubsidiaryName",$C27,"YearStart",AO$13))),"") -> 0 | AQ27: =IFERROR(IF(AP27=".",".",IF(AP27="n/a","n/a", GETPIVOTDATA(AQ$21 & "",PivotTableB!$A$3,"SchoolName",$B27,"SubsidiaryName",$C27,"YearStart",AO$13))),"") -> 0 | AR27: 60 | AS27: =IFERROR(IF(AR27=".",".",IF(AR27="n/a","n/a", GETPIVOTDATA(AS$21 & "",PivotTableB!$A$3,"SchoolName",$B27,"SubsidiaryName",$C27,"YearStart",AO$13))),"") -> 0 | AT27: =IFERROR(IF(AS27=".",".",IF(AS27="n/a","n/a", GETPIVOTDATA(AT$21 & "",PivotTableB!$A$3,"SchoolName",$B27,"SubsidiaryName",$C27,"YearStart",AO$13))),"") -> 180 | AU27: =IFERROR(IF($B27="","", IF(OR($L27="Nursery School",$L27="All-through PRU",$M27="True"),"n/a", IF(GETPIVOTDATA(AU$21 & "",PivotTableB!$A$3,"SchoolName",$B27,"SubsidiaryName",$C27,"YearStart",AU$13)="",".", GETPIVOTDATA(AU$21 & "",PivotTableB!$A$3,"SchoolName",$B27,"SubsidiaryName",$C27,"YearStart",AU$13)))),"") -> 60 | AV27: =IFERROR(IF(AU27=".",".",IF(AU27="n/a","n/a", GETPIVOTDATA(AV$21 & "",PivotTableB!$A$3,"SchoolName",$B27,"SubsidiaryName",$C27,"YearStart",AU$13))),"") -> 0 | AW27: =IFERROR(IF(AV27=".",".",IF(AV27="n/a","n/a", GETPIVOTDATA(AW$21 & "",PivotTableB!$A$3,"SchoolName",$B27,"SubsidiaryName",$C27,"YearStart",AU$13))),"") -> 0 | AX27: 60 | AY27: =IFERROR(IF(AX27=".",".",IF(AX27="n/a","n/a", GETPIVOTDATA(AY$21 & "",PivotTableB!$A$3,"SchoolName",$B27,"SubsidiaryName",$C27,"YearStart",AU$13))),"") -> 0 | AZ27: =IFERROR(IF(AY27=".",".",IF(AY27="n/a","n/a", GETPIVOTDATA(AZ$21 & "",PivotTableB!$A$3,"SchoolName",$B27,"SubsidiaryName",$C27,"YearStart",AU$13))),"") -> 180 | BA27: =IFERROR(IF($B27="","", IF(OR($L27="Nursery School",$L27="All-through PRU",$M27="True"),"n/a", IF(GETPIVOTDATA(BA$21 & "",PivotTableB!$A$3,"SchoolName",$B27,"SubsidiaryName",$C27,"YearStart",BA$13)="",".", GETPIVOTDATA(BA$21 & "",PivotTableB!$A$3,"SchoolName",$B27,"SubsidiaryName",$C27,"YearStart",BA$13)))),"") -> 60 | BB27: =IFERROR(IF(BA27=".",".",IF(BA27="n/a","n/a", GETPIVOTDATA(BB$21 & "",PivotTableB!$A$3,"SchoolName",$B27,"SubsidiaryName",$C27,"YearStart",BA$13))),"") -> 0 | BC27: =IFERROR(IF(BB27=".",".",IF(BB27="n/a","n/a", GETPIVOTDATA(BC$21 & "",PivotTableB!$A$3,"SchoolName",$B27,"SubsidiaryName",$C27,"YearStart",BA$13))),"") -> 0 | BD27: =IFERROR(IF(BC27=".",".",IF(BC27="n/a","n/a", GETPIVOTDATA(BD$21 & "",PivotTableB!$A$3,"SchoolName",$B27,"SubsidiaryName",$C27,"YearStart",BB$13))),"") ->  | BE27: 60 | BF27: =IFERROR(IF(BE27=".",".",IF(BE27="n/a","n/a", GETPIVOTDATA(BF$21 & "",PivotTableB!$A$3,"SchoolName",$B27,"SubsidiaryName",$C27,"YearStart",BA$13))),"") -> 0 | BG27: =IFERROR(IF(BF27=".",".",IF(BF27="n/a","n/a", GETPIVOTDATA(BG$21 & "",PivotTableB!$A$3,"SchoolName",$B27,"SubsidiaryName",$C27,"YearStart",BA$13))),"") -> 180 | BH27: =IFERROR(IF($B27="","", IF(OR($L27="Nursery School",$L27="All-through PRU",$M27="True"),"n/a", IF(GETPIVOTDATA(BH$21 & "",PivotTableB!$A$3,"SchoolName",$B27,"SubsidiaryName",$C27,"YearStart",BH$13)="",".", GETPIVOTDATA(BH$21 & "",PivotTableB!$A$3,"SchoolName",$B27,"SubsidiaryName",$C27,"YearStart",BH$13)))),"") -> 60 | BI27: =IFERROR(IF(BH27=".",".",IF(BH27="n/a","n/a", GETPIVOTDATA(BI$21 & "",PivotTableB!$A$3,"SchoolName",$B27,"SubsidiaryName",$C27,"YearStart",BH$13))),"") -> 0 | BJ27: =IFERROR(IF(BI27=".",".",IF(BI27="n/a","n/a", GETPIVOTDATA(BJ$21 & "",PivotTableB!$A$3,"SchoolName",$B27,"SubsidiaryName",$C27,"YearStart",BH$13))),"") -> 0 | BK27: =IFERROR(IF(BJ27=".",".",IF(BJ27="n/a","n/a", GETPIVOTDATA(BK$21 & "",PivotTableB!$A$3,"SchoolName",$B27,"SubsidiaryName",$C27,"YearStart",BH$13))),"") -> 0 | BL27: 60 | BM27: =IFERROR(IF(BL27=".",".",IF(BL27="n/a","n/a", GETPIVOTDATA(BM$21 & "",PivotTableB!$A$3,"SchoolName",$B27,"SubsidiaryName",$C27,"YearStart",BH$13))),"") -> 0 | BN27: =IFERROR(IF(BM27=".",".",IF(BM27="n/a","n/a", GETPIVOTDATA(BN$21 & "",PivotTableB!$A$3,"SchoolName",$B27,"SubsidiaryName",$C27,"YearStart",BH$13))),"") -> 180 | BO27: =IFERROR(IF($B27="","", IF(OR($L27="Nursery School",$L27="All-through PRU",$M27="True"),"n/a", IF(GETPIVOTDATA(BO$21 & "",PivotTableB!$A$3,"SchoolName",$B27,"SubsidiaryName",$C27,"YearStart",BO$13)="",".", GETPIVOTDATA(BO$21 & "",PivotTableB!$A$3,"SchoolName",$B27,"SubsidiaryName",$C27,"YearStart",BO$13)))),"") -> 60 | BP27: =IFERROR(IF(BO27=".",".",IF(BO27="n/a","n/a", GETPIVOTDATA(BP$21 & "",PivotTableB!$A$3,"SchoolName",$B27,"SubsidiaryName",$C27,"YearStart",BO$13))),"") -> 0 | BQ27: =IFERROR(IF(BP27=".",".",IF(BP27="n/a","n/a", GETPIVOTDATA(BQ$21 & "",PivotTableB!$A$3,"SchoolName",$B27,"SubsidiaryName",$C27,"YearStart",BO$13))),"") -> 0 | BR27: =IFERROR(IF(BQ27=".",".",IF(BQ27="n/a","n/a", GETPIVOTDATA(BR$21 & "",PivotTableB!$A$3,"SchoolName",$B27,"SubsidiaryName",$C27,"YearStart",BP$13))),"") ->  | BS27: 60 | BT27: =IFERROR(IF(BS27=".",".",IF(BS27="n/a","n/a", GETPIVOTDATA(BT$21 & "",PivotTableB!$A$3,"SchoolName",$B27,"SubsidiaryName",$C27,"YearStart",BO$13))),"") -> 0 | BU27: =IFERROR(IF(BT27=".",".",IF(BT27="n/a","n/a", GETPIVOTDATA(BU$21 & "",PivotTableB!$A$3,"SchoolName",$B27,"SubsidiaryName",$C27,"YearStart",BO$13))),"") -> 180 | BV27: =IFERROR(IF($B27="","", IF(OR($L27="Nursery School",$L27="All-through PRU",$M27="True"),"n/a", IF(GETPIVOTDATA(BV$21 & "",PivotTableB!$A$3,"SchoolName",$B27,"SubsidiaryName",$C27,"YearStart",BV$13)="",".", GETPIVOTDATA(BV$21 & "",PivotTableB!$A$3,"SchoolName",$B27,"SubsidiaryName",$C27,"YearStart",BV$13)))),"") -> 60 | BW27: =IFERROR(IF(BV27=".",".",IF(BV27="n/a","n/a", GETPIVOTDATA(BW$21 & "",PivotTableB!$A$3,"SchoolName",$B27,"SubsidiaryName",$C27,"YearStart",BV$13))),"") -> 0 | BX27: =IFERROR(IF(BW27=".",".",IF(BW27="n/a","n/a", GETPIVOTDATA(BX$21 & "",PivotTableB!$A$3,"SchoolName",$B27,"SubsidiaryName",$C27,"YearStart",BV$13))),"") -> 0 | BY27: =IFERROR(IF(BX27=".",".",IF(BX27="n/a","n/a", GETPIVOTDATA(BY$21 & "",PivotTableB!$A$3,"SchoolName",$B27,"SubsidiaryName",$C27,"YearStart",BV$13))),"") -> 0 | BZ27: 60 | CA27: =IFERROR(IF(BZ27=".",".",IF(BZ27="n/a","n/a", GETPIVOTDATA(CA$21 & "",PivotTableB!$A$3,"SchoolName",$B27,"SubsidiaryName",$C27,"YearStart",BV$13))),"") -> 0 | CB27: =IFERROR(IF(CA27=".",".",IF(CA27="n/a","n/a", GETPIVOTDATA(CB$21 & "",PivotTableB!$A$3,"SchoolName",$B27,"SubsidiaryName",$C27,"YearStart",BV$13))),"") -> 180
B28: =IF(PivotTableA!A15="","n/a",PivotTableA!A15) -> Braywick Court School | C28: =IF(B28="n/a","",PivotTableA!B15) -> Braywick Court School | D28: =IF($B28="n/a","",PivotTableA!C15) -> R | E28: =IF($B28="n/a","",PivotTableA!D15) -> Maidenhead | F28: =IF($B28="n/a","",PivotTableA!E15) -> South East Maidenhead | G28: =IF($B28="n/a","",PivotTableA!F15) -> Bray | H28: =IF($B28="n/a","",PivotTableA!G15) -> Bray | I28: =IF($B28="n/a","",PivotTableA!H15) -> Bray | J28: =IF($B28="n/a","",PivotTableA!I15) -> Primary | K28: =IF($B28="n/a","",PivotTableA!J15) -> Two Tier | L28: =IF($B28="n/a","",PivotTableA!K15) -> JMI | M28: =IF($B28="n/a","",PivotTableA!O15) -> FALSE | N28: =IF($B28="n/a","",PivotTableA!L15) -> Free School | O28: =IF($B28="n/a","",PivotTableA!M15) ->  | P28: =IF($B28="n/a","",PivotTableA!N15) -> None | Q28: =IFERROR(IF($B28="","", IF(OR($L28="Nursery School",$L28="All-through PRU",$M28="True"),"n/a", IF(GETPIVOTDATA(Q$21 & "",PivotTableB!$A$3,"SchoolName",$B28,"SubsidiaryName",$C28,"YearStart",Q$13)="",".", GETPIVOTDATA(Q$21 & "",PivotTableB!$A$3,"SchoolName",$B28,"SubsidiaryName",$C28,"YearStart",Q$13)))),"") -> . | R28: =IFERROR(IF(Q28=".",".",IF(Q28="n/a","n/a", GETPIVOTDATA(R$21 & "",PivotTableB!$A$3,"SchoolName",$B28,"SubsidiaryName",$C28,"YearStart",Q$13))),"") -> . | S28: =IFERROR(IF(R28=".",".",IF(R28="n/a","n/a", GETPIVOTDATA(S$21 & "",PivotTableB!$A$3,"SchoolName",$B28,"SubsidiaryName",$C28,"YearStart",Q$13))),"") -> . | T28: . | U28: =IFERROR(IF(T28=".",".",IF(T28="n/a","n/a", GETPIVOTDATA(U$21 & "",PivotTableB!$A$3,"SchoolName",$B28,"SubsidiaryName",$C28,"YearStart",Q$13))),"") -> . | V28: =IFERROR(IF(U28=".",".",IF(U28="n/a","n/a", GETPIVOTDATA(V$21 & "",PivotTableB!$A$3,"SchoolName",$B28,"SubsidiaryName",$C28,"YearStart",Q$13))),"") -> . | W28: =IFERROR(IF($B28="","", IF(OR($L28="Nursery School",$L28="All-through PRU",$M28="True"),"n/a", IF(GETPIVOTDATA(W$21 & "",PivotTableB!$A$3,"SchoolName",$B28,"SubsidiaryName",$C28,"YearStart",W$13)="",".", GETPIVOTDATA(W$21 & "",PivotTableB!$A$3,"SchoolName",$B28,"SubsidiaryName",$C28,"YearStart",W$13)))),"") -> 28 | X28: =IFERROR(IF(W28=".",".",IF(W28="n/a","n/a", GETPIVOTDATA(X$21 & "",PivotTableB!$A$3,"SchoolName",$B28,"SubsidiaryName",$C28,"YearStart",W$13))),"") -> 0 | Y28: =IFERROR(IF(X28=".",".",IF(X28="n/a","n/a", GETPIVOTDATA(Y$21 & "",PivotTableB!$A$3,"SchoolName",$B28,"SubsidiaryName",$C28,"YearStart",W$13))),"") -> 0 | Z28: 28 | AA28: =IFERROR(IF(Z28=".",".",IF(Z28="n/a","n/a", GETPIVOTDATA(AA$21 & "",PivotTableB!$A$3,"SchoolName",$B28,"SubsidiaryName",$C28,"YearStart",W$13))),"") -> 0 | AB28: =IFERROR(IF(AA28=".",".",IF(AA28="n/a","n/a", GETPIVOTDATA(AB$21 & "",PivotTableB!$A$3,"SchoolName",$B28,"SubsidiaryName",$C28,"YearStart",W$13))),"") -> 58 | AC28: =IFERROR(IF($B28="","", IF(OR($L28="Nursery School",$L28="All-through PRU",$M28="True"),"n/a", IF(GETPIVOTDATA(AC$21 & "",PivotTableB!$A$3,"SchoolName",$B28,"SubsidiaryName",$C28,"YearStart",AC$13)="",".", GETPIVOTDATA(AC$21 & "",PivotTableB!$A$3,"SchoolName",$B28,"SubsidiaryName",$C28,"YearStart",AC$13)))),"") -> 30 | AD28: =IFERROR(IF(AC28=".",".",IF(AC28="n/a","n/a", GETPIVOTDATA(AD$21 & "",PivotTableB!$A$3,"SchoolName",$B28,"SubsidiaryName",$C28,"YearStart",AC$13))),"") -> 0 | AE28: =IFERROR(IF(AD28=".",".",IF(AD28="n/a","n/a", GETPIVOTDATA(AE$21 & "",PivotTableB!$A$3,"SchoolName",$B28,"SubsidiaryName",$C28,"YearStart",AC$13))),"") -> 0 | AF28: 30 | AG28: =IFERROR(IF(AF28=".",".",IF(AF28="n/a","n/a", GETPIVOTDATA(AG$21 & "",PivotTableB!$A$3,"SchoolName",$B28,"SubsidiaryName",$C28,"YearStart",AC$13))),"") -> 0 | AH28: =IFERROR(IF(AG28=".",".",IF(AG28="n/a","n/a", GETPIVOTDATA(AH$21 & "",PivotTableB!$A$3,"SchoolName",$B28,"SubsidiaryName",$C28,"YearStart",AC$13))),"") -> 58 | AI28: =IFERROR(IF($B28="","", IF(OR($L28="Nursery School",$L28="All-through PRU",$M28="True"),"n/a", IF(GETPIVOTDATA(AI$21 & "",PivotTableB!$A$3,"SchoolName",$B28,"SubsidiaryName",$C28,"YearStart",AI$13)="",".", GETPIVOTDATA(AI$21 & "",PivotTableB!$A$3,"SchoolName",$B28,"SubsidiaryName",$C28,"YearStart",AI$13)))),"") -> 30 | AJ28: =IFERROR(IF(AI28=".",".",IF(AI28="n/a","n/a", GETPIVOTDATA(AJ$21 & "",PivotTableB!$A$3,"SchoolName",$B28,"SubsidiaryName",$C28,"YearStart",AI$13))),"") -> 0 | AK28: =IFERROR(IF(AJ28=".",".",IF(AJ28="n/a","n/a", GETPIVOTDATA(AK$21 & "",PivotTableB!$A$3,"SchoolName",$B28,"SubsidiaryName",$C28,"YearStart",AI$13))),"") -> 0 | AL28: 30 | AM28: =IFERROR(IF(AL28=".",".",IF(AL28="n/a","n/a", GETPIVOTDATA(AM$21 & "",PivotTableB!$A$3,"SchoolName",$B28,"SubsidiaryName",$C28,"YearStart",AI$13))),"") -> 0 | AN28: =IFERROR(IF(AM28=".",".",IF(AM28="n/a","n/a", GETPIVOTDATA(AN$21 & "",PivotTableB!$A$3,"SchoolName",$B28,"SubsidiaryName",$C28,"YearStart",AI$13))),"") -> 90 | AO28: =IFERROR(IF($B28="","", IF(OR($L28="Nursery School",$L28="All-through PRU",$M28="True"),"n/a", IF(GETPIVOTDATA(AO$21 & "",PivotTableB!$A$3,"SchoolName",$B28,"SubsidiaryName",$C28,"YearStart",AO$13)="",".", GETPIVOTDATA(AO$21 & "",PivotTableB!$A$3,"SchoolName",$B28,"SubsidiaryName",$C28,"YearStart",AO$13)))),"") -> 30 | AP28: =IFERROR(IF(AO28=".",".",IF(AO28="n/a","n/a", GETPIVOTDATA(AP$21 & "",PivotTableB!$A$3,"SchoolName",$B28,"SubsidiaryName",$C28,"YearStart",AO$13))),"") -> 0 | AQ28: =IFERROR(IF(AP28=".",".",IF(AP28="n/a","n/a", GETPIVOTDATA(AQ$21 & "",PivotTableB!$A$3,"SchoolName",$B28,"SubsidiaryName",$C28,"YearStart",AO$13))),"") -> 0 | AR28: 30 | AS28: =IFERROR(IF(AR28=".",".",IF(AR28="n/a","n/a", GETPIVOTDATA(AS$21 & "",PivotTableB!$A$3,"SchoolName",$B28,"SubsidiaryName",$C28,"YearStart",AO$13))),"") -> 0 | AT28: =IFERROR(IF(AS28=".",".",IF(AS28="n/a","n/a", GETPIVOTDATA(AT$21 & "",PivotTableB!$A$3,"SchoolName",$B28,"SubsidiaryName",$C28,"YearStart",AO$13))),"") -> 115 | AU28: =IFERROR(IF($B28="","", IF(OR($L28="Nursery School",$L28="All-through PRU",$M28="True"),"n/a", IF(GETPIVOTDATA(AU$21 & "",PivotTableB!$A$3,"SchoolName",$B28,"SubsidiaryName",$C28,"YearStart",AU$13)="",".", GETPIVOTDATA(AU$21 & "",PivotTableB!$A$3,"SchoolName",$B28,"SubsidiaryName",$C28,"YearStart",AU$13)))),"") -> 30 | AV28: =IFERROR(IF(AU28=".",".",IF(AU28="n/a","n/a", GETPIVOTDATA(AV$21 & "",PivotTableB!$A$3,"SchoolName",$B28,"SubsidiaryName",$C28,"YearStart",AU$13))),"") -> 0 | AW28: =IFERROR(IF(AV28=".",".",IF(AV28="n/a","n/a", GETPIVOTDATA(AW$21 & "",PivotTableB!$A$3,"SchoolName",$B28,"SubsidiaryName",$C28,"YearStart",AU$13))),"") -> 0 | AX28: 30 | AY28: =IFERROR(IF(AX28=".",".",IF(AX28="n/a","n/a", GETPIVOTDATA(AY$21 & "",PivotTableB!$A$3,"SchoolName",$B28,"SubsidiaryName",$C28,"YearStart",AU$13))),"") -> 0 | AZ28: =IFERROR(IF(AY28=".",".",IF(AY28="n/a","n/a", GETPIVOTDATA(AZ$21 & "",PivotTableB!$A$3,"SchoolName",$B28,"SubsidiaryName",$C28,"YearStart",AU$13))),"") -> 210 | BA28: =IFERROR(IF($B28="","", IF(OR($L28="Nursery School",$L28="All-through PRU",$M28="True"),"n/a", IF(GETPIVOTDATA(BA$21 & "",PivotTableB!$A$3,"SchoolName",$B28,"SubsidiaryName",$C28,"YearStart",BA$13)="",".", GETPIVOTDATA(BA$21 & "",PivotTableB!$A$3,"SchoolName",$B28,"SubsidiaryName",$C28,"YearStart",BA$13)))),"") -> 30 | BB28: =IFERROR(IF(BA28=".",".",IF(BA28="n/a","n/a", GETPIVOTDATA(BB$21 & "",PivotTableB!$A$3,"SchoolName",$B28,"SubsidiaryName",$C28,"YearStart",BA$13))),"") -> 0 | BC28: =IFERROR(IF(BB28=".",".",IF(BB28="n/a","n/a", GETPIVOTDATA(BC$21 & "",PivotTableB!$A$3,"SchoolName",$B28,"SubsidiaryName",$C28,"YearStart",BA$13))),"") -> 0 | BD28: =IFERROR(IF(BC28=".",".",IF(BC28="n/a","n/a", GETPIVOTDATA(BD$21 & "",PivotTableB!$A$3,"SchoolName",$B28,"SubsidiaryName",$C28,"YearStart",BB$13))),"") ->  | BE28: 30 | BF28: =IFERROR(IF(BE28=".",".",IF(BE28="n/a","n/a", GETPIVOTDATA(BF$21 & "",PivotTableB!$A$3,"SchoolName",$B28,"SubsidiaryName",$C28,"YearStart",BA$13))),"") -> 0 | BG28: =IFERROR(IF(BF28=".",".",IF(BF28="n/a","n/a", GETPIVOTDATA(BG$21 & "",PivotTableB!$A$3,"SchoolName",$B28,"SubsidiaryName",$C28,"YearStart",BA$13))),"") -> 210 | BH28: =IFERROR(IF($B28="","", IF(OR($L28="Nursery School",$L28="All-through PRU",$M28="True"),"n/a", IF(GETPIVOTDATA(BH$21 & "",PivotTableB!$A$3,"SchoolName",$B28,"SubsidiaryName",$C28,"YearStart",BH$13)="",".", GETPIVOTDATA(BH$21 & "",PivotTableB!$A$3,"SchoolName",$B28,"SubsidiaryName",$C28,"YearStart",BH$13)))),"") -> 30 | BI28: =IFERROR(IF(BH28=".",".",IF(BH28="n/a","n/a", GETPIVOTDATA(BI$21 & "",PivotTableB!$A$3,"SchoolName",$B28,"SubsidiaryName",$C28,"YearStart",BH$13))),"") -> 0 | BJ28: =IFERROR(IF(BI28=".",".",IF(BI28="n/a","n/a", GETPIVOTDATA(BJ$21 & "",PivotTableB!$A$3,"SchoolName",$B28,"SubsidiaryName",$C28,"YearStart",BH$13))),"") -> 0 | BK28: =IFERROR(IF(BJ28=".",".",IF(BJ28="n/a","n/a", GETPIVOTDATA(BK$21 & "",PivotTableB!$A$3,"SchoolName",$B28,"SubsidiaryName",$C28,"YearStart",BH$13))),"") -> 0 | BL28: 30 | BM28: =IFERROR(IF(BL28=".",".",IF(BL28="n/a","n/a", GETPIVOTDATA(BM$21 & "",PivotTableB!$A$3,"SchoolName",$B28,"SubsidiaryName",$C28,"YearStart",BH$13))),"") -> 0 | BN28: =IFERROR(IF(BM28=".",".",IF(BM28="n/a","n/a", GETPIVOTDATA(BN$21 & "",PivotTableB!$A$3,"SchoolName",$B28,"SubsidiaryName",$C28,"YearStart",BH$13))),"") -> 210 | BO28: =IFERROR(IF($B28="","", IF(OR($L28="Nursery School",$L28="All-through PRU",$M28="True"),"n/a", IF(GETPIVOTDATA(BO$21 & "",PivotTableB!$A$3,"SchoolName",$B28,"SubsidiaryName",$C28,"YearStart",BO$13)="",".", GETPIVOTDATA(BO$21 & "",PivotTableB!$A$3,"SchoolName",$B28,"SubsidiaryName",$C28,"YearStart",BO$13)))),"") -> 30 | BP28: =IFERROR(IF(BO28=".",".",IF(BO28="n/a","n/a", GETPIVOTDATA(BP$21 & "",PivotTableB!$A$3,"SchoolName",$B28,"SubsidiaryName",$C28,"YearStart",BO$13))),"") -> 0 | BQ28: =IFERROR(IF(BP28=".",".",IF(BP28="n/a","n/a", GETPIVOTDATA(BQ$21 & "",PivotTableB!$A$3,"SchoolName",$B28,"SubsidiaryName",$C28,"YearStart",BO$13))),"") -> 0 | BR28: =IFERROR(IF(BQ28=".",".",IF(BQ28="n/a","n/a", GETPIVOTDATA(BR$21 & "",PivotTableB!$A$3,"SchoolName",$B28,"SubsidiaryName",$C28,"YearStart",BP$13))),"") ->  | BS28: 30 | BT28: =IFERROR(IF(BS28=".",".",IF(BS28="n/a","n/a", GETPIVOTDATA(BT$21 & "",PivotTableB!$A$3,"SchoolName",$B28,"SubsidiaryName",$C28,"YearStart",BO$13))),"") -> 0 | BU28: =IFERROR(IF(BT28=".",".",IF(BT28="n/a","n/a", GETPIVOTDATA(BU$21 & "",PivotTableB!$A$3,"SchoolName",$B28,"SubsidiaryName",$C28,"YearStart",BO$13))),"") -> 210 | BV28: =IFERROR(IF($B28="","", IF(OR($L28="Nursery School",$L28="All-through PRU",$M28="True"),"n/a", IF(GETPIVOTDATA(BV$21 & "",PivotTableB!$A$3,"SchoolName",$B28,"SubsidiaryName",$C28,"YearStart",BV$13)="",".", GETPIVOTDATA(BV$21 & "",PivotTableB!$A$3,"SchoolName",$B28,"SubsidiaryName",$C28,"YearStart",BV$13)))),"") -> 30 | BW28: =IFERROR(IF(BV28=".",".",IF(BV28="n/a","n/a", GETPIVOTDATA(BW$21 & "",PivotTableB!$A$3,"SchoolName",$B28,"SubsidiaryName",$C28,"YearStart",BV$13))),"") -> 0 | BX28: =IFERROR(IF(BW28=".",".",IF(BW28="n/a","n/a", GETPIVOTDATA(BX$21 & "",PivotTableB!$A$3,"SchoolName",$B28,"SubsidiaryName",$C28,"YearStart",BV$13))),"") -> 0 | BY28: =IFERROR(IF(BX28=".",".",IF(BX28="n/a","n/a", GETPIVOTDATA(BY$21 & "",PivotTableB!$A$3,"SchoolName",$B28,"SubsidiaryName",$C28,"YearStart",BV$13))),"") -> 0 | BZ28: 30 | CA28: =IFERROR(IF(BZ28=".",".",IF(BZ28="n/a","n/a", GETPIVOTDATA(CA$21 & "",PivotTableB!$A$3,"SchoolName",$B28,"SubsidiaryName",$C28,"YearStart",BV$13))),"") -> 0 | CB28: =IFERROR(IF(CA28=".",".",IF(CA28="n/a","n/a", GETPIVOTDATA(CB$21 & "",PivotTableB!$A$3,"SchoolName",$B28,"SubsidiaryName",$C28,"YearStart",BV$13))),"") -> 210
B29: =IF(PivotTableA!A16="","n/a",PivotTableA!A16) -> Braywood C of E First School | C29: =IF(B29="n/a","",PivotTableA!B16) -> Braywood C of E First School | D29: =IF($B29="n/a","",PivotTableA!C16) -> R | E29: =IF($B29="n/a","",PivotTableA!D16) -> Windsor | F29: =IF($B29="n/a","",PivotTableA!E16) -> Windsor Villages | G29: =IF($B29="n/a","",PivotTableA!F16) -> Fifield | H29: =IF($B29="n/a","",PivotTableA!G16) -> Bray | I29: =IF($B29="n/a","",PivotTableA!H16) -> Bray | J29: =IF($B29="n/a","",PivotTableA!I16) -> Primary | K29: =IF($B29="n/a","",PivotTableA!J16) -> Three Tier | L29: =IF($B29="n/a","",PivotTableA!K16) -> First | M29: =IF($B29="n/a","",PivotTableA!O16) -> FALSE | N29: =IF($B29="n/a","",PivotTableA!L16) -> Voluntary Controlled | O29: =IF($B29="n/a","",PivotTableA!M16) ->  | P29: =IF($B29="n/a","",PivotTableA!N16) -> Church of England | Q29: =IFERROR(IF($B29="","", IF(OR($L29="Nursery School",$L29="All-through PRU",$M29="True"),"n/a", IF(GETPIVOTDATA(Q$21 & "",PivotTableB!$A$3,"SchoolName",$B29,"SubsidiaryName",$C29,"YearStart",Q$13)="",".", GETPIVOTDATA(Q$21 & "",PivotTableB!$A$3,"SchoolName",$B29,"SubsidiaryName",$C29,"YearStart",Q$13)))),"") -> 25 | R29: =IFERROR(IF(Q29=".",".",IF(Q29="n/a","n/a", GETPIVOTDATA(R$21 & "",PivotTableB!$A$3,"SchoolName",$B29,"SubsidiaryName",$C29,"YearStart",Q$13))),"") -> 5 | S29: =IFERROR(IF(R29=".",".",IF(R29="n/a","n/a", GETPIVOTDATA(S$21 & "",PivotTableB!$A$3,"SchoolName",$B29,"SubsidiaryName",$C29,"YearStart",Q$13))),"") -> 0 | T29: 30 | U29: =IFERROR(IF(T29=".",".",IF(T29="n/a","n/a", GETPIVOTDATA(U$21 & "",PivotTableB!$A$3,"SchoolName",$B29,"SubsidiaryName",$C29,"YearStart",Q$13))),"") -> 0 | V29: =IFERROR(IF(U29=".",".",IF(U29="n/a","n/a", GETPIVOTDATA(V$21 & "",PivotTableB!$A$3,"SchoolName",$B29,"SubsidiaryName",$C29,"YearStart",Q$13))),"") -> 137 | W29: =IFERROR(IF($B29="","", IF(OR($L29="Nursery School",$L29="All-through PRU",$M29="True"),"n/a", IF(GETPIVOTDATA(W$21 & "",PivotTableB!$A$3,"SchoolName",$B29,"SubsidiaryName",$C29,"YearStart",W$13)="",".", GETPIVOTDATA(W$21 & "",PivotTableB!$A$3,"SchoolName",$B29,"SubsidiaryName",$C29,"YearStart",W$13)))),"") -> 30 | X29: =IFERROR(IF(W29=".",".",IF(W29="n/a","n/a", GETPIVOTDATA(X$21 & "",PivotTableB!$A$3,"SchoolName",$B29,"SubsidiaryName",$C29,"YearStart",W$13))),"") -> 0 | Y29: =IFERROR(IF(X29=".",".",IF(X29="n/a","n/a", GETPIVOTDATA(Y$21 & "",PivotTableB!$A$3,"SchoolName",$B29,"SubsidiaryName",$C29,"YearStart",W$13))),"") -> 0 | Z29: 30 | AA29: =IFERROR(IF(Z29=".",".",IF(Z29="n/a","n/a", GETPIVOTDATA(AA$21 & "",PivotTableB!$A$3,"SchoolName",$B29,"SubsidiaryName",$C29,"YearStart",W$13))),"") -> 0 | AB29: =IFERROR(IF(AA29=".",".",IF(AA29="n/a","n/a", GETPIVOTDATA(AB$21 & "",PivotTableB!$A$3,"SchoolName",$B29,"SubsidiaryName",$C29,"YearStart",W$13))),"") -> 137 | AC29: =IFERROR(IF($B29="","", IF(OR($L29="Nursery School",$L29="All-through PRU",$M29="True"),"n/a", IF(GETPIVOTDATA(AC$21 & "",PivotTableB!$A$3,"SchoolName",$B29,"SubsidiaryName",$C29,"YearStart",AC$13)="",".", GETPIVOTDATA(AC$21 & "",PivotTableB!$A$3,"SchoolName",$B29,"SubsidiaryName",$C29,"YearStart",AC$13)))),"") -> 30 | AD29: =IFERROR(IF(AC29=".",".",IF(AC29="n/a","n/a", GETPIVOTDATA(AD$21 & "",PivotTableB!$A$3,"SchoolName",$B29,"SubsidiaryName",$C29,"YearStart",AC$13))),"") -> 0 | AE29: =IFERROR(IF(AD29=".",".",IF(AD29="n/a","n/a", GETPIVOTDATA(AE$21 & "",PivotTableB!$A$3,"SchoolName",$B29,"SubsidiaryName",$C29,"YearStart",AC$13))),"") -> 0 | AF29: 30 | AG29: =IFERROR(IF(AF29=".",".",IF(AF29="n/a","n/a", GETPIVOTDATA(AG$21 & "",PivotTableB!$A$3,"SchoolName",$B29,"SubsidiaryName",$C29,"YearStart",AC$13))),"") -> 0 | AH29: =IFERROR(IF(AG29=".",".",IF(AG29="n/a","n/a", GETPIVOTDATA(AH$21 & "",PivotTableB!$A$3,"SchoolName",$B29,"SubsidiaryName",$C29,"YearStart",AC$13))),"") -> 137 | AI29: =IFERROR(IF($B29="","", IF(OR($L29="Nursery School",$L29="All-through PRU",$M29="True"),"n/a", IF(GETPIVOTDATA(AI$21 & "",PivotTableB!$A$3,"SchoolName",$B29,"SubsidiaryName",$C29,"YearStart",AI$13)="",".", GETPIVOTDATA(AI$21 & "",PivotTableB!$A$3,"SchoolName",$B29,"SubsidiaryName",$C29,"YearStart",AI$13)))),"") -> 30 | AJ29: =IFERROR(IF(AI29=".",".",IF(AI29="n/a","n/a", GETPIVOTDATA(AJ$21 & "",PivotTableB!$A$3,"SchoolName",$B29,"SubsidiaryName",$C29,"YearStart",AI$13))),"") -> 0 | AK29: =IFERROR(IF(AJ29=".",".",IF(AJ29="n/a","n/a", GETPIVOTDATA(AK$21 & "",PivotTableB!$A$3,"SchoolName",$B29,"SubsidiaryName",$C29,"YearStart",AI$13))),"") -> 0 | AL29: 30 | AM29: =IFERROR(IF(AL29=".",".",IF(AL29="n/a","n/a", GETPIVOTDATA(AM$21 & "",PivotTableB!$A$3,"SchoolName",$B29,"SubsidiaryName",$C29,"YearStart",AI$13))),"") -> 0 | AN29: =IFERROR(IF(AM29=".",".",IF(AM29="n/a","n/a", GETPIVOTDATA(AN$21 & "",PivotTableB!$A$3,"SchoolName",$B29,"SubsidiaryName",$C29,"YearStart",AI$13))),"") -> 137 | AO29: =IFERROR(IF($B29="","", IF(OR($L29="Nursery School",$L29="All-through PRU",$M29="True"),"n/a", IF(GETPIVOTDATA(AO$21 & "",PivotTableB!$A$3,"SchoolName",$B29,"SubsidiaryName",$C29,"YearStart",AO$13)="",".", GETPIVOTDATA(AO$21 & "",PivotTableB!$A$3,"SchoolName",$B29,"SubsidiaryName",$C29,"YearStart",AO$13)))),"") -> 30 | AP29: =IFERROR(IF(AO29=".",".",IF(AO29="n/a","n/a", GETPIVOTDATA(AP$21 & "",PivotTableB!$A$3,"SchoolName",$B29,"SubsidiaryName",$C29,"YearStart",AO$13))),"") -> 0 | AQ29: =IFERROR(IF(AP29=".",".",IF(AP29="n/a","n/a", GETPIVOTDATA(AQ$21 & "",PivotTableB!$A$3,"SchoolName",$B29,"SubsidiaryName",$C29,"YearStart",AO$13))),"") -> 0 | AR29: 30 | AS29: =IFERROR(IF(AR29=".",".",IF(AR29="n/a","n/a", GETPIVOTDATA(AS$21 & "",PivotTableB!$A$3,"SchoolName",$B29,"SubsidiaryName",$C29,"YearStart",AO$13))),"") -> 0 | AT29: =IFERROR(IF(AS29=".",".",IF(AS29="n/a","n/a", GETPIVOTDATA(AT$21 & "",PivotTableB!$A$3,"SchoolName",$B29,"SubsidiaryName",$C29,"YearStart",AO$13))),"") -> 137 | AU29: =IFERROR(IF($B29="","", IF(OR($L29="Nursery School",$L29="All-through PRU",$M29="True"),"n/a", IF(GETPIVOTDATA(AU$21 & "",PivotTableB!$A$3,"SchoolName",$B29,"SubsidiaryName",$C29,"YearStart",AU$13)="",".", GETPIVOTDATA(AU$21 & "",PivotTableB!$A$3,"SchoolName",$B29,"SubsidiaryName",$C29,"YearStart",AU$13)))),"") -> 30 | AV29: =IFERROR(IF(AU29=".",".",IF(AU29="n/a","n/a", GETPIVOTDATA(AV$21 & "",PivotTableB!$A$3,"SchoolName",$B29,"SubsidiaryName",$C29,"YearStart",AU$13))),"") -> 0 | AW29: =IFERROR(IF(AV29=".",".",IF(AV29="n/a","n/a", GETPIVOTDATA(AW$21 & "",PivotTableB!$A$3,"SchoolName",$B29,"SubsidiaryName",$C29,"YearStart",AU$13))),"") -> 0 | AX29: 30 | AY29: =IFERROR(IF(AX29=".",".",IF(AX29="n/a","n/a", GETPIVOTDATA(AY$21 & "",PivotTableB!$A$3,"SchoolName",$B29,"SubsidiaryName",$C29,"YearStart",AU$13))),"") -> 0 | AZ29: =IFERROR(IF(AY29=".",".",IF(AY29="n/a","n/a", GETPIVOTDATA(AZ$21 & "",PivotTableB!$A$3,"SchoolName",$B29,"SubsidiaryName",$C29,"YearStart",AU$13))),"") -> 137 | BA29: =IFERROR(IF($B29="","", IF(OR($L29="Nursery School",$L29="All-through PRU",$M29="True"),"n/a", IF(GETPIVOTDATA(BA$21 & "",PivotTableB!$A$3,"SchoolName",$B29,"SubsidiaryName",$C29,"YearStart",BA$13)="",".", GETPIVOTDATA(BA$21 & "",PivotTableB!$A$3,"SchoolName",$B29,"SubsidiaryName",$C29,"YearStart",BA$13)))),"") -> 30 | BB29: =IFERROR(IF(BA29=".",".",IF(BA29="n/a","n/a", GETPIVOTDATA(BB$21 & "",PivotTableB!$A$3,"SchoolName",$B29,"SubsidiaryName",$C29,"YearStart",BA$13))),"") -> 0 | BC29: =IFERROR(IF(BB29=".",".",IF(BB29="n/a","n/a", GETPIVOTDATA(BC$21 & "",PivotTableB!$A$3,"SchoolName",$B29,"SubsidiaryName",$C29,"YearStart",BA$13))),"") -> 0 | BD29: =IFERROR(IF(BC29=".",".",IF(BC29="n/a","n/a", GETPIVOTDATA(BD$21 & "",PivotTableB!$A$3,"SchoolName",$B29,"SubsidiaryName",$C29,"YearStart",BB$13))),"") ->  | BE29: 30 | BF29: =IFERROR(IF(BE29=".",".",IF(BE29="n/a","n/a", GETPIVOTDATA(BF$21 & "",PivotTableB!$A$3,"SchoolName",$B29,"SubsidiaryName",$C29,"YearStart",BA$13))),"") -> 0 | BG29: =IFERROR(IF(BF29=".",".",IF(BF29="n/a","n/a", GETPIVOTDATA(BG$21 & "",PivotTableB!$A$3,"SchoolName",$B29,"SubsidiaryName",$C29,"YearStart",BA$13))),"") -> 137 | BH29: =IFERROR(IF($B29="","", IF(OR($L29="Nursery School",$L29="All-through PRU",$M29="True"),"n/a", IF(GETPIVOTDATA(BH$21 & "",PivotTableB!$A$3,"SchoolName",$B29,"SubsidiaryName",$C29,"YearStart",BH$13)="",".", GETPIVOTDATA(BH$21 & "",PivotTableB!$A$3,"SchoolName",$B29,"SubsidiaryName",$C29,"YearStart",BH$13)))),"") -> 30 | BI29: =IFERROR(IF(BH29=".",".",IF(BH29="n/a","n/a", GETPIVOTDATA(BI$21 & "",PivotTableB!$A$3,"SchoolName",$B29,"SubsidiaryName",$C29,"YearStart",BH$13))),"") -> 0 | BJ29: =IFERROR(IF(BI29=".",".",IF(BI29="n/a","n/a", GETPIVOTDATA(BJ$21 & "",PivotTableB!$A$3,"SchoolName",$B29,"SubsidiaryName",$C29,"YearStart",BH$13))),"") -> 0 | BK29: =IFERROR(IF(BJ29=".",".",IF(BJ29="n/a","n/a", GETPIVOTDATA(BK$21 & "",PivotTableB!$A$3,"SchoolName",$B29,"SubsidiaryName",$C29,"YearStart",BH$13))),"") -> 0 | BL29: 30 | BM29: =IFERROR(IF(BL29=".",".",IF(BL29="n/a","n/a", GETPIVOTDATA(BM$21 & "",PivotTableB!$A$3,"SchoolName",$B29,"SubsidiaryName",$C29,"YearStart",BH$13))),"") -> 0 | BN29: =IFERROR(IF(BM29=".",".",IF(BM29="n/a","n/a", GETPIVOTDATA(BN$21 & "",PivotTableB!$A$3,"SchoolName",$B29,"SubsidiaryName",$C29,"YearStart",BH$13))),"") -> 137 | BO29: =IFERROR(IF($B29="","", IF(OR($L29="Nursery School",$L29="All-through PRU",$M29="True"),"n/a", IF(GETPIVOTDATA(BO$21 & "",PivotTableB!$A$3,"SchoolName",$B29,"SubsidiaryName",$C29,"YearStart",BO$13)="",".", GETPIVOTDATA(BO$21 & "",PivotTableB!$A$3,"SchoolName",$B29,"SubsidiaryName",$C29,"YearStart",BO$13)))),"") -> 30 | BP29: =IFERROR(IF(BO29=".",".",IF(BO29="n/a","n/a", GETPIVOTDATA(BP$21 & "",PivotTableB!$A$3,"SchoolName",$B29,"SubsidiaryName",$C29,"YearStart",BO$13))),"") -> 0 | BQ29: =IFERROR(IF(BP29=".",".",IF(BP29="n/a","n/a", GETPIVOTDATA(BQ$21 & "",PivotTableB!$A$3,"SchoolName",$B29,"SubsidiaryName",$C29,"YearStart",BO$13))),"") -> 0 | BR29: =IFERROR(IF(BQ29=".",".",IF(BQ29="n/a","n/a", GETPIVOTDATA(BR$21 & "",PivotTableB!$A$3,"SchoolName",$B29,"SubsidiaryName",$C29,"YearStart",BP$13))),"") ->  | BS29: 30 | BT29: =IFERROR(IF(BS29=".",".",IF(BS29="n/a","n/a", GETPIVOTDATA(BT$21 & "",PivotTableB!$A$3,"SchoolName",$B29,"SubsidiaryName",$C29,"YearStart",BO$13))),"") -> 0 | BU29: =IFERROR(IF(BT29=".",".",IF(BT29="n/a","n/a", GETPIVOTDATA(BU$21 & "",PivotTableB!$A$3,"SchoolName",$B29,"SubsidiaryName",$C29,"YearStart",BO$13))),"") -> 137 | BV29: =IFERROR(IF($B29="","", IF(OR($L29="Nursery School",$L29="All-through PRU",$M29="True"),"n/a", IF(GETPIVOTDATA(BV$21 & "",PivotTableB!$A$3,"SchoolName",$B29,"SubsidiaryName",$C29,"YearStart",BV$13)="",".", GETPIVOTDATA(BV$21 & "",PivotTableB!$A$3,"SchoolName",$B29,"SubsidiaryName",$C29,"YearStart",BV$13)))),"") -> 30 | BW29: =IFERROR(IF(BV29=".",".",IF(BV29="n/a","n/a", GETPIVOTDATA(BW$21 & "",PivotTableB!$A$3,"SchoolName",$B29,"SubsidiaryName",$C29,"YearStart",BV$13))),"") -> 0 | BX29: =IFERROR(IF(BW29=".",".",IF(BW29="n/a","n/a", GETPIVOTDATA(BX$21 & "",PivotTableB!$A$3,"SchoolName",$B29,"SubsidiaryName",$C29,"YearStart",BV$13))),"") -> 0 | BY29: =IFERROR(IF(BX29=".",".",IF(BX29="n/a","n/a", GETPIVOTDATA(BY$21 & "",PivotTableB!$A$3,"SchoolName",$B29,"SubsidiaryName",$C29,"YearStart",BV$13))),"") -> 0 | BZ29: 30 | CA29: =IFERROR(IF(BZ29=".",".",IF(BZ29="n/a","n/a", GETPIVOTDATA(CA$21 & "",PivotTableB!$A$3,"SchoolName",$B29,"SubsidiaryName",$C29,"YearStart",BV$13))),"") -> 0 | CB29: =IFERROR(IF(CA29=".",".",IF(CA29="n/a","n/a", GETPIVOTDATA(CB$21 & "",PivotTableB!$A$3,"SchoolName",$B29,"SubsidiaryName",$C29,"YearStart",BV$13))),"") -> 137
B30: =IF(PivotTableA!A17="","n/a",PivotTableA!A17) -> Burchetts Green CE Infant School | C30: =IF(B30="n/a","",PivotTableA!B17) -> Burchetts Green CE Infant School | D30: =IF($B30="n/a","",PivotTableA!C17) -> R | E30: =IF($B30="n/a","",PivotTableA!D17) -> Maidenhead | F30: =IF($B30="n/a","",PivotTableA!E17) -> Maidenhead Villages | G30: =IF($B30="n/a","",PivotTableA!F17) -> Burchett's Green | H30: =IF($B30="n/a","",PivotTableA!G17) -> Hurley and Walthams | I30: =IF($B30="n/a","",PivotTableA!H17) -> Hurley | J30: =IF($B30="n/a","",PivotTableA!I17) -> Primary | K30: =IF($B30="n/a","",PivotTableA!J17) -> Two Tier | L30: =IF($B30="n/a","",PivotTableA!K17) -> Infants | M30: =IF($B30="n/a","",PivotTableA!O17) -> FALSE | N30: =IF($B30="n/a","",PivotTableA!L17) -> Academy | O30: =IF($B30="n/a","",PivotTableA!M17) -> 2014-12-01 | P30: =IF($B30="n/a","",PivotTableA!N17) -> Church of England | Q30: =IFERROR(IF($B30="","", IF(OR($L30="Nursery School",$L30="All-through PRU",$M30="True"),"n/a", IF(GETPIVOTDATA(Q$21 & "",PivotTableB!$A$3,"SchoolName",$B30,"SubsidiaryName",$C30,"YearStart",Q$13)="",".", GETPIVOTDATA(Q$21 & "",PivotTableB!$A$3,"SchoolName",$B30,"SubsidiaryName",$C30,"YearStart",Q$13)))),"") -> 20 | R30: =IFERROR(IF(Q30=".",".",IF(Q30="n/a","n/a", GETPIVOTDATA(R$21 & "",PivotTableB!$A$3,"SchoolName",$B30,"SubsidiaryName",$C30,"YearStart",Q$13))),"") -> 0 | S30: =IFERROR(IF(R30=".",".",IF(R30="n/a","n/a", GETPIVOTDATA(S$21 & "",PivotTableB!$A$3,"SchoolName",$B30,"SubsidiaryName",$C30,"YearStart",Q$13))),"") -> 0 | T30: 20 | U30: =IFERROR(IF(T30=".",".",IF(T30="n/a","n/a", GETPIVOTDATA(U$21 & "",PivotTableB!$A$3,"SchoolName",$B30,"SubsidiaryName",$C30,"YearStart",Q$13))),"") -> 0 | V30: =IFERROR(IF(U30=".",".",IF(U30="n/a","n/a", GETPIVOTDATA(V$21 & "",PivotTableB!$A$3,"SchoolName",$B30,"SubsidiaryName",$C30,"YearStart",Q$13))),"") -> 60 | W30: =IFERROR(IF($B30="","", IF(OR($L30="Nursery School",$L30="All-through PRU",$M30="True"),"n/a", IF(GETPIVOTDATA(W$21 & "",PivotTableB!$A$3,"SchoolName",$B30,"SubsidiaryName",$C30,"YearStart",W$13)="",".", GETPIVOTDATA(W$21 & "",PivotTableB!$A$3,"SchoolName",$B30,"SubsidiaryName",$C30,"YearStart",W$13)))),"") -> 20 | X30: =IFERROR(IF(W30=".",".",IF(W30="n/a","n/a", GETPIVOTDATA(X$21 & "",PivotTableB!$A$3,"SchoolName",$B30,"SubsidiaryName",$C30,"YearStart",W$13))),"") -> 0 | Y30: =IFERROR(IF(X30=".",".",IF(X30="n/a","n/a", GETPIVOTDATA(Y$21 & "",PivotTableB!$A$3,"SchoolName",$B30,"SubsidiaryName",$C30,"YearStart",W$13))),"") -> 0 | Z30: 20 | AA30: =IFERROR(IF(Z30=".",".",IF(Z30="n/a","n/a", GETPIVOTDATA(AA$21 & "",PivotTableB!$A$3,"SchoolName",$B30,"SubsidiaryName",$C30,"YearStart",W$13))),"") -> 0 | AB30: =IFERROR(IF(AA30=".",".",IF(AA30="n/a","n/a", GETPIVOTDATA(AB$21 & "",PivotTableB!$A$3,"SchoolName",$B30,"SubsidiaryName",$C30,"YearStart",W$13))),"") -> 60 | AC30: =IFERROR(IF($B30="","", IF(OR($L30="Nursery School",$L30="All-through PRU",$M30="True"),"n/a", IF(GETPIVOTDATA(AC$21 & "",PivotTableB!$A$3,"SchoolName",$B30,"SubsidiaryName",$C30,"YearStart",AC$13)="",".", GETPIVOTDATA(AC$21 & "",PivotTableB!$A$3,"SchoolName",$B30,"SubsidiaryName",$C30,"YearStart",AC$13)))),"") -> 20 | AD30: =IFERROR(IF(AC30=".",".",IF(AC30="n/a","n/a", GETPIVOTDATA(AD$21 & "",PivotTableB!$A$3,"SchoolName",$B30,"SubsidiaryName",$C30,"YearStart",AC$13))),"") -> 0 | AE30: =IFERROR(IF(AD30=".",".",IF(AD30="n/a","n/a", GETPIVOTDATA(AE$21 & "",PivotTableB!$A$3,"SchoolName",$B30,"SubsidiaryName",$C30,"YearStart",AC$13))),"") -> 0 | AF30: 20 | AG30: =IFERROR(IF(AF30=".",".",IF(AF30="n/a","n/a", GETPIVOTDATA(AG$21 & "",PivotTableB!$A$3,"SchoolName",$B30,"SubsidiaryName",$C30,"YearStart",AC$13))),"") -> 0 | AH30: =IFERROR(IF(AG30=".",".",IF(AG30="n/a","n/a", GETPIVOTDATA(AH$21 & "",PivotTableB!$A$3,"SchoolName",$B30,"SubsidiaryName",$C30,"YearStart",AC$13))),"") -> 60 | AI30: =IFERROR(IF($B30="","", IF(OR($L30="Nursery School",$L30="All-through PRU",$M30="True"),"n/a", IF(GETPIVOTDATA(AI$21 & "",PivotTableB!$A$3,"SchoolName",$B30,"SubsidiaryName",$C30,"YearStart",AI$13)="",".", GETPIVOTDATA(AI$21 & "",PivotTableB!$A$3,"SchoolName",$B30,"SubsidiaryName",$C30,"YearStart",AI$13)))),"") -> 20 | AJ30: =IFERROR(IF(AI30=".",".",IF(AI30="n/a","n/a", GETPIVOTDATA(AJ$21 & "",PivotTableB!$A$3,"SchoolName",$B30,"SubsidiaryName",$C30,"YearStart",AI$13))),"") -> 5 | AK30: =IFERROR(IF(AJ30=".",".",IF(AJ30="n/a","n/a", GETPIVOTDATA(AK$21 & "",PivotTableB!$A$3,"SchoolName",$B30,"SubsidiaryName",$C30,"YearStart",AI$13))),"") -> 0 | AL30: 25 | AM30: =IFERROR(IF(AL30=".",".",IF(AL30="n/a","n/a", GETPIVOTDATA(AM$21 & "",PivotTableB!$A$3,"SchoolName",$B30,"SubsidiaryName",$C30,"YearStart",AI$13))),"") -> 0 | AN30: =IFERROR(IF(AM30=".",".",IF(AM30="n/a","n/a", GETPIVOTDATA(AN$21 & "",PivotTableB!$A$3,"SchoolName",$B30,"SubsidiaryName",$C30,"YearStart",AI$13))),"") -> 60 | AO30: =IFERROR(IF($B30="","", IF(OR($L30="Nursery School",$L30="All-through PRU",$M30="True"),"n/a", IF(GETPIVOTDATA(AO$21 & "",PivotTableB!$A$3,"SchoolName",$B30,"SubsidiaryName",$C30,"YearStart",AO$13)="",".", GETPIVOTDATA(AO$21 & "",PivotTableB!$A$3,"SchoolName",$B30,"SubsidiaryName",$C30,"YearStart",AO$13)))),"") -> 22 | AP30: =IFERROR(IF(AO30=".",".",IF(AO30="n/a","n/a", GETPIVOTDATA(AP$21 & "",PivotTableB!$A$3,"SchoolName",$B30,"SubsidiaryName",$C30,"YearStart",AO$13))),"") -> 3 | AQ30: =IFERROR(IF(AP30=".",".",IF(AP30="n/a","n/a", GETPIVOTDATA(AQ$21 & "",PivotTableB!$A$3,"SchoolName",$B30,"SubsidiaryName",$C30,"YearStart",AO$13))),"") -> 0 | AR30: 25 | AS30: =IFERROR(IF(AR30=".",".",IF(AR30="n/a","n/a", GETPIVOTDATA(AS$21 & "",PivotTableB!$A$3,"SchoolName",$B30,"SubsidiaryName",$C30,"YearStart",AO$13))),"") -> 0 | AT30: =IFERROR(IF(AS30=".",".",IF(AS30="n/a","n/a", GETPIVOTDATA(AT$21 & "",PivotTableB!$A$3,"SchoolName",$B30,"SubsidiaryName",$C30,"YearStart",AO$13))),"") -> 60 | AU30: =IFERROR(IF($B30="","", IF(OR($L30="Nursery School",$L30="All-through PRU",$M30="True"),"n/a", IF(GETPIVOTDATA(AU$21 & "",PivotTableB!$A$3,"SchoolName",$B30,"SubsidiaryName",$C30,"YearStart",AU$13)="",".", GETPIVOTDATA(AU$21 & "",PivotTableB!$A$3,"SchoolName",$B30,"SubsidiaryName",$C30,"YearStart",AU$13)))),"") -> 22 | AV30: =IFERROR(IF(AU30=".",".",IF(AU30="n/a","n/a", GETPIVOTDATA(AV$21 & "",PivotTableB!$A$3,"SchoolName",$B30,"SubsidiaryName",$C30,"YearStart",AU$13))),"") -> 3 | AW30: =IFERROR(IF(AV30=".",".",IF(AV30="n/a","n/a", GETPIVOTDATA(AW$21 & "",PivotTableB!$A$3,"SchoolName",$B30,"SubsidiaryName",$C30,"YearStart",AU$13))),"") -> 0 | AX30: 25 | AY30: =IFERROR(IF(AX30=".",".",IF(AX30="n/a","n/a", GETPIVOTDATA(AY$21 & "",PivotTableB!$A$3,"SchoolName",$B30,"SubsidiaryName",$C30,"YearStart",AU$13))),"") -> 0 | AZ30: =IFERROR(IF(AY30=".",".",IF(AY30="n/a","n/a", GETPIVOTDATA(AZ$21 & "",PivotTableB!$A$3,"SchoolName",$B30,"SubsidiaryName",$C30,"YearStart",AU$13))),"") -> 60 | BA30: =IFERROR(IF($B30="","", IF(OR($L30="Nursery School",$L30="All-through PRU",$M30="True"),"n/a", IF(GETPIVOTDATA(BA$21 & "",PivotTableB!$A$3,"SchoolName",$B30,"SubsidiaryName",$C30,"YearStart",BA$13)="",".", GETPIVOTDATA(BA$21 & "",PivotTableB!$A$3,"SchoolName",$B30,"SubsidiaryName",$C30,"YearStart",BA$13)))),"") -> 22 | BB30: =IFERROR(IF(BA30=".",".",IF(BA30="n/a","n/a", GETPIVOTDATA(BB$21 & "",PivotTableB!$A$3,"SchoolName",$B30,"SubsidiaryName",$C30,"YearStart",BA$13))),"") -> 0 | BC30: =IFERROR(IF(BB30=".",".",IF(BB30="n/a","n/a", GETPIVOTDATA(BC$21 & "",PivotTableB!$A$3,"SchoolName",$B30,"SubsidiaryName",$C30,"YearStart",BA$13))),"") -> 0 | BD30: =IFERROR(IF(BC30=".",".",IF(BC30="n/a","n/a", GETPIVOTDATA(BD$21 & "",PivotTableB!$A$3,"SchoolName",$B30,"SubsidiaryName",$C30,"YearStart",BB$13))),"") ->  | BE30: 22 | BF30: =IFERROR(IF(BE30=".",".",IF(BE30="n/a","n/a", GETPIVOTDATA(BF$21 & "",PivotTableB!$A$3,"SchoolName",$B30,"SubsidiaryName",$C30,"YearStart",BA$13))),"") -> 0 | BG30: =IFERROR(IF(BF30=".",".",IF(BF30="n/a","n/a", GETPIVOTDATA(BG$21 & "",PivotTableB!$A$3,"SchoolName",$B30,"SubsidiaryName",$C30,"YearStart",BA$13))),"") -> 60 | BH30: =IFERROR(IF($B30="","", IF(OR($L30="Nursery School",$L30="All-through PRU",$M30="True"),"n/a", IF(GETPIVOTDATA(BH$21 & "",PivotTableB!$A$3,"SchoolName",$B30,"SubsidiaryName",$C30,"YearStart",BH$13)="",".", GETPIVOTDATA(BH$21 & "",PivotTableB!$A$3,"SchoolName",$B30,"SubsidiaryName",$C30,"YearStart",BH$13)))),"") -> 22 | BI30: =IFERROR(IF(BH30=".",".",IF(BH30="n/a","n/a", GETPIVOTDATA(BI$21 & "",PivotTableB!$A$3,"SchoolName",$B30,"SubsidiaryName",$C30,"YearStart",BH$13))),"") -> 0 | BJ30: =IFERROR(IF(BI30=".",".",IF(BI30="n/a","n/a", GETPIVOTDATA(BJ$21 & "",PivotTableB!$A$3,"SchoolName",$B30,"SubsidiaryName",$C30,"YearStart",BH$13))),"") -> 0 | BK30: =IFERROR(IF(BJ30=".",".",IF(BJ30="n/a","n/a", GETPIVOTDATA(BK$21 & "",PivotTableB!$A$3,"SchoolName",$B30,"SubsidiaryName",$C30,"YearStart",BH$13))),"") -> 0 | BL30: 22 | BM30: =IFERROR(IF(BL30=".",".",IF(BL30="n/a","n/a", GETPIVOTDATA(BM$21 & "",PivotTableB!$A$3,"SchoolName",$B30,"SubsidiaryName",$C30,"YearStart",BH$13))),"") -> 0 | BN30: =IFERROR(IF(BM30=".",".",IF(BM30="n/a","n/a", GETPIVOTDATA(BN$21 & "",PivotTableB!$A$3,"SchoolName",$B30,"SubsidiaryName",$C30,"YearStart",BH$13))),"") -> 60 | BO30: =IFERROR(IF($B30="","", IF(OR($L30="Nursery School",$L30="All-through PRU",$M30="True"),"n/a", IF(GETPIVOTDATA(BO$21 & "",PivotTableB!$A$3,"SchoolName",$B30,"SubsidiaryName",$C30,"YearStart",BO$13)="",".", GETPIVOTDATA(BO$21 & "",PivotTableB!$A$3,"SchoolName",$B30,"SubsidiaryName",$C30,"YearStart",BO$13)))),"") -> 22 | BP30: =IFERROR(IF(BO30=".",".",IF(BO30="n/a","n/a", GETPIVOTDATA(BP$21 & "",PivotTableB!$A$3,"SchoolName",$B30,"SubsidiaryName",$C30,"YearStart",BO$13))),"") -> 0 | BQ30: =IFERROR(IF(BP30=".",".",IF(BP30="n/a","n/a", GETPIVOTDATA(BQ$21 & "",PivotTableB!$A$3,"SchoolName",$B30,"SubsidiaryName",$C30,"YearStart",BO$13))),"") -> 0 | BR30: =IFERROR(IF(BQ30=".",".",IF(BQ30="n/a","n/a", GETPIVOTDATA(BR$21 & "",PivotTableB!$A$3,"SchoolName",$B30,"SubsidiaryName",$C30,"YearStart",BP$13))),"") ->  | BS30: 22 | BT30: =IFERROR(IF(BS30=".",".",IF(BS30="n/a","n/a", GETPIVOTDATA(BT$21 & "",PivotTableB!$A$3,"SchoolName",$B30,"SubsidiaryName",$C30,"YearStart",BO$13))),"") -> 0 | BU30: =IFERROR(IF(BT30=".",".",IF(BT30="n/a","n/a", GETPIVOTDATA(BU$21 & "",PivotTableB!$A$3,"SchoolName",$B30,"SubsidiaryName",$C30,"YearStart",BO$13))),"") -> 60 | BV30: =IFERROR(IF($B30="","", IF(OR($L30="Nursery School",$L30="All-through PRU",$M30="True"),"n/a", IF(GETPIVOTDATA(BV$21 & "",PivotTableB!$A$3,"SchoolName",$B30,"SubsidiaryName",$C30,"YearStart",BV$13)="",".", GETPIVOTDATA(BV$21 & "",PivotTableB!$A$3,"SchoolName",$B30,"SubsidiaryName",$C30,"YearStart",BV$13)))),"") -> 22 | BW30: =IFERROR(IF(BV30=".",".",IF(BV30="n/a","n/a", GETPIVOTDATA(BW$21 & "",PivotTableB!$A$3,"SchoolName",$B30,"SubsidiaryName",$C30,"YearStart",BV$13))),"") -> 0 | BX30: =IFERROR(IF(BW30=".",".",IF(BW30="n/a","n/a", GETPIVOTDATA(BX$21 & "",PivotTableB!$A$3,"SchoolName",$B30,"SubsidiaryName",$C30,"YearStart",BV$13))),"") -> 0 | BY30: =IFERROR(IF(BX30=".",".",IF(BX30="n/a","n/a", GETPIVOTDATA(BY$21 & "",PivotTableB!$A$3,"SchoolName",$B30,"SubsidiaryName",$C30,"YearStart",BV$13))),"") -> 0 | BZ30: 22 | CA30: =IFERROR(IF(BZ30=".",".",IF(BZ30="n/a","n/a", GETPIVOTDATA(CA$21 & "",PivotTableB!$A$3,"SchoolName",$B30,"SubsidiaryName",$C30,"YearStart",BV$13))),"") -> 0 | CB30: =IFERROR(IF(CA30=".",".",IF(CA30="n/a","n/a", GETPIVOTDATA(CB$21 & "",PivotTableB!$A$3,"SchoolName",$B30,"SubsidiaryName",$C30,"YearStart",BV$13))),"") -> 60
B31: =IF(PivotTableA!A18="","n/a",PivotTableA!A18) -> Charters School | C31: =IF(B31="n/a","",PivotTableA!B18) -> Charters School | D31: =IF($B31="n/a","",PivotTableA!C18) -> 7 | E31: =IF($B31="n/a","",PivotTableA!D18) -> Ascot | F31: =IF($B31="n/a","",PivotTableA!E18) -> Ascot | G31: =IF($B31="n/a","",PivotTableA!F18) -> South Sunningdale | H31: =IF($B31="n/a","",PivotTableA!G18) -> Sunningdale | I31: =IF($B31="n/a","",PivotTableA!H18) -> Sunningdale | J31: =IF($B31="n/a","",PivotTableA!I18) -> Secondary | K31: =IF($B31="n/a","",PivotTableA!J18) -> Two Tier | L31: =IF($B31="n/a","",PivotTableA!K18) -> Secondary | M31: =IF($B31="n/a","",PivotTableA!O18) -> FALSE | N31: =IF($B31="n/a","",PivotTableA!L18) -> Academy | O31: =IF($B31="n/a","",PivotTableA!M18) -> 2012-10-01 | P31: =IF($B31="n/a","",PivotTableA!N18) -> None | Q31: =IFERROR(IF($B31="","", IF(OR($L31="Nursery School",$L31="All-through PRU",$M31="True"),"n/a", IF(GETPIVOTDATA(Q$21 & "",PivotTableB!$A$3,"SchoolName",$B31,"SubsidiaryName",$C31,"YearStart",Q$13)="",".", GETPIVOTDATA(Q$21 & "",PivotTableB!$A$3,"SchoolName",$B31,"SubsidiaryName",$C31,"YearStart",Q$13)))),"") -> 240 | R31: =IFERROR(IF(Q31=".",".",IF(Q31="n/a","n/a", GETPIVOTDATA(R$21 & "",PivotTableB!$A$3,"SchoolName",$B31,"SubsidiaryName",$C31,"YearStart",Q$13))),"") -> 0 | S31: =IFERROR(IF(R31=".",".",IF(R31="n/a","n/a", GETPIVOTDATA(S$21 & "",PivotTableB!$A$3,"SchoolName",$B31,"SubsidiaryName",$C31,"YearStart",Q$13))),"") -> 0 | T31: 240 | U31: =IFERROR(IF(T31=".",".",IF(T31="n/a","n/a", GETPIVOTDATA(U$21 & "",PivotTableB!$A$3,"SchoolName",$B31,"SubsidiaryName",$C31,"YearStart",Q$13))),"") -> 0 | V31: =IFERROR(IF(U31=".",".",IF(U31="n/a","n/a", GETPIVOTDATA(V$21 & "",PivotTableB!$A$3,"SchoolName",$B31,"SubsidiaryName",$C31,"YearStart",Q$13))),"") -> 1666 | W31: =IFERROR(IF($B31="","", IF(OR($L31="Nursery School",$L31="All-through PRU",$M31="True"),"n/a", IF(GETPIVOTDATA(W$21 & "",PivotTableB!$A$3,"SchoolName",$B31,"SubsidiaryName",$C31,"YearStart",W$13)="",".", GETPIVOTDATA(W$21 & "",PivotTableB!$A$3,"SchoolName",$B31,"SubsidiaryName",$C31,"YearStart",W$13)))),"") -> 240 | X31: =IFERROR(IF(W31=".",".",IF(W31="n/a","n/a", GETPIVOTDATA(X$21 & "",PivotTableB!$A$3,"SchoolName",$B31,"SubsidiaryName",$C31,"YearStart",W$13))),"") -> 0 | Y31: =IFERROR(IF(X31=".",".",IF(X31="n/a","n/a", GETPIVOTDATA(Y$21 & "",PivotTableB!$A$3,"SchoolName",$B31,"SubsidiaryName",$C31,"YearStart",W$13))),"") -> 0 | Z31: 240 | AA31: =IFERROR(IF(Z31=".",".",IF(Z31="n/a","n/a", GETPIVOTDATA(AA$21 & "",PivotTableB!$A$3,"SchoolName",$B31,"SubsidiaryName",$C31,"YearStart",W$13))),"") -> 0 | AB31: =IFERROR(IF(AA31=".",".",IF(AA31="n/a","n/a", GETPIVOTDATA(AB$21 & "",PivotTableB!$A$3,"SchoolName",$B31,"SubsidiaryName",$C31,"YearStart",W$13))),"") -> 1666 | AC31: =IFERROR(IF($B31="","", IF(OR($L31="Nursery School",$L31="All-through PRU",$M31="True"),"n/a", IF(GETPIVOTDATA(AC$21 & "",PivotTableB!$A$3,"SchoolName",$B31,"SubsidiaryName",$C31,"YearStart",AC$13)="",".", GETPIVOTDATA(AC$21 & "",PivotTableB!$A$3,"SchoolName",$B31,"SubsidiaryName",$C31,"YearStart",AC$13)))),"") -> 240 | AD31: =IFERROR(IF(AC31=".",".",IF(AC31="n/a","n/a", GETPIVOTDATA(AD$21 & "",PivotTableB!$A$3,"SchoolName",$B31,"SubsidiaryName",$C31,"YearStart",AC$13))),"") -> 0 | AE31: =IFERROR(IF(AD31=".",".",IF(AD31="n/a","n/a", GETPIVOTDATA(AE$21 & "",PivotTableB!$A$3,"SchoolName",$B31,"SubsidiaryName",$C31,"YearStart",AC$13))),"") -> 0 | AF31: 240 | AG31: =IFERROR(IF(AF31=".",".",IF(AF31="n/a","n/a", GETPIVOTDATA(AG$21 & "",PivotTableB!$A$3,"SchoolName",$B31,"SubsidiaryName",$C31,"YearStart",AC$13))),"") -> 0 | AH31: =IFERROR(IF(AG31=".",".",IF(AG31="n/a","n/a", GETPIVOTDATA(AH$21 & "",PivotTableB!$A$3,"SchoolName",$B31,"SubsidiaryName",$C31,"YearStart",AC$13))),"") -> 1685 | AI31: =IFERROR(IF($B31="","", IF(OR($L31="Nursery School",$L31="All-through PRU",$M31="True"),"n/a", IF(GETPIVOTDATA(AI$21 & "",PivotTableB!$A$3,"SchoolName",$B31,"SubsidiaryName",$C31,"YearStart",AI$13)="",".", GETPIVOTDATA(AI$21 & "",PivotTableB!$A$3,"SchoolName",$B31,"SubsidiaryName",$C31,"YearStart",AI$13)))),"") -> 240 | AJ31: =IFERROR(IF(AI31=".",".",IF(AI31="n/a","n/a", GETPIVOTDATA(AJ$21 & "",PivotTableB!$A$3,"SchoolName",$B31,"SubsidiaryName",$C31,"YearStart",AI$13))),"") -> 0 | AK31: =IFERROR(IF(AJ31=".",".",IF(AJ31="n/a","n/a", GETPIVOTDATA(AK$21 & "",PivotTableB!$A$3,"SchoolName",$B31,"SubsidiaryName",$C31,"YearStart",AI$13))),"") -> 0 | AL31: 240 | AM31: =IFERROR(IF(AL31=".",".",IF(AL31="n/a","n/a", GETPIVOTDATA(AM$21 & "",PivotTableB!$A$3,"SchoolName",$B31,"SubsidiaryName",$C31,"YearStart",AI$13))),"") -> 0 | AN31: =IFERROR(IF(AM31=".",".",IF(AM31="n/a","n/a", GETPIVOTDATA(AN$21 & "",PivotTableB!$A$3,"SchoolName",$B31,"SubsidiaryName",$C31,"YearStart",AI$13))),"") -> 1685 | AO31: =IFERROR(IF($B31="","", IF(OR($L31="Nursery School",$L31="All-through PRU",$M31="True"),"n/a", IF(GETPIVOTDATA(AO$21 & "",PivotTableB!$A$3,"SchoolName",$B31,"SubsidiaryName",$C31,"YearStart",AO$13)="",".", GETPIVOTDATA(AO$21 & "",PivotTableB!$A$3,"SchoolName",$B31,"SubsidiaryName",$C31,"YearStart",AO$13)))),"") -> 240 | AP31: =IFERROR(IF(AO31=".",".",IF(AO31="n/a","n/a", GETPIVOTDATA(AP$21 & "",PivotTableB!$A$3,"SchoolName",$B31,"SubsidiaryName",$C31,"YearStart",AO$13))),"") -> 30 | AQ31: =IFERROR(IF(AP31=".",".",IF(AP31="n/a","n/a", GETPIVOTDATA(AQ$21 & "",PivotTableB!$A$3,"SchoolName",$B31,"SubsidiaryName",$C31,"YearStart",AO$13))),"") -> 0 | AR31: 270 | AS31: =IFERROR(IF(AR31=".",".",IF(AR31="n/a","n/a", GETPIVOTDATA(AS$21 & "",PivotTableB!$A$3,"SchoolName",$B31,"SubsidiaryName",$C31,"YearStart",AO$13))),"") -> 0 | AT31: =IFERROR(IF(AS31=".",".",IF(AS31="n/a","n/a", GETPIVOTDATA(AT$21 & "",PivotTableB!$A$3,"SchoolName",$B31,"SubsidiaryName",$C31,"YearStart",AO$13))),"") -> 1642 | AU31: =IFERROR(IF($B31="","", IF(OR($L31="Nursery School",$L31="All-through PRU",$M31="True"),"n/a", IF(GETPIVOTDATA(AU$21 & "",PivotTableB!$A$3,"SchoolName",$B31,"SubsidiaryName",$C31,"YearStart",AU$13)="",".", GETPIVOTDATA(AU$21 & "",PivotTableB!$A$3,"SchoolName",$B31,"SubsidiaryName",$C31,"YearStart",AU$13)))),"") -> 240 | AV31: =IFERROR(IF(AU31=".",".",IF(AU31="n/a","n/a", GETPIVOTDATA(AV$21 & "",PivotTableB!$A$3,"SchoolName",$B31,"SubsidiaryName",$C31,"YearStart",AU$13))),"") -> 0 | AW31: =IFERROR(IF(AV31=".",".",IF(AV31="n/a","n/a", GETPIVOTDATA(AW$21 & "",PivotTableB!$A$3,"SchoolName",$B31,"SubsidiaryName",$C31,"YearStart",AU$13))),"") -> 0 | AX31: 240 | AY31: =IFERROR(IF(AX31=".",".",IF(AX31="n/a","n/a", GETPIVOTDATA(AY$21 & "",PivotTableB!$A$3,"SchoolName",$B31,"SubsidiaryName",$C31,"YearStart",AU$13))),"") -> 0 | AZ31: =IFERROR(IF(AY31=".",".",IF(AY31="n/a","n/a", GETPIVOTDATA(AZ$21 & "",PivotTableB!$A$3,"SchoolName",$B31,"SubsidiaryName",$C31,"YearStart",AU$13))),"") -> 1816 | BA31: =IFERROR(IF($B31="","", IF(OR($L31="Nursery School",$L31="All-through PRU",$M31="True"),"n/a", IF(GETPIVOTDATA(BA$21 & "",PivotTableB!$A$3,"SchoolName",$B31,"SubsidiaryName",$C31,"YearStart",BA$13)="",".", GETPIVOTDATA(BA$21 & "",PivotTableB!$A$3,"SchoolName",$B31,"SubsidiaryName",$C31,"YearStart",BA$13)))),"") -> 240 | BB31: =IFERROR(IF(BA31=".",".",IF(BA31="n/a","n/a", GETPIVOTDATA(BB$21 & "",PivotTableB!$A$3,"SchoolName",$B31,"SubsidiaryName",$C31,"YearStart",BA$13))),"") -> 0 | BC31: =IFERROR(IF(BB31=".",".",IF(BB31="n/a","n/a", GETPIVOTDATA(BC$21 & "",PivotTableB!$A$3,"SchoolName",$B31,"SubsidiaryName",$C31,"YearStart",BA$13))),"") -> 30 | BD31: =IFERROR(IF(BC31=".",".",IF(BC31="n/a","n/a", GETPIVOTDATA(BD$21 & "",PivotTableB!$A$3,"SchoolName",$B31,"SubsidiaryName",$C31,"YearStart",BB$13))),"") ->  | BE31: 270 | BF31: =IFERROR(IF(BE31=".",".",IF(BE31="n/a","n/a", GETPIVOTDATA(BF$21 & "",PivotTableB!$A$3,"SchoolName",$B31,"SubsidiaryName",$C31,"YearStart",BA$13))),"") -> 0 | BG31: =IFERROR(IF(BF31=".",".",IF(BF31="n/a","n/a", GETPIVOTDATA(BG$21 & "",PivotTableB!$A$3,"SchoolName",$B31,"SubsidiaryName",$C31,"YearStart",BA$13))),"") -> 1816 | BH31: =IFERROR(IF($B31="","", IF(OR($L31="Nursery School",$L31="All-through PRU",$M31="True"),"n/a", IF(GETPIVOTDATA(BH$21 & "",PivotTableB!$A$3,"SchoolName",$B31,"SubsidiaryName",$C31,"YearStart",BH$13)="",".", GETPIVOTDATA(BH$21 & "",PivotTableB!$A$3,"SchoolName",$B31,"SubsidiaryName",$C31,"YearStart",BH$13)))),"") -> 240 | BI31: =IFERROR(IF(BH31=".",".",IF(BH31="n/a","n/a", GETPIVOTDATA(BI$21 & "",PivotTableB!$A$3,"SchoolName",$B31,"SubsidiaryName",$C31,"YearStart",BH$13))),"") -> 0 | BJ31: =IFERROR(IF(BI31=".",".",IF(BI31="n/a","n/a", GETPIVOTDATA(BJ$21 & "",PivotTableB!$A$3,"SchoolName",$B31,"SubsidiaryName",$C31,"YearStart",BH$13))),"") -> 30 | BK31: =IFERROR(IF(BJ31=".",".",IF(BJ31="n/a","n/a", GETPIVOTDATA(BK$21 & "",PivotTableB!$A$3,"SchoolName",$B31,"SubsidiaryName",$C31,"YearStart",BH$13))),"") -> 0 | BL31: 270 | BM31: =IFERROR(IF(BL31=".",".",IF(BL31="n/a","n/a", GETPIVOTDATA(BM$21 & "",PivotTableB!$A$3,"SchoolName",$B31,"SubsidiaryName",$C31,"YearStart",BH$13))),"") -> 0 | BN31: =IFERROR(IF(BM31=".",".",IF(BM31="n/a","n/a", GETPIVOTDATA(BN$21 & "",PivotTableB!$A$3,"SchoolName",$B31,"SubsidiaryName",$C31,"YearStart",BH$13))),"") -> 1816 | BO31: =IFERROR(IF($B31="","", IF(OR($L31="Nursery School",$L31="All-through PRU",$M31="True"),"n/a", IF(GETPIVOTDATA(BO$21 & "",PivotTableB!$A$3,"SchoolName",$B31,"SubsidiaryName",$C31,"YearStart",BO$13)="",".", GETPIVOTDATA(BO$21 & "",PivotTableB!$A$3,"SchoolName",$B31,"SubsidiaryName",$C31,"YearStart",BO$13)))),"") -> 240 | BP31: =IFERROR(IF(BO31=".",".",IF(BO31="n/a","n/a", GETPIVOTDATA(BP$21 & "",PivotTableB!$A$3,"SchoolName",$B31,"SubsidiaryName",$C31,"YearStart",BO$13))),"") -> 0 | BQ31: =IFERROR(IF(BP31=".",".",IF(BP31="n/a","n/a", GETPIVOTDATA(BQ$21 & "",PivotTableB!$A$3,"SchoolName",$B31,"SubsidiaryName",$C31,"YearStart",BO$13))),"") -> 30 | BR31: =IFERROR(IF(BQ31=".",".",IF(BQ31="n/a","n/a", GETPIVOTDATA(BR$21 & "",PivotTableB!$A$3,"SchoolName",$B31,"SubsidiaryName",$C31,"YearStart",BP$13))),"") ->  | BS31: 270 | BT31: =IFERROR(IF(BS31=".",".",IF(BS31="n/a","n/a", GETPIVOTDATA(BT$21 & "",PivotTableB!$A$3,"SchoolName",$B31,"SubsidiaryName",$C31,"YearStart",BO$13))),"") -> 0 | BU31: =IFERROR(IF(BT31=".",".",IF(BT31="n/a","n/a", GETPIVOTDATA(BU$21 & "",PivotTableB!$A$3,"SchoolName",$B31,"SubsidiaryName",$C31,"YearStart",BO$13))),"") -> 1816 | BV31: =IFERROR(IF($B31="","", IF(OR($L31="Nursery School",$L31="All-through PRU",$M31="True"),"n/a", IF(GETPIVOTDATA(BV$21 & "",PivotTableB!$A$3,"SchoolName",$B31,"SubsidiaryName",$C31,"YearStart",BV$13)="",".", GETPIVOTDATA(BV$21 & "",PivotTableB!$A$3,"SchoolName",$B31,"SubsidiaryName",$C31,"YearStart",BV$13)))),"") -> 240 | BW31: =IFERROR(IF(BV31=".",".",IF(BV31="n/a","n/a", GETPIVOTDATA(BW$21 & "",PivotTableB!$A$3,"SchoolName",$B31,"SubsidiaryName",$C31,"YearStart",BV$13))),"") -> 0 | BX31: =IFERROR(IF(BW31=".",".",IF(BW31="n/a","n/a", GETPIVOTDATA(BX$21 & "",PivotTableB!$A$3,"SchoolName",$B31,"SubsidiaryName",$C31,"YearStart",BV$13))),"") -> 30 | BY31: =IFERROR(IF(BX31=".",".",IF(BX31="n/a","n/a", GETPIVOTDATA(BY$21 & "",PivotTableB!$A$3,"SchoolName",$B31,"SubsidiaryName",$C31,"YearStart",BV$13))),"") -> 0 | BZ31: 270 | CA31: =IFERROR(IF(BZ31=".",".",IF(BZ31="n/a","n/a", GETPIVOTDATA(CA$21 & "",PivotTableB!$A$3,"SchoolName",$B31,"SubsidiaryName",$C31,"YearStart",BV$13))),"") -> 0 | CB31: =IFERROR(IF(CA31=".",".",IF(CA31="n/a","n/a", GETPIVOTDATA(CB$21 & "",PivotTableB!$A$3,"SchoolName",$B31,"SubsidiaryName",$C31,"YearStart",BV$13))),"") -> 1816
B32: =IF(PivotTableA!A19="","n/a",PivotTableA!A19) -> Cheapside CE Primary School | C32: =IF(B32="n/a","",PivotTableA!B19) -> Cheapside CE Primary School | D32: =IF($B32="n/a","",PivotTableA!C19) -> R | E32: =IF($B32="n/a","",PivotTableA!D19) -> Ascot | F32: =IF($B32="n/a","",PivotTableA!E19) -> Ascot | G32: =IF($B32="n/a","",PivotTableA!F19) -> Cheapside | H32: =IF($B32="n/a","",PivotTableA!G19) -> Ascot & Cheapside | I32: =IF($B32="n/a","",PivotTableA!H19) -> Sunninghill & Ascot | J32: =IF($B32="n/a","",PivotTableA!I19) -> Primary | K32: =IF($B32="n/a","",PivotTableA!J19) -> Two Tier | L32: =IF($B32="n/a","",PivotTableA!K19) -> JMI | M32: =IF($B32="n/a","",PivotTableA!O19) -> FALSE | N32: =IF($B32="n/a","",PivotTableA!L19) -> Voluntary Aided | O32: =IF($B32="n/a","",PivotTableA!M19) ->  | P32: =IF($B32="n/a","",PivotTableA!N19) -> Church of England | Q32: =IFERROR(IF($B32="","", IF(OR($L32="Nursery School",$L32="All-through PRU",$M32="True"),"n/a", IF(GETPIVOTDATA(Q$21 & "",PivotTableB!$A$3,"SchoolName",$B32,"SubsidiaryName",$C32,"YearStart",Q$13)="",".", GETPIVOTDATA(Q$21 & "",PivotTableB!$A$3,"SchoolName",$B32,"SubsidiaryName",$C32,"YearStart",Q$13)))),"") -> 16 | R32: =IFERROR(IF(Q32=".",".",IF(Q32="n/a","n/a", GETPIVOTDATA(R$21 & "",PivotTableB!$A$3,"SchoolName",$B32,"SubsidiaryName",$C32,"YearStart",Q$13))),"") -> 0 | S32: =IFERROR(IF(R32=".",".",IF(R32="n/a","n/a", GETPIVOTDATA(S$21 & "",PivotTableB!$A$3,"SchoolName",$B32,"SubsidiaryName",$C32,"YearStart",Q$13))),"") -> 0 | T32: 16 | U32: =IFERROR(IF(T32=".",".",IF(T32="n/a","n/a", GETPIVOTDATA(U$21 & "",PivotTableB!$A$3,"SchoolName",$B32,"SubsidiaryName",$C32,"YearStart",Q$13))),"") -> 0 | V32: =IFERROR(IF(U32=".",".",IF(U32="n/a","n/a", GETPIVOTDATA(V$21 & "",PivotTableB!$A$3,"SchoolName",$B32,"SubsidiaryName",$C32,"YearStart",Q$13))),"") -> 112 | W32: =IFERROR(IF($B32="","", IF(OR($L32="Nursery School",$L32="All-through PRU",$M32="True"),"n/a", IF(GETPIVOTDATA(W$21 & "",PivotTableB!$A$3,"SchoolName",$B32,"SubsidiaryName",$C32,"YearStart",W$13)="",".", GETPIVOTDATA(W$21 & "",PivotTableB!$A$3,"SchoolName",$B32,"SubsidiaryName",$C32,"YearStart",W$13)))),"") -> 16 | X32: =IFERROR(IF(W32=".",".",IF(W32="n/a","n/a", GETPIVOTDATA(X$21 & "",PivotTableB!$A$3,"SchoolName",$B32,"SubsidiaryName",$C32,"YearStart",W$13))),"") -> 0 | Y32: =IFERROR(IF(X32=".",".",IF(X32="n/a","n/a", GETPIVOTDATA(Y$21 & "",PivotTableB!$A$3,"SchoolName",$B32,"SubsidiaryName",$C32,"YearStart",W$13))),"") -> 0 | Z32: 16 | AA32: =IFERROR(IF(Z32=".",".",IF(Z32="n/a","n/a", GETPIVOTDATA(AA$21 & "",PivotTableB!$A$3,"SchoolName",$B32,"SubsidiaryName",$C32,"YearStart",W$13))),"") -> 0 | AB32: =IFERROR(IF(AA32=".",".",IF(AA32="n/a","n/a", GETPIVOTDATA(AB$21 & "",PivotTableB!$A$3,"SchoolName",$B32,"SubsidiaryName",$C32,"YearStart",W$13))),"") -> 112 | AC32: =IFERROR(IF($B32="","", IF(OR($L32="Nursery School",$L32="All-through PRU",$M32="True"),"n/a", IF(GETPIVOTDATA(AC$21 & "",PivotTableB!$A$3,"SchoolName",$B32,"SubsidiaryName",$C32,"YearStart",AC$13)="",".", GETPIVOTDATA(AC$21 & "",PivotTableB!$A$3,"SchoolName",$B32,"SubsidiaryName",$C32,"YearStart",AC$13)))),"") -> 16 | AD32: =IFERROR(IF(AC32=".",".",IF(AC32="n/a","n/a", GETPIVOTDATA(AD$21 & "",PivotTableB!$A$3,"SchoolName",$B32,"SubsidiaryName",$C32,"YearStart",AC$13))),"") -> 0 | AE32: =IFERROR(IF(AD32=".",".",IF(AD32="n/a","n/a", GETPIVOTDATA(AE$21 & "",PivotTableB!$A$3,"SchoolName",$B32,"SubsidiaryName",$C32,"YearStart",AC$13))),"") -> 0 | AF32: 16 | AG32: =IFERROR(IF(AF32=".",".",IF(AF32="n/a","n/a", GETPIVOTDATA(AG$21 & "",PivotTableB!$A$3,"SchoolName",$B32,"SubsidiaryName",$C32,"YearStart",AC$13))),"") -> 0 | AH32: =IFERROR(IF(AG32=".",".",IF(AG32="n/a","n/a", GETPIVOTDATA(AH$21 & "",PivotTableB!$A$3,"SchoolName",$B32,"SubsidiaryName",$C32,"YearStart",AC$13))),"") -> 112 | AI32: =IFERROR(IF($B32="","", IF(OR($L32="Nursery School",$L32="All-through PRU",$M32="True"),"n/a", IF(GETPIVOTDATA(AI$21 & "",PivotTableB!$A$3,"SchoolName",$B32,"SubsidiaryName",$C32,"YearStart",AI$13)="",".", GETPIVOTDATA(AI$21 & "",PivotTableB!$A$3,"SchoolName",$B32,"SubsidiaryName",$C32,"YearStart",AI$13)))),"") -> 16 | AJ32: =IFERROR(IF(AI32=".",".",IF(AI32="n/a","n/a", GETPIVOTDATA(AJ$21 & "",PivotTableB!$A$3,"SchoolName",$B32,"SubsidiaryName",$C32,"YearStart",AI$13))),"") -> 0 | AK32: =IFERROR(IF(AJ32=".",".",IF(AJ32="n/a","n/a", GETPIVOTDATA(AK$21 & "",PivotTableB!$A$3,"SchoolName",$B32,"SubsidiaryName",$C32,"YearStart",AI$13))),"") -> 0 | AL32: 16 | AM32: =IFERROR(IF(AL32=".",".",IF(AL32="n/a","n/a", GETPIVOTDATA(AM$21 & "",PivotTableB!$A$3,"SchoolName",$B32,"SubsidiaryName",$C32,"YearStart",AI$13))),"") -> 0 | AN32: =IFERROR(IF(AM32=".",".",IF(AM32="n/a","n/a", GETPIVOTDATA(AN$21 & "",PivotTableB!$A$3,"SchoolName",$B32,"SubsidiaryName",$C32,"YearStart",AI$13))),"") -> 112 | AO32: =IFERROR(IF($B32="","", IF(OR($L32="Nursery School",$L32="All-through PRU",$M32="True"),"n/a", IF(GETPIVOTDATA(AO$21 & "",PivotTableB!$A$3,"SchoolName",$B32,"SubsidiaryName",$C32,"YearStart",AO$13)="",".", GETPIVOTDATA(AO$21 & "",PivotTableB!$A$3,"SchoolName",$B32,"SubsidiaryName",$C32,"YearStart",AO$13)))),"") -> 30 | AP32: =IFERROR(IF(AO32=".",".",IF(AO32="n/a","n/a", GETPIVOTDATA(AP$21 & "",PivotTableB!$A$3,"SchoolName",$B32,"SubsidiaryName",$C32,"YearStart",AO$13))),"") -> 0 | AQ32: =IFERROR(IF(AP32=".",".",IF(AP32="n/a","n/a", GETPIVOTDATA(AQ$21 & "",PivotTableB!$A$3,"SchoolName",$B32,"SubsidiaryName",$C32,"YearStart",AO$13))),"") -> 0 | AR32: 30 | AS32: =IFERROR(IF(AR32=".",".",IF(AR32="n/a","n/a", GETPIVOTDATA(AS$21 & "",PivotTableB!$A$3,"SchoolName",$B32,"SubsidiaryName",$C32,"YearStart",AO$13))),"") -> 0 | AT32: =IFERROR(IF(AS32=".",".",IF(AS32="n/a","n/a", GETPIVOTDATA(AT$21 & "",PivotTableB!$A$3,"SchoolName",$B32,"SubsidiaryName",$C32,"YearStart",AO$13))),"") -> 112 | AU32: =IFERROR(IF($B32="","", IF(OR($L32="Nursery School",$L32="All-through PRU",$M32="True"),"n/a", IF(GETPIVOTDATA(AU$21 & "",PivotTableB!$A$3,"SchoolName",$B32,"SubsidiaryName",$C32,"YearStart",AU$13)="",".", GETPIVOTDATA(AU$21 & "",PivotTableB!$A$3,"SchoolName",$B32,"SubsidiaryName",$C32,"YearStart",AU$13)))),"") -> 30 | AV32: =IFERROR(IF(AU32=".",".",IF(AU32="n/a","n/a", GETPIVOTDATA(AV$21 & "",PivotTableB!$A$3,"SchoolName",$B32,"SubsidiaryName",$C32,"YearStart",AU$13))),"") -> 0 | AW32: =IFERROR(IF(AV32=".",".",IF(AV32="n/a","n/a", GETPIVOTDATA(AW$21 & "",PivotTableB!$A$3,"SchoolName",$B32,"SubsidiaryName",$C32,"YearStart",AU$13))),"") -> 0 | AX32: 30 | AY32: =IFERROR(IF(AX32=".",".",IF(AX32="n/a","n/a", GETPIVOTDATA(AY$21 & "",PivotTableB!$A$3,"SchoolName",$B32,"SubsidiaryName",$C32,"YearStart",AU$13))),"") -> 0 | AZ32: =IFERROR(IF(AY32=".",".",IF(AY32="n/a","n/a", GETPIVOTDATA(AZ$21 & "",PivotTableB!$A$3,"SchoolName",$B32,"SubsidiaryName",$C32,"YearStart",AU$13))),"") -> 210 | BA32: =IFERROR(IF($B32="","", IF(OR($L32="Nursery School",$L32="All-through PRU",$M32="True"),"n/a", IF(GETPIVOTDATA(BA$21 & "",PivotTableB!$A$3,"SchoolName",$B32,"SubsidiaryName",$C32,"YearStart",BA$13)="",".", GETPIVOTDATA(BA$21 & "",PivotTableB!$A$3,"SchoolName",$B32,"SubsidiaryName",$C32,"YearStart",BA$13)))),"") -> 30 | BB32: =IFERROR(IF(BA32=".",".",IF(BA32="n/a","n/a", GETPIVOTDATA(BB$21 & "",PivotTableB!$A$3,"SchoolName",$B32,"SubsidiaryName",$C32,"YearStart",BA$13))),"") -> 0 | BC32: =IFERROR(IF(BB32=".",".",IF(BB32="n/a","n/a", GETPIVOTDATA(BC$21 & "",PivotTableB!$A$3,"SchoolName",$B32,"SubsidiaryName",$C32,"YearStart",BA$13))),"") -> 0 | BD32: =IFERROR(IF(BC32=".",".",IF(BC32="n/a","n/a", GETPIVOTDATA(BD$21 & "",PivotTableB!$A$3,"SchoolName",$B32,"SubsidiaryName",$C32,"YearStart",BB$13))),"") ->  | BE32: 30 | BF32: =IFERROR(IF(BE32=".",".",IF(BE32="n/a","n/a", GETPIVOTDATA(BF$21 & "",PivotTableB!$A$3,"SchoolName",$B32,"SubsidiaryName",$C32,"YearStart",BA$13))),"") -> 0 | BG32: =IFERROR(IF(BF32=".",".",IF(BF32="n/a","n/a", GETPIVOTDATA(BG$21 & "",PivotTableB!$A$3,"SchoolName",$B32,"SubsidiaryName",$C32,"YearStart",BA$13))),"") -> 210 | BH32: =IFERROR(IF($B32="","", IF(OR($L32="Nursery School",$L32="All-through PRU",$M32="True"),"n/a", IF(GETPIVOTDATA(BH$21 & "",PivotTableB!$A$3,"SchoolName",$B32,"SubsidiaryName",$C32,"YearStart",BH$13)="",".", GETPIVOTDATA(BH$21 & "",PivotTableB!$A$3,"SchoolName",$B32,"SubsidiaryName",$C32,"YearStart",BH$13)))),"") -> 30 | BI32: =IFERROR(IF(BH32=".",".",IF(BH32="n/a","n/a", GETPIVOTDATA(BI$21 & "",PivotTableB!$A$3,"SchoolName",$B32,"SubsidiaryName",$C32,"YearStart",BH$13))),"") -> 0 | BJ32: =IFERROR(IF(BI32=".",".",IF(BI32="n/a","n/a", GETPIVOTDATA(BJ$21 & "",PivotTableB!$A$3,"SchoolName",$B32,"SubsidiaryName",$C32,"YearStart",BH$13))),"") -> 0 | BK32: =IFERROR(IF(BJ32=".",".",IF(BJ32="n/a","n/a", GETPIVOTDATA(BK$21 & "",PivotTableB!$A$3,"SchoolName",$B32,"SubsidiaryName",$C32,"YearStart",BH$13))),"") -> 0 | BL32: 30 | BM32: =IFERROR(IF(BL32=".",".",IF(BL32="n/a","n/a", GETPIVOTDATA(BM$21 & "",PivotTableB!$A$3,"SchoolName",$B32,"SubsidiaryName",$C32,"YearStart",BH$13))),"") -> 0 | BN32: =IFERROR(IF(BM32=".",".",IF(BM32="n/a","n/a", GETPIVOTDATA(BN$21 & "",PivotTableB!$A$3,"SchoolName",$B32,"SubsidiaryName",$C32,"YearStart",BH$13))),"") -> 210 | BO32: =IFERROR(IF($B32="","", IF(OR($L32="Nursery School",$L32="All-through PRU",$M32="True"),"n/a", IF(GETPIVOTDATA(BO$21 & "",PivotTableB!$A$3,"SchoolName",$B32,"SubsidiaryName",$C32,"YearStart",BO$13)="",".", GETPIVOTDATA(BO$21 & "",PivotTableB!$A$3,"SchoolName",$B32,"SubsidiaryName",$C32,"YearStart",BO$13)))),"") -> 30 | BP32: =IFERROR(IF(BO32=".",".",IF(BO32="n/a","n/a", GETPIVOTDATA(BP$21 & "",PivotTableB!$A$3,"SchoolName",$B32,"SubsidiaryName",$C32,"YearStart",BO$13))),"") -> 0 | BQ32: =IFERROR(IF(BP32=".",".",IF(BP32="n/a","n/a", GETPIVOTDATA(BQ$21 & "",PivotTableB!$A$3,"SchoolName",$B32,"SubsidiaryName",$C32,"YearStart",BO$13))),"") -> 0 | BR32: =IFERROR(IF(BQ32=".",".",IF(BQ32="n/a","n/a", GETPIVOTDATA(BR$21 & "",PivotTableB!$A$3,"SchoolName",$B32,"SubsidiaryName",$C32,"YearStart",BP$13))),"") ->  | BS32: 30 | BT32: =IFERROR(IF(BS32=".",".",IF(BS32="n/a","n/a", GETPIVOTDATA(BT$21 & "",PivotTableB!$A$3,"SchoolName",$B32,"SubsidiaryName",$C32,"YearStart",BO$13))),"") -> 0 | BU32: =IFERROR(IF(BT32=".",".",IF(BT32="n/a","n/a", GETPIVOTDATA(BU$21 & "",PivotTableB!$A$3,"SchoolName",$B32,"SubsidiaryName",$C32,"YearStart",BO$13))),"") -> 210 | BV32: =IFERROR(IF($B32="","", IF(OR($L32="Nursery School",$L32="All-through PRU",$M32="True"),"n/a", IF(GETPIVOTDATA(BV$21 & "",PivotTableB!$A$3,"SchoolName",$B32,"SubsidiaryName",$C32,"YearStart",BV$13)="",".", GETPIVOTDATA(BV$21 & "",PivotTableB!$A$3,"SchoolName",$B32,"SubsidiaryName",$C32,"YearStart",BV$13)))),"") -> 30 | BW32: =IFERROR(IF(BV32=".",".",IF(BV32="n/a","n/a", GETPIVOTDATA(BW$21 & "",PivotTableB!$A$3,"SchoolName",$B32,"SubsidiaryName",$C32,"YearStart",BV$13))),"") -> 0 | BX32: =IFERROR(IF(BW32=".",".",IF(BW32="n/a","n/a", GETPIVOTDATA(BX$21 & "",PivotTableB!$A$3,"SchoolName",$B32,"SubsidiaryName",$C32,"YearStart",BV$13))),"") -> 0 | BY32: =IFERROR(IF(BX32=".",".",IF(BX32="n/a","n/a", GETPIVOTDATA(BY$21 & "",PivotTableB!$A$3,"SchoolName",$B32,"SubsidiaryName",$C32,"YearStart",BV$13))),"") -> 0 | BZ32: 30 | CA32: =IFERROR(IF(BZ32=".",".",IF(BZ32="n/a","n/a", GETPIVOTDATA(CA$21 & "",PivotTableB!$A$3,"SchoolName",$B32,"SubsidiaryName",$C32,"YearStart",BV$13))),"") -> 0 | CB32: =IFERROR(IF(CA32=".",".",IF(CA32="n/a","n/a", GETPIVOTDATA(CB$21 & "",PivotTableB!$A$3,"SchoolName",$B32,"SubsidiaryName",$C32,"YearStart",BV$13))),"") -> 210
